Workbook

Sheet Sheet1
B1: 総括表① | C1: 総括表① | D1: 総括表① | E1: 総括表① | F1: 総括表① | G1: 総括表① | H1: 総括表① | I1: 総括表① | J1: 総括表① | K1: 総括表① | L1: 総括表② | M1: 総括表② | N1: 総括表② | O1: 総括表② | P1: 総括表② | Q1: 総括表② | R1: 総括表② | S1: 総括表② | T1: 総括表② | U1: 総括表② | V1: 総括表② | W1: 総括表② | X1: 総括表② | Y1: 総括表② | Z1: 総括表② | AA1: 総括表② | AB1: 総括表② | AC1: 総括表② | AD1: 総括表② | AE1: 総括表② | AF1: 総括表② | AG1: 総括表② | AH1: 総括表② | AI1: 総括表② | AJ1: 総括表② | AK1: 総括表② | AL1: 総括表② | AM1: 総括表② | AN1: 総括表② | AO1: 総括表② | AP1: 総括表② | AQ1: 総括表② | AR1: 総括表② | AS1: 総括表② | AT1: １①②表 | AU1: 総括表② | AV1: 総括表② | AW1: １①②表 | AX1: 総括表② | AY1: 総括表② | AZ1: １①②表 | BA1: 総括表② | BB1: 総括表② | BC1: １①②表 | BD1: 総括表② | BE1: 総括表② | BF1: １①②表 | BG1: 総括表② | BH1: 総括表② | BI1: １①②表 | BJ1: 総括表② | BK1: 総括表② | BL1: １①②表 | BM1: 総括表② | BN1: 総括表② | BO1: １①②表 | BP1: 総括表② | BQ1: 総括表② | BR1: １①②表 | BS1: 総括表② | BT1: 総括表② | BU1: １①②表 | BV1: 総括表② | BW1: 総括表② | BX1: １①②表 | BY1: 総括表② | BZ1: 総括表② | CA1: １①②表 | CB1: 総括表② | CC1: 総括表② | CD1: １①②表 | CE1: 総括表② | CF1: 総括表② | CG1: 総括表② | CH1: 総括表② | CI1: 総括表② | CJ1: 総括表② | CK1: 総括表② | CL1: 総括表② | CM1: 総括表② | CN1: 総括表② | CO1: 総括表② | CP1: 総括表② | CQ1: 総括表② | CR1: 総括表② | CS1: 総括表② | CT1: 総括表② | CU1: 総括表② | CV1: 総括表② | CW1: 総括表② | CX1: 総括表② | CY1: 総括表② | CZ1: 総括表② | DA1: 総括表② | DB1: 総括表② | DC1: 総括表② | DD1: 総括表② | DE1: 総括表② | DF1: 総括表② | DG1: 総括表② | DH1: 総括表② | DI1: 総括表② | DJ1: 総括表② | DK1: 総括表② | DL1: 総括表② | DM1: 総括表② | DN1: 総括表② | DO1: 総括表② | DP1: 総括表② | DQ1: 総括表② | DR1: 総括表② | DS1: 総括表② | DT1: 総括表② | DU1: 総括表② | DV1: 総括表② | DW1: 総括表② | DX1: 総括表② | DY1: 総括表② | DZ1: 総括表② | EA1: 総括表② | EB1: 総括表② | EC1: 総括表② | ED1: 総括表② | EE1: 総括表② | EF1: 総括表② | EG1: 総括表② | EH1: 総括表② | EI1: 総括表② | EJ1: 総括表② | EK1: 総括表② | EL1: 総括表② | EM1: 総括表② | EN1: 総括表② | EO1: 総括表② | EP1: 総括表② | EQ1: 総括表② | ER1: 総括表② | ES1: 総括表② | ET1: 総括表② | EU1: 総括表② | EV1: 総括表② | EW1: 総括表② | EX1: 総括表② | EY1: 総括表② | EZ1: 総括表② | FA1: 総括表② | FB1: 総括表② | FC1: 総括表② | FD1: 総括表② | FE1: 総括表② | FF1: 総括表② | FG1: 総括表③ | FH1: 総括表③ | FI1: 総括表③ | FJ1: 総括表③ | FK1: 総括表③ | FL1: 総括表③ | FM1: 総括表③ | FN1: 総括表③ | FO1: 総括表③ | FP1: 総括表③ | FQ1: 総括表③ | FR1: 総括表③ | FS1: 総括表③ | FT1: 総括表③ | FU1: 総括表③ | FV1: 総括表③ | FW1: 総括表③ | FX1: 総括表③ | FY1: 総括表③ | FZ1: 総括表③ | GA1: 総括表③ | GB1: 総括表③ | GC1: 総括表③ | GD1: 総括表③ | GE1: 総括表③ | GF1: 総括表③ | GG1: 総括表③ | GH1: 総括表③ | GI1: 総括表③ | GJ1: 総括表③ | GK1: 総括表③ | GL1: 総括表③ | GM1: 総括表③ | GN1: 総括表③ | GO1: 総括表③ | GP1: 総括表③ | GQ1: 総括表③ | GR1: 総括表③ | GS1: 総括表③ | GT1: 総括表③ | GU1: 総括表③ | GV1: 総括表③ | GW1: 総括表③ | GX1: 総括表③ | GY1: 総括表③ | GZ1: 総括表③ | HA1: 総括表③ | HB1: 総括表③ | HC1: 総括表③ | HD1: 総括表③ | HE1: 総括表③ | HF1: 総括表③ | HG1: 総括表③ | HH1: 総括表③ | HI1: 総括表③ | HJ1: 総括表③ | HK1: 総括表③ | HL1: 総括表③ | HM1: 総括表③ | HN1: 総括表③ | HO1: 総括表③ | HP1: 総括表③ | HQ1: 総括表③ | HR1: 総括表③ | HS1: 総括表③ | HT1: 総括表③ | HU1: 総括表③ | HV1: 総括表③ | HW1: 総括表③ | HX1: 総括表③ | HY1: 総括表③ | HZ1: 総括表③ | IA1: 総括表③ | IB1: 総括表③ | IC1: 総括表③ | ID1: 総括表③
A2: バージョン | L2: 一般会計等1 | M2: 一般会計等1 | N2: 一般会計等2 | O2: 一般会計等2 | P2: 一般会計等3 | Q2: 一般会計等3 | R2: 一般会計等4 | S2: 一般会計等4 | T2: 一般会計等5 | U2: 一般会計等5 | V2: 一般会計等6 | W2: 一般会計等6 | X2: 一般会計等7 | Y2: 一般会計等7 | Z2: 一般会計等8 | AA2: 一般会計等8 | AB2: 一般会計等9 | AC2: 一般会計等9 | AD2: 一般会計等10 | AE2: 一般会計等10 | AF2: 一般会計等11 | AG2: 一般会計等11 | AH2: 一般会計等12 | AI2: 一般会計等12 | AJ2: 一般会計等13 | AK2: 一般会計等13 | AL2: 一般会計等14 | AM2: 一般会計等14 | AN2: 一般会計等15 | AO2: 一般会計等15 | AP2: 一般会計等16 | AQ2: 一般会計等16 | AR2: 一般会計等 | AS2: 一般会計等 | AT2: 公営事業1 | AU2: 公営事業1 | AV2: 公営事業1 | AW2: 公営事業2 | AX2: 公営事業2 | AY2: 公営事業2 | AZ2: 公営事業3 | BA2: 公営事業3 | BB2: 公営事業3 | BC2: 公営事業4 | BD2: 公営事業4 | BE2: 公営事業4 | BF2: 公営事業5 | BG2: 公営事業5 | BH2: 公営事業5 | BI2: 公営事業6 | BJ2: 公営事業6 | BK2: 公営事業6 | BL2: 公営事業7 | BM2: 公営事業7 | BN2: 公営事業7 | BO2: 公営事業8 | BP2: 公営事業8 | BQ2: 公営事業8 | BR2: 公営事業9 | BS2: 公営事業9 | BT2: 公営事業9 | BU2: 公営事業10 | BV2: 公営事業10 | BW2: 公営事業10 | BX2: 公営事業11 | BY2: 公営事業11 | BZ2: 公営事業11 | CA2: 公営事業12 | CB2: 公営事業12 | CC2: 公営事業12 | CD2: 公営事業13 | CE2: 公営事業13 | CF2: 公営事業13 | CG2: 法適1 | CH2: 法適1 | CI2: 法適2 | CJ2: 法適2 | CK2: 法適3 | CL2: 法適3 | CM2: 法適4 | CN2: 法適4 | CO2: 法適5 | CP2: 法適5 | CQ2: 法適6 | CR2: 法適6 | CS2: 法適7 | CT2: 法適7 | CU2: 法適8 | CV2: 法適8 | CW2: 法適9 | CX2: 法適9 | CY2: 法適10 | CZ2: 法適10 | DA2: 法適11 | DB2: 法適11 | DC2: 法適12 | DD2: 法適12 | DE2: 法適13 | DF2: 法適13 | DG2: 法適14 | DH2: 法適14 | DI2: 法適15 | DJ2: 法適15 | DK2: 法適16 | DL2: 法適16 | DM2: 法適17 | DN2: 法適17 | DO2: 法適18 | DP2: 法適18 | DQ2: 法適19 | DR2: 法適19 | DS2: 法非適1 | DT2: 法非適1 | DU2: 法非適2 | DV2: 法非適2 | DW2: 法非適3 | DX2: 法非適3 | DY2: 法非適4 | DZ2: 法非適4 | EA2: 法非適5 | EB2: 法非適5 | EC2: 法非適6 | ED2: 法非適6 | EE2: 法非適7 | EF2: 法非適7 | EG2: 法非適8 | EH2: 法非適8 | EI2: 法非適9 | EJ2: 法非適9 | EK2: 法非適10 | EL2: 法非適10 | EM2: 法非適11 | EN2: 法非適11 | EO2: 法非適12 | EP2: 法非適12 | EQ2: 法非適13 | ER2: 法非適13 | ES2: 法非適14 | ET2: 法非適14 | EU2: 法非適15 | EV2: 法非適15 | EW2: 法非適16 | EX2: 法非適16 | EY2: 法非適17 | EZ2: 法非適17 | FA2: 法非適18 | FB2: 法非適18 | FC2: 法非適19 | FD2: 法非適19 | FE2: 連結 | FF2: 連結 | FG2: 実質公債費比率 | FH2: 実質公債費比率 | FI2: 実質公債費比率 | FJ2: 実質公債費比率 | FK2: =$FG$3 -> 3年度 | FL2: =$FG$3 -> 3年度 | FM2: 3年度 | FN2: 3年度 | FO2: 3年度 | FP2: 3年度 | FQ2: 3年度 | FR2: 3年度 | FS2: 3年度 | FT2: 3年度 | FU2: 3年度 | FV2: 3年度 | FW2: 3年度 | FX2: 3年度 | FY2: 3年度 | FZ2: 3年度 | GA2: 3年度 | GB2: 3年度 | GC2: 3年度 | GD2: 3年度 | GE2: 3年度 | GF2: 3年度 | GG2: 3年度 | GH2: 3年度 | GI2: =$FH$3 -> 4年度 | GJ2: =$FH$3 -> 4年度 | GK2: 4年度 | GL2: 4年度 | GM2: 4年度 | GN2: 4年度 | GO2: 4年度 | GP2: 4年度 | GQ2: 4年度 | GR2: 4年度 | GS2: 4年度 | GT2: 4年度 | GU2: 4年度 | GV2: 4年度 | GW2: 4年度 | GX2: 4年度 | GY2: 4年度 | GZ2: 4年度 | HA2: 4年度 | HB2: 4年度 | HC2: 4年度 | HD2: 4年度 | HE2: 4年度 | HF2: 4年度 | HG2: =$FI$3 -> 5年度 | HH2: =$FI$3 -> 5年度 | HI2: 5年度 | HJ2: 5年度 | HK2: 5年度 | HL2: 5年度 | HM2: 5年度 | HN2: 5年度 | HO2: 5年度 | HP2: 5年度 | HQ2: 5年度 | HR2: 5年度 | HS2: 5年度 | HT2: 5年度 | HU2: 5年度 | HV2: 5年度 | HW2: 5年度 | HX2: 5年度 | HY2: 5年度 | HZ2: 5年度 | IA2: 5年度 | IB2: 5年度 | IC2: 5年度 | ID2: 5年度
B3: 地方公共団体コード | C3: 都道府県名 | D3: 市区町村名 | E3: 団体区分 | F3: 実質赤字比率 | G3: 連結実質赤字比率 | H3: 実質公債費比率 | I3: 将来負担比率 | J3: 標準財政規模 | K3: 臨財債発行可能額 | L3: 会計名 | M3: 実質収支額 | N3: 会計名 | O3: 実質収支額 | P3: 会計名 | Q3: 実質収支額 | R3: 会計名 | S3: 実質収支額 | T3: 会計名 | U3: 実質収支額 | V3: 会計名 | W3: 実質収支額 | X3: 会計名 | Y3: 実質収支額 | Z3: 会計名 | AA3: 実質収支額 | AB3: 会計名 | AC3: 実質収支額 | AD3: 会計名 | AE3: 実質収支額 | AF3: 会計名 | AG3: 実質収支額 | AH3: 会計名 | AI3: 実質収支額 | AJ3: 会計名 | AK3: 実質収支額 | AL3: 会計名 | AM3: 実質収支額 | AN3: 会計名 | AO3: 実質収支額 | AP3: 会計名 | AQ3: 実質収支額 | AR3: 小計 | AS3: 実質赤字比率 | AT3: 事業区分 | AU3: 会計名 | AV3: 実質収支額 | AW3: 事業区分 | AX3: 会計名 | AY3: 実質収支額 | AZ3: 事業区分 | BA3: 会計名 | BB3: 実質収支額 | BC3: 事業区分 | BD3: 会計名 | BE3: 実質収支額 | BF3: 事業区分 | BG3: 会計名 | BH3: 実質収支額 | BI3: 事業区分 | BJ3: 会計名 | BK3: 実質収支額 | BL3: 事業区分 | BM3: 会計名 | BN3: 実質収支額 | BO3: 事業区分 | BP3: 会計名 | BQ3: 実質収支額 | BR3: 事業区分 | BS3: 会計名 | BT3: 実質収支額 | BU3: 事業区分 | BV3: 会計名 | BW3: 実質収支額 | BX3: 事業区分 | BY3: 会計名 | BZ3: 実質収支額 | CA3: 事業区分 | CB3: 会計名 | CC3: 実質収支額 | CD3: 事業区分 | CE3: 会計名 | CF3: 実質収支額 | CG3: 会計名 | CH3: 資金不足・剰余額 | CI3: 会計名 | CJ3: 資金不足・剰余額 | CK3: 会計名 | CL3: 資金不足・剰余額 | CM3: 会計名 | CN3: 資金不足・剰余額 | CO3: 会計名 | CP3: 資金不足・剰余額 | CQ3: 会計名 | CR3: 資金不足・剰余額 | CS3: 会計名 | CT3: 資金不足・剰余額 | CU3: 会計名 | CV3: 資金不足・剰余額 | CW3: 会計名 | CX3: 資金不足・剰余額 | CY3: 会計名 | CZ3: 資金不足・剰余額 | DA3: 会計名 | DB3: 資金不足・剰余額 | DC3: 会計名 | DD3: 資金不足・剰余額 | DE3: 会計名 | DF3: 資金不足・剰余額 | DG3: 会計名 | DH3: 資金不足・剰余額 | DI3: 会計名 | DJ3: 資金不足・剰余額 | DK3: 会計名 | DL3: 資金不足・剰余額 | DM3: 会計名 | DN3: 資金不足・剰余額 | DO3: 会計名 | DP3: 資金不足・剰余額 | DQ3: 会計名 | DR3: 資金不足・剰余額 | DS3: 会計名 | DT3: 資金不足・剰余額 | DU3: 会計名 | DV3: 資金不足・剰余額 | DW3: 会計名 | DX3: 資金不足・剰余額 | DY3: 会計名 | DZ3: 資金不足・剰余額 | EA3: 会計名 | EB3: 資金不足・剰余額 | EC3: 会計名 | ED3: 資金不足・剰余額 | EE3: 会計名 | EF3: 資金不足・剰余額 | EG3: 会計名 | EH3: 資金不足・剰余額 | EI3: 会計名 | EJ3: 資金不足・剰余額 | EK3: 会計名 | EL3: 資金不足・剰余額 | EM3: 会計名 | EN3: 資金不足・剰余額 | EO3: 会計名 | EP3: 資金不足・剰余額 | EQ3: 会計名 | ER3: 資金不足・剰余額 | ES3: 会計名 | ET3: 資金不足・剰余額 | EU3: 会計名 | EV3: 資金不足・剰余額 | EW3: 会計名 | EX3: 資金不足・剰余額 | EY3: 会計名 | EZ3: 資金不足・剰余額 | FA3: 会計名 | FB3: 資金不足・剰余額 | FC3: 会計名 | FD3: 資金不足・剰余額 | FE3: 合計 | FF3: 連結実質赤字比率 | FG3: 3年度 | FH3: 4年度 | FI3: 5年度 | FJ3: 3ヵ年平均 | FK3: ① | FL3: ② | FM3: ③ | FN3: ④ | FO3: ⑤ | FP3: ⑥ | FQ3: ⑦ | FR3: ⑧ | FS3: ⑨ | FT3: ⑩ | FU3: ⑪ | FV3: ⑫ | FW3: ⑬ | FX3: ⑭ | FY3: ⑮ | FZ3: ⑥PFI | GA3: ⑥五省 | GB3: ⑥国営土地 | GC3: ⑥地共済 | GD3: ⑥社福 | GE3: ⑥損失補償 | GF3: ⑥債務引受 | GG3: ⑥その他 | GH3: ⑥利子補給 | GI3: ① | GJ3: ② | GK3: ③ | GL3: ④ | GM3: ⑤ | GN3: ⑥ | GO3: ⑦ | GP3: ⑧ | GQ3: ⑨ | GR3: ⑩ | GS3: ⑪ | GT3: ⑫ | GU3: ⑬ | GV3: ⑭ | GW3: ⑮ | GX3: ⑥PFI | GY3: ⑥五省 | GZ3: ⑥国営土地 | HA3: ⑥地共済 | HB3: ⑥社福 | HC3: ⑥損失補償 | HD3: ⑥債務引受 | HE3: ⑥その他 | HF3: ⑥利子補給 | HG3: ① | HH3: ② | HI3: ③ | HJ3: ④ | HK3: ⑤ | HL3: ⑥ | HM3: ⑦ | HN3: ⑧ | HO3: ⑨ | HP3: ⑩ | HQ3: ⑪ | HR3: ⑫ | HS3: ⑬ | HT3: ⑭ | HU3: ⑮ | HV3: ⑥PFI | HW3: ⑥五省 | HX3: ⑥国営土地 | HY3: ⑥地共済 | HZ3: ⑥社福 | IA3: ⑥損失補償 | IB3: ⑥債務引受 | IC3: ⑥その他 | ID3: ⑥利子補給
A4: Ver.05.00 | B4: 11002 | C4: 北海道 | D4: 札幌市 | E4: 2 | F4: - | G4: - | H4: 2.9 | I4: 18.2 | J4: 553530274 | K4: 25402985 | L4: 一般会計 | M4: 6102321 | N4: 土地区画整理会計 | O4: 0 | P4: 母子父子寡婦福祉資金貸付会計 | Q4: 36243 | R4: 基金会計 | S4: 112699.192 | T4: 公債会計 | U4: 0 | AR4: 6251263.192 | AS4: -1.12 | AT4: ③ | AU4: 後期高齢者医療会計 | AV4: 1327897 | AW4: ⑦ | AX4: 駐車場会計 | AY4: 9410 | AZ4: ① | BA4: 国民健康保険会計 | BB4: 528697 | BC4: ② | BD4: 介護保険会計 | BE4: 69477 | BF4: 0 | BI4: 0 | BL4: 0 | BO4: 0 | BR4: 0 | BU4: 0 | BX4: 0 | CA4: 0 | CD4: 0 | CG4: 病院事業会計 | CH4: 754522 | CI4: 中央卸売市場事業会計 | CJ4: 1466714 | CK4: 軌道整備事業会計 | CL4: 627752 | CM4: 高速電車事業会計 | CN4: 0 | CO4: 水道事業会計 | CP4: 13560882 | CQ4: 下水道事業会計 | CR4: 6190201 | CS4: 0 | CT4: 0 | CU4: 0 | CV4: 0 | CW4: 0 | CX4: 0 | CY4: 0 | CZ4: 0 | DA4: 0 | DB4: 0 | DC4: 0 | DD4: 0 | DE4: 0 | DF4: 0 | DG4: 0 | DH4: 0 | DI4: 0 | DJ4: 0 | DK4: 0 | DL4: 0 | DM4: 0 | DN4: 0 | DO4: 0 | DP4: 0 | DQ4: 0 | DR4: 0 | DS4: 0 | DT4: 0 | DU4: 0 | DV4: 0 | DW4: 0 | DX4: 0 | DY4: 0 | DZ4: 0 | EA4: 0 | EB4: 0 | EC4: 0 | ED4: 0 | EE4: 0 | EF4: 0 | EG4: 0 | EH4: 0 | EI4: 0 | EJ4: 0 | EK4: 0 | EL4: 0 | EM4: 0 | EN4: 0 | EO4: 0 | EP4: 0 | EQ4: 0 | ER4: 0 | ES4: 0 | ET4: 0 | EU4: 0 | EV4: 0 | EW4: 0 | EX4: 0 | EY4: 0 | EZ4: 0 | FA4: 0 | FB4: 0 | FC4: 0 | FD4: 0 | FE4: 30786815.19 | FF4: -5.56 | FG4: 2.77355945 | FH4: 3.023511678 | FI4: 3.063251684 | FJ4: 2.9 | FK4: 28149168 | FL4: 0 | FM4: 46560181 | FN4: 16033034 | FO4: 0 | FP4: 291896 | FQ4: 27 | FR4: 20002116 | FS4: 9255421 | FT4: 46713351 | FU4: 1222141 | FV4: 365755970 | FW4: 126656935 | FX4: 63821827 | FY4: 0 | FZ4: 291896 | GA4: 0 | GB4: 0 | GC4: 0 | GD4: 0 | GE4: 0 | GF4: 0 | GG4: 0 | GH4: 0 | GI4: 26627579 | GJ4: 0 | GK4: 48753248 | GL4: 15103177 | GM4: 0 | GN4: 284334 | GO4: 87 | GP4: 18386586 | GQ4: 9023077 | GR4: 47489385 | GS4: 1242808 | GT4: 385868656 | GU4: 119246587 | GV4: 36400983 | GW4: 0 | GX4: 284334 | GY4: 0 | GZ4: 0 | HA4: 0 | HB4: 0 | HC4: 0 | HD4: 0 | HE4: 0 | HF4: 0 | HG4: 26965780 | HH4: 0 | HI4: 50063701.01 | HJ4: 16072077 | HK4: 0 | HL4: 288535 | HM4: 0 | HN4: 20507380 | HO4: 9597120 | HP4: 46899218 | HQ4: 1197662 | HR4: 397413384 | HS4: 130713905 | HT4: 25402985 | HU4: 0 | HV4: 288535 | HW4: 0 | HX4: 0 | HY4: 0 | HZ4: 0 | IA4: 0 | IB4: 0 | IC4: 0 | ID4: 0
A5: Ver.05.00 | B5: 012025 | C5: 北海道 | D5: 函館市 | E5: 3 | F5: - | G5: - | H5: 5 | I5: 38.9 | J5: 70931385 | K5: 1255454 | L5: 一般会計 | M5: 2711455 | N5: 港湾事業特別会計 | O5: 37754 | P5: 奨学資金特別会計 | Q5: 858 | R5: 母子父子寡婦福祉資金貸付事業特別会計 | S5: 0 | AR5: 2750067 | AS5: -3.87 | AT5: ① | AU5: 国民健康保険事業特別会計 | AV5: 104451 | AW5: ⑨ | AX5: 自転車競走事業特別会計 | AY5: 40271 | AZ5: ② | BA5: 介護保険事業特別会計 | BB5: 1080527 | BC5: ③ | BD5: 後期高齢者医療事業特別会計 | BE5: 110973 | BF5: 0 | BI5: 0 | BL5: 0 | BO5: 0 | BR5: 0 | BU5: 0 | BX5: 0 | CA5: 0 | CD5: 0 | CG5: 水道事業会計 | CH5: 3425603 | CI5: 公共下水道事業会計 | CJ5: 2037210 | CK5: 交通事業会計 | CL5: 750 | CM5: 病院事業会計 | CN5: 5106713 | CO5: 0 | CP5: 0 | CQ5: 0 | CR5: 0 | CS5: 0 | CT5: 0 | CU5: 0 | CV5: 0 | CW5: 0 | CX5: 0 | CY5: 0 | CZ5: 0 | DA5: 0 | DB5: 0 | DC5: 0 | DD5: 0 | DE5: 0 | DF5: 0 | DG5: 0 | DH5: 0 | DI5: 0 | DJ5: 0 | DK5: 0 | DL5: 0 | DM5: 0 | DN5: 0 | DO5: 0 | DP5: 0 | DQ5: 0 | DR5: 0 | DS5: 地方卸売市場事業特別会計 | DT5: 10958 | DU5: 発電事業特別会計 | DV5: 917 | DW5: 0 | DX5: 0 | DY5: 0 | DZ5: 0 | EA5: 0 | EB5: 0 | EC5: 0 | ED5: 0 | EE5: 0 | EF5: 0 | EG5: 0 | EH5: 0 | EI5: 0 | EJ5: 0 | EK5: 0 | EL5: 0 | EM5: 0 | EN5: 0 | EO5: 0 | EP5: 0 | EQ5: 0 | ER5: 0 | ES5: 0 | ET5: 0 | EU5: 0 | EV5: 0 | EW5: 0 | EX5: 0 | EY5: 0 | EZ5: 0 | FA5: 0 | FB5: 0 | FC5: 0 | FD5: 0 | FE5: 14668440 | FF5: -20.67 | FG5: 4.845227873 | FH5: 5.324000142 | FI5: 4.897899315 | FJ5: 5 | FK5: 12554871 | FL5: 0 | FM5: 0 | FN5: 2818482 | FO5: 0 | FP5: 196424 | FQ5: 39 | FR5: 2544951 | FS5: 2735885 | FT5: 6628885 | FU5: 645700 | FV5: 35595708 | FW5: 32362595 | FX5: 4265856 | FY5: 0 | FZ5: 0 | GA5: 0 | GB5: 0 | GC5: 0 | GD5: 0 | GE5: 0 | GF5: 0 | GG5: 196329 | GH5: 95 | GI5: 12544009 | GJ5: 0 | GK5: 0 | GL5: 3084557 | GM5: 0 | GN5: 210911 | GO5: 0 | GP5: 2674271 | GQ5: 2612449 | GR5: 6682839 | GS5: 640551 | GT5: 36859547 | GU5: 31676028 | GV5: 2057043 | GW5: 0 | GX5: 0 | GY5: 0 | GZ5: 0 | HA5: 0 | HB5: 0 | HC5: 0 | HD5: 0 | HE5: 210810 | HF5: 101 | HG5: 12399304 | HH5: 0 | HI5: 0 | HJ5: 3044902 | HK5: 0 | HL5: 152207 | HM5: 23 | HN5: 2674894 | HO5: 2528431 | HP5: 6771780 | HQ5: 633738 | HR5: 37528359 | HS5: 32147572 | HT5: 1255454 | HU5: 0 | HV5: 0 | HW5: 0 | HX5: 0 | HY5: 0 | HZ5: 0 | IA5: 0 | IB5: 0 | IC5: 152118 | ID5: 89
A6: Ver.05.00 | B6: 012033 | C6: 北海道 | D6: 小樽市 | E6: 3 | F6: - | G6: - | H6: 4 | I6: 25 | J6: 31858052 | K6: 204975 | L6: 一般会計 | M6: 1284840 | N6: 住宅事業特別会計 | O6: 0 | AR6: 1284840 | AS6: -4.03 | AT6: ① | AU6: 国民健康保険事業特別会計 | AV6: 91194 | AW6: ② | AX6: 介護保険事業特別会計 | AY6: 452573 | AZ6: ③ | BA6: 後期高齢者医療事業特別会計 | BB6: 73509 | BC6: 0 | BF6: 0 | BI6: 0 | BL6: 0 | BO6: 0 | BR6: 0 | BU6: 0 | BX6: 0 | CA6: 0 | CD6: 0 | CG6: 病院事業会計 | CH6: 250374 | CI6: 水道事業会計 | CJ6: 1526854 | CK6: 下水道事業会計 | CL6: 502563 | CM6: 産業廃棄物等処分事業会計 | CN6: 1549528 | CO6: 簡易水道事業会計 | CP6: 988 | CQ6: 0 | CR6: 0 | CS6: 0 | CT6: 0 | CU6: 0 | CV6: 0 | CW6: 0 | CX6: 0 | CY6: 0 | CZ6: 0 | DA6: 0 | DB6: 0 | DC6: 0 | DD6: 0 | DE6: 0 | DF6: 0 | DG6: 0 | DH6: 0 | DI6: 0 | DJ6: 0 | DK6: 0 | DL6: 0 | DM6: 0 | DN6: 0 | DO6: 0 | DP6: 0 | DQ6: 0 | DR6: 0 | DS6: 水産物卸売市場事業特別会計 | DT6: 0 | DU6: 0 | DV6: 0 | DW6: 0 | DX6: 0 | DY6: 0 | DZ6: 0 | EA6: 0 | EB6: 0 | EC6: 0 | ED6: 0 | EE6: 0 | EF6: 0 | EG6: 0 | EH6: 0 | EI6: 0 | EJ6: 0 | EK6: 0 | EL6: 0 | EM6: 0 | EN6: 0 | EO6: 0 | EP6: 0 | EQ6: 0 | ER6: 0 | ES6: 0 | ET6: 0 | EU6: 0 | EV6: 0 | EW6: 港湾整備事業特別会計 | EX6: 90099 | EY6: 0 | EZ6: 0 | FA6: 0 | FB6: 0 | FC6: 0 | FD6: 0 | FE6: 5822522 | FF6: -18.27 | FG6: 4.650139589 | FH6: 3.871913113 | FI6: 3.579682935 | FJ6: 4 | FK6: 5035734 | FL6: 0 | FM6: 12437 | FN6: 1557312 | FO6: 257983 | FP6: 2641 | FQ6: 227 | FR6: 1002752 | FS6: 913991 | FT6: 3534698 | FU6: 117435 | FV6: 16008401 | FW6: 14924630 | FX6: 1534578 | FY6: 0 | FZ6: 0 | GA6: 0 | GB6: 0 | GC6: 0 | GD6: 0 | GE6: 0 | GF6: 0 | GG6: 2528 | GH6: 113 | GI6: 4912796 | GJ6: 0 | GK6: 0 | GL6: 1505280 | GM6: 76838 | GN6: 90 | GO6: 14 | GP6: 965602 | GQ6: 836865 | GR6: 3518475 | GS6: 111663 | GT6: 16419973 | GU6: 15047922 | GV6: 438076 | GW6: 0 | GX6: 0 | GY6: 0 | GZ6: 0 | HA6: 0 | HB6: 0 | HC6: 0 | HD6: 0 | HE6: 0 | HF6: 90 | HG6: 4803787 | HH6: 0 | HI6: 0 | HJ6: 1439679 | HK6: 64733 | HL6: 72 | HM6: 2 | HN6: 950541 | HO6: 762612 | HP6: 3503494 | HQ6: 107780 | HR6: 16687363 | HS6: 14965714 | HT6: 204975 | HU6: 0 | HV6: 0 | HW6: 0 | HX6: 0 | HY6: 0 | HZ6: 0 | IA6: 0 | IB6: 0 | IC6: 0 | ID6: 72
A7: Ver.05.00 | B7: 012041 | C7: 北海道 | D7: 旭川市 | E7: 3 | F7: - | G7: - | H7: 8.9 | I7: 82.8 | J7: 84466207 | K7: 1610269 | L7: 一般会計 | M7: 1037819 | N7: 動物園事業特別会計 | O7: 0 | P7: 育英事業特別会計 | Q7: 1812 | R7: 母子福祉資金等貸付事業特別会計 | S7: 0 | AR7: 1039631 | AS7: -1.23 | AT7: ① | AU7: 国民健康保険事業特別会計 | AV7: 180830 | AW7: ⑦ | AX7: 公共駐車場事業特別会計 | AY7: 0 | AZ7: ② | BA7: 介護保険事業特別会計 | BB7: 426139 | BC7: ③ | BD7: 後期高齢者医療事業特別会計 | BE7: 2432 | BF7: 0 | BI7: 0 | BL7: 0 | BO7: 0 | BR7: 0 | BU7: 0 | BX7: 0 | CA7: 0 | CD7: 0 | CG7: 水道事業会計 | CH7: 1035926 | CI7: 下水道事業会計 | CJ7: 473049 | CK7: 病院事業会計 | CL7: 1047827 | CM7: 0 | CN7: 0 | CO7: 0 | CP7: 0 | CQ7: 0 | CR7: 0 | CS7: 0 | CT7: 0 | CU7: 0 | CV7: 0 | CW7: 0 | CX7: 0 | CY7: 0 | CZ7: 0 | DA7: 0 | DB7: 0 | DC7: 0 | DD7: 0 | DE7: 0 | DF7: 0 | DG7: 0 | DH7: 0 | DI7: 0 | DJ7: 0 | DK7: 0 | DL7: 0 | DM7: 0 | DN7: 0 | DO7: 0 | DP7: 0 | DQ7: 0 | DR7: 0 | DS7: 0 | DT7: 0 | DU7: 0 | DV7: 0 | DW7: 0 | DX7: 0 | DY7: 0 | DZ7: 0 | EA7: 0 | EB7: 0 | EC7: 0 | ED7: 0 | EE7: 0 | EF7: 0 | EG7: 0 | EH7: 0 | EI7: 0 | EJ7: 0 | EK7: 0 | EL7: 0 | EM7: 0 | EN7: 0 | EO7: 0 | EP7: 0 | EQ7: 0 | ER7: 0 | ES7: 0 | ET7: 0 | EU7: 0 | EV7: 0 | EW7: 0 | EX7: 0 | EY7: 0 | EZ7: 0 | FA7: 0 | FB7: 0 | FC7: 0 | FD7: 0 | FE7: 4205834 | FF7: -4.97 | FG7: 8.292162153 | FH7: 9.022426464 | FI7: 9.415948082 | FJ7: 8.9 | FK7: 17361369 | FL7: 0 | FM7: 0 | FN7: 1348277 | FO7: 0 | FP7: 407494 | FQ7: 8 | FR7: 3541971 | FS7: 2996307 | FT7: 5962682 | FU7: 392327 | FV7: 45623671 | FW7: 33383019 | FX7: 5401781 | FY7: 0 | FZ7: 50210 | GA7: 0 | GB7: 0 | GC7: 0 | GD7: 176276 | GE7: 0 | GF7: 0 | GG7: 151730 | GH7: 29278 | GI7: 17459872 | GJ7: 0 | GK7: 0 | GL7: 1388972 | GM7: 0 | GN7: 384998 | GO7: 19 | GP7: 3435461 | GQ7: 2754995 | GR7: 5970502 | GS7: 396518 | GT7: 47811274 | GU7: 32714251 | GV7: 2594156 | GW7: 0 | GX7: 49030 | GY7: 0 | GZ7: 0 | HA7: 0 | HB7: 175288 | HC7: 0 | HD7: 0 | HE7: 131292 | HF7: 29388 | HG7: 17072092 | HH7: 0 | HI7: 0 | HJ7: 1483991 | HK7: 0 | HL7: 391479 | HM7: 0 | HN7: 3042191 | HO7: 2510400 | HP7: 5842146 | HQ7: 426126 | HR7: 48789987 | HS7: 34065951 | HT7: 1610269 | HU7: 0 | HV7: 47851 | HW7: 0 | HX7: 0 | HY7: 0 | HZ7: 171275 | IA7: 0 | IB7: 0 | IC7: 144634 | ID7: 27719
A8: Ver.05.00 | B8: 012050 | C8: 北海道 | D8: 室蘭市 | E8: 3 | F8: - | G8: - | H8: 10.4 | I8: 55.7 | J8: 22897910 | K8: 192793 | L8: 一般会計 | M8: 956963 | AR8: 956963 | AS8: -4.17 | AT8: ① | AU8: 国民健康保険特別会計 | AV8: 24370 | AW8: ② | AX8: 介護保険特別会計 | AY8: 61800 | AZ8: ③ | BA8: 後期高齢者医療特別会計 | BB8: 35257 | BC8: 0 | BF8: 0 | BI8: 0 | BL8: 0 | BO8: 0 | BR8: 0 | BU8: 0 | BX8: 0 | CA8: 0 | CD8: 0 | CG8: 水道事業会計 | CH8: 1213358 | CI8: 病院事業会計 | CJ8: 0 | CK8: 公設地方卸売市場事業会計 | CL8: 133086 | CM8: 下水道事業会計 | CN8: 186157 | CO8: 0 | CP8: 0 | CQ8: 0 | CR8: 0 | CS8: 0 | CT8: 0 | CU8: 0 | CV8: 0 | CW8: 0 | CX8: 0 | CY8: 0 | CZ8: 0 | DA8: 0 | DB8: 0 | DC8: 0 | DD8: 0 | DE8: 0 | DF8: 0 | DG8: 0 | DH8: 0 | DI8: 0 | DJ8: 0 | DK8: 港湾整備事業会計 | DL8: 323070 | DM8: 0 | DN8: 0 | DO8: 0 | DP8: 0 | DQ8: 0 | DR8: 0 | DS8: 0 | DT8: 0 | DU8: 0 | DV8: 0 | DW8: 0 | DX8: 0 | DY8: 0 | DZ8: 0 | EA8: 0 | EB8: 0 | EC8: 0 | ED8: 0 | EE8: 0 | EF8: 0 | EG8: 0 | EH8: 0 | EI8: 0 | EJ8: 0 | EK8: 0 | EL8: 0 | EM8: 0 | EN8: 0 | EO8: 0 | EP8: 0 | EQ8: 0 | ER8: 0 | ES8: 0 | ET8: 0 | EU8: 0 | EV8: 0 | EW8: 0 | EX8: 0 | EY8: 0 | EZ8: 0 | FA8: 0 | FB8: 0 | FC8: 0 | FD8: 0 | FE8: 2934061 | FF8: -12.81 | FG8: 9.786246031 | FH8: 10.32177029 | FI8: 11.35621209 | FJ8: 10.4 | FK8: 4715144 | FL8: 0 | FM8: 0 | FN8: 1385789 | FO8: 30502 | FP8: 47237 | FQ8: 135 | FR8: 986952 | FS8: 831672 | FT8: 2000603 | FU8: 380309 | FV8: 14853349 | FW8: 7170998 | FX8: 1413265 | FY8: 0 | FZ8: 0 | GA8: 0 | GB8: 0 | GC8: 0 | GD8: 40478 | GE8: 0 | GF8: 0 | GG8: 6759 | GH8: 0 | GI8: 4704088 | GJ8: 0 | GK8: 0 | GL8: 1390812 | GM8: 29833 | GN8: 47012 | GO8: 48 | GP8: 988614 | GQ8: 793356 | GR8: 1963980 | GS8: 386964 | GT8: 15360291 | GU8: 7126569 | GV8: 410631 | GW8: 0 | GX8: 0 | GY8: 0 | GZ8: 0 | HA8: 0 | HB8: 40253 | HC8: 0 | HD8: 0 | HE8: 6759 | HF8: 0 | HG8: 4623477 | HH8: 0 | HI8: 0 | HJ8: 1522311 | HK8: 13883 | HL8: 44546 | HM8: 92 | HN8: 886563 | HO8: 740252 | HP8: 1930767 | HQ8: 394521 | HR8: 15345792 | HS8: 7359325 | HT8: 192793 | HU8: 0 | HV8: 0 | HW8: 0 | HX8: 0 | HY8: 0 | HZ8: 37787 | IA8: 0 | IB8: 0 | IC8: 6759 | ID8: 0
A9: Ver.05.00 | B9: 012068 | C9: 北海道 | D9: 釧路市 | E9: 3 | F9: - | G9: - | H9: 10.4 | I9: 42.8 | J9: 49274541 | K9: 310442 | L9: 一般会計 | M9: 2107980 | N9: 魚揚場事業特別会計 | O9: 127 | P9: 動物園事業特別会計 | Q9: 3661 | AR9: 2111768 | AS9: -4.28 | AT9: ① | AU9: 国民健康保険特別会計 | AV9: 31477 | AW9: ① | AX9: 国民健康保険阿寒診療所事業特別会計 | AY9: 0 | AZ9: ① | BA9: 国民健康保険音別診療所事業特別会計 | BB9: 0 | BC9: ③ | BD9: 後期高齢者医療特別会計 | BE9: 48739 | BF9: ② | BG9: 介護保険特別会計 | BH9: 469017 | BI9: ⑦ | BJ9: 駐車場事業特別会計 | BK9: 18529 | BL9: 0 | BO9: 0 | BR9: 0 | BU9: 0 | BX9: 0 | CA9: 0 | CD9: 0 | CG9: 釧路市病院事業会計 | CH9: 6573767 | CI9: 釧路市水道事業会計 | CJ9: 2638815 | CK9: 釧路市工業用水道事業会計 | CL9: 172144 | CM9: 釧路市下水道事業会計 | CN9: 1180593 | CO9: 釧路市公設地方卸売市場事業会計 | CP9: 278199 | CQ9: 0 | CR9: 0 | CS9: 0 | CT9: 0 | CU9: 0 | CV9: 0 | CW9: 0 | CX9: 0 | CY9: 0 | CZ9: 0 | DA9: 0 | DB9: 0 | DC9: 0 | DD9: 0 | DE9: 0 | DF9: 0 | DG9: 0 | DH9: 0 | DI9: 0 | DJ9: 0 | DK9: 釧路市港湾整備事業会計 | DL9: 2117185 | DM9: 0 | DN9: 0 | DO9: 0 | DP9: 0 | DQ9: 0 | DR9: 0 | DS9: 0 | DT9: 0 | DU9: 0 | DV9: 0 | DW9: 0 | DX9: 0 | DY9: 0 | DZ9: 0 | EA9: 0 | EB9: 0 | EC9: 0 | ED9: 0 | EE9: 0 | EF9: 0 | EG9: 0 | EH9: 0 | EI9: 0 | EJ9: 0 | EK9: 0 | EL9: 0 | EM9: 0 | EN9: 0 | EO9: 0 | EP9: 0 | EQ9: 0 | ER9: 0 | ES9: 0 | ET9: 0 | EU9: 0 | EV9: 0 | EW9: 0 | EX9: 0 | EY9: 0 | EZ9: 0 | FA9: 0 | FB9: 0 | FC9: 0 | FD9: 0 | FE9: 15640233 | FF9: -31.74 | FG9: 10.21862206 | FH9: 11.03819891 | FI9: 10.1538412 | FJ9: 10.4 | FK9: 12866616 | FL9: 0 | FM9: 0 | FN9: 1671714 | FO9: 10129 | FP9: 101916 | FQ9: 0 | FR9: 1960717 | FS9: 1405975 | FT9: 6720551 | FU9: 241694 | FV9: 24171405 | FW9: 24029988 | FX9: 2456658 | FY9: 0 | FZ9: 0 | GA9: 0 | GB9: 0 | GC9: 0 | GD9: 73320 | GE9: 0 | GF9: 0 | GG9: 26997 | GH9: 1599 | GI9: 12655130 | GJ9: 0 | GK9: 0 | GL9: 1972193 | GM9: 9321 | GN9: 70538 | GO9: 0 | GP9: 1884746 | GQ9: 1358466 | GR9: 6660366 | GS9: 240280 | GT9: 24898360 | GU9: 24030191 | GV9: 671762 | GW9: 0 | GX9: 0 | GY9: 0 | GZ9: 0 | HA9: 0 | HB9: 57684 | HC9: 0 | HD9: 0 | HE9: 11429 | HF9: 1425 | HG9: 11913972 | HH9: 0 | HI9: 0 | HJ9: 1859695 | HK9: 8858 | HL9: 66300 | HM9: 0 | HN9: 1878720 | HO9: 1261164 | HP9: 6251539 | HQ9: 241492 | HR9: 25250762 | HS9: 23713337 | HT9: 310442 | HU9: 0 | HV9: 0 | HW9: 0 | HX9: 0 | HY9: 0 | HZ9: 56305 | IA9: 0 | IB9: 0 | IC9: 8636 | ID9: 1359
A10: Ver.05.00 | B10: 012076 | C10: 北海道 | D10: 帯広市 | E10: 3 | F10: - | G10: - | H10: 8.2 | I10: 22.2 | J10: 42662066 | K10: 348791 | L10: 一般会計 | M10: 1448592 | N10: 中島霊園事業会計 | O10: 0 | AR10: 1448592 | AS10: -3.39 | AT10: ① | AU10: 国民健康保険会計 | AV10: 73138 | AW10: ③ | AX10: 後期高齢者医療会計 | AY10: 106266 | AZ10: ② | BA10: 介護保険会計 | BB10: 541138 | BC10: ⑨ | BD10: ばんえい競馬会計 | BE10: 131953 | BF10: ⑦ | BG10: 駐車場事業会計 | BH10: 2524 | BI10: 0 | BL10: 0 | BO10: 0 | BR10: 0 | BU10: 0 | BX10: 0 | CA10: 0 | CD10: 0 | CG10: 水道事業会計 | CH10: 2202846 | CI10: 下水道事業会計 | CJ10: 1477995 | CK10: 0 | CL10: 0 | CM10: 0 | CN10: 0 | CO10: 0 | CP10: 0 | CQ10: 0 | CR10: 0 | CS10: 0 | CT10: 0 | CU10: 0 | CV10: 0 | CW10: 0 | CX10: 0 | CY10: 0 | CZ10: 0 | DA10: 0 | DB10: 0 | DC10: 0 | DD10: 0 | DE10: 0 | DF10: 0 | DG10: 0 | DH10: 0 | DI10: 0 | DJ10: 0 | DK10: 0 | DL10: 0 | DM10: 0 | DN10: 0 | DO10: 0 | DP10: 0 | DQ10: 0 | DR10: 0 | DS10: 0 | DT10: 0 | DU10: 0 | DV10: 0 | DW10: 0 | DX10: 0 | DY10: 0 | DZ10: 0 | EA10: 0 | EB10: 0 | EC10: 0 | ED10: 0 | EE10: 0 | EF10: 0 | EG10: 0 | EH10: 0 | EI10: 0 | EJ10: 0 | EK10: 0 | EL10: 0 | EM10: 0 | EN10: 0 | EO10: 0 | EP10: 0 | EQ10: 0 | ER10: 0 | ES10: 0 | ET10: 0 | EU10: 0 | EV10: 0 | EW10: 0 | EX10: 0 | EY10: 0 | EZ10: 0 | FA10: 0 | FB10: 0 | FC10: 0 | FD10: 0 | FE10: 5984452 | FF10: -14.02 | FG10: 8.063476003 | FH10: 8.336335817 | FI10: 8.309663449 | FJ10: 8.2 | FK10: 8335100 | FL10: 0 | FM10: 13367 | FN10: 1017647 | FO10: 199935 | FP10: 674360 | FQ10: 0 | FR10: 2298026 | FS10: 1510283 | FT10: 3136423 | FU10: 224224 | FV10: 25852527 | FW10: 14473891 | FX10: 2635442 | FY10: 0 | FZ10: 319498 | GA10: 0 | GB10: 17314 | GC10: 0 | GD10: 130401 | GE10: 0 | GF10: 0 | GG10: 205926 | GH10: 1221 | GI10: 8160390 | GJ10: 0 | GK10: 0 | GL10: 1003575 | GM10: 251281 | GN10: 648487 | GO10: 9 | GP10: 2281291 | GQ10: 1410426 | GR10: 3044969 | GS10: 189171 | GT10: 27063409 | GU10: 14454403 | GV10: 767812 | GW10: 0 | GX10: 332355 | GY10: 0 | GZ10: 17314 | HA10: 0 | HB10: 116599 | HC10: 0 | HD10: 0 | HE10: 181245 | HF10: 974 | HG10: 8055803 | HH10: 0 | HI10: 0 | HJ10: 981299 | HK10: 250720 | HL10: 614802 | HM10: 1125 | HN10: 2282967 | HO10: 1305086 | HP10: 2987811 | HQ10: 152182 | HR10: 27786524 | HS10: 14526751 | HT10: 348791 | HU10: 0 | HV10: 332332 | HW10: 0 | HX10: 14673 | HY10: 0 | HZ10: 109822 | IA10: 0 | IB10: 0 | IC10: 157226 | ID10: 749
A11: Ver.05.00 | B11: 012084 | C11: 北海道 | D11: 北見市 | E11: 3 | F11: - | G11: - | H11: 11.8 | I11: 147.8 | J11: 36824166 | K11: 229814 | L11: 一般会計 | M11: 525839 | AR11: 525839 | AS11: -1.42 | AT11: ③ | AU11: 後期高齢者医療特別会計 | AV11: 79301 | AW11: ① | AX11: 国民健康保険特別会計 | AY11: 0 | AZ11: ② | BA11: 介護保険特別会計 | BB11: 229538 | BC11: 0 | BF11: 0 | BI11: 0 | BL11: 0 | BO11: 0 | BR11: 0 | BU11: 0 | BX11: 0 | CA11: 0 | CD11: 0 | CG11: 水道事業会計 | CH11: 3763997 | CI11: 下水道事業会計 | CJ11: 267817 | CK11: 0 | CL11: 0 | CM11: 0 | CN11: 0 | CO11: 0 | CP11: 0 | CQ11: 0 | CR11: 0 | CS11: 0 | CT11: 0 | CU11: 0 | CV11: 0 | CW11: 0 | CX11: 0 | CY11: 0 | CZ11: 0 | DA11: 0 | DB11: 0 | DC11: 0 | DD11: 0 | DE11: 0 | DF11: 0 | DG11: 0 | DH11: 0 | DI11: 0 | DJ11: 0 | DK11: 0 | DL11: 0 | DM11: 0 | DN11: 0 | DO11: 0 | DP11: 0 | DQ11: 0 | DR11: 0 | DS11: 漁業集落環境整備排水事業特別会計 | DT11: 2786 | DU11: 0 | DV11: 0 | DW11: 0 | DX11: 0 | DY11: 0 | DZ11: 0 | EA11: 0 | EB11: 0 | EC11: 0 | ED11: 0 | EE11: 0 | EF11: 0 | EG11: 0 | EH11: 0 | EI11: 0 | EJ11: 0 | EK11: 0 | EL11: 0 | EM11: 0 | EN11: 0 | EO11: 0 | EP11: 0 | EQ11: 0 | ER11: 0 | ES11: 0 | ET11: 0 | EU11: 0 | EV11: 0 | EW11: 0 | EX11: 0 | EY11: 0 | EZ11: 0 | FA11: 0 | FB11: 0 | FC11: 0 | FD11: 0 | FE11: 4869278 | FF11: -13.22 | FG11: 10.88798324 | FH11: 12.13679758 | FI11: 12.43561875 | FJ11: 11.8 | FK11: 9117837 | FL11: 0 | FM11: 0 | FN11: 1685647 | FO11: 425046 | FP11: 95241 | FQ11: 3361 | FR11: 1517654 | FS11: 1394397 | FT11: 5120628 | FU11: 29854 | FV11: 16714642 | FW11: 17979549 | FX11: 1834193 | FY11: 0 | FZ11: 0 | GA11: 0 | GB11: 0 | GC11: 0 | GD11: 64193 | GE11: 0 | GF11: 0 | GG11: 29395 | GH11: 1653 | GI11: 9601448 | GJ11: 0 | GK11: 0 | GL11: 1700542 | GM11: 433879 | GN11: 118348 | GO11: 611 | GP11: 1526305 | GQ11: 1413039 | GR11: 5270003 | GS11: 28300 | GT11: 17598517 | GU11: 18400220 | GV11: 516027 | GW11: 0 | GX11: 0 | GY11: 0 | GZ11: 0 | HA11: 0 | HB11: 19621 | HC11: 0 | HD11: 0 | HE11: 96186 | HF11: 2541 | HG11: 9703516 | HH11: 0 | HI11: 0 | HJ11: 1648170 | HK11: 397154 | HL11: 59687 | HM11: 76 | HN11: 1514547 | HO11: 1448542 | HP11: 5053327 | HQ11: 24464 | HR11: 18171753 | HS11: 18422599 | HT11: 229814 | HU11: 0 | HV11: 0 | HW11: 0 | HX11: 0 | HY11: 0 | HZ11: 29073 | IA11: 0 | IB11: 0 | IC11: 28555 | ID11: 2059
A12: Ver.05.00 | B12: 012092 | C12: 北海道 | D12: 夕張市 | E12: 3 | F12: - | G12: - | H12: 67.2 | I12: 171.7 | J12: 4803561 | K12: 18930 | L12: 一般会計 | M12: 712 | AR12: 712 | AS12: -0.01 | AT12: ① | AU12: 国民健康保険事業会計 | AV12: 0 | AW12: ② | AX12: 介護保険事業会計 | AY12: 75970 | AZ12: ③ | BA12: 後期高齢者医療事業会計 | BB12: 2233 | BC12: 0 | BF12: 0 | BI12: 0 | BL12: 0 | BO12: 0 | BR12: 0 | BU12: 0 | BX12: 0 | CA12: 0 | CD12: 0 | CG12: 水道事業会計 | CH12: 376726 | CI12: 0 | CJ12: 0 | CK12: 0 | CL12: 0 | CM12: 0 | CN12: 0 | CO12: 0 | CP12: 0 | CQ12: 0 | CR12: 0 | CS12: 0 | CT12: 0 | CU12: 0 | CV12: 0 | CW12: 0 | CX12: 0 | CY12: 0 | CZ12: 0 | DA12: 0 | DB12: 0 | DC12: 0 | DD12: 0 | DE12: 0 | DF12: 0 | DG12: 0 | DH12: 0 | DI12: 0 | DJ12: 0 | DK12: 0 | DL12: 0 | DM12: 0 | DN12: 0 | DO12: 0 | DP12: 0 | DQ12: 0 | DR12: 0 | DS12: 市場事業会計 | DT12: 0 | DU12: 公共下水道事業会計 | DV12: 0 | DW12: 0 | DX12: 0 | DY12: 0 | DZ12: 0 | EA12: 0 | EB12: 0 | EC12: 0 | ED12: 0 | EE12: 0 | EF12: 0 | EG12: 0 | EH12: 0 | EI12: 0 | EJ12: 0 | EK12: 0 | EL12: 0 | EM12: 0 | EN12: 0 | EO12: 0 | EP12: 0 | EQ12: 0 | ER12: 0 | ES12: 0 | ET12: 0 | EU12: 0 | EV12: 0 | EW12: 0 | EX12: 0 | EY12: 0 | EZ12: 0 | FA12: 0 | FB12: 0 | FC12: 0 | FD12: 0 | FE12: 455641 | FF12: -9.48 | FG12: 65.00286867 | FH12: 68.71994401 | FI12: 68.12113035 | FJ12: 67.2 | FK12: 3495413 | FL12: 0 | FM12: 82491 | FN12: 194609 | FO12: 0 | FP12: 0 | FQ12: 0 | FR12: 294716 | FS12: 63951 | FT12: 617007 | FU12: 9711 | FV12: 1091348 | FW12: 3723908 | FX12: 163113 | FY12: 0 | FZ12: 0 | GA12: 0 | GB12: 0 | GC12: 0 | GD12: 0 | GE12: 0 | GF12: 0 | GG12: 0 | GH12: 0 | GI12: 3511619 | GJ12: 0 | GK12: 82491 | GL12: 207109 | GM12: 0 | GN12: 0 | GO12: 0 | GP12: 261198 | GQ12: 60427 | GR12: 626358 | GS12: 16531 | GT12: 1105550 | GU12: 3683078 | GV12: 42609 | GW12: 0 | GX12: 0 | GY12: 0 | GZ12: 0 | HA12: 0 | HB12: 0 | HC12: 0 | HD12: 0 | HE12: 0 | HF12: 0 | HG12: 3466119 | HH12: 0 | HI12: 82491 | HJ12: 192864 | HK12: 0 | HL12: 0 | HM12: 0 | HN12: 258236 | HO12: 62875 | HP12: 582537 | HQ12: 16462 | HR12: 1151485 | HS12: 3633146 | HT12: 18930 | HU12: 0 | HV12: 0 | HW12: 0 | HX12: 0 | HY12: 0 | HZ12: 0 | IA12: 0 | IB12: 0 | IC12: 0 | ID12: 0
A13: Ver.05.00 | B13: 012106 | C13: 北海道 | D13: 岩見沢市 | E13: 3 | F13: - | G13: - | H13: 10.5 | I13: 77 | J13: 24799776 | K13: 140467 | L13: 一般会計 | M13: 412587 | N13: 高等学校費会計 | O13: 854 | AR13: 413441 | AS13: -1.66 | AT13: ① | AU13: 国民健康保険費会計 | AV13: 181612 | AW13: ② | AX13: 介護保険費会計 | AY13: 472730 | AZ13: ③ | BA13: 後期高齢者医療費会計 | BB13: 1469 | BC13: 0 | BF13: 0 | BI13: 0 | BL13: 0 | BO13: 0 | BR13: 0 | BU13: 0 | BX13: 0 | CA13: 0 | CD13: 0 | CG13: 水道事業会計 | CH13: 1133005 | CI13: 病院事業会計 | CJ13: 2524194 | CK13: 下水道事業会計 | CL13: 2228458 | CM13: 0 | CN13: 0 | CO13: 0 | CP13: 0 | CQ13: 0 | CR13: 0 | CS13: 0 | CT13: 0 | CU13: 0 | CV13: 0 | CW13: 0 | CX13: 0 | CY13: 0 | CZ13: 0 | DA13: 0 | DB13: 0 | DC13: 0 | DD13: 0 | DE13: 0 | DF13: 0 | DG13: 0 | DH13: 0 | DI13: 0 | DJ13: 0 | DK13: 0 | DL13: 0 | DM13: 0 | DN13: 0 | DO13: 0 | DP13: 0 | DQ13: 0 | DR13: 0 | DS13: 公設卸売市場費会計 | DT13: 613 | DU13: 農業集落排水事業費会計 | DV13: 10619 | DW13: 0 | DX13: 0 | DY13: 0 | DZ13: 0 | EA13: 0 | EB13: 0 | EC13: 0 | ED13: 0 | EE13: 0 | EF13: 0 | EG13: 0 | EH13: 0 | EI13: 0 | EJ13: 0 | EK13: 0 | EL13: 0 | EM13: 0 | EN13: 0 | EO13: 0 | EP13: 0 | EQ13: 0 | ER13: 0 | ES13: 0 | ET13: 0 | EU13: 0 | EV13: 0 | EW13: 公共用地等造成費会計 | EX13: 13400 | EY13: 企業用地造成費会計 | EZ13: 53168 | FA13: 0 | FB13: 0 | FC13: 0 | FD13: 0 | FE13: 7032709 | FF13: -28.35 | FG13: 10.41000503 | FH13: 11.07427554 | FI13: 10.2490539 | FJ13: 10.5 | FK13: 5733808 | FL13: 0 | FM13: 0 | FN13: 943168 | FO13: 76878 | FP13: 91645 | FQ13: 598 | FR13: 677247 | FS13: 698625 | FT13: 3184025 | FU13: 99034 | FV13: 10135467 | FW13: 13753538 | FX13: 1102909 | FY13: 0 | FZ13: 0 | GA13: 0 | GB13: 0 | GC13: 0 | GD13: 13414 | GE13: 0 | GF13: 0 | GG13: 78231 | GH13: 0 | GI13: 5748710 | GJ13: 0 | GK13: 0 | GL13: 895650 | GM13: 81358 | GN13: 57227 | GO13: 0 | GP13: 699012 | GQ13: 596688 | GR13: 3055775 | GS13: 104343 | GT13: 10663621 | GU13: 13795286 | GV13: 311707 | GW13: 0 | GX13: 0 | GY13: 0 | GZ13: 0 | HA13: 0 | HB13: 19431 | HC13: 0 | HD13: 0 | HE13: 37796 | HF13: 0 | HG13: 5564792 | HH13: 0 | HI13: 0 | HJ13: 770634 | HK13: 86996 | HL13: 21496 | HM13: 1581 | HN13: 690968 | HO13: 528089 | HP13: 2936309 | HQ13: 115273 | HR13: 10803516 | HS13: 13855793 | HT13: 140467 | HU13: 0 | HV13: 0 | HW13: 0 | HX13: 0 | HY13: 0 | HZ13: 21496 | IA13: 0 | IB13: 0 | IC13: 0 | ID13: 0
A14: Ver.05.00 | B14: 012114 | C14: 北海道 | D14: 網走市 | E14: 3 | F14: - | G14: - | H14: 16.1 | I14: 112.9 | J14: 11952106 | K14: 70672 | L14: 一般会計 | M14: 69581 | N14: 市有財産整備特別会計 | O14: 48223 | AR14: 117804 | AS14: -0.98 | AT14: ① | AU14: 国民健康保険特別会計 | AV14: 22049 | AW14: ② | AX14: 介護保険特別会計 | AY14: 280124 | AZ14: ③ | BA14: 後期高齢者医療特別会計 | BB14: 1197 | BC14: 0 | BF14: 0 | BI14: 0 | BL14: 0 | BO14: 0 | BR14: 0 | BU14: 0 | BX14: 0 | CA14: 0 | CD14: 0 | CG14: 水道事業会計 | CH14: 685518 | CI14: 簡易水道事業会計 | CJ14: 1870 | CK14: 下水道事業会計 | CL14: 562997 | CM14: 0 | CN14: 0 | CO14: 0 | CP14: 0 | CQ14: 0 | CR14: 0 | CS14: 0 | CT14: 0 | CU14: 0 | CV14: 0 | CW14: 0 | CX14: 0 | CY14: 0 | CZ14: 0 | DA14: 0 | DB14: 0 | DC14: 0 | DD14: 0 | DE14: 0 | DF14: 0 | DG14: 0 | DH14: 0 | DI14: 0 | DJ14: 0 | DK14: 0 | DL14: 0 | DM14: 0 | DN14: 0 | DO14: 0 | DP14: 0 | DQ14: 0 | DR14: 0 | DS14: 0 | DT14: 0 | DU14: 0 | DV14: 0 | DW14: 0 | DX14: 0 | DY14: 0 | DZ14: 0 | EA14: 0 | EB14: 0 | EC14: 0 | ED14: 0 | EE14: 0 | EF14: 0 | EG14: 0 | EH14: 0 | EI14: 0 | EJ14: 0 | EK14: 0 | EL14: 0 | EM14: 0 | EN14: 0 | EO14: 0 | EP14: 0 | EQ14: 0 | ER14: 0 | ES14: 0 | ET14: 0 | EU14: 0 | EV14: 0 | EW14: 網走港整備特別会計 | EX14: 644904 | EY14: 能取漁港整備特別会計 | EZ14: 27584 | FA14: 0 | FB14: 0 | FC14: 0 | FD14: 0 | FE14: 2344047 | FF14: -19.61 | FG14: 16.5310592 | FH14: 16.48895546 | FI14: 15.5598717 | FJ14: 16.1 | FK14: 3573933 | FL14: 0 | FM14: 0 | FN14: 401050 | FO14: 87951 | FP14: 261901 | FQ14: 626 | FR14: 700392 | FS14: 555910 | FT14: 1330321 | FU14: 9105 | FV14: 5536381 | FW14: 6221549 | FX14: 600940 | FY14: 0 | FZ14: 0 | GA14: 0 | GB14: 0 | GC14: 0 | GD14: 0 | GE14: 0 | GF14: 0 | GG14: 261269 | GH14: 632 | GI14: 3259953 | GJ14: 0 | GK14: 0 | GL14: 398509 | GM14: 99632 | GN14: 260020 | GO14: 1241 | GP14: 646904 | GQ14: 530594 | GR14: 1162947 | GS14: 8917 | GT14: 5857867 | GU14: 5810285 | GV14: 162255 | GW14: 0 | GX14: 0 | GY14: 0 | GZ14: 0 | HA14: 0 | HB14: 0 | HC14: 0 | HD14: 0 | HE14: 259503 | HF14: 517 | HG14: 3332955 | HH14: 0 | HI14: 0 | HJ14: 374151 | HK14: 102187 | HL14: 247131 | HM14: 1556 | HN14: 753499 | HO14: 483934 | HP14: 1218102 | HQ14: 8938 | HR14: 6202612 | HS14: 5678822 | HT14: 70672 | HU14: 0 | HV14: 0 | HW14: 0 | HX14: 0 | HY14: 0 | HZ14: 0 | IA14: 0 | IB14: 0 | IC14: 246376 | ID14: 755
A15: Ver.05.00 | B15: 012122 | C15: 北海道 | D15: 留萌市 | E15: 3 | F15: - | G15: - | H15: 9.2 | I15: - | J15: 7777925 | K15: 38939 | L15: 一般会計 | M15: 577141 | AR15: 577141 | AS15: -7.42 | AT15: ① | AU15: 国民健康保険事業特別会計 | AV15: 61807 | AW15: ③ | AX15: 後期高齢者医療事業特別会計 | AY15: 433 | AZ15: ② | BA15: 介護保険事業特別会計 | BB15: 140047 | BC15: 0 | BF15: 0 | BI15: 0 | BL15: 0 | BO15: 0 | BR15: 0 | BU15: 0 | BX15: 0 | CA15: 0 | CD15: 0 | CG15: 水道事業会計 | CH15: 228411 | CI15: 病院事業会計 | CJ15: 355197 | CK15: 0 | CL15: 0 | CM15: 0 | CN15: 0 | CO15: 0 | CP15: 0 | CQ15: 0 | CR15: 0 | CS15: 0 | CT15: 0 | CU15: 0 | CV15: 0 | CW15: 0 | CX15: 0 | CY15: 0 | CZ15: 0 | DA15: 0 | DB15: 0 | DC15: 0 | DD15: 0 | DE15: 0 | DF15: 0 | DG15: 0 | DH15: 0 | DI15: 0 | DJ15: 0 | DK15: 0 | DL15: 0 | DM15: 0 | DN15: 0 | DO15: 0 | DP15: 0 | DQ15: 0 | DR15: 0 | DS15: 下水道事業特別会計 | DT15: 269755 | DU15: 港湾事業特別会計（臨海除く） | DV15: 0 | DW15: 0 | DX15: 0 | DY15: 0 | DZ15: 0 | EA15: 0 | EB15: 0 | EC15: 0 | ED15: 0 | EE15: 0 | EF15: 0 | EG15: 0 | EH15: 0 | EI15: 0 | EJ15: 0 | EK15: 0 | EL15: 0 | EM15: 0 | EN15: 0 | EO15: 0 | EP15: 0 | EQ15: 0 | ER15: 0 | ES15: 0 | ET15: 0 | EU15: 0 | EV15: 0 | EW15: 港湾事業特別会計（臨海） | EX15: 0 | EY15: 0 | EZ15: 0 | FA15: 0 | FB15: 0 | FC15: 0 | FD15: 0 | FE15: 1632791 | FF15: -20.99 | FG15: 9.632801441 | FH15: 9.909541555 | FI15: 8.289138953 | FJ15: 9.2 | FK15: 1272901 | FL15: 0 | FM15: 0 | FN15: 838279 | FO15: 91239 | FP15: 18 | FQ15: 0 | FR15: 169603 | FS15: 322753 | FT15: 883602 | FU15: 200069 | FV15: 2670772 | FW15: 4926190 | FX15: 312347 | FY15: 0 | FZ15: 0 | GA15: 0 | GB15: 0 | GC15: 0 | GD15: 0 | GE15: 0 | GF15: 0 | GG15: 0 | GH15: 18 | GI15: 1242515 | GJ15: 0 | GK15: 0 | GL15: 870199 | GM15: 91232 | GN15: 15 | GO15: 0 | GP15: 172968 | GQ15: 327692 | GR15: 874079 | GS15: 206595 | GT15: 2784132 | GU15: 4823042 | GV15: 84298 | GW15: 0 | GX15: 0 | GY15: 0 | GZ15: 0 | HA15: 0 | HB15: 0 | HC15: 0 | HD15: 0 | HE15: 0 | HF15: 15 | HG15: 1240289 | HH15: 0 | HI15: 0 | HJ15: 823054 | HK15: 91251 | HL15: 5 | HM15: 0 | HN15: 158444 | HO15: 342054 | HP15: 923100 | HQ15: 208425 | HR15: 2822073 | HS15: 4916913 | HT15: 38939 | HU15: 0 | HV15: 0 | HW15: 0 | HX15: 0 | HY15: 0 | HZ15: 0 | IA15: 0 | IB15: 0 | IC15: 0 | ID15: 5
A16: Ver.05.00 | B16: 012131 | C16: 北海道 | D16: 苫小牧市 | E16: 3 | F16: - | G16: - | H16: 7.7 | I16: 71.9 | J16: 41683675 | K16: 427890 | L16: 一般会計 | M16: 1221715 | AR16: 1221715 | AS16: -2.93 | AT16: ① | AU16: 国民健康保険事業特別会計 | AV16: 5367 | AW16: ② | AX16: 介護保険事業特別会計 | AY16: 299221 | AZ16: ③ | BA16: 後期高齢者医療特別会計 | BB16: 82871 | BC16: 0 | BF16: 0 | BI16: 0 | BL16: 0 | BO16: 0 | BR16: 0 | BU16: 0 | BX16: 0 | CA16: 0 | CD16: 0 | CG16: 水道事業会計 | CH16: 1776751 | CI16: 下水道事業会計 | CJ16: 1538759 | CK16: 市立病院事業会計 | CL16: 2095081 | CM16: 公設地方卸売市場事業会計 | CN16: 365908 | CO16: 0 | CP16: 0 | CQ16: 0 | CR16: 0 | CS16: 0 | CT16: 0 | CU16: 0 | CV16: 0 | CW16: 0 | CX16: 0 | CY16: 0 | CZ16: 0 | DA16: 0 | DB16: 0 | DC16: 0 | DD16: 0 | DE16: 0 | DF16: 0 | DG16: 0 | DH16: 0 | DI16: 0 | DJ16: 0 | DK16: 0 | DL16: 0 | DM16: 0 | DN16: 0 | DO16: 0 | DP16: 0 | DQ16: 0 | DR16: 0 | DS16: 0 | DT16: 0 | DU16: 0 | DV16: 0 | DW16: 0 | DX16: 0 | DY16: 0 | DZ16: 0 | EA16: 0 | EB16: 0 | EC16: 0 | ED16: 0 | EE16: 0 | EF16: 0 | EG16: 0 | EH16: 0 | EI16: 0 | EJ16: 0 | EK16: 0 | EL16: 0 | EM16: 0 | EN16: 0 | EO16: 0 | EP16: 0 | EQ16: 0 | ER16: 0 | ES16: 0 | ET16: 0 | EU16: 0 | EV16: 0 | EW16: 0 | EX16: 0 | EY16: 0 | EZ16: 0 | FA16: 0 | FB16: 0 | FC16: 0 | FD16: 0 | FE16: 7385673 | FF16: -17.71 | FG16: 7.186580417 | FH16: 7.833382063 | FI16: 8.205857189 | FJ16: 7.7 | FK16: 7445864 | FL16: 0 | FM16: 0 | FN16: 1694177 | FO16: 358562 | FP16: 261748 | FQ16: 0 | FR16: 2062267 | FS16: 1553911 | FT16: 3254087 | FU16: 253658 | FV16: 30372269 | FW16: 8082191 | FX16: 3292627 | FY16: 0 | FZ16: 0 | GA16: 0 | GB16: 0 | GC16: 0 | GD16: 39375 | GE16: 0 | GF16: 0 | GG16: 222373 | GH16: 0 | GI16: 7703260 | GJ16: 0 | GK16: 0 | GL16: 1650804 | GM16: 361985 | GN16: 177718 | GO16: 0 | GP16: 2096839 | GQ16: 1463999 | GR16: 3276063 | GS16: 241325 | GT16: 32173079 | GU16: 7877721 | GV16: 873440 | GW16: 0 | GX16: 0 | GY16: 0 | GZ16: 0 | HA16: 0 | HB16: 36381 | HC16: 0 | HD16: 0 | HE16: 141337 | HF16: 0 | HG16: 7695543 | HH16: 0 | HI16: 0 | HJ16: 1649419 | HK16: 399795 | HL16: 176335 | HM16: 0 | HN16: 1958335 | HO16: 1380827 | HP16: 3307626 | HQ16: 259852 | HR16: 32550140 | HS16: 8705645 | HT16: 427890 | HU16: 0 | HV16: 0 | HW16: 0 | HX16: 0 | HY16: 0 | HZ16: 32737 | IA16: 0 | IB16: 0 | IC16: 143598 | ID16: 0
A17: Ver.05.00 | B17: 012149 | C17: 北海道 | D17: 稚内市 | E17: 3 | F17: - | G17: - | H17: 10.7 | I17: 32.8 | J17: 12676061 | K17: 70030 | L17: 一般会計 | M17: 256471 | AR17: 256471 | AS17: -2.02 | AT17: ① | AU17: 国民健康保険事業特別会計 | AV17: 2007 | AW17: ② | AX17: 介護保険事業特別会計（保険事業勘定） | AY17: 43635 | AZ17: ③ | BA17: 後期高齢者医療特別会計 | BB17: 2123 | BC17: ⑥ | BD17: 介護保険事業特別会計（介護サービス事業勘定） | BE17: 0 | BF17: 0 | BI17: 0 | BL17: 0 | BO17: 0 | BR17: 0 | BU17: 0 | BX17: 0 | CA17: 0 | CD17: 0 | CG17: 水道事業会計 | CH17: 1953432 | CI17: 病院事業会計 | CJ17: 1132860 | CK17: 下水道事業会計 | CL17: 190124 | CM17: 0 | CN17: 0 | CO17: 0 | CP17: 0 | CQ17: 0 | CR17: 0 | CS17: 0 | CT17: 0 | CU17: 0 | CV17: 0 | CW17: 0 | CX17: 0 | CY17: 0 | CZ17: 0 | DA17: 0 | DB17: 0 | DC17: 0 | DD17: 0 | DE17: 0 | DF17: 0 | DG17: 0 | DH17: 0 | DI17: 0 | DJ17: 0 | DK17: 0 | DL17: 0 | DM17: 0 | DN17: 0 | DO17: 0 | DP17: 0 | DQ17: 0 | DR17: 0 | DS17: 港湾整備事業会計 | DT17: 283 | DU17: 公設地方卸売市場事業特別会計 | DV17: 101 | DW17: 0 | DX17: 0 | DY17: 0 | DZ17: 0 | EA17: 0 | EB17: 0 | EC17: 0 | ED17: 0 | EE17: 0 | EF17: 0 | EG17: 0 | EH17: 0 | EI17: 0 | EJ17: 0 | EK17: 0 | EL17: 0 | EM17: 0 | EN17: 0 | EO17: 0 | EP17: 0 | EQ17: 0 | ER17: 0 | ES17: 0 | ET17: 0 | EU17: 0 | EV17: 0 | EW17: 0 | EX17: 0 | EY17: 0 | EZ17: 0 | FA17: 0 | FB17: 0 | FC17: 0 | FD17: 0 | FE17: 3581036 | FF17: -28.25 | FG17: 9.907728171 | FH17: 11.34653794 | FI17: 10.9390533 | FJ17: 10.7 | FK17: 2809904 | FL17: 0 | FM17: 0 | FN17: 507561 | FO17: 38256 | FP17: 150887 | FQ17: 323 | FR17: 278367 | FS17: 405750 | FT17: 1706926 | FU17: 31235 | FV17: 5426394 | FW17: 7115027 | FX17: 550035 | FY17: 0 | FZ17: 81858 | GA17: 0 | GB17: 0 | GC17: 0 | GD17: 5128 | GE17: 55572 | GF17: 0 | GG17: 0 | GH17: 8329 | GI17: 2851687 | GJ17: 0 | GK17: 0 | GL17: 500180 | GM17: 38256 | GN17: 145870 | GO17: 468 | GP17: 273320 | GQ17: 401183 | GR17: 1618877 | GS17: 33275 | GT17: 5513529 | GU17: 7045288 | GV17: 156854 | GW17: 0 | GX17: 81131 | GY17: 0 | GZ17: 0 | HA17: 0 | HB17: 0 | HC17: 55572 | HD17: 0 | HE17: 0 | HF17: 9167 | HG17: 2749393 | HH17: 0 | HI17: 0 | HJ17: 515612 | HK17: 25829 | HL17: 149113 | HM17: 329 | HN17: 281217 | HO17: 377959 | HP17: 1568736 | HQ17: 43423 | HR17: 5699853 | HS17: 6906178 | HT17: 70030 | HU17: 0 | HV17: 81171 | HW17: 0 | HX17: 0 | HY17: 0 | HZ17: 0 | IA17: 55572 | IB17: 0 | IC17: 0 | ID17: 12370
A18: Ver.05.00 | B18: 012157 | C18: 北海道 | D18: 美唄市 | E18: 3 | F18: - | G18: - | H18: 11 | I18: 74.2 | J18: 8715775 | K18: 39445 | L18: 一般会計 | M18: 539996 | N18: 市民バス会計 | O18: 0 | AR18: 539996 | AS18: -6.19 | AT18: ① | AU18: 国民健康保険会計 | AV18: 28091 | AW18: ② | AX18: 介護保険会計 | AY18: 116322 | AZ18: ⑥ | BA18: 介護サービス事業会計 | BB18: 0 | BC18: ③ | BD18: 後期高齢者医療会計 | BE18: 1923 | BF18: 0 | BI18: 0 | BL18: 0 | BO18: 0 | BR18: 0 | BU18: 0 | BX18: 0 | CA18: 0 | CD18: 0 | CG18: 水道事業会計 | CH18: 0 | CI18: 工業用水道事業会計 | CJ18: 0 | CK18: 下水道会計 | CL18: 10515 | CM18: 病院事業会計 | CN18: 700761 | CO18: 0 | CP18: 0 | CQ18: 0 | CR18: 0 | CS18: 0 | CT18: 0 | CU18: 0 | CV18: 0 | CW18: 0 | CX18: 0 | CY18: 0 | CZ18: 0 | DA18: 0 | DB18: 0 | DC18: 0 | DD18: 0 | DE18: 0 | DF18: 0 | DG18: 0 | DH18: 0 | DI18: 0 | DJ18: 0 | DK18: 0 | DL18: 0 | DM18: 0 | DN18: 0 | DO18: 0 | DP18: 0 | DQ18: 0 | DR18: 0 | DS18: 0 | DT18: 0 | DU18: 0 | DV18: 0 | DW18: 0 | DX18: 0 | DY18: 0 | DZ18: 0 | EA18: 0 | EB18: 0 | EC18: 0 | ED18: 0 | EE18: 0 | EF18: 0 | EG18: 0 | EH18: 0 | EI18: 0 | EJ18: 0 | EK18: 0 | EL18: 0 | EM18: 0 | EN18: 0 | EO18: 0 | EP18: 0 | EQ18: 0 | ER18: 0 | ES18: 0 | ET18: 0 | EU18: 0 | EV18: 0 | EW18: 0 | EX18: 0 | EY18: 0 | EZ18: 0 | FA18: 0 | FB18: 0 | FC18: 0 | FD18: 0 | FE18: 1397608 | FF18: -16.03 | FG18: 11.809076 | FH18: 9.908610607 | FI18: 11.29009958 | FJ18: 11 | FK18: 1860961 | FL18: 0 | FM18: 0 | FN18: 717269 | FO18: 0 | FP18: 3036 | FQ18: 77 | FR18: 177554 | FS18: 505927 | FT18: 1007709 | FU18: 12878 | FV18: 2587688 | FW18: 6041299 | FX18: 326347 | FY18: 0 | FZ18: 0 | GA18: 0 | GB18: 0 | GC18: 0 | GD18: 0 | GE18: 0 | GF18: 0 | GG18: 0 | GH18: 3036 | GI18: 1622361 | GJ18: 0 | GK18: 0 | GL18: 766462 | GM18: 0 | GN18: 1000 | GO18: 79 | GP18: 162675 | GQ18: 557117 | GR18: 925444 | GS18: 14553 | GT18: 2664886 | GU18: 6111174 | GV18: 89524 | GW18: 0 | GX18: 0 | GY18: 0 | GZ18: 0 | HA18: 0 | HB18: 0 | HC18: 0 | HD18: 0 | HE18: 0 | HF18: 1000 | HG18: 1650606 | HH18: 0 | HI18: 0 | HJ18: 759390 | HK18: 0 | HL18: 703 | HM18: 161 | HN18: 156016 | HO18: 455416 | HP18: 961112 | HQ18: 16034 | HR18: 2706681 | HS18: 5969649 | HT18: 39445 | HU18: 0 | HV18: 0 | HW18: 0 | HX18: 0 | HY18: 0 | HZ18: 0 | IA18: 0 | IB18: 0 | IC18: 0 | ID18: 703
A19: Ver.05.00 | B19: 012165 | C19: 北海道 | D19: 芦別市 | E19: 3 | F19: - | G19: - | H19: 5.7 | I19: 65.4 | J19: 6236358 | K19: 26923 | L19: 一般会計 | M19: 46066 | N19: 奨学資金特別会計 | O19: 0 | AR19: 46066 | AS19: -0.73 | AT19: ① | AU19: 国民健康保険特別会計 | AV19: 22720 | AW19: ② | AX19: 介護保険事業特別会計 | AY19: 73936 | AZ19: ③ | BA19: 後期高齢者医療特別会計 | BB19: 120 | BC19: 0 | BF19: 0 | BI19: 0 | BL19: 0 | BO19: 0 | BR19: 0 | BU19: 0 | BX19: 0 | CA19: 0 | CD19: 0 | CG19: 病院事業会計 | CH19: 0 | CI19: 水道事業会計 | CJ19: 163582 | CK19: 0 | CL19: 0 | CM19: 0 | CN19: 0 | CO19: 0 | CP19: 0 | CQ19: 0 | CR19: 0 | CS19: 0 | CT19: 0 | CU19: 0 | CV19: 0 | CW19: 0 | CX19: 0 | CY19: 0 | CZ19: 0 | DA19: 0 | DB19: 0 | DC19: 0 | DD19: 0 | DE19: 0 | DF19: 0 | DG19: 0 | DH19: 0 | DI19: 0 | DJ19: 0 | DK19: 0 | DL19: 0 | DM19: 0 | DN19: 0 | DO19: 0 | DP19: 0 | DQ19: 0 | DR19: 0 | DS19: 下水道事業特別会計 | DT19: 0 | DU19: 0 | DV19: 0 | DW19: 0 | DX19: 0 | DY19: 0 | DZ19: 0 | EA19: 0 | EB19: 0 | EC19: 0 | ED19: 0 | EE19: 0 | EF19: 0 | EG19: 0 | EH19: 0 | EI19: 0 | EJ19: 0 | EK19: 0 | EL19: 0 | EM19: 0 | EN19: 0 | EO19: 0 | EP19: 0 | EQ19: 0 | ER19: 0 | ES19: 0 | ET19: 0 | EU19: 0 | EV19: 0 | EW19: 0 | EX19: 0 | EY19: 0 | EZ19: 0 | FA19: 0 | FB19: 0 | FC19: 0 | FD19: 0 | FE19: 306424 | FF19: -4.91 | FG19: 5.243548016 | FH19: 5.474107455 | FI19: 6.395480452 | FJ19: 5.7 | FK19: 876165 | FL19: 0 | FM19: 0 | FN19: 403631 | FO19: 0 | FP19: 0 | FQ19: 108 | FR19: 173052 | FS19: 200211 | FT19: 598113 | FU19: 13917 | FV19: 1733446 | FW19: 4464040 | FX19: 233298 | FY19: 0 | FZ19: 0 | GA19: 0 | GB19: 0 | GC19: 0 | GD19: 0 | GE19: 0 | GF19: 0 | GG19: 0 | GH19: 0 | GI19: 912235 | GJ19: 0 | GK19: 0 | GL19: 361174 | GM19: 0 | GN19: 0 | GO19: 884 | GP19: 164805 | GQ19: 184325 | GR19: 617047 | GS19: 13909 | GT19: 1761379 | GU19: 4366798 | GV19: 61624 | GW19: 0 | GX19: 0 | GY19: 0 | GZ19: 0 | HA19: 0 | HB19: 0 | HC19: 0 | HD19: 0 | HE19: 0 | HF19: 0 | HG19: 1015072 | HH19: 0 | HI19: 0 | HJ19: 318844 | HK19: 0 | HL19: 0 | HM19: 1214 | HN19: 151602 | HO19: 176047 | HP19: 647973 | HQ19: 14276 | HR19: 1796605 | HS19: 4412830 | HT19: 26923 | HU19: 0 | HV19: 0 | HW19: 0 | HX19: 0 | HY19: 0 | HZ19: 0 | IA19: 0 | IB19: 0 | IC19: 0 | ID19: 0
A20: Ver.05.00 | B20: 012173 | C20: 北海道 | D20: 江別市 | E20: 3 | F20: - | G20: - | H20: 4.8 | I20: - | J20: 27551604 | K20: 225622 | L20: 一般会計 | M20: 1348455 | N20: 基本財産基金運用特別会計 | O20: 0 | AR20: 1348455 | AS20: -4.89 | AT20: ① | AU20: 国民健康保険特別会計 | AV20: 34969 | AW20: ② | AX20: 介護保険特別会計 | AY20: 142436 | AZ20: ③ | BA20: 後期高齢者医療特別会計 | BB20: 6484 | BC20: 0 | BF20: 0 | BI20: 0 | BL20: 0 | BO20: 0 | BR20: 0 | BU20: 0 | BX20: 0 | CA20: 0 | CD20: 0 | CG20: 病院事業会計 | CH20: 0 | CI20: 水道事業会計 | CJ20: 1542505 | CK20: 下水道事業会計 | CL20: 907492 | CM20: 0 | CN20: 0 | CO20: 0 | CP20: 0 | CQ20: 0 | CR20: 0 | CS20: 0 | CT20: 0 | CU20: 0 | CV20: 0 | CW20: 0 | CX20: 0 | CY20: 0 | CZ20: 0 | DA20: 0 | DB20: 0 | DC20: 0 | DD20: 0 | DE20: 0 | DF20: 0 | DG20: 0 | DH20: 0 | DI20: 0 | DJ20: 0 | DK20: 0 | DL20: 0 | DM20: 0 | DN20: 0 | DO20: 0 | DP20: 0 | DQ20: 0 | DR20: 0 | DS20: 0 | DT20: 0 | DU20: 0 | DV20: 0 | DW20: 0 | DX20: 0 | DY20: 0 | DZ20: 0 | EA20: 0 | EB20: 0 | EC20: 0 | ED20: 0 | EE20: 0 | EF20: 0 | EG20: 0 | EH20: 0 | EI20: 0 | EJ20: 0 | EK20: 0 | EL20: 0 | EM20: 0 | EN20: 0 | EO20: 0 | EP20: 0 | EQ20: 0 | ER20: 0 | ES20: 0 | ET20: 0 | EU20: 0 | EV20: 0 | EW20: 0 | EX20: 0 | EY20: 0 | EZ20: 0 | FA20: 0 | FB20: 0 | FC20: 0 | FD20: 0 | FE20: 3982341 | FF20: -14.45 | FG20: 5.456255209 | FH20: 4.529500781 | FI20: 4.575787466 | FJ20: 4.8 | FK20: 3715630 | FL20: 0 | FM20: 0 | FN20: 1175720 | FO20: 30219 | FP20: 26862 | FQ20: 0 | FR20: 755713 | FS20: 466024 | FT20: 2121970 | FU20: 295963 | FV20: 14585747 | FW20: 10680382 | FX20: 1604261 | FY20: 0 | FZ20: 0 | GA20: 0 | GB20: 0 | GC20: 0 | GD20: 26250 | GE20: 0 | GF20: 0 | GG20: 0 | GH20: 612 | GI20: 3607028 | GJ20: 0 | GK20: 0 | GL20: 1053710 | GM20: 30364 | GN20: 18928 | GO20: 0 | GP20: 771799 | GQ20: 431614 | GR20: 2103992 | GS20: 299373 | GT20: 15378577 | GU20: 11320711 | GV20: 492724 | GW20: 0 | GX20: 0 | GY20: 0 | GZ20: 0 | HA20: 0 | HB20: 18424 | HC20: 0 | HD20: 0 | HE20: 0 | HF20: 504 | HG20: 3570238 | HH20: 0 | HI20: 0 | HJ20: 983243 | HK20: 28653 | HL20: 16436 | HM20: 12 | HN20: 730570 | HO20: 410499 | HP20: 2023551 | HQ20: 298285 | HR20: 15672069 | HS20: 11653913 | HT20: 225622 | HU20: 0 | HV20: 0 | HW20: 0 | HX20: 0 | HY20: 0 | HZ20: 16042 | IA20: 0 | IB20: 0 | IC20: 0 | ID20: 394
A21: Ver.05.00 | B21: 012181 | C21: 北海道 | D21: 赤平市 | E21: 3 | F21: - | G21: - | H21: 13.2 | I21: 66.7 | J21: 5143870 | K21: 20278 | L21: 一般会計 | M21: 524467 | N21: 用地取得特別会計 | O21: 0 | AR21: 524467 | AS21: -10.19 | AT21: ① | AU21: 国民健康保険特別会計 | AV21: 15986 | AW21: ③ | AX21: 後期高齢者医療特別会計 | AY21: 5195 | AZ21: ⑥ | BA21: 介護サービス事業特別会計 | BB21: 1847 | BC21: ② | BD21: 介護保険特別会計 | BE21: 146086 | BF21: 0 | BI21: 0 | BL21: 0 | BO21: 0 | BR21: 0 | BU21: 0 | BX21: 0 | CA21: 0 | CD21: 0 | CG21: 水道事業会計 | CH21: 584733 | CI21: 病院事業会計 | CJ21: 1700238 | CK21: 下水道事業会計 | CL21: 216593 | CM21: 0 | CN21: 0 | CO21: 0 | CP21: 0 | CQ21: 0 | CR21: 0 | CS21: 0 | CT21: 0 | CU21: 0 | CV21: 0 | CW21: 0 | CX21: 0 | CY21: 0 | CZ21: 0 | DA21: 0 | DB21: 0 | DC21: 0 | DD21: 0 | DE21: 0 | DF21: 0 | DG21: 0 | DH21: 0 | DI21: 0 | DJ21: 0 | DK21: 0 | DL21: 0 | DM21: 0 | DN21: 0 | DO21: 0 | DP21: 0 | DQ21: 0 | DR21: 0 | DS21: 0 | DT21: 0 | DU21: 0 | DV21: 0 | DW21: 0 | DX21: 0 | DY21: 0 | DZ21: 0 | EA21: 0 | EB21: 0 | EC21: 0 | ED21: 0 | EE21: 0 | EF21: 0 | EG21: 0 | EH21: 0 | EI21: 0 | EJ21: 0 | EK21: 0 | EL21: 0 | EM21: 0 | EN21: 0 | EO21: 0 | EP21: 0 | EQ21: 0 | ER21: 0 | ES21: 0 | ET21: 0 | EU21: 0 | EV21: 0 | EW21: 0 | EX21: 0 | EY21: 0 | EZ21: 0 | FA21: 0 | FB21: 0 | FC21: 0 | FD21: 0 | FE21: 3195145 | FF21: -62.11 | FG21: 11.85658739 | FH21: 14.45488831 | FI21: 13.49584323 | FJ21: 13.2 | FK21: 1102375 | FL21: 0 | FM21: 0 | FN21: 582077 | FO21: 16218 | FP21: 17410 | FQ21: 165 | FR21: 224940 | FS21: 154064 | FT21: 737622 | FU21: 106712 | FV21: 1079616 | FW21: 3920634 | FX21: 172258 | FY21: 0 | FZ21: 0 | GA21: 0 | GB21: 0 | GC21: 0 | GD21: 17407 | GE21: 0 | GF21: 0 | GG21: 0 | GH21: 3 | GI21: 1243828 | GJ21: 0 | GK21: 0 | GL21: 618154 | GM21: 16201 | GN21: 0 | GO21: 4 | GP21: 184411 | GQ21: 154694 | GR21: 839308 | GS21: 106122 | GT21: 1116576 | GU21: 4045009 | GV21: 45468 | GW21: 0 | GX21: 0 | GY21: 0 | GZ21: 0 | HA21: 0 | HB21: 0 | HC21: 0 | HD21: 0 | HE21: 0 | HF21: 0 | HG21: 1240814 | HH21: 0 | HI21: 0 | HJ21: 528269 | HK21: 18025 | HL21: 0 | HM21: 1 | HN21: 180804 | HO21: 144099 | HP21: 840711 | HQ21: 69586 | HR21: 1137617 | HS21: 3985975 | HT21: 20278 | HU21: 0 | HV21: 0 | HW21: 0 | HX21: 0 | HY21: 0 | HZ21: 0 | IA21: 0 | IB21: 0 | IC21: 0 | ID21: 0
A22: Ver.05.00 | B22: 012190 | C22: 北海道 | D22: 紋別市 | E22: 3 | F22: - | G22: - | H22: 9.3 | I22: - | J22: 10095885 | K22: 48252 | L22: 一般会計 | M22: 324388 | N22: 営農飲雑用水道事業特別会計 | O22: 8652 | P22: 土地取得事業特別会計 | Q22: 0 | AR22: 333040 | AS22: -3.29 | AT22: ① | AU22: 国民健康保険事業特別会計 | AV22: 3068 | AW22: ② | AX22: 介護保険事業特別会計 | AY22: 81985 | AZ22: ③ | BA22: 後期高齢者医療事業特別会計 | BB22: 280 | BC22: ⑧ | BD22: 交通災害共済事業特別会計 | BE22: 783 | BF22: 0 | BI22: 0 | BL22: 0 | BO22: 0 | BR22: 0 | BU22: 0 | BX22: 0 | CA22: 0 | CD22: 0 | CG22: 水道事業会計 | CH22: 413704 | CI22: 下水道事業会計 | CJ22: 63594 | CK22: 0 | CL22: 0 | CM22: 0 | CN22: 0 | CO22: 0 | CP22: 0 | CQ22: 0 | CR22: 0 | CS22: 0 | CT22: 0 | CU22: 0 | CV22: 0 | CW22: 0 | CX22: 0 | CY22: 0 | CZ22: 0 | DA22: 0 | DB22: 0 | DC22: 0 | DD22: 0 | DE22: 0 | DF22: 0 | DG22: 0 | DH22: 0 | DI22: 0 | DJ22: 0 | DK22: 0 | DL22: 0 | DM22: 0 | DN22: 0 | DO22: 0 | DP22: 0 | DQ22: 0 | DR22: 0 | DS22: 簡易水道事業特別会計 | DT22: 15106 | DU22: 港湾埋立事業特別会計 | DV22: 218342 | DW22: 0 | DX22: 0 | DY22: 0 | DZ22: 0 | EA22: 0 | EB22: 0 | EC22: 0 | ED22: 0 | EE22: 0 | EF22: 0 | EG22: 0 | EH22: 0 | EI22: 0 | EJ22: 0 | EK22: 0 | EL22: 0 | EM22: 0 | EN22: 0 | EO22: 0 | EP22: 0 | EQ22: 0 | ER22: 0 | ES22: 0 | ET22: 0 | EU22: 0 | EV22: 0 | EW22: 0 | EX22: 0 | EY22: 0 | EZ22: 0 | FA22: 0 | FB22: 0 | FC22: 0 | FD22: 0 | FE22: 1129902 | FF22: -11.19 | FG22: 9.199371771 | FH22: 9.486768827 | FI22: 9.471098719 | FJ22: 9.3 | FK22: 2545009 | FL22: 0 | FM22: 0 | FN22: 459613 | FO22: 232990 | FP22: 54307 | FQ22: 0 | FR22: 461062 | FS22: 367345 | FT22: 1643635 | FU22: 61645 | FV22: 3656379 | FW22: 6273838 | FX22: 384623 | FY22: 0 | FZ22: 0 | GA22: 0 | GB22: 0 | GC22: 0 | GD22: 0 | GE22: 0 | GF22: 0 | GG22: 53728 | GH22: 579 | GI22: 2469675 | GJ22: 0 | GK22: 0 | GL22: 439698 | GM22: 232535 | GN22: 72053 | GO22: 0 | GP22: 467787 | GQ22: 335624 | GR22: 1596897 | GS22: 65290 | GT22: 3709434 | GU22: 6069711 | GV22: 107158 | GW22: 0 | GX22: 0 | GY22: 0 | GZ22: 0 | HA22: 0 | HB22: 0 | HC22: 0 | HD22: 0 | HE22: 71597 | HF22: 456 | HG22: 2542620 | HH22: 0 | HI22: 0 | HJ22: 414197 | HK22: 270934 | HL22: 66156 | HM22: 941 | HN22: 478229 | HO22: 316565 | HP22: 1664896 | HQ22: 73604 | HR22: 3976965 | HS22: 6070668 | HT22: 48252 | HU22: 0 | HV22: 0 | HW22: 0 | HX22: 0 | HY22: 0 | HZ22: 0 | IA22: 0 | IB22: 0 | IC22: 65830 | ID22: 326
A23: Ver.05.00 | B23: 012203 | C23: 北海道 | D23: 士別市 | E23: 3 | F23: - | G23: - | H23: 14.3 | I23: 98.3 | J23: 10170893 | K23: 45480 | L23: 一般会計 | M23: 84924 | AR23: 84924 | AS23: -0.83 | AT23: ① | AU23: 国民健康保険事業特別会計 | AV23: 5782 | AW23: ② | AX23: 介護保険事業特別会計 | AY23: 1991 | AZ23: ③ | BA23: 後期高齢者医療特別会計 | BB23: 421 | BC23: 0 | BF23: 0 | BI23: 0 | BL23: 0 | BO23: 0 | BR23: 0 | BU23: 0 | BX23: 0 | CA23: 0 | CD23: 0 | CG23: 水道事業会計 | CH23: 95763 | CI23: 病院事業会計 | CJ23: 348910 | CK23: 0 | CL23: 0 | CM23: 0 | CN23: 0 | CO23: 0 | CP23: 0 | CQ23: 0 | CR23: 0 | CS23: 0 | CT23: 0 | CU23: 0 | CV23: 0 | CW23: 0 | CX23: 0 | CY23: 0 | CZ23: 0 | DA23: 0 | DB23: 0 | DC23: 0 | DD23: 0 | DE23: 0 | DF23: 0 | DG23: 0 | DH23: 0 | DI23: 0 | DJ23: 0 | DK23: 0 | DL23: 0 | DM23: 0 | DN23: 0 | DO23: 0 | DP23: 0 | DQ23: 0 | DR23: 0 | DS23: 公共下水道事業特別会計 | DT23: 156942 | DU23: 農業集落排水事業特別会計 | DV23: 20740 | DW23: 0 | DX23: 0 | DY23: 0 | DZ23: 0 | EA23: 0 | EB23: 0 | EC23: 0 | ED23: 0 | EE23: 0 | EF23: 0 | EG23: 0 | EH23: 0 | EI23: 0 | EJ23: 0 | EK23: 0 | EL23: 0 | EM23: 0 | EN23: 0 | EO23: 0 | EP23: 0 | EQ23: 0 | ER23: 0 | ES23: 0 | ET23: 0 | EU23: 0 | EV23: 0 | EW23: 0 | EX23: 0 | EY23: 0 | EZ23: 0 | FA23: 0 | FB23: 0 | FC23: 0 | FD23: 0 | FE23: 715473 | FF23: -7.03 | FG23: 14.42539803 | FH23: 15.72406181 | FI23: 12.84610462 | FJ23: 14.3 | FK23: 2753910 | FL23: 0 | FM23: 0 | FN23: 527465 | FO23: 960 | FP23: 1665 | FQ23: 120 | FR23: 219782 | FS23: 291505 | FT23: 1519919 | FU23: 28700 | FV23: 2817401 | FW23: 7122084 | FX23: 387157 | FY23: 0 | FZ23: 0 | GA23: 0 | GB23: 0 | GC23: 0 | GD23: 0 | GE23: 0 | GF23: 0 | GG23: 0 | GH23: 1665 | GI23: 2910293 | GJ23: 0 | GK23: 0 | GL23: 509119 | GM23: 949 | GN23: 1273 | GO23: 82 | GP23: 188028 | GQ23: 257875 | GR23: 1664353 | GS23: 28700 | GT23: 2885168 | GU23: 7122503 | GV23: 101200 | GW23: 0 | GX23: 0 | GY23: 0 | GZ23: 0 | HA23: 0 | HB23: 0 | HC23: 0 | HD23: 0 | HE23: 0 | HF23: 1273 | HG23: 2726710 | HH23: 0 | HI23: 0 | HJ23: 441873 | HK23: 0 | HL23: 914 | HM23: 279 | HN23: 168681 | HO23: 223352 | HP23: 1690433 | HQ23: 30513 | HR23: 3002340 | HS23: 7123073 | HT23: 45480 | HU23: 0 | HV23: 0 | HW23: 0 | HX23: 0 | HY23: 0 | HZ23: 0 | IA23: 0 | IB23: 0 | IC23: 0 | ID23: 914
A24: Ver.05.00 | B24: 012211 | C24: 北海道 | D24: 名寄市 | E24: 3 | F24: - | G24: - | H24: 9.9 | I24: 9.3 | J24: 12911906 | K24: 57901 | L24: 一般会計 | M24: 350749 | N24: 市立大学特別会計 | O24: 0 | AR24: 350749 | AS24: -2.71 | AT24: ① | AU24: 国民健康保険特別会計（保険事業勘定） | AV24: 20637 | AW24: ① | AX24: 国民健康保険特別会計（直診勘定） | AY24: 0 | AZ24: ② | BA24: 介護保険特別会計（保険事業勘定） | BB24: 143860 | BC24: ③ | BD24: 後期高齢者医療特別会計 | BE24: 0 | BF24: ⑥ | BG24: 介護保険特別会計（サービス事業勘定） | BH24: 0 | BI24: 0 | BL24: 0 | BO24: 0 | BR24: 0 | BU24: 0 | BX24: 0 | CA24: 0 | CD24: 0 | CG24: 水道事業会計 | CH24: 326705 | CI24: 病院事業会計 | CJ24: 1364692 | CK24: 下水道事業会計 | CL24: 291387 | CM24: 0 | CN24: 0 | CO24: 0 | CP24: 0 | CQ24: 0 | CR24: 0 | CS24: 0 | CT24: 0 | CU24: 0 | CV24: 0 | CW24: 0 | CX24: 0 | CY24: 0 | CZ24: 0 | DA24: 0 | DB24: 0 | DC24: 0 | DD24: 0 | DE24: 0 | DF24: 0 | DG24: 0 | DH24: 0 | DI24: 0 | DJ24: 0 | DK24: 0 | DL24: 0 | DM24: 0 | DN24: 0 | DO24: 0 | DP24: 0 | DQ24: 0 | DR24: 0 | DS24: 食肉センター事業特別会計 | DT24: 0 | DU24: 0 | DV24: 0 | DW24: 0 | DX24: 0 | DY24: 0 | DZ24: 0 | EA24: 0 | EB24: 0 | EC24: 0 | ED24: 0 | EE24: 0 | EF24: 0 | EG24: 0 | EH24: 0 | EI24: 0 | EJ24: 0 | EK24: 0 | EL24: 0 | EM24: 0 | EN24: 0 | EO24: 0 | EP24: 0 | EQ24: 0 | ER24: 0 | ES24: 0 | ET24: 0 | EU24: 0 | EV24: 0 | EW24: 0 | EX24: 0 | EY24: 0 | EZ24: 0 | FA24: 0 | FB24: 0 | FC24: 0 | FD24: 0 | FE24: 2498030 | FF24: -19.34 | FG24: 10.0938431 | FH24: 9.954283818 | FI24: 9.89975897 | FJ24: 9.9 | FK24: 2725189 | FL24: 0 | FM24: 0 | FN24: 963509 | FO24: 0 | FP24: 45028 | FQ24: 70 | FR24: 278778 | FS24: 331906 | FT24: 1855986 | FU24: 168919 | FV24: 3862213 | FW24: 8890419 | FX24: 484148 | FY24: 0 | FZ24: 0 | GA24: 0 | GB24: 0 | GC24: 0 | GD24: 0 | GE24: 0 | GF24: 0 | GG24: 36858 | GH24: 8170 | GI24: 2811490 | GJ24: 0 | GK24: 0 | GL24: 801986 | GM24: 0 | GN24: 43164 | GO24: 126 | GP24: 251442 | GQ24: 317127 | GR24: 1944692 | GS24: 91751 | GT24: 4024981 | GU24: 8765340 | GV24: 129092 | GW24: 0 | GX24: 0 | GY24: 0 | GZ24: 0 | HA24: 0 | HB24: 0 | HC24: 0 | HD24: 0 | HE24: 33438 | HF24: 9726 | HG24: 2821141 | HH24: 0 | HI24: 0 | HJ24: 747013 | HK24: 0 | HL24: 51051 | HM24: 175 | HN24: 272976 | HO24: 296419 | HP24: 1921242 | HQ24: 77734 | HR24: 4107730 | HS24: 8746275 | HT24: 57901 | HU24: 0 | HV24: 0 | HW24: 0 | HX24: 0 | HY24: 0 | HZ24: 0 | IA24: 0 | IB24: 0 | IC24: 39135 | ID24: 11916
A25: Ver.05.00 | B25: 012220 | C25: 北海道 | D25: 三笠市 | E25: 3 | F25: - | G25: - | H25: 10.8 | I25: 25.7 | J25: 5123407 | K25: 19660 | L25: 一般会計 | M25: 60027 | AR25: 60027 | AS25: -1.17 | AT25: ① | AU25: 国民健康保険特別会計 | AV25: 28158 | AW25: ② | AX25: 介護保険特別会計 | AY25: 75239 | AZ25: ③ | BA25: 後期高齢者医療特別会計 | BB25: 1744 | BC25: 0 | BF25: 0 | BI25: 0 | BL25: 0 | BO25: 0 | BR25: 0 | BU25: 0 | BX25: 0 | CA25: 0 | CD25: 0 | CG25: 水道事業会計 | CH25: 104454 | CI25: 市立三笠総合病院事業会計 | CJ25: 179684 | CK25: 下水道事業会計 | CL25: 270873 | CM25: 0 | CN25: 0 | CO25: 0 | CP25: 0 | CQ25: 0 | CR25: 0 | CS25: 0 | CT25: 0 | CU25: 0 | CV25: 0 | CW25: 0 | CX25: 0 | CY25: 0 | CZ25: 0 | DA25: 0 | DB25: 0 | DC25: 0 | DD25: 0 | DE25: 0 | DF25: 0 | DG25: 0 | DH25: 0 | DI25: 0 | DJ25: 0 | DK25: 0 | DL25: 0 | DM25: 0 | DN25: 0 | DO25: 0 | DP25: 0 | DQ25: 0 | DR25: 0 | DS25: 0 | DT25: 0 | DU25: 0 | DV25: 0 | DW25: 0 | DX25: 0 | DY25: 0 | DZ25: 0 | EA25: 0 | EB25: 0 | EC25: 0 | ED25: 0 | EE25: 0 | EF25: 0 | EG25: 0 | EH25: 0 | EI25: 0 | EJ25: 0 | EK25: 0 | EL25: 0 | EM25: 0 | EN25: 0 | EO25: 0 | EP25: 0 | EQ25: 0 | ER25: 0 | ES25: 0 | ET25: 0 | EU25: 0 | EV25: 0 | EW25: 0 | EX25: 0 | EY25: 0 | EZ25: 0 | FA25: 0 | FB25: 0 | FC25: 0 | FD25: 0 | FE25: 720179 | FF25: -14.05 | FG25: 9.9254502 | FH25: 9.96480933 | FI25: 12.59057367 | FJ25: 10.8 | FK25: 992239 | FL25: 0 | FM25: 0 | FN25: 305150 | FO25: 0 | FP25: 81 | FQ25: 138 | FR25: 127200 | FS25: 170991 | FT25: 568178 | FU25: 9110 | FV25: 1060236 | FW25: 3779206 | FX25: 161833 | FY25: 0 | FZ25: 0 | GA25: 0 | GB25: 0 | GC25: 0 | GD25: 0 | GE25: 0 | GF25: 0 | GG25: 0 | GH25: 81 | GI25: 1015364 | GJ25: 0 | GK25: 0 | GL25: 284810 | GM25: 0 | GN25: 59 | GO25: 288 | GP25: 115663 | GQ25: 160002 | GR25: 593873 | GS25: 9037 | GT25: 1098067 | GU25: 3855861 | GV25: 43345 | GW25: 0 | GX25: 0 | GY25: 0 | GZ25: 0 | HA25: 0 | HB25: 0 | HC25: 0 | HD25: 0 | HE25: 0 | HF25: 59 | HG25: 1047200 | HH25: 0 | HI25: 0 | HJ25: 376075 | HK25: 0 | HL25: 50 | HM25: 395 | HN25: 115092 | HO25: 136254 | HP25: 607781 | HQ25: 15107 | HR25: 1136233 | HS25: 3967514 | HT25: 19660 | HU25: 0 | HV25: 0 | HW25: 0 | HX25: 0 | HY25: 0 | HZ25: 0 | IA25: 0 | IB25: 0 | IC25: 0 | ID25: 50
A26: Ver.05.00 | B26: 012238 | C26: 北海道 | D26: 根室市 | E26: 3 | F26: - | G26: - | H26: 8.5 | I26: - | J26: 9253401 | K26: 47720 | L26: 一般会計 | M26: 339568 | N26: 流通加工センター汚水処理事業特別会計 | O26: 0 | P26: 農業用水事業特別会計 | Q26: 0 | AR26: 339568 | AS26: -3.66 | AT26: ① | AU26: 国民健康保険特別会計事業勘定 | AV26: 15491 | AW26: ② | AX26: 介護保険特別会計事業勘定 | AY26: 17867 | AZ26: ③ | BA26: 後期高齢者医療特別会計 | BB26: 2553 | BC26: ⑧ | BD26: 市民交通傷害共済事業特別会計 | BE26: 2745 | BF26: 0 | BI26: 0 | BL26: 0 | BO26: 0 | BR26: 0 | BU26: 0 | BX26: 0 | CA26: 0 | CD26: 0 | CG26: 根室市水道事業会計 | CH26: 299286 | CI26: 根室市下水道事業会計 | CJ26: 479694 | CK26: 根室市病院事業会計 | CL26: 99373 | CM26: 0 | CN26: 0 | CO26: 0 | CP26: 0 | CQ26: 0 | CR26: 0 | CS26: 0 | CT26: 0 | CU26: 0 | CV26: 0 | CW26: 0 | CX26: 0 | CY26: 0 | CZ26: 0 | DA26: 0 | DB26: 0 | DC26: 0 | DD26: 0 | DE26: 0 | DF26: 0 | DG26: 0 | DH26: 0 | DI26: 0 | DJ26: 0 | DK26: 根室市港湾整備事業会計 | DL26: 919885 | DM26: 0 | DN26: 0 | DO26: 0 | DP26: 0 | DQ26: 0 | DR26: 0 | DS26: 0 | DT26: 0 | DU26: 0 | DV26: 0 | DW26: 0 | DX26: 0 | DY26: 0 | DZ26: 0 | EA26: 0 | EB26: 0 | EC26: 0 | ED26: 0 | EE26: 0 | EF26: 0 | EG26: 0 | EH26: 0 | EI26: 0 | EJ26: 0 | EK26: 0 | EL26: 0 | EM26: 0 | EN26: 0 | EO26: 0 | EP26: 0 | EQ26: 0 | ER26: 0 | ES26: 0 | ET26: 0 | EU26: 0 | EV26: 0 | EW26: 0 | EX26: 0 | EY26: 0 | EZ26: 0 | FA26: 0 | FB26: 0 | FC26: 0 | FD26: 0 | FE26: 2176462 | FF26: -23.52 | FG26: 7.946148333 | FH26: 9.172586124 | FI26: 8.482863972 | FJ26: 8.5 | FK26: 1941419 | FL26: 0 | FM26: 0 | FN26: 331049 | FO26: 0 | FP26: 981 | FQ26: 0 | FR26: 279403 | FS26: 149195 | FT26: 1165928 | FU26: 26937 | FV26: 3502475 | FW26: 5653905 | FX26: 390737 | FY26: 0 | FZ26: 0 | GA26: 0 | GB26: 0 | GC26: 0 | GD26: 981 | GE26: 0 | GF26: 0 | GG26: 0 | GH26: 0 | GI26: 1961214 | GJ26: 0 | GK26: 0 | GL26: 424490 | GM26: 0 | GN26: 964 | GO26: 0 | GP26: 289326 | GQ26: 136843 | GR26: 1213361 | GS26: 29276 | GT26: 3590152 | GU26: 5508751 | GV26: 106745 | GW26: 0 | GX26: 0 | GY26: 0 | GZ26: 0 | HA26: 0 | HB26: 964 | HC26: 0 | HD26: 0 | HE26: 0 | HF26: 0 | HG26: 1832466 | HH26: 0 | HI26: 0 | HJ26: 370667 | HK26: 0 | HL26: 4014 | HM26: 0 | HN26: 257908 | HO26: 128143 | HP26: 1113074 | HQ26: 30988 | HR26: 3695826 | HS26: 5509855 | HT26: 47720 | HU26: 0 | HV26: 0 | HW26: 0 | HX26: 0 | HY26: 0 | HZ26: 947 | IA26: 0 | IB26: 0 | IC26: 3067 | ID26: 0
A27: Ver.05.00 | B27: 012246 | C27: 北海道 | D27: 千歳市 | E27: 3 | F27: - | G27: - | H27: 7.4 | I27: - | J27: 25871731 | K27: 279827 | L27: 一般会計 | M27: 2528045 | N27: 土地取得事業特別会計 | O27: 452 | P27: 霊園事業特別会計 | Q27: 123 | AR27: 2528620 | AS27: -9.77 | AT27: ① | AU27: 国民健康保険特別会計 | AV27: 3887 | AW27: ② | AX27: 介護保険特別会計 | AY27: 51829 | AZ27: ③ | BA27: 後期高齢者医療特別会計 | BB27: 6342 | BC27: 0 | BF27: 0 | BI27: 0 | BL27: 0 | BO27: 0 | BR27: 0 | BU27: 0 | BX27: 0 | CA27: 0 | CD27: 0 | CG27: 病院事業会計 | CH27: 1535155 | CI27: 水道事業会計 | CJ27: 1294104 | CK27: 下水道事業会計 | CL27: 2599537 | CM27: 0 | CN27: 0 | CO27: 0 | CP27: 0 | CQ27: 0 | CR27: 0 | CS27: 0 | CT27: 0 | CU27: 0 | CV27: 0 | CW27: 0 | CX27: 0 | CY27: 0 | CZ27: 0 | DA27: 0 | DB27: 0 | DC27: 0 | DD27: 0 | DE27: 0 | DF27: 0 | DG27: 0 | DH27: 0 | DI27: 0 | DJ27: 0 | DK27: 0 | DL27: 0 | DM27: 0 | DN27: 0 | DO27: 0 | DP27: 0 | DQ27: 0 | DR27: 0 | DS27: 公設地方卸売市場事業特別会計 | DT27: 160 | DU27: 0 | DV27: 0 | DW27: 0 | DX27: 0 | DY27: 0 | DZ27: 0 | EA27: 0 | EB27: 0 | EC27: 0 | ED27: 0 | EE27: 0 | EF27: 0 | EG27: 0 | EH27: 0 | EI27: 0 | EJ27: 0 | EK27: 0 | EL27: 0 | EM27: 0 | EN27: 0 | EO27: 0 | EP27: 0 | EQ27: 0 | ER27: 0 | ES27: 0 | ET27: 0 | EU27: 0 | EV27: 0 | EW27: 0 | EX27: 0 | EY27: 0 | EZ27: 0 | FA27: 0 | FB27: 0 | FC27: 0 | FD27: 0 | FE27: 8019634 | FF27: -30.99 | FG27: 7.330084612 | FH27: 7.601545127 | FI27: 7.477152199 | FJ27: 7.4 | FK27: 3437867 | FL27: 0 | FM27: 0 | FN27: 901115 | FO27: 44723 | FP27: 189494 | FQ27: 0 | FR27: 488756 | FS27: 586621 | FT27: 1551696 | FU27: 249570 | FV27: 17927912 | FW27: 5422629 | FX27: 2182454 | FY27: 0 | FZ27: 0 | GA27: 0 | GB27: 0 | GC27: 3201 | GD27: 0 | GE27: 0 | GF27: 0 | GG27: 162012 | GH27: 24281 | GI27: 3508778 | GJ27: 0 | GK27: 0 | GL27: 881389 | GM27: 46337 | GN27: 183579 | GO27: 0 | GP27: 474438 | GQ27: 563345 | GR27: 1588836 | GS27: 246069 | GT27: 18881524 | GU27: 5857600 | GV27: 646492 | GW27: 0 | GX27: 0 | GY27: 0 | GZ27: 0 | HA27: 0 | HB27: 0 | HC27: 0 | HD27: 0 | HE27: 160606 | HF27: 22973 | HG27: 3407110 | HH27: 0 | HI27: 0 | HJ27: 961417 | HK27: 50844 | HL27: 177181 | HM27: 0 | HN27: 437488 | HO27: 512617 | HP27: 1614241 | HQ27: 277516 | HR27: 19326819 | HS27: 6265085 | HT27: 279827 | HU27: 0 | HV27: 0 | HW27: 0 | HX27: 0 | HY27: 0 | HZ27: 0 | IA27: 0 | IB27: 0 | IC27: 159167 | ID27: 18014
A28: Ver.05.00 | B28: 012254 | C28: 北海道 | D28: 滝川市 | E28: 3 | F28: - | G28: - | H28: 6.8 | I28: 18.2 | J28: 12042096 | K28: 69135 | L28: 一般会計 | M28: 906602 | N28: 公営住宅事業特別会計 | O28: 101398 | AR28: 1008000 | AS28: -8.37 | AT28: ① | AU28: 国民健康保険特別会計 | AV28: 0 | AW28: ② | AX28: 介護保険特別会計 | AY28: 574121 | AZ28: ③ | BA28: 後期高齢者医療特別会計 | BB28: 1632 | BC28: 0 | BF28: 0 | BI28: 0 | BL28: 0 | BO28: 0 | BR28: 0 | BU28: 0 | BX28: 0 | CA28: 0 | CD28: 0 | CG28: 滝川市下水道事業会計 | CH28: 1184559 | CI28: 滝川市病院事業会計 | CJ28: 876354 | CK28: 0 | CL28: 0 | CM28: 0 | CN28: 0 | CO28: 0 | CP28: 0 | CQ28: 0 | CR28: 0 | CS28: 0 | CT28: 0 | CU28: 0 | CV28: 0 | CW28: 0 | CX28: 0 | CY28: 0 | CZ28: 0 | DA28: 0 | DB28: 0 | DC28: 0 | DD28: 0 | DE28: 0 | DF28: 0 | DG28: 0 | DH28: 0 | DI28: 0 | DJ28: 0 | DK28: 0 | DL28: 0 | DM28: 0 | DN28: 0 | DO28: 0 | DP28: 0 | DQ28: 0 | DR28: 0 | DS28: 0 | DT28: 0 | DU28: 0 | DV28: 0 | DW28: 0 | DX28: 0 | DY28: 0 | DZ28: 0 | EA28: 0 | EB28: 0 | EC28: 0 | ED28: 0 | EE28: 0 | EF28: 0 | EG28: 0 | EH28: 0 | EI28: 0 | EJ28: 0 | EK28: 0 | EL28: 0 | EM28: 0 | EN28: 0 | EO28: 0 | EP28: 0 | EQ28: 0 | ER28: 0 | ES28: 0 | ET28: 0 | EU28: 0 | EV28: 0 | EW28: 0 | EX28: 0 | EY28: 0 | EZ28: 0 | FA28: 0 | FB28: 0 | FC28: 0 | FD28: 0 | FE28: 3644666 | FF28: -30.26 | FG28: 7.255758012 | FH28: 6.468026546 | FI28: 6.955614069 | FJ28: 6.8 | FK28: 1838814 | FL28: 0 | FM28: 0 | FN28: 705153 | FO28: 175941 | FP28: 753 | FQ28: 29 | FR28: 447749 | FS28: 421431 | FT28: 918220 | FU28: 169550 | FV28: 5035159 | FW28: 6463221 | FX28: 536806 | FY28: 0 | FZ28: 0 | GA28: 0 | GB28: 0 | GC28: 0 | GD28: 0 | GE28: 0 | GF28: 0 | GG28: 753 | GH28: 0 | GI28: 1775306 | GJ28: 0 | GK28: 0 | GL28: 690830 | GM28: 104028 | GN28: 9605 | GO28: 0 | GP28: 464310 | GQ28: 409817 | GR28: 879991 | GS28: 142738 | GT28: 5264873 | GU28: 6572447 | GV28: 153516 | GW28: 0 | GX28: 0 | GY28: 0 | GZ28: 0 | HA28: 0 | HB28: 0 | HC28: 0 | HD28: 0 | HE28: 9605 | HF28: 0 | HG28: 1777786 | HH28: 0 | HI28: 0 | HJ28: 678462 | HK28: 162758 | HL28: 10573 | HM28: 0 | HN28: 488070 | HO28: 385387 | HP28: 869961 | HQ28: 146034 | HR28: 5384286 | HS28: 6588675 | HT28: 69135 | HU28: 0 | HV28: 0 | HW28: 0 | HX28: 0 | HY28: 0 | HZ28: 0 | IA28: 0 | IB28: 0 | IC28: 10573 | ID28: 0
A29: Ver.05.00 | B29: 012262 | C29: 北海道 | D29: 砂川市 | E29: 3 | F29: - | G29: - | H29: 6.2 | I29: 33.6 | J29: 7294062 | K29: 36013 | L29: 一般会計 | M29: 764048 | AR29: 764048 | AS29: -10.47 | AT29: ① | AU29: 国民健康保険特別会計 | AV29: 15143 | AW29: ② | AX29: 介護保険特別会計 | AY29: 44468 | AZ29: ③ | BA29: 後期高齢者医療特別会計 | BB29: 45 | BC29: 0 | BF29: 0 | BI29: 0 | BL29: 0 | BO29: 0 | BR29: 0 | BU29: 0 | BX29: 0 | CA29: 0 | CD29: 0 | CG29: 病院事業会計 | CH29: 1748245 | CI29: 下水道事業会計 | CJ29: 187737 | CK29: 0 | CL29: 0 | CM29: 0 | CN29: 0 | CO29: 0 | CP29: 0 | CQ29: 0 | CR29: 0 | CS29: 0 | CT29: 0 | CU29: 0 | CV29: 0 | CW29: 0 | CX29: 0 | CY29: 0 | CZ29: 0 | DA29: 0 | DB29: 0 | DC29: 0 | DD29: 0 | DE29: 0 | DF29: 0 | DG29: 0 | DH29: 0 | DI29: 0 | DJ29: 0 | DK29: 0 | DL29: 0 | DM29: 0 | DN29: 0 | DO29: 0 | DP29: 0 | DQ29: 0 | DR29: 0 | DS29: 0 | DT29: 0 | DU29: 0 | DV29: 0 | DW29: 0 | DX29: 0 | DY29: 0 | DZ29: 0 | EA29: 0 | EB29: 0 | EC29: 0 | ED29: 0 | EE29: 0 | EF29: 0 | EG29: 0 | EH29: 0 | EI29: 0 | EJ29: 0 | EK29: 0 | EL29: 0 | EM29: 0 | EN29: 0 | EO29: 0 | EP29: 0 | EQ29: 0 | ER29: 0 | ES29: 0 | ET29: 0 | EU29: 0 | EV29: 0 | EW29: 0 | EX29: 0 | EY29: 0 | EZ29: 0 | FA29: 0 | FB29: 0 | FC29: 0 | FD29: 0 | FE29: 2759686 | FF29: -37.83 | FG29: 5.438008945 | FH29: 6.264369402 | FI29: 7.036812297 | FJ29: 6.2 | FK29: 1218026 | FL29: 0 | FM29: 0 | FN29: 811678 | FO29: 51686 | FP29: 0 | FQ29: 0 | FR29: 230466 | FS29: 240065 | FT29: 1187048 | FU29: 109629 | FV29: 2379749 | FW29: 4649609 | FX29: 284903 | FY29: 0 | FZ29: 0 | GA29: 0 | GB29: 0 | GC29: 0 | GD29: 0 | GE29: 0 | GF29: 0 | GG29: 0 | GH29: 0 | GI29: 1295542 | GJ29: 0 | GK29: 0 | GL29: 752493 | GM29: 50906 | GN29: 0 | GO29: 0 | GP29: 228417 | GQ29: 227430 | GR29: 1170299 | GS29: 114061 | GT29: 2461866 | GU29: 4697666 | GV29: 78836 | GW29: 0 | GX29: 0 | GY29: 0 | GZ29: 0 | HA29: 0 | HB29: 0 | HC29: 0 | HD29: 0 | HE29: 0 | HF29: 0 | HG29: 1378124 | HH29: 0 | HI29: 0 | HJ29: 703359 | HK29: 34421 | HL29: 0 | HM29: 0 | HN29: 232967 | HO29: 210337 | HP29: 1141972 | HQ29: 121035 | HR29: 2496065 | HS29: 4761984 | HT29: 36013 | HU29: 0 | HV29: 0 | HW29: 0 | HX29: 0 | HY29: 0 | HZ29: 0 | IA29: 0 | IB29: 0 | IC29: 0 | ID29: 0
A30: Ver.05.00 | B30: 012271 | C30: 北海道 | D30: 歌志内市 | E30: 3 | F30: - | G30: - | H30: 8.7 | I30: - | J30: 2365040 | K30: 7758 | L30: 一般会計 | M30: 256074 | AR30: 256074 | AS30: -10.82 | AT30: ① | AU30: 国民健康保険特別会計 | AV30: 3944 | AW30: ③ | AX30: 後期高齢者医療特別会計 | AY30: 129 | AZ30: 0 | BC30: 0 | BF30: 0 | BI30: 0 | BL30: 0 | BO30: 0 | BR30: 0 | BU30: 0 | BX30: 0 | CA30: 0 | CD30: 0 | CG30: 病院事業会計 | CH30: 627128 | CI30: 市営公共下水道特別会計 | CJ30: 86271 | CK30: 0 | CL30: 0 | CM30: 0 | CN30: 0 | CO30: 0 | CP30: 0 | CQ30: 0 | CR30: 0 | CS30: 0 | CT30: 0 | CU30: 0 | CV30: 0 | CW30: 0 | CX30: 0 | CY30: 0 | CZ30: 0 | DA30: 0 | DB30: 0 | DC30: 0 | DD30: 0 | DE30: 0 | DF30: 0 | DG30: 0 | DH30: 0 | DI30: 0 | DJ30: 0 | DK30: 0 | DL30: 0 | DM30: 0 | DN30: 0 | DO30: 0 | DP30: 0 | DQ30: 0 | DR30: 0 | DS30: 0 | DT30: 0 | DU30: 0 | DV30: 0 | DW30: 0 | DX30: 0 | DY30: 0 | DZ30: 0 | EA30: 0 | EB30: 0 | EC30: 0 | ED30: 0 | EE30: 0 | EF30: 0 | EG30: 0 | EH30: 0 | EI30: 0 | EJ30: 0 | EK30: 0 | EL30: 0 | EM30: 0 | EN30: 0 | EO30: 0 | EP30: 0 | EQ30: 0 | ER30: 0 | ES30: 0 | ET30: 0 | EU30: 0 | EV30: 0 | EW30: 0 | EX30: 0 | EY30: 0 | EZ30: 0 | FA30: 0 | FB30: 0 | FC30: 0 | FD30: 0 | FE30: 973546 | FF30: -41.16 | FG30: 9.370383811 | FH30: 9.838698718 | FI30: 7.050357574 | FJ30: 8.7 | FK30: 464742 | FL30: 0 | FM30: 0 | FN30: 135057 | FO30: 10207 | FP30: 0 | FQ30: 0 | FR30: 66149 | FS30: 98909 | FT30: 240266 | FU30: 10256 | FV30: 280965 | FW30: 2073657 | FX30: 69708 | FY30: 0 | FZ30: 0 | GA30: 0 | GB30: 0 | GC30: 0 | GD30: 0 | GE30: 0 | GF30: 0 | GG30: 0 | GH30: 0 | GI30: 456021 | GJ30: 0 | GK30: 0 | GL30: 133995 | GM30: 10208 | GN30: 0 | GO30: 0 | GP30: 47017 | GQ30: 92030 | GR30: 253903 | GS30: 10343 | GT30: 286702 | GU30: 2053616 | GV30: 17554 | GW30: 0 | GX30: 0 | GY30: 0 | GZ30: 0 | HA30: 0 | HB30: 0 | HC30: 0 | HD30: 0 | HE30: 0 | HF30: 0 | HG30: 400747 | HH30: 0 | HI30: 0 | HJ30: 108295 | HK30: 10212 | HL30: 0 | HM30: 0 | HN30: 30370 | HO30: 82047 | HP30: 254491 | HQ30: 10037 | HR30: 295177 | HS30: 2062105 | HT30: 7758 | HU30: 0 | HV30: 0 | HW30: 0 | HX30: 0 | HY30: 0 | HZ30: 0 | IA30: 0 | IB30: 0 | IC30: 0 | ID30: 0
A31: Ver.05.00 | B31: 012289 | C31: 北海道 | D31: 深川市 | E31: 3 | F31: - | G31: - | H31: 15.5 | I31: 122.1 | J31: 9358570 | K31: 42710 | L31: 一般会計 | M31: 129490 | AR31: 129490 | AS31: -1.38 | AT31: ① | AU31: 国民健康保険特別会計 | AV31: 4720 | AW31: ② | AX31: 介護保険特別会計 | AY31: 12603 | AZ31: ③ | BA31: 後期高齢者医療特別会計 | BB31: 1906 | BC31: 0 | BF31: 0 | BI31: 0 | BL31: 0 | BO31: 0 | BR31: 0 | BU31: 0 | BX31: 0 | CA31: 0 | CD31: 0 | CG31: 水道事業会計 | CH31: 328192 | CI31: 病院事業会計 | CJ31: 1003510 | CK31: 下水道事業会計（農集、個排） | CL31: 33798 | CM31: 下水道事業会計 | CN31: 101072 | CO31: 0 | CP31: 0 | CQ31: 0 | CR31: 0 | CS31: 0 | CT31: 0 | CU31: 0 | CV31: 0 | CW31: 0 | CX31: 0 | CY31: 0 | CZ31: 0 | DA31: 0 | DB31: 0 | DC31: 0 | DD31: 0 | DE31: 0 | DF31: 0 | DG31: 0 | DH31: 0 | DI31: 0 | DJ31: 0 | DK31: 0 | DL31: 0 | DM31: 0 | DN31: 0 | DO31: 0 | DP31: 0 | DQ31: 0 | DR31: 0 | DS31: 0 | DT31: 0 | DU31: 0 | DV31: 0 | DW31: 0 | DX31: 0 | DY31: 0 | DZ31: 0 | EA31: 0 | EB31: 0 | EC31: 0 | ED31: 0 | EE31: 0 | EF31: 0 | EG31: 0 | EH31: 0 | EI31: 0 | EJ31: 0 | EK31: 0 | EL31: 0 | EM31: 0 | EN31: 0 | EO31: 0 | EP31: 0 | EQ31: 0 | ER31: 0 | ES31: 0 | ET31: 0 | EU31: 0 | EV31: 0 | EW31: 0 | EX31: 0 | EY31: 0 | EZ31: 0 | FA31: 0 | FB31: 0 | FC31: 0 | FD31: 0 | FE31: 1615291 | FF31: -17.26 | FG31: 14.52592204 | FH31: 15.6527658 | FI31: 16.45116794 | FJ31: 15.5 | FK31: 2217897 | FL31: 0 | FM31: 0 | FN31: 785455 | FO31: 21826 | FP31: 24564 | FQ31: 207 | FR31: 189416 | FS31: 282231 | FT31: 1232559 | FU31: 223247 | FV31: 2754366 | FW31: 6376556 | FX31: 334652 | FY31: 0 | FZ31: 0 | GA31: 0 | GB31: 13479 | GC31: 0 | GD31: 0 | GE31: 0 | GF31: 0 | GG31: 0 | GH31: 11085 | GI31: 2327525 | GJ31: 0 | GK31: 0 | GL31: 802044 | GM31: 21807 | GN31: 25072 | GO31: 492 | GP31: 173414 | GQ31: 263770 | GR31: 1344355 | GS31: 227661 | GT31: 2876051 | GU31: 6330297 | GV31: 89717 | GW31: 0 | GX31: 0 | GY31: 0 | GZ31: 13479 | HA31: 0 | HB31: 0 | HC31: 0 | HD31: 0 | HE31: 0 | HF31: 11593 | HG31: 2344869 | HH31: 0 | HI31: 0 | HJ31: 864800 | HK31: 21818 | HL31: 14163 | HM31: 31 | HN31: 162163 | HO31: 249391 | HP31: 1368909 | HQ31: 229630 | HR31: 2858821 | HS31: 6457039 | HT31: 42710 | HU31: 0 | HV31: 0 | HW31: 0 | HX31: - | HY31: 0 | HZ31: 0 | IA31: 0 | IB31: 0 | IC31: 0 | ID31: 14163
A32: Ver.05.00 | B32: 012297 | C32: 北海道 | D32: 富良野市 | E32: 3 | F32: - | G32: - | H32: 8.5 | I32: 49 | J32: 8305700 | K32: 44164 | L32: 一般会計 | M32: 194415 | AR32: 194415 | AS32: -2.34 | AT32: ① | AU32: 国民健康保険特別会計 | AV32: 5505 | AW32: ② | AX32: 介護保険特別会計 | AY32: 129445 | AZ32: ③ | BA32: 後期高齢者医療特別会計 | BB32: 1393 | BC32: 0 | BF32: 0 | BI32: 0 | BL32: 0 | BO32: 0 | BR32: 0 | BU32: 0 | BX32: 0 | CA32: 0 | CD32: 0 | CG32: 水道事業会計 | CH32: 36759 | CI32: 下水道事業会計 | CJ32: 157935 | CK32: ワイン事業会計 | CL32: 1095174 | CM32: 0 | CN32: 0 | CO32: 0 | CP32: 0 | CQ32: 0 | CR32: 0 | CS32: 0 | CT32: 0 | CU32: 0 | CV32: 0 | CW32: 0 | CX32: 0 | CY32: 0 | CZ32: 0 | DA32: 0 | DB32: 0 | DC32: 0 | DD32: 0 | DE32: 0 | DF32: 0 | DG32: 0 | DH32: 0 | DI32: 0 | DJ32: 0 | DK32: 0 | DL32: 0 | DM32: 0 | DN32: 0 | DO32: 0 | DP32: 0 | DQ32: 0 | DR32: 0 | DS32: 簡易水道事業特別会計 | DT32: 57464 | DU32: 0 | DV32: 0 | DW32: 0 | DX32: 0 | DY32: 0 | DZ32: 0 | EA32: 0 | EB32: 0 | EC32: 0 | ED32: 0 | EE32: 0 | EF32: 0 | EG32: 0 | EH32: 0 | EI32: 0 | EJ32: 0 | EK32: 0 | EL32: 0 | EM32: 0 | EN32: 0 | EO32: 0 | EP32: 0 | EQ32: 0 | ER32: 0 | ES32: 0 | ET32: 0 | EU32: 0 | EV32: 0 | EW32: 0 | EX32: 0 | EY32: 0 | EZ32: 0 | FA32: 0 | FB32: 0 | FC32: 0 | FD32: 0 | FE32: 1678090 | FF32: -20.2 | FG32: 7.713525656 | FH32: 8.834704254 | FI32: 9.13292456 | FJ32: 8.5 | FK32: 1245232 | FL32: 0 | FM32: 0 | FN32: 307305 | FO32: 56983 | FP32: 99386 | FQ32: 305 | FR32: 180396 | FS32: 155653 | FT32: 783314 | FU32: 5028 | FV32: 3105807 | FW32: 5058659 | FX32: 361276 | FY32: 0 | FZ32: 0 | GA32: 0 | GB32: 1020 | GC32: 0 | GD32: 0 | GE32: 0 | GF32: 0 | GG32: 98366 | GH32: 0 | GI32: 1342369 | GJ32: 0 | GK32: 0 | GL32: 245087 | GM32: 56320 | GN32: 115000 | GO32: 0 | GP32: 192496 | GQ32: 140524 | GR32: 768108 | GS32: 5017 | GT32: 3335766 | GU32: 4867845 | GV32: 97167 | GW32: 0 | GX32: 0 | GY32: 0 | GZ32: 1020 | HA32: 0 | HB32: 0 | HC32: 0 | HD32: 0 | HE32: 113980 | HF32: 0 | HG32: 1266160 | HH32: 0 | HI32: 0 | HJ32: 251508 | HK32: 64497 | HL32: 164219 | HM32: 0 | HN32: 196582 | HO32: 145388 | HP32: 720371 | HQ32: 5017 | HR32: 3367018 | HS32: 4894518 | HT32: 44164 | HU32: 0 | HV32: 0 | HW32: 0 | HX32: 34549 | HY32: 0 | HZ32: 0 | IA32: 0 | IB32: 0 | IC32: 122145 | ID32: 7525
A33: Ver.05.00 | B33: 012301 | C33: 北海道 | D33: 登別市 | E33: 3 | F33: - | G33: - | H33: 10.4 | I33: 54.8 | J33: 11896590 | K33: 77352 | L33: 一般会計 | M33: 783428 | N33: 学校給食事業特別会計 | O33: 0 | AR33: 783428 | AS33: -6.58 | AT33: ① | AU33: 国民健康保険特別会計 | AV33: 303001 | AW33: ② | AX33: 介護保険特別会計 | AY33: 120946 | AZ33: ③ | BA33: 後期高齢者医療特別会計 | BB33: 534 | BC33: 0 | BF33: 0 | BI33: 0 | BL33: 0 | BO33: 0 | BR33: 0 | BU33: 0 | BX33: 0 | CA33: 0 | CD33: 0 | CG33: 水道事業会計 | CH33: 1089361 | CI33: 下水道事業会計 | CJ33: 82118 | CK33: 簡易水道事業会計 | CL33: 969 | CM33: 0 | CN33: 0 | CO33: 0 | CP33: 0 | CQ33: 0 | CR33: 0 | CS33: 0 | CT33: 0 | CU33: 0 | CV33: 0 | CW33: 0 | CX33: 0 | CY33: 0 | CZ33: 0 | DA33: 0 | DB33: 0 | DC33: 0 | DD33: 0 | DE33: 0 | DF33: 0 | DG33: 0 | DH33: 0 | DI33: 0 | DJ33: 0 | DK33: 0 | DL33: 0 | DM33: 0 | DN33: 0 | DO33: 0 | DP33: 0 | DQ33: 0 | DR33: 0 | DS33: カルルス温泉スキー場事業特別会計 | DT33: 0 | DU33: 0 | DV33: 0 | DW33: 0 | DX33: 0 | DY33: 0 | DZ33: 0 | EA33: 0 | EB33: 0 | EC33: 0 | ED33: 0 | EE33: 0 | EF33: 0 | EG33: 0 | EH33: 0 | EI33: 0 | EJ33: 0 | EK33: 0 | EL33: 0 | EM33: 0 | EN33: 0 | EO33: 0 | EP33: 0 | EQ33: 0 | ER33: 0 | ES33: 0 | ET33: 0 | EU33: 0 | EV33: 0 | EW33: 0 | EX33: 0 | EY33: 0 | EZ33: 0 | FA33: 0 | FB33: 0 | FC33: 0 | FD33: 0 | FE33: 2380357 | FF33: -20 | FG33: 10.34915176 | FH33: 10.55669302 | FI33: 10.31938946 | FJ33: 10.4 | FK33: 2363705 | FL33: 0 | FM33: 0 | FN33: 769834 | FO33: 3753 | FP33: 15643 | FQ33: 0 | FR33: 519767 | FS33: 634109 | FT33: 881041 | FU33: 1326 | FV33: 5802592 | FW33: 5879032 | FX33: 625031 | FY33: 0 | FZ33: 0 | GA33: 0 | GB33: 0 | GC33: 0 | GD33: 15643 | GE33: 0 | GF33: 0 | GG33: 0 | GH33: 0 | GI33: 2337213 | GJ33: 0 | GK33: 0 | GL33: 743680 | GM33: 3674 | GN33: 15475 | GO33: 1 | GP33: 506516 | GQ33: 625356 | GR33: 858504 | GS33: 1682 | GT33: 6035945 | GU33: 5768657 | GV33: 176509 | GW33: 0 | GX33: 0 | GY33: 0 | GZ33: 0 | HA33: 0 | HB33: 15475 | HC33: 0 | HD33: 0 | HE33: 0 | HF33: 0 | HG33: 2281066 | HH33: 0 | HI33: 0 | HJ33: 753331 | HK33: 0 | HL33: 15307 | HM33: 1 | HN33: 534679 | HO33: 606276 | HP33: 827587 | HQ33: 1643 | HR33: 6151526 | HS33: 5667712 | HT33: 77352 | HU33: 0 | HV33: 0 | HW33: 0 | HX33: 0 | HY33: 0 | HZ33: 15307 | IA33: 0 | IB33: 0 | IC33: 0 | ID33: 0
A34: Ver.05.00 | B34: 012319 | C34: 北海道 | D34: 恵庭市 | E34: 3 | F34: - | G34: - | H34: 7.1 | I34: - | J34: 16108265 | K34: 134973 | L34: 一般会計 | M34: 1444339 | N34: 土地区画整理事業特別会計 | O34: 0 | P34: 土地取得事業特別会計 | Q34: 0 | R34: 墓園事業特別会計 | S34: 0 | AR34: 1444339 | AS34: -8.96 | AT34: ① | AU34: 国民健康保険特別会計 | AV34: 67675 | AW34: ② | AX34: 介護保険特別会計 | AY34: 125777 | AZ34: ③ | BA34: 後期高齢者医療特別会計 | BB34: 19539 | BC34: ⑦ | BD34: 駐車場事業特別会計 | BE34: 22642 | BF34: 0 | BI34: 0 | BL34: 0 | BO34: 0 | BR34: 0 | BU34: 0 | BX34: 0 | CA34: 0 | CD34: 0 | CG34: 恵庭市水道事業会計 | CH34: 933214 | CI34: 恵庭市下水道事業会計 | CJ34: 2014563 | CK34: 0 | CL34: 0 | CM34: 0 | CN34: 0 | CO34: 0 | CP34: 0 | CQ34: 0 | CR34: 0 | CS34: 0 | CT34: 0 | CU34: 0 | CV34: 0 | CW34: 0 | CX34: 0 | CY34: 0 | CZ34: 0 | DA34: 0 | DB34: 0 | DC34: 0 | DD34: 0 | DE34: 0 | DF34: 0 | DG34: 0 | DH34: 0 | DI34: 0 | DJ34: 0 | DK34: 0 | DL34: 0 | DM34: 0 | DN34: 0 | DO34: 0 | DP34: 0 | DQ34: 0 | DR34: 0 | DS34: 0 | DT34: 0 | DU34: 0 | DV34: 0 | DW34: 0 | DX34: 0 | DY34: 0 | DZ34: 0 | EA34: 0 | EB34: 0 | EC34: 0 | ED34: 0 | EE34: 0 | EF34: 0 | EG34: 0 | EH34: 0 | EI34: 0 | EJ34: 0 | EK34: 0 | EL34: 0 | EM34: 0 | EN34: 0 | EO34: 0 | EP34: 0 | EQ34: 0 | ER34: 0 | ES34: 0 | ET34: 0 | EU34: 0 | EV34: 0 | EW34: 0 | EX34: 0 | EY34: 0 | EZ34: 0 | FA34: 0 | FB34: 0 | FC34: 0 | FD34: 0 | FE34: 4627749 | FF34: -28.72 | FG34: 5.955686592 | FH34: 7.503555204 | FI34: 7.846001877 | FJ34: 7.1 | FK34: 2664671 | FL34: 0 | FM34: 0 | FN34: 518574 | FO34: 1333 | FP34: 37875 | FQ34: 0 | FR34: 597513 | FS34: 649240 | FT34: 1112165 | FU34: 16984 | FV34: 9487715 | FW34: 5510931 | FX34: 993906 | FY34: 0 | FZ34: 0 | GA34: 0 | GB34: 27050 | GC34: 0 | GD34: 0 | GE34: 775 | GF34: 0 | GG34: 8520 | GH34: 1530 | GI34: 2791514 | GJ34: 0 | GK34: 0 | GL34: 519267 | GM34: 1339 | GN34: 19960 | GO34: 0 | GP34: 512728 | GQ34: 633699 | GR34: 1124646 | GS34: 17165 | GT34: 9965591 | GU34: 5433508 | GV34: 287710 | GW34: 0 | GX34: 0 | GY34: 0 | GZ34: 264 | HA34: 0 | HB34: 0 | HC34: 0 | HD34: 0 | HE34: 17937 | HF34: 1759 | HG34: 2794398 | HH34: 0 | HI34: 0 | HJ34: 533619 | HK34: 1264 | HL34: 28816 | HM34: 0 | HN34: 491757 | HO34: 607509 | HP34: 1113892 | HQ34: 17520 | HR34: 10380337 | HS34: 5592955 | HT34: 134973 | HU34: 0 | HV34: 0 | HW34: 0 | HX34: 8939 | HY34: 0 | HZ34: 0 | IA34: 0 | IB34: 0 | IC34: 18198 | ID34: 1679
A35: Ver.05.00 | B35: 012335 | C35: 北海道 | D35: 伊達市 | E35: 3 | F35: - | G35: - | H35: 4.8 | I35: - | J35: 11022320 | K35: 62591 | L35: 一般会計 | M35: 522454 | N35: 霊園特別会計 | O35: 0 | AR35: 522454 | AS35: -4.73 | AT35: ① | AU35: 国民健康保険特別会計 | AV35: 2399 | AW35: ② | AX35: 介護保険特別会計 | AY35: 25044 | AZ35: ③ | BA35: 後期高齢者医療特別会計 | BB35: 12861 | BC35: 0 | BF35: 0 | BI35: 0 | BL35: 0 | BO35: 0 | BR35: 0 | BU35: 0 | BX35: 0 | CA35: 0 | CD35: 0 | CG35: 水道事業会計 | CH35: 1252368 | CI35: 簡易水道事業会計 | CJ35: 14086 | CK35: 公共下水道事業会計 | CL35: 23851 | CM35: 0 | CN35: 0 | CO35: 0 | CP35: 0 | CQ35: 0 | CR35: 0 | CS35: 0 | CT35: 0 | CU35: 0 | CV35: 0 | CW35: 0 | CX35: 0 | CY35: 0 | CZ35: 0 | DA35: 0 | DB35: 0 | DC35: 0 | DD35: 0 | DE35: 0 | DF35: 0 | DG35: 0 | DH35: 0 | DI35: 0 | DJ35: 0 | DK35: 0 | DL35: 0 | DM35: 0 | DN35: 0 | DO35: 0 | DP35: 0 | DQ35: 0 | DR35: 0 | DS35: 0 | DT35: 0 | DU35: 0 | DV35: 0 | DW35: 0 | DX35: 0 | DY35: 0 | DZ35: 0 | EA35: 0 | EB35: 0 | EC35: 0 | ED35: 0 | EE35: 0 | EF35: 0 | EG35: 0 | EH35: 0 | EI35: 0 | EJ35: 0 | EK35: 0 | EL35: 0 | EM35: 0 | EN35: 0 | EO35: 0 | EP35: 0 | EQ35: 0 | ER35: 0 | ES35: 0 | ET35: 0 | EU35: 0 | EV35: 0 | EW35: 0 | EX35: 0 | EY35: 0 | EZ35: 0 | FA35: 0 | FB35: 0 | FC35: 0 | FD35: 0 | FE35: 1853063 | FF35: -16.81 | FG35: 4.445127487 | FH35: 5.158447454 | FI35: 4.994477399 | FJ35: 4.8 | FK35: 2218837 | FL35: 0 | FM35: 0 | FN35: 129295 | FO35: 22182 | FP35: 22127 | FQ35: 0 | FR35: 296821 | FS35: 370800 | FT35: 1279753 | FU35: 12947 | FV35: 4558791 | FW35: 6322384 | FX35: 503531 | FY35: 0 | FZ35: 0 | GA35: 0 | GB35: 0 | GC35: 0 | GD35: 13500 | GE35: 0 | GF35: 0 | GG35: 6061 | GH35: 2566 | GI35: 2203351 | GJ35: 0 | GK35: 0 | GL35: 127529 | GM35: 33622 | GN35: 21703 | GO35: 0 | GP35: 289853 | GQ35: 360378 | GR35: 1237790 | GS35: 11459 | GT35: 4757608 | GU35: 6149365 | GV35: 138148 | GW35: 0 | GX35: 0 | GY35: 0 | GZ35: 0 | HA35: 0 | HB35: 13500 | HC35: 0 | HD35: 0 | HE35: 6060 | HF35: 2143 | HG35: 2067329 | HH35: 0 | HI35: 0 | HJ35: 152732 | HK35: 28284 | HL35: 19779 | HM35: 0 | HN35: 298904 | HO35: 334560 | HP35: 1145607 | HQ35: 13128 | HR35: 4776875 | HS35: 6182854 | HT35: 62591 | HU35: 0 | HV35: 0 | HW35: 0 | HX35: 0 | HY35: 0 | HZ35: 13500 | IA35: 0 | IB35: 0 | IC35: 4557 | ID35: 1722
A36: Ver.05.00 | B36: 012343 | C36: 北海道 | D36: 北広島市 | E36: 3 | F36: - | G36: - | H36: 8 | I36: 91 | J36: 14605638 | K36: 130762 | L36: 一般会計 | M36: 267196 | N36: 霊園事業特別会計 | O36: 0 | AR36: 267196 | AS36: -1.82 | AT36: ① | AU36: 国民健康保険事業特別会計 | AV36: 7952 | AW36: ② | AX36: 介護保険特別会計 | AY36: 66049 | AZ36: ③ | BA36: 後期高齢者医療特別会計 | BB36: 4167 | BC36: 0 | BF36: 0 | BI36: 0 | BL36: 0 | BO36: 0 | BR36: 0 | BU36: 0 | BX36: 0 | CA36: 0 | CD36: 0 | CG36: 水道事業会計 | CH36: 1484348 | CI36: 下水道事業会計 | CJ36: 545275 | CK36: 0 | CL36: 0 | CM36: 0 | CN36: 0 | CO36: 0 | CP36: 0 | CQ36: 0 | CR36: 0 | CS36: 0 | CT36: 0 | CU36: 0 | CV36: 0 | CW36: 0 | CX36: 0 | CY36: 0 | CZ36: 0 | DA36: 0 | DB36: 0 | DC36: 0 | DD36: 0 | DE36: 0 | DF36: 0 | DG36: 0 | DH36: 0 | DI36: 0 | DJ36: 0 | DK36: 0 | DL36: 0 | DM36: 0 | DN36: 0 | DO36: 0 | DP36: 0 | DQ36: 0 | DR36: 0 | DS36: 0 | DT36: 0 | DU36: 0 | DV36: 0 | DW36: 0 | DX36: 0 | DY36: 0 | DZ36: 0 | EA36: 0 | EB36: 0 | EC36: 0 | ED36: 0 | EE36: 0 | EF36: 0 | EG36: 0 | EH36: 0 | EI36: 0 | EJ36: 0 | EK36: 0 | EL36: 0 | EM36: 0 | EN36: 0 | EO36: 0 | EP36: 0 | EQ36: 0 | ER36: 0 | ES36: 0 | ET36: 0 | EU36: 0 | EV36: 0 | EW36: 0 | EX36: 0 | EY36: 0 | EZ36: 0 | FA36: 0 | FB36: 0 | FC36: 0 | FD36: 0 | FE36: 2374987 | FF36: -16.26 | FG36: 8.224191207 | FH36: 8.594855712 | FI36: 7.333768446 | FJ36: 8 | FK36: 2474963 | FL36: 0 | FM36: 0 | FN36: 454049 | FO36: 29348 | FP36: 89878 | FQ36: 237 | FR36: 501834 | FS36: 386556 | FT36: 1038731 | FU36: 61840 | FV36: 8880152 | FW36: 4479302 | FX36: 1010569 | FY36: 0 | FZ36: 0 | GA36: 0 | GB36: 4878 | GC36: 0 | GD36: 0 | GE36: 0 | GF36: 0 | GG36: 85000 | GH36: 0 | GI36: 2533410 | GJ36: 0 | GK36: 0 | GL36: 456521 | GM36: 30231 | GN36: 85000 | GO36: 5 | GP36: 523183 | GQ36: 377454 | GR36: 1049378 | GS36: 61568 | GT36: 9449002 | GU36: 4485297 | GV36: 277805 | GW36: 0 | GX36: 0 | GY36: 0 | GZ36: 0 | HA36: 0 | HB36: 0 | HC36: 0 | HD36: 0 | HE36: 85000 | HF36: 0 | HG36: 2538967 | HH36: 0 | HI36: 0 | HJ36: 452209 | HK36: 32303 | HL36: 85000 | HM36: 0 | HN36: 608094 | HO36: 377932 | HP36: 1103071 | HQ36: 61351 | HR36: 9640612 | HS36: 4834264 | HT36: 130762 | HU36: 0 | HV36: 0 | HW36: 0 | HX36: 0 | HY36: 0 | HZ36: 0 | IA36: 0 | IB36: 0 | IC36: 85000 | ID36: 0
A37: Ver.05.00 | B37: 012351 | C37: 北海道 | D37: 石狩市 | E37: 3 | F37: - | G37: - | H37: 6.4 | I37: 41.6 | J37: 18160204 | K37: 130471 | L37: 一般会計 | M37: 810342 | AR37: 810342 | AS37: -4.46 | AT37: ① | AU37: 国民健康保険事業特別会計 | AV37: 69244 | AW37: ① | AX37: 国民健康保険診療所特別会計 | AY37: 12755 | AZ37: ③ | BA37: 後期高齢者医療特別会計 | BB37: 10253 | BC37: ② | BD37: 介護保険事業特別会計 | BE37: 306397 | BF37: ⑥ | BG37: 介護サービス事業特別会計 | BH37: 7998 | BI37: 0 | BL37: 0 | BO37: 0 | BR37: 0 | BU37: 0 | BX37: 0 | CA37: 0 | CD37: 0 | CG37: 水道事業会計 | CH37: 1573166 | CI37: 公共下水道事業会計 | CJ37: 569689 | CK37: 0 | CL37: 0 | CM37: 0 | CN37: 0 | CO37: 0 | CP37: 0 | CQ37: 0 | CR37: 0 | CS37: 0 | CT37: 0 | CU37: 0 | CV37: 0 | CW37: 0 | CX37: 0 | CY37: 0 | CZ37: 0 | DA37: 0 | DB37: 0 | DC37: 0 | DD37: 0 | DE37: 0 | DF37: 0 | DG37: 0 | DH37: 0 | DI37: 0 | DJ37: 0 | DK37: 0 | DL37: 0 | DM37: 0 | DN37: 0 | DO37: 0 | DP37: 0 | DQ37: 0 | DR37: 0 | DS37: 個別排水処理施設整備事業特別会計 | DT37: 0 | DU37: 0 | DV37: 0 | DW37: 0 | DX37: 0 | DY37: 0 | DZ37: 0 | EA37: 0 | EB37: 0 | EC37: 0 | ED37: 0 | EE37: 0 | EF37: 0 | EG37: 0 | EH37: 0 | EI37: 0 | EJ37: 0 | EK37: 0 | EL37: 0 | EM37: 0 | EN37: 0 | EO37: 0 | EP37: 0 | EQ37: 0 | ER37: 0 | ES37: 0 | ET37: 0 | EU37: 0 | EV37: 0 | EW37: 0 | EX37: 0 | EY37: 0 | EZ37: 0 | FA37: 0 | FB37: 0 | FC37: 0 | FD37: 0 | FE37: 3359844 | FF37: -18.5 | FG37: 6.353219439 | FH37: 6.478216381 | FI37: 6.470805868 | FJ37: 6.4 | FK37: 2933525 | FL37: 0 | FM37: 0 | FN37: 683960 | FO37: 69244 | FP37: 22481 | FQ37: 34 | FR37: 462884 | FS37: 116936 | FT37: 2115395 | FU37: 19425 | FV37: 9994256 | FW37: 6997253 | FX37: 915365 | FY37: 0 | FZ37: 0 | GA37: 0 | GB37: 0 | GC37: 0 | GD37: 15700 | GE37: 0 | GF37: 0 | GG37: 0 | GH37: 6781 | GI37: 2877136 | GJ37: 0 | GK37: 0 | GL37: 705828 | GM37: 60856 | GN37: 21055 | GO37: 38 | GP37: 447296 | GQ37: 149181 | GR37: 2050725 | GS37: 18856 | GT37: 10408762 | GU37: 6953415 | GV37: 275258 | GW37: 0 | GX37: 0 | GY37: 0 | GZ37: 0 | HA37: 0 | HB37: 13718 | HC37: 0 | HD37: 0 | HE37: 0 | HF37: 7337 | HG37: 2968957 | HH37: 0 | HI37: 0 | HJ37: 703982 | HK37: 54913 | HL37: 16259 | HM37: 46 | HN37: 450988 | HO37: 178432 | HP37: 2068230 | HQ37: 17933 | HR37: 10840884 | HS37: 7188849 | HT37: 130471 | HU37: 0 | HV37: 0 | HW37: 0 | HX37: 0 | HY37: 0 | HZ37: 14422 | IA37: 0 | IB37: 0 | IC37: 0 | ID37: 1837
A38: Ver.05.00 | B38: 012360 | C38: 北海道 | D38: 北斗市 | E38: 3 | F38: - | G38: - | H38: 5.6 | I38: - | J38: 12781538 | K38: 87882 | L38: 一般会計 | M38: 738302 | N38: 土地区画整理事業特別会計 | O38: 0 | P38: 渡島公平委員会特別会計 | Q38: 1940 | AR38: 740242 | AS38: -5.79 | AT38: ① | AU38: 国民健康保険事業特別会計 | AV38: 97379 | AW38: ② | AX38: 介護保険事業特別会計 | AY38: 75095 | AZ38: ③ | BA38: 後期高齢者医療事業特別会計 | BB38: 2007 | BC38: 0 | BF38: 0 | BI38: 0 | BL38: 0 | BO38: 0 | BR38: 0 | BU38: 0 | BX38: 0 | CA38: 0 | CD38: 0 | CG38: 水道事業会計 | CH38: 368879 | CI38: 下水道事業会計 | CJ38: 303372 | CK38: 0 | CL38: 0 | CM38: 0 | CN38: 0 | CO38: 0 | CP38: 0 | CQ38: 0 | CR38: 0 | CS38: 0 | CT38: 0 | CU38: 0 | CV38: 0 | CW38: 0 | CX38: 0 | CY38: 0 | CZ38: 0 | DA38: 0 | DB38: 0 | DC38: 0 | DD38: 0 | DE38: 0 | DF38: 0 | DG38: 0 | DH38: 0 | DI38: 0 | DJ38: 0 | DK38: 0 | DL38: 0 | DM38: 0 | DN38: 0 | DO38: 0 | DP38: 0 | DQ38: 0 | DR38: 0 | DS38: 0 | DT38: 0 | DU38: 0 | DV38: 0 | DW38: 0 | DX38: 0 | DY38: 0 | DZ38: 0 | EA38: 0 | EB38: 0 | EC38: 0 | ED38: 0 | EE38: 0 | EF38: 0 | EG38: 0 | EH38: 0 | EI38: 0 | EJ38: 0 | EK38: 0 | EL38: 0 | EM38: 0 | EN38: 0 | EO38: 0 | EP38: 0 | EQ38: 0 | ER38: 0 | ES38: 0 | ET38: 0 | EU38: 0 | EV38: 0 | EW38: 0 | EX38: 0 | EY38: 0 | EZ38: 0 | FA38: 0 | FB38: 0 | FC38: 0 | FD38: 0 | FE38: 1586974 | FF38: -12.41 | FG38: 5.213391013 | FH38: 6.000696182 | FI38: 5.80909837 | FJ38: 5.6 | FK38: 1997220 | FL38: 0 | FM38: 0 | FN38: 310126 | FO38: 104763 | FP38: 20430 | FQ38: 0 | FR38: 111244 | FS38: 391073 | FT38: 1337675 | FU38: 8735 | FV38: 6464011 | FW38: 5828169 | FX38: 643619 | FY38: 0 | FZ38: 0 | GA38: 0 | GB38: 0 | GC38: 0 | GD38: 0 | GE38: 0 | GF38: 0 | GG38: 20430 | GH38: 0 | GI38: 1933535 | GJ38: 0 | GK38: 0 | GL38: 358588 | GM38: 107978 | GN38: 31108 | GO38: 0 | GP38: 106933 | GQ38: 368450 | GR38: 1284859 | GS38: 8477 | GT38: 6678133 | GU38: 5836130 | GV38: 187742 | GW38: 0 | GX38: 0 | GY38: 0 | GZ38: 0 | HA38: 0 | HB38: 0 | HC38: 0 | HD38: 0 | HE38: 31108 | HF38: 0 | HG38: 1903988 | HH38: 0 | HI38: 0 | HJ38: 337033 | HK38: 94204 | HL38: 5310 | HM38: 0 | HN38: 98114 | HO38: 344878 | HP38: 1239068 | HQ38: 8489 | HR38: 6783314 | HS38: 5910342 | HT38: 87882 | HU38: 0 | HV38: 0 | HW38: 0 | HX38: 0 | HY38: 0 | HZ38: 0 | IA38: 0 | IB38: 0 | IC38: 5310 | ID38: 0
A39: Ver.05.00 | B39: 013030 | C39: 北海道 | D39: 当別町 | E39: 5 | F39: - | G39: - | H39: 9.6 | I39: 28.6 | J39: 6313107 | K39: 35059 | L39: 一般会計 | M39: 361402 | AR39: 361402 | AS39: -5.72 | AT39: ① | AU39: 国民健康保険特別会計 | AV39: 27744 | AW39: ② | AX39: 介護保険特別会計 | AY39: 135507 | AZ39: ③ | BA39: 後期高齢者医療特別会計 | BB39: 4522 | BC39: ⑥ | BD39: 介護サービス事業特別会計 | BE39: -38003 | BF39: 0 | BI39: 0 | BL39: 0 | BO39: 0 | BR39: 0 | BU39: 0 | BX39: 0 | CA39: 0 | CD39: 0 | CG39: 当別町水道事業会計 | CH39: 466678 | CI39: 0 | CJ39: 0 | CK39: 0 | CL39: 0 | CM39: 0 | CN39: 0 | CO39: 0 | CP39: 0 | CQ39: 0 | CR39: 0 | CS39: 0 | CT39: 0 | CU39: 0 | CV39: 0 | CW39: 0 | CX39: 0 | CY39: 0 | CZ39: 0 | DA39: 0 | DB39: 0 | DC39: 0 | DD39: 0 | DE39: 0 | DF39: 0 | DG39: 0 | DH39: 0 | DI39: 0 | DJ39: 0 | DK39: 0 | DL39: 0 | DM39: 0 | DN39: 0 | DO39: 0 | DP39: 0 | DQ39: 0 | DR39: 0 | DS39: 当別町下水道事業特別会計 | DT39: 93413 | DU39: 0 | DV39: 0 | DW39: 0 | DX39: 0 | DY39: 0 | DZ39: 0 | EA39: 0 | EB39: 0 | EC39: 0 | ED39: 0 | EE39: 0 | EF39: 0 | EG39: 0 | EH39: 0 | EI39: 0 | EJ39: 0 | EK39: 0 | EL39: 0 | EM39: 0 | EN39: 0 | EO39: 0 | EP39: 0 | EQ39: 0 | ER39: 0 | ES39: 0 | ET39: 0 | EU39: 0 | EV39: 0 | EW39: 0 | EX39: 0 | EY39: 0 | EZ39: 0 | FA39: 0 | FB39: 0 | FC39: 0 | FD39: 0 | FE39: 1051263 | FF39: -16.65 | FG39: 10.06708717 | FH39: 10.76915134 | FI39: 8.011471466 | FJ39: 9.6 | FK39: 1017876 | FL39: 0 | FM39: 0 | FN39: 408571 | FO39: 47275 | FP39: 811 | FQ39: 1438 | FR39: 89074 | FS39: 273929 | FT39: 456046 | FU39: 102436 | FV39: 2396812 | FW39: 3670327 | FX39: 273181 | FY39: 0 | FZ39: 0 | GA39: 0 | GB39: 0 | GC39: 0 | GD39: 0 | GE39: 0 | GF39: 0 | GG39: 0 | GH39: 811 | GI39: 981915 | GJ39: 0 | GK39: 0 | GL39: 412887 | GM39: 49890 | GN39: 605 | GO39: 56 | GP39: 65492 | GQ39: 247348 | GR39: 442986 | GS39: 107571 | GT39: 2526772 | GU39: 3599743 | GV39: 75307 | GW39: 0 | GX39: 0 | GY39: 0 | GZ39: 0 | HA39: 0 | HB39: 0 | HC39: 0 | HD39: 0 | HE39: 0 | HF39: 605 | HG39: 826652 | HH39: 0 | HI39: 0 | HJ39: 375386 | HK39: 51297 | HL39: 480 | HM39: 62 | HN39: 47205 | HO39: 239639 | HP39: 415246 | HQ39: 107057 | HR39: 2673011 | HS39: 3605037 | HT39: 35059 | HU39: 0 | HV39: 0 | HW39: 0 | HX39: 0 | HY39: 0 | HZ39: 0 | IA39: 0 | IB39: 0 | IC39: 0 | ID39: 480
A40: Ver.05.00 | B40: 013048 | C40: 北海道 | D40: 新篠津村 | E40: 5 | F40: - | G40: - | H40: 3.5 | I40: - | J40: 2222396 | K40: 8840 | L40: 一般会計 | M40: 82031 | AR40: 82031 | AS40: -3.69 | AT40: ① | AU40: 新篠津村国民健康保険特別会計 | AV40: 11042 | AW40: ② | AX40: 新篠津村介護保険特別会計 | AY40: 39998 | AZ40: ③ | BA40: 新篠津村後期高齢者医療特別会計 | BB40: 70 | BC40: 0 | BF40: 0 | BI40: 0 | BL40: 0 | BO40: 0 | BR40: 0 | BU40: 0 | BX40: 0 | CA40: 0 | CD40: 0 | CG40: 0 | CH40: 0 | CI40: 0 | CJ40: 0 | CK40: 0 | CL40: 0 | CM40: 0 | CN40: 0 | CO40: 0 | CP40: 0 | CQ40: 0 | CR40: 0 | CS40: 0 | CT40: 0 | CU40: 0 | CV40: 0 | CW40: 0 | CX40: 0 | CY40: 0 | CZ40: 0 | DA40: 0 | DB40: 0 | DC40: 0 | DD40: 0 | DE40: 0 | DF40: 0 | DG40: 0 | DH40: 0 | DI40: 0 | DJ40: 0 | DK40: 0 | DL40: 0 | DM40: 0 | DN40: 0 | DO40: 0 | DP40: 0 | DQ40: 0 | DR40: 0 | DS40: 新篠津村農業集落排水事業特別会計 | DT40: 4682 | DU40: 0 | DV40: 0 | DW40: 0 | DX40: 0 | DY40: 0 | DZ40: 0 | EA40: 0 | EB40: 0 | EC40: 0 | ED40: 0 | EE40: 0 | EF40: 0 | EG40: 0 | EH40: 0 | EI40: 0 | EJ40: 0 | EK40: 0 | EL40: 0 | EM40: 0 | EN40: 0 | EO40: 0 | EP40: 0 | EQ40: 0 | ER40: 0 | ES40: 0 | ET40: 0 | EU40: 0 | EV40: 0 | EW40: 0 | EX40: 0 | EY40: 0 | EZ40: 0 | FA40: 0 | FB40: 0 | FC40: 0 | FD40: 0 | FE40: 137823 | FF40: -6.2 | FG40: 1.533408861 | FH40: 4.177654466 | FI40: 4.837595574 | FJ40: 3.5 | FK40: 311829 | FL40: 0 | FM40: 0 | FN40: 10363 | FO40: 7413 | FP40: 2736 | FQ40: 100 | FR40: 19944 | FS40: 8679 | FT40: 274352 | FU40: 0 | FV40: 463439 | FW40: 1670267 | FX40: 70926 | FY40: 0 | FZ40: 0 | GA40: 0 | GB40: 0 | GC40: 0 | GD40: 0 | GE40: 0 | GF40: 0 | GG40: 0 | GH40: 2736 | GI40: 415700 | GJ40: 0 | GK40: 0 | GL40: 9333 | GM40: 7804 | GN40: 2535 | GO40: 297 | GP40: 18835 | GQ40: 7991 | GR40: 330726 | GS40: 0 | GT40: 479501 | GU40: 1709984 | GV40: 19109 | GW40: 0 | GX40: 0 | GY40: 0 | GZ40: 0 | HA40: 0 | HB40: 0 | HC40: 0 | HD40: 0 | HE40: 0 | HF40: 2535 | HG40: 430424 | HH40: 0 | HI40: 0 | HJ40: 8372 | HK40: 7768 | HL40: 3163 | HM40: 53 | HN40: 21123 | HO40: 7532 | HP40: 329940 | HQ40: 0 | HR40: 473051 | HS40: 1740505 | HT40: 8840 | HU40: 0 | HV40: 0 | HW40: 0 | HX40: 0 | HY40: 0 | HZ40: 0 | IA40: 0 | IB40: 0 | IC40: 0 | ID40: 3163
A41: Ver.05.00 | B41: 013315 | C41: 北海道 | D41: 松前町 | E41: 5 | F41: - | G41: - | H41: 7.5 | I41: 10.5 | J41: 3787230 | K41: 15353 | L41: 一般会計 | M41: 214349 | AR41: 214349 | AS41: -5.65 | AT41: ① | AU41: 松前町国民健康保険特別会計 | AV41: 7779 | AW41: ② | AX41: 松前町介護保険特別会計 | AY41: 55421 | AZ41: ③ | BA41: 松前町後期高齢者医療特別会計 | BB41: 1188 | BC41: 0 | BF41: 0 | BI41: 0 | BL41: 0 | BO41: 0 | BR41: 0 | BU41: 0 | BX41: 0 | CA41: 0 | CD41: 0 | CG41: 松前町水道事業会計 | CH41: 418830 | CI41: 松前町病院事業会計 | CJ41: 714445 | CK41: 0 | CL41: 0 | CM41: 0 | CN41: 0 | CO41: 0 | CP41: 0 | CQ41: 0 | CR41: 0 | CS41: 0 | CT41: 0 | CU41: 0 | CV41: 0 | CW41: 0 | CX41: 0 | CY41: 0 | CZ41: 0 | DA41: 0 | DB41: 0 | DC41: 0 | DD41: 0 | DE41: 0 | DF41: 0 | DG41: 0 | DH41: 0 | DI41: 0 | DJ41: 0 | DK41: 0 | DL41: 0 | DM41: 0 | DN41: 0 | DO41: 0 | DP41: 0 | DQ41: 0 | DR41: 0 | DS41: 0 | DT41: 0 | DU41: 0 | DV41: 0 | DW41: 0 | DX41: 0 | DY41: 0 | DZ41: 0 | EA41: 0 | EB41: 0 | EC41: 0 | ED41: 0 | EE41: 0 | EF41: 0 | EG41: 0 | EH41: 0 | EI41: 0 | EJ41: 0 | EK41: 0 | EL41: 0 | EM41: 0 | EN41: 0 | EO41: 0 | EP41: 0 | EQ41: 0 | ER41: 0 | ES41: 0 | ET41: 0 | EU41: 0 | EV41: 0 | EW41: 0 | EX41: 0 | EY41: 0 | EZ41: 0 | FA41: 0 | FB41: 0 | FC41: 0 | FD41: 0 | FE41: 1412012 | FF41: -37.28 | FG41: 7.699969638 | FH41: 7.044297184 | FI41: 8.025679239 | FJ41: 7.5 | FK41: 824171 | FL41: 0 | FM41: 0 | FN41: 19776 | FO41: 37568 | FP41: 31 | FQ41: 364 | FR41: 60226 | FS41: 6394 | FT41: 551799 | FU41: 6839 | FV41: 861626 | FW41: 2915934 | FX41: 120628 | FY41: 0 | FZ41: 0 | GA41: 0 | GB41: 0 | GC41: 0 | GD41: 0 | GE41: 0 | GF41: 0 | GG41: 0 | GH41: 31 | GI41: 811277 | GJ41: 0 | GK41: 0 | GL41: 26950 | GM41: 36969 | GN41: 21 | GO41: 364 | GP41: 61067 | GQ41: 7390 | GR41: 572038 | GS41: 6814 | GT41: 831793 | GU41: 2961938 | GV41: 33033 | GW41: 0 | GX41: 0 | GY41: 0 | GZ41: 0 | HA41: 0 | HB41: 0 | HC41: 0 | HD41: 0 | HE41: 0 | HF41: 21 | HG41: 818853 | HH41: 0 | HI41: 0 | HJ41: 30289 | HK41: 36825 | HL41: 17 | HM41: 291 | HN41: 57640 | HO41: 5253 | HP41: 558801 | HQ41: 6414 | HR41: 749201 | HS41: 3022676 | HT41: 15353 | HU41: 0 | HV41: 0 | HW41: 0 | HX41: 0 | HY41: 0 | HZ41: 0 | IA41: 0 | IB41: 0 | IC41: 0 | ID41: 17
A42: Ver.05.00 | B42: 013323 | C42: 北海道 | D42: 福島町 | E42: 5 | F42: - | G42: - | H42: 9.9 | I42: 40.8 | J42: 2664527 | K42: 11203 | L42: 一般会計 | M42: 59686 | AR42: 59686 | AS42: -2.24 | AT42: ① | AU42: 国民健康保険特別会計 | AV42: 8762 | AW42: ② | AX42: 介護保険特別会計 | AY42: 35373 | AZ42: ③ | BA42: 後期高齢者医療特別会計 | BB42: 123 | BC42: ① | BD42: 国民健康保険診療所特別会計 | BE42: 7072 | BF42: 0 | BI42: 0 | BL42: 0 | BO42: 0 | BR42: 0 | BU42: 0 | BX42: 0 | CA42: 0 | CD42: 0 | CG42: 福島町水道事業会計 | CH42: 671894 | CI42: 0 | CJ42: 0 | CK42: 0 | CL42: 0 | CM42: 0 | CN42: 0 | CO42: 0 | CP42: 0 | CQ42: 0 | CR42: 0 | CS42: 0 | CT42: 0 | CU42: 0 | CV42: 0 | CW42: 0 | CX42: 0 | CY42: 0 | CZ42: 0 | DA42: 0 | DB42: 0 | DC42: 0 | DD42: 0 | DE42: 0 | DF42: 0 | DG42: 0 | DH42: 0 | DI42: 0 | DJ42: 0 | DK42: 0 | DL42: 0 | DM42: 0 | DN42: 0 | DO42: 0 | DP42: 0 | DQ42: 0 | DR42: 0 | DS42: 福島町浄化槽整備特別会計 | DT42: 0 | DU42: 0 | DV42: 0 | DW42: 0 | DX42: 0 | DY42: 0 | DZ42: 0 | EA42: 0 | EB42: 0 | EC42: 0 | ED42: 0 | EE42: 0 | EF42: 0 | EG42: 0 | EH42: 0 | EI42: 0 | EJ42: 0 | EK42: 0 | EL42: 0 | EM42: 0 | EN42: 0 | EO42: 0 | EP42: 0 | EQ42: 0 | ER42: 0 | ES42: 0 | ET42: 0 | EU42: 0 | EV42: 0 | EW42: 0 | EX42: 0 | EY42: 0 | EZ42: 0 | FA42: 0 | FB42: 0 | FC42: 0 | FD42: 0 | FE42: 782910 | FF42: -29.38 | FG42: 9.77169728 | FH42: 9.937303935 | FI42: 10.22336758 | FJ42: 9.9 | FK42: 610900 | FL42: 0 | FM42: 0 | FN42: 9888 | FO42: 76580 | FP42: 260 | FQ42: 323 | FR42: 39820 | FS42: 47842 | FT42: 384387 | FU42: 0 | FV42: 693800 | FW42: 1958514 | FX42: 91714 | FY42: 0 | FZ42: 0 | GA42: 0 | GB42: 0 | GC42: 0 | GD42: 0 | GE42: 0 | GF42: 0 | GG42: 0 | GH42: 260 | GI42: 602982 | GJ42: 0 | GK42: 0 | GL42: 15320 | GM42: 76789 | GN42: 260 | GO42: 284 | GP42: 34883 | GQ42: 48748 | GR42: 389946 | GS42: 0 | GT42: 693097 | GU42: 1955797 | GV42: 24390 | GW42: 0 | GX42: 0 | GY42: 0 | GZ42: 0 | HA42: 0 | HB42: 0 | HC42: 0 | HD42: 0 | HE42: 0 | HF42: 260 | HG42: 610927 | HH42: 0 | HI42: 0 | HJ42: 17843 | HK42: 76796 | HL42: 164 | HM42: 465 | HN42: 37820 | HO42: 47271 | HP42: 393791 | HQ42: 0 | HR42: 677028 | HS42: 1976296 | HT42: 11203 | HU42: 0 | HV42: 0 | HW42: 0 | HX42: 0 | HY42: 0 | HZ42: 0 | IA42: 0 | IB42: 0 | IC42: 0 | ID42: 164
A43: Ver.05.00 | B43: 013331 | C43: 北海道 | D43: 知内町 | E43: 5 | F43: - | G43: - | H43: 8.3 | I43: - | J43: 2882150 | K43: 13535 | L43: 一般会計 | M43: 152186 | AR43: 152186 | AS43: -5.28 | AT43: ① | AU43: 国民健康保険事業特別会計 | AV43: 6568 | AW43: ② | AX43: 知内町介護保険特別会計 | AY43: 17339 | AZ43: ③ | BA43: 知内町後期高齢者医療特別会計 | BB43: 1507 | BC43: 0 | BF43: 0 | BI43: 0 | BL43: 0 | BO43: 0 | BR43: 0 | BU43: 0 | BX43: 0 | CA43: 0 | CD43: 0 | CG43: 水道事業会計 | CH43: 416028 | CI43: 公共下水道事業会計 | CJ43: 35023 | CK43: 農業集落排水施設整備事業会計 | CL43: 5129 | CM43: 0 | CN43: 0 | CO43: 0 | CP43: 0 | CQ43: 0 | CR43: 0 | CS43: 0 | CT43: 0 | CU43: 0 | CV43: 0 | CW43: 0 | CX43: 0 | CY43: 0 | CZ43: 0 | DA43: 0 | DB43: 0 | DC43: 0 | DD43: 0 | DE43: 0 | DF43: 0 | DG43: 0 | DH43: 0 | DI43: 0 | DJ43: 0 | DK43: 0 | DL43: 0 | DM43: 0 | DN43: 0 | DO43: 0 | DP43: 0 | DQ43: 0 | DR43: 0 | DS43: 0 | DT43: 0 | DU43: 0 | DV43: 0 | DW43: 0 | DX43: 0 | DY43: 0 | DZ43: 0 | EA43: 0 | EB43: 0 | EC43: 0 | ED43: 0 | EE43: 0 | EF43: 0 | EG43: 0 | EH43: 0 | EI43: 0 | EJ43: 0 | EK43: 0 | EL43: 0 | EM43: 0 | EN43: 0 | EO43: 0 | EP43: 0 | EQ43: 0 | ER43: 0 | ES43: 0 | ET43: 0 | EU43: 0 | EV43: 0 | EW43: 0 | EX43: 0 | EY43: 0 | EZ43: 0 | FA43: 0 | FB43: 0 | FC43: 0 | FD43: 0 | FE43: 633780 | FF43: -21.98 | FG43: 8.813995624 | FH43: 7.710487336 | FI43: 8.537422965 | FJ43: 8.3 | FK43: 570105 | FL43: 0 | FM43: 0 | FN43: 67479 | FO43: 7974 | FP43: 31464 | FQ43: 0 | FR43: 32356 | FS43: 65623 | FT43: 356483 | FU43: 0 | FV43: 894622 | FW43: 1947988 | FX43: 104571 | FY43: 0 | FZ43: 0 | GA43: 0 | GB43: 31455 | GC43: 0 | GD43: 0 | GE43: 0 | GF43: 0 | GG43: 0 | GH43: 9 | GI43: 530872 | GJ43: 0 | GK43: 0 | GL43: 50549 | GM43: 22244 | GN43: 31144 | GO43: 0 | GP43: 31223 | GQ43: 48045 | GR43: 366217 | GS43: 0 | GT43: 967646 | GU43: 1873769 | GV43: 28256 | GW43: 0 | GX43: 0 | GY43: 0 | GZ43: 31136 | HA43: 0 | HB43: 0 | HC43: 0 | HD43: 0 | HE43: 0 | HF43: 8 | HG43: 536970 | HH43: 0 | HI43: 0 | HJ43: 83318 | HK43: 22178 | HL43: 30767 | HM43: 0 | HN43: 38924 | HO43: 42601 | HP43: 381887 | HQ43: 0 | HR43: 885222 | HS43: 1983393 | HT43: 13535 | HU43: 0 | HV43: 0 | HW43: 0 | HX43: 30761 | HY43: 0 | HZ43: 0 | IA43: 0 | IB43: 0 | IC43: 0 | ID43: 6
A44: Ver.05.00 | B44: 013340 | C44: 北海道 | D44: 木古内町 | E44: 5 | F44: - | G44: - | H44: 14.5 | I44: 60.6 | J44: 2894783 | K44: 11431 | L44: 一般会計 | M44: 234369 | AR44: 234369 | AS44: -8.09 | AT44: ① | AU44: 木古内町国民健康保険特別会計 | AV44: 40967 | AW44: ③ | AX44: 木古内町後期高齢者医療特別会計 | AY44: 232 | AZ44: ② | BA44: 木古内町介護保険事業特別会計 | BB44: 63377 | BC44: ⑥ | BD44: 木古内町介護サービス事業特別会計 | BE44: 0 | BF44: 0 | BI44: 0 | BL44: 0 | BO44: 0 | BR44: 0 | BU44: 0 | BX44: 0 | CA44: 0 | CD44: 0 | CG44: 木古内町国民健康保険病院事業会計 | CH44: 2153809 | CI44: 木古内町高齢者介護サービス事業会計 | CJ44: 153073 | CK44: 木古内町簡易水道事業会計 | CL44: 138165 | CM44: 0 | CN44: 0 | CO44: 0 | CP44: 0 | CQ44: 0 | CR44: 0 | CS44: 0 | CT44: 0 | CU44: 0 | CV44: 0 | CW44: 0 | CX44: 0 | CY44: 0 | CZ44: 0 | DA44: 0 | DB44: 0 | DC44: 0 | DD44: 0 | DE44: 0 | DF44: 0 | DG44: 0 | DH44: 0 | DI44: 0 | DJ44: 0 | DK44: 0 | DL44: 0 | DM44: 0 | DN44: 0 | DO44: 0 | DP44: 0 | DQ44: 0 | DR44: 0 | DS44: 木古内町下水道事業特別会計 | DT44: 3240 | DU44: 0 | DV44: 0 | DW44: 0 | DX44: 0 | DY44: 0 | DZ44: 0 | EA44: 0 | EB44: 0 | EC44: 0 | ED44: 0 | EE44: 0 | EF44: 0 | EG44: 0 | EH44: 0 | EI44: 0 | EJ44: 0 | EK44: 0 | EL44: 0 | EM44: 0 | EN44: 0 | EO44: 0 | EP44: 0 | EQ44: 0 | ER44: 0 | ES44: 0 | ET44: 0 | EU44: 0 | EV44: 0 | EW44: 0 | EX44: 0 | EY44: 0 | EZ44: 0 | FA44: 0 | FB44: 0 | FC44: 0 | FD44: 0 | FE44: 2787232 | FF44: -96.28 | FG44: 13.26349372 | FH44: 14.61721554 | FI44: 15.81018232 | FJ44: 14.5 | FK44: 624772 | FL44: 0 | FM44: 0 | FN44: 226509 | FO44: 36913 | FP44: 13220 | FQ44: 0 | FR44: 34759 | FS44: 51701 | FT44: 473367 | FU44: 16227 | FV44: 652369 | FW44: 2244087 | FX44: 97888 | FY44: 0 | FZ44: 0 | GA44: 0 | GB44: 0 | GC44: 0 | GD44: 0 | GE44: 0 | GF44: 0 | GG44: 13166 | GH44: 54 | GI44: 625028 | GJ44: 0 | GK44: 0 | GL44: 190361 | GM44: 36507 | GN44: 13202 | GO44: 0 | GP44: 39016 | GQ44: 53456 | GR44: 405825 | GS44: 16386 | GT44: 669936 | GU44: 2178009 | GV44: 24998 | GW44: 0 | GX44: 0 | GY44: 0 | GZ44: 0 | HA44: 0 | HB44: 0 | HC44: 0 | HD44: 0 | HE44: 13153 | HF44: 49 | HG44: 623025 | HH44: 0 | HI44: 0 | HJ44: 197752 | HK44: 39624 | HL44: 28168 | HM44: 0 | HN44: 32072 | HO44: 56327 | HP44: 400909 | HQ44: 16487 | HR44: 680711 | HS44: 2202641 | HT44: 11431 | HU44: 0 | HV44: 0 | HW44: 0 | HX44: 0 | HY44: 0 | HZ44: 0 | IA44: 0 | IB44: 0 | IC44: 28123 | ID44: 45
A45: Ver.05.00 | B45: 013374 | C45: 北海道 | D45: 七飯町 | E45: 5 | F45: - | G45: - | H45: 7.6 | I45: 7.1 | J45: 7591118 | K45: 53059 | L45: 一般会計 | M45: 206531 | AR45: 206531 | AS45: -2.72 | AT45: 0 | AW45: ① | AX45: 国民健康保険特別会計 | AY45: 6992 | AZ45: 0 | BC45: ② | BD45: 介護保険特別会計 | BE45: 104698 | BF45: 0 | BI45: ③ | BJ45: 後期高齢者医療特別会計 | BK45: 6753 | BL45: 0 | BO45: 0 | BR45: 0 | BU45: 0 | BX45: 0 | CA45: 0 | CD45: 0 | CG45: 0 | CH45: 0 | CI45: 水道事業会計 | CJ45: 448524 | CK45: 0 | CL45: 0 | CM45: 下水道事業会計 | CN45: 129563 | CO45: 0 | CP45: 0 | CQ45: 0 | CR45: 0 | CS45: 0 | CT45: 0 | CU45: 0 | CV45: 0 | CW45: 0 | CX45: 0 | CY45: 0 | CZ45: 0 | DA45: 0 | DB45: 0 | DC45: 0 | DD45: 0 | DE45: 0 | DF45: 0 | DG45: 0 | DH45: 0 | DI45: 0 | DJ45: 0 | DK45: 0 | DL45: 0 | DM45: 0 | DN45: 0 | DO45: 0 | DP45: 0 | DQ45: 0 | DR45: 0 | DS45: 0 | DT45: 0 | DU45: 0 | DV45: 0 | DW45: 0 | DX45: 0 | DY45: 0 | DZ45: 0 | EA45: 0 | EB45: 0 | EC45: 0 | ED45: 0 | EE45: 0 | EF45: 0 | EG45: 0 | EH45: 0 | EI45: 0 | EJ45: 0 | EK45: 0 | EL45: 0 | EM45: 0 | EN45: 0 | EO45: 0 | EP45: 0 | EQ45: 0 | ER45: 0 | ES45: 0 | ET45: 0 | EU45: 0 | EV45: 0 | EW45: 0 | EX45: 0 | EY45: 0 | EZ45: 0 | FA45: 0 | FB45: 0 | FC45: 0 | FD45: 0 | FE45: 903061 | FF45: -11.89 | FG45: 8.018878116 | FH45: 7.731312441 | FI45: 7.242349182 | FJ45: 7.6 | FK45: 1311608 | FL45: 0 | FM45: 0 | FN45: 112059 | FO45: 165130 | FP45: 1465 | FQ45: 0 | FR45: 115704 | FS45: 283778 | FT45: 613318 | FU45: 24444 | FV45: 3659198 | FW45: 3747288 | FX45: 411505 | FY45: 0 | FZ45: 0 | GA45: 0 | GB45: 0 | GC45: 0 | GD45: 0 | GE45: 0 | GF45: 0 | GG45: 0 | GH45: 1465 | GI45: 1293727 | GJ45: 0 | GK45: 0 | GL45: 92079 | GM45: 170354 | GN45: 2254 | GO45: 0 | GP45: 157877 | GQ45: 256730 | GR45: 601228 | GS45: 22601 | GT45: 3862442 | GU45: 3628255 | GV45: 115473 | GW45: 0 | GX45: 0 | GY45: 0 | GZ45: 0 | HA45: 0 | HB45: 0 | HC45: 0 | HD45: 0 | HE45: 0 | HF45: 2254 | HG45: 1255877 | HH45: 0 | HI45: 0 | HJ45: 65881 | HK45: 154035 | HL45: 1443 | HM45: 0 | HN45: 159714 | HO45: 214089 | HP45: 596404 | HQ45: 17198 | HR45: 3825344 | HS45: 3712715 | HT45: 53059 | HU45: 0 | HV45: 0 | HW45: 0 | HX45: 0 | HY45: 0 | HZ45: 0 | IA45: 0 | IB45: 0 | IC45: 0 | ID45: 1443
A46: Ver.05.00 | B46: 013439 | C46: 北海道 | D46: 鹿部町 | E46: 5 | F46: - | G46: - | H46: 4.3 | I46: - | J46: 2007728 | K46: 8536 | L46: 一般会計 | M46: 97919 | AR46: 97919 | AS46: -4.87 | AT46: ① | AU46: 鹿部町国民健康保険事業勘定特別会計 | AV46: 73730 | AW46: ② | AX46: 鹿部町介護保険事業特別会計 | AY46: 12468 | AZ46: ③ | BA46: 鹿部町後期高齢者医療特別会計 | BB46: 585 | BC46: 0 | BF46: 0 | BI46: 0 | BL46: 0 | BO46: 0 | BR46: 0 | BU46: 0 | BX46: 0 | CA46: 0 | CD46: 0 | CG46: 鹿部町簡易水道事業会計 | CH46: 104028 | CI46: 0 | CJ46: 0 | CK46: 0 | CL46: 0 | CM46: 0 | CN46: 0 | CO46: 0 | CP46: 0 | CQ46: 0 | CR46: 0 | CS46: 0 | CT46: 0 | CU46: 0 | CV46: 0 | CW46: 0 | CX46: 0 | CY46: 0 | CZ46: 0 | DA46: 0 | DB46: 0 | DC46: 0 | DD46: 0 | DE46: 0 | DF46: 0 | DG46: 0 | DH46: 0 | DI46: 0 | DJ46: 0 | DK46: 0 | DL46: 0 | DM46: 0 | DN46: 0 | DO46: 0 | DP46: 0 | DQ46: 0 | DR46: 0 | DS46: 0 | DT46: 0 | DU46: 0 | DV46: 0 | DW46: 0 | DX46: 0 | DY46: 0 | DZ46: 0 | EA46: 0 | EB46: 0 | EC46: 0 | ED46: 0 | EE46: 0 | EF46: 0 | EG46: 0 | EH46: 0 | EI46: 0 | EJ46: 0 | EK46: 0 | EL46: 0 | EM46: 0 | EN46: 0 | EO46: 0 | EP46: 0 | EQ46: 0 | ER46: 0 | ES46: 0 | ET46: 0 | EU46: 0 | EV46: 0 | EW46: 0 | EX46: 0 | EY46: 0 | EZ46: 0 | FA46: 0 | FB46: 0 | FC46: 0 | FD46: 0 | FE46: 288730 | FF46: -14.38 | FG46: 3.653197921 | FH46: 4.513744979 | FI46: 5.032359756 | FJ46: 4.3 | FK46: 223294 | FL46: 0 | FM46: 0 | FN46: 0 | FO46: 48374 | FP46: 18871 | FQ46: 0 | FR46: 50076 | FS46: 13136 | FT46: 158464 | FU46: 0 | FV46: 516818 | FW46: 1464325 | FX46: 75463 | FY46: 0 | FZ46: 0 | GA46: 0 | GB46: 0 | GC46: 0 | GD46: 0 | GE46: 0 | GF46: 0 | GG46: 18871 | GH46: 0 | GI46: 227328 | GJ46: 0 | GK46: 0 | GL46: 0 | GM46: 46717 | GN46: 17416 | GO46: 0 | GP46: 41571 | GQ46: 13540 | GR46: 153472 | GS46: 0 | GT46: 535814 | GU46: 1447864 | GV46: 19459 | GW46: 0 | GX46: 0 | GY46: 0 | GZ46: 0 | HA46: 0 | HB46: 0 | HC46: 0 | HD46: 0 | HE46: 17416 | HF46: 0 | HG46: 238192 | HH46: 0 | HI46: 0 | HJ46: 0 | HK46: 38050 | HL46: 23176 | HM46: 30 | HN46: 42589 | HO46: 12398 | HP46: 151682 | HQ46: 0 | HR46: 549264 | HS46: 1449928 | HT46: 8536 | HU46: 0 | HV46: 0 | HW46: 0 | HX46: 0 | HY46: 0 | HZ46: 0 | IA46: 0 | IB46: 0 | IC46: 23176 | ID46: 0
A47: Ver.05.00 | B47: 013455 | C47: 北海道 | D47: 森町 | E47: 5 | F47: - | G47: - | H47: 9.5 | I47: - | J47: 6182691 | K47: 28493 | L47: 一般会計 | M47: 123644 | N47: 森町ホタテ未利用資源リサイクル事業特別会計 | O47: 17 | AR47: 123661 | AS47: -2 | AT47: ① | AU47: 森町国民健康保険特別会計 | AV47: 10573 | AW47: ② | AX47: 森町介護保険事業特別会計 | AY47: 170 | AZ47: ③ | BA47: 森町後期高齢者医療特別会計 | BB47: 1090 | BC47: ⑥ | BD47: 森町介護サービス事業特別会計 | BE47: 520 | BF47: 0 | BI47: 0 | BL47: 0 | BO47: 0 | BR47: 0 | BU47: 0 | BX47: 0 | CA47: 0 | CD47: 0 | CG47: 森町水道事業会計 | CH47: 357919 | CI47: 森町国民健康保険病院事業会計 | CJ47: 309107 | CK47: 森町公共下水道事業会計 | CL47: 192377 | CM47: 0 | CN47: 0 | CO47: 0 | CP47: 0 | CQ47: 0 | CR47: 0 | CS47: 0 | CT47: 0 | CU47: 0 | CV47: 0 | CW47: 0 | CX47: 0 | CY47: 0 | CZ47: 0 | DA47: 0 | DB47: 0 | DC47: 0 | DD47: 0 | DE47: 0 | DF47: 0 | DG47: 0 | DH47: 0 | DI47: 0 | DJ47: 0 | DK47: 0 | DL47: 0 | DM47: 0 | DN47: 0 | DO47: 0 | DP47: 0 | DQ47: 0 | DR47: 0 | DS47: 森町港湾整備事業特別会計 | DT47: 0 | DU47: 0 | DV47: 0 | DW47: 0 | DX47: 0 | DY47: 0 | DZ47: 0 | EA47: 0 | EB47: 0 | EC47: 0 | ED47: 0 | EE47: 0 | EF47: 0 | EG47: 0 | EH47: 0 | EI47: 0 | EJ47: 0 | EK47: 0 | EL47: 0 | EM47: 0 | EN47: 0 | EO47: 0 | EP47: 0 | EQ47: 0 | ER47: 0 | ES47: 0 | ET47: 0 | EU47: 0 | EV47: 0 | EW47: 0 | EX47: 0 | EY47: 0 | EZ47: 0 | FA47: 0 | FB47: 0 | FC47: 0 | FD47: 0 | FE47: 995417 | FF47: -16.1 | FG47: 10.08637216 | FH47: 8.946134807 | FI47: 9.498550908 | FJ47: 9.5 | FK47: 1236777 | FL47: 0 | FM47: 0 | FN47: 323512 | FO47: 28797 | FP47: 0 | FQ47: 0 | FR47: 55056 | FS47: 191830 | FT47: 747118 | FU47: 47101 | FV47: 2090933 | FW47: 4086811 | FX47: 241190 | FY47: 0 | FZ47: 0 | GA47: 0 | GB47: 0 | GC47: 0 | GD47: 0 | GE47: 0 | GF47: 0 | GG47: 0 | GH47: 0 | GI47: 1021119 | GJ47: 0 | GK47: 0 | GL47: 342994 | GM47: 28637 | GN47: 0 | GO47: 0 | GP47: 58054 | GQ47: 161168 | GR47: 656593 | GS47: 46702 | GT47: 2172150 | GU47: 3885560 | GV47: 63023 | GW47: 0 | GX47: 0 | GY47: 0 | GZ47: 0 | HA47: 0 | HB47: 0 | HC47: 0 | HD47: 0 | HE47: 0 | HF47: 0 | HG47: 1075355 | HH47: 0 | HI47: 0 | HJ47: 351734 | HK47: 28667 | HL47: 0 | HM47: 0 | HN47: 51413 | HO47: 159778 | HP47: 695399 | HQ47: 47656 | HR47: 2243223 | HS47: 3910975 | HT47: 28493 | HU47: 0 | HV47: 0 | HW47: 0 | HX47: 0 | HY47: 0 | HZ47: 0 | IA47: 0 | IB47: 0 | IC47: 0 | ID47: 0
A48: Ver.05.00 | B48: 013463 | C48: 北海道 | D48: 八雲町 | E48: 5 | F48: - | G48: - | H48: 9.4 | I48: - | J48: 8193652 | K48: 37410 | L48: 一般会計 | M48: 347058 | AR48: 347058 | AS48: -4.23 | AT48: ① | AU48: 国民健康保険事業特別会計 | AV48: 47691 | AW48: ② | AX48: 介護保険（保険）事業特別会計 | AY48: 34364 | AZ48: ③ | BA48: 後期高齢者医療事業特別会計 | BB48: 4913 | BC48: ⑥ | BD48: 介護保険(サービス)事業特別会計 | BE48: 0 | BF48: 0 | BI48: 0 | BL48: 0 | BO48: 0 | BR48: 0 | BU48: 0 | BX48: 0 | CA48: 0 | CD48: 0 | CG48: 八雲町病院事業会計 | CH48: 2139410 | CI48: 八雲町水道事業会計 | CJ48: 594310 | CK48: 0 | CL48: 0 | CM48: 0 | CN48: 0 | CO48: 0 | CP48: 0 | CQ48: 0 | CR48: 0 | CS48: 0 | CT48: 0 | CU48: 0 | CV48: 0 | CW48: 0 | CX48: 0 | CY48: 0 | CZ48: 0 | DA48: 0 | DB48: 0 | DC48: 0 | DD48: 0 | DE48: 0 | DF48: 0 | DG48: 0 | DH48: 0 | DI48: 0 | DJ48: 0 | DK48: 0 | DL48: 0 | DM48: 0 | DN48: 0 | DO48: 0 | DP48: 0 | DQ48: 0 | DR48: 0 | DS48: 八雲町熊石地域簡易水道事業特別会計 | DT48: 2970 | DU48: 八雲町下水道事業特別会計 | DV48: 2279 | DW48: 八雲町農業集落排水事業特別会計 | DX48: 0 | DY48: 0 | DZ48: 0 | EA48: 0 | EB48: 0 | EC48: 0 | ED48: 0 | EE48: 0 | EF48: 0 | EG48: 0 | EH48: 0 | EI48: 0 | EJ48: 0 | EK48: 0 | EL48: 0 | EM48: 0 | EN48: 0 | EO48: 0 | EP48: 0 | EQ48: 0 | ER48: 0 | ES48: 0 | ET48: 0 | EU48: 0 | EV48: 0 | EW48: 0 | EX48: 0 | EY48: 0 | EZ48: 0 | FA48: 0 | FB48: 0 | FC48: 0 | FD48: 0 | FE48: 3172995 | FF48: -38.72 | FG48: 12.03485992 | FH48: 8.515166488 | FI48: 7.799932391 | FJ48: 9.4 | FK48: 1473069 | FL48: 0 | FM48: 0 | FN48: 892913 | FO48: 32475 | FP48: 10195 | FQ48: 0 | FR48: 75489 | FS48: 214730 | FT48: 1192504 | FU48: 100942 | FV48: 2776729 | FW48: 5290770 | FX48: 295655 | FY48: 0 | FZ48: 0 | GA48: 0 | GB48: 0 | GC48: 0 | GD48: 0 | GE48: 0 | GF48: 0 | GG48: 3584 | GH48: 6611 | GI48: 1348491 | GJ48: 0 | GK48: 0 | GL48: 717856 | GM48: 31331 | GN48: 7406 | GO48: 0 | GP48: 73654 | GQ48: 221844 | GR48: 1140821 | GS48: 103501 | GT48: 2850805 | GU48: 5172386 | GV48: 81295 | GW48: 0 | GX48: 0 | GY48: 0 | GZ48: 0 | HA48: 0 | HB48: 0 | HC48: 0 | HD48: 0 | HE48: 0 | HF48: 7406 | HG48: 1339101 | HH48: 0 | HI48: 0 | HJ48: 715484 | HK48: 30521 | HL48: 6541 | HM48: 0 | HN48: 70252 | HO48: 206261 | HP48: 1188958 | HQ48: 104016 | HR48: 2852329 | HS48: 5303913 | HT48: 37410 | HU48: 0 | HV48: 0 | HW48: 0 | HX48: 0 | HY48: 0 | HZ48: 0 | IA48: 0 | IB48: 0 | IC48: 0 | ID48: 6541
A49: Ver.05.00 | B49: 013471 | C49: 北海道 | D49: 長万部町 | E49: 5 | F49: - | G49: - | H49: 9.9 | I49: 30.2 | J49: 3273345 | K49: 13954 | L49: 一般会計 | M49: 272544 | AR49: 272544 | AS49: -8.32 | AT49: ① | AU49: 国民健康保険特別会計 | AV49: 37625 | AW49: ② | AX49: 介護保険特別会計 | AY49: 98297 | AZ49: ③ | BA49: 後期高齢者医療特別会計 | BB49: 785 | BC49: 0 | BF49: 0 | BI49: 0 | BL49: 0 | BO49: 0 | BR49: 0 | BU49: 0 | BX49: 0 | CA49: 0 | CD49: 0 | CG49: 水道事業会計 | CH49: 85600 | CI49: ガス事業会計 | CJ49: 39057 | CK49: 病院事業会計 | CL49: 37647 | CM49: 0 | CN49: 0 | CO49: 0 | CP49: 0 | CQ49: 0 | CR49: 0 | CS49: 0 | CT49: 0 | CU49: 0 | CV49: 0 | CW49: 0 | CX49: 0 | CY49: 0 | CZ49: 0 | DA49: 0 | DB49: 0 | DC49: 0 | DD49: 0 | DE49: 0 | DF49: 0 | DG49: 0 | DH49: 0 | DI49: 0 | DJ49: 0 | DK49: 0 | DL49: 0 | DM49: 0 | DN49: 0 | DO49: 0 | DP49: 0 | DQ49: 0 | DR49: 0 | DS49: 公共下水道事業特別会計 | DT49: 26528 | DU49: 0 | DV49: 0 | DW49: 0 | DX49: 0 | DY49: 0 | DZ49: 0 | EA49: 0 | EB49: 0 | EC49: 0 | ED49: 0 | EE49: 0 | EF49: 0 | EG49: 0 | EH49: 0 | EI49: 0 | EJ49: 0 | EK49: 0 | EL49: 0 | EM49: 0 | EN49: 0 | EO49: 0 | EP49: 0 | EQ49: 0 | ER49: 0 | ES49: 0 | ET49: 0 | EU49: 0 | EV49: 0 | EW49: 0 | EX49: 0 | EY49: 0 | EZ49: 0 | FA49: 0 | FB49: 0 | FC49: 0 | FD49: 0 | FE49: 598083 | FF49: -18.27 | FG49: 10.10246581 | FH49: 10.82905239 | FI49: 8.857365998 | FJ49: 9.9 | FK49: 548952 | FL49: 0 | FM49: 0 | FN49: 125674 | FO49: 17657 | FP49: 3367 | FQ49: 0 | FR49: 31419 | FS49: 55025 | FT49: 312892 | FU49: 1263 | FV49: 822177 | FW49: 2353084 | FX49: 114503 | FY49: 0 | FZ49: 0 | GA49: 0 | GB49: 0 | GC49: 0 | GD49: 3300 | GE49: 0 | GF49: 0 | GG49: 0 | GH49: 67 | GI49: 566419 | GJ49: 0 | GK49: 0 | GL49: 132002 | GM49: 17233 | GN49: 21 | GO49: 0 | GP49: 32382 | GQ49: 46099 | GR49: 326714 | GS49: 1174 | GT49: 843615 | GU49: 2355941 | GV49: 30692 | GW49: 0 | GX49: 0 | GY49: 0 | GZ49: 0 | HA49: 0 | HB49: 0 | HC49: 0 | HD49: 0 | HE49: 0 | HF49: 21 | HG49: 556339 | HH49: 0 | HI49: 0 | HJ49: 98098 | HK49: 17487 | HL49: 9188 | HM49: 0 | HN49: 32375 | HO49: 48042 | HP49: 344326 | HQ49: 1306 | HR49: 895629 | HS49: 2363762 | HT49: 13954 | HU49: 0 | HV49: 0 | HW49: 0 | HX49: 0 | HY49: 0 | HZ49: 0 | IA49: 0 | IB49: 0 | IC49: 9170 | ID49: 18
A50: Ver.05.00 | B50: 013617 | C50: 北海道 | D50: 江差町 | E50: 5 | F50: - | G50: - | H50: 12.3 | I50: 44.8 | J50: 3593980 | K50: 16571 | L50: 一般会計 | M50: 186876 | N50: 奨学金会計 | O50: 48 | AR50: 186924 | AS50: -5.2 | AT50: ① | AU50: 国民健康保険事業会計 | AV50: 3664 | AW50: ③ | AX50: 後期高齢者医療事業会計 | AY50: 0 | AZ50: ② | BA50: 介護保険事業会計 | BB50: 97011 | BC50: ⑥ | BD50: 介護サービス事業会計 | BE50: 0 | BF50: 0 | BI50: 0 | BL50: 0 | BO50: 0 | BR50: 0 | BU50: 0 | BX50: 0 | CA50: 0 | CD50: 0 | CG50: 水道事業会計 | CH50: 41180 | CI50: 0 | CJ50: 0 | CK50: 0 | CL50: 0 | CM50: 0 | CN50: 0 | CO50: 0 | CP50: 0 | CQ50: 0 | CR50: 0 | CS50: 0 | CT50: 0 | CU50: 0 | CV50: 0 | CW50: 0 | CX50: 0 | CY50: 0 | CZ50: 0 | DA50: 0 | DB50: 0 | DC50: 0 | DD50: 0 | DE50: 0 | DF50: 0 | DG50: 0 | DH50: 0 | DI50: 0 | DJ50: 0 | DK50: 0 | DL50: 0 | DM50: 0 | DN50: 0 | DO50: 0 | DP50: 0 | DQ50: 0 | DR50: 0 | DS50: 公共下水道事業特別会計 | DT50: 164263 | DU50: 公設地方卸売市場事業特別会計 | DV50: 0 | DW50: 港湾整備事業特別会計 | DX50: 0 | DY50: 0 | DZ50: 0 | EA50: 0 | EB50: 0 | EC50: 0 | ED50: 0 | EE50: 0 | EF50: 0 | EG50: 0 | EH50: 0 | EI50: 0 | EJ50: 0 | EK50: 0 | EL50: 0 | EM50: 0 | EN50: 0 | EO50: 0 | EP50: 0 | EQ50: 0 | ER50: 0 | ES50: 0 | ET50: 0 | EU50: 0 | EV50: 0 | EW50: 0 | EX50: 0 | EY50: 0 | EZ50: 0 | FA50: 0 | FB50: 0 | FC50: 0 | FD50: 0 | FE50: 493042 | FF50: -13.71 | FG50: 12.90782229 | FH50: 11.92257025 | FI50: 12.35667021 | FJ50: 12.3 | FK50: 590665 | FL50: 0 | FM50: 0 | FN50: 288797 | FO50: 2659 | FP50: 10068 | FQ50: 1 | FR50: 38822 | FS50: 85376 | FT50: 333937 | FU50: 12916 | FV50: 1026627 | FW50: 2528928 | FX50: 139339 | FY50: 0 | FZ50: 0 | GA50: 0 | GB50: 0 | GC50: 0 | GD50: 6600 | GE50: 0 | GF50: 0 | GG50: 3465 | GH50: 3 | GI50: 549166 | GJ50: 0 | GK50: 0 | GL50: 277527 | GM50: 2546 | GN50: 3457 | GO50: 1 | GP50: 44318 | GQ50: 80228 | GR50: 308741 | GS50: 12411 | GT50: 1052161 | GU50: 2558064 | GV50: 37091 | GW50: 0 | GX50: 0 | GY50: 0 | GZ50: 0 | HA50: 0 | HB50: 0 | HC50: 0 | HD50: 0 | HE50: 3455 | HF50: 2 | HG50: 550402 | HH50: 0 | HI50: 0 | HJ50: 291484 | HK50: 1176 | HL50: 3452 | HM50: 0 | HN50: 35839 | HO50: 81034 | HP50: 329947 | HQ50: 7281 | HR50: 1062745 | HS50: 2514664 | HT50: 16571 | HU50: 0 | HV50: 0 | HW50: 0 | HX50: 0 | HY50: 0 | HZ50: 0 | IA50: 0 | IB50: 0 | IC50: 3451 | ID50: 1
A51: Ver.05.00 | B51: 013625 | C51: 北海道 | D51: 上ノ国町 | E51: 5 | F51: - | G51: - | H51: 9.6 | I51: - | J51: 3429569 | K51: 12875 | L51: 一般会計 | M51: 71073 | AR51: 71073 | AS51: -2.07 | AT51: ① | AU51: 国民健康保険事業特別会計 | AV51: 192 | AW51: ③ | AX51: 後期高齢者医療事業特別会計 | AY51: 42 | AZ51: ② | BA51: 介護保険事業特別会計 | BB51: 14807 | BC51: 0 | BF51: 0 | BI51: 0 | BL51: 0 | BO51: 0 | BR51: 0 | BU51: 0 | BX51: 0 | CA51: 0 | CD51: 0 | CG51: 0 | CH51: 0 | CI51: 0 | CJ51: 0 | CK51: 0 | CL51: 0 | CM51: 0 | CN51: 0 | CO51: 0 | CP51: 0 | CQ51: 0 | CR51: 0 | CS51: 0 | CT51: 0 | CU51: 0 | CV51: 0 | CW51: 0 | CX51: 0 | CY51: 0 | CZ51: 0 | DA51: 0 | DB51: 0 | DC51: 0 | DD51: 0 | DE51: 0 | DF51: 0 | DG51: 0 | DH51: 0 | DI51: 0 | DJ51: 0 | DK51: 0 | DL51: 0 | DM51: 0 | DN51: 0 | DO51: 0 | DP51: 0 | DQ51: 0 | DR51: 0 | DS51: 簡易水道事業特別会計 | DT51: 15938 | DU51: 下水道事業特別会計 | DV51: 30478 | DW51: 0 | DX51: 0 | DY51: 0 | DZ51: 0 | EA51: 0 | EB51: 0 | EC51: 0 | ED51: 0 | EE51: 0 | EF51: 0 | EG51: 0 | EH51: 0 | EI51: 0 | EJ51: 0 | EK51: 0 | EL51: 0 | EM51: 0 | EN51: 0 | EO51: 0 | EP51: 0 | EQ51: 0 | ER51: 0 | ES51: 0 | ET51: 0 | EU51: 0 | EV51: 0 | EW51: 0 | EX51: 0 | EY51: 0 | EZ51: 0 | FA51: 0 | FB51: 0 | FC51: 0 | FD51: 0 | FE51: 132530 | FF51: -3.86 | FG51: 7.313900552 | FH51: 10.46429854 | FI51: 11.0607715 | FJ51: 9.6 | FK51: 607564 | FL51: 0 | FM51: 0 | FN51: 112663 | FO51: 1441 | FP51: 0 | FQ51: 372 | FR51: 18509 | FS51: 48573 | FT51: 446996 | FU51: 427 | FV51: 613238 | FW51: 2617168 | FX51: 103132 | FY51: 0 | FZ51: 0 | GA51: 0 | GB51: 0 | GC51: 0 | GD51: 0 | GE51: 0 | GF51: 0 | GG51: 0 | GH51: 0 | GI51: 760253 | GJ51: 0 | GK51: 0 | GL51: 123125 | GM51: 600 | GN51: 0 | GO51: 2407 | GP51: 7692 | GQ51: 48865 | GR51: 540025 | GS51: 392 | GT51: 629999 | GU51: 2697423 | GV51: 27559 | GW51: 0 | GX51: 0 | GY51: 0 | GZ51: 0 | HA51: 0 | HB51: 0 | HC51: 0 | HD51: 0 | HE51: 0 | HF51: 0 | HG51: 859480 | HH51: 0 | HI51: 0 | HJ51: 120652 | HK51: 689 | HL51: 0 | HM51: 146 | HN51: 30000 | HO51: 42777 | HP51: 599512 | HQ51: 431 | HR51: 643950 | HS51: 2772744 | HT51: 12875 | HU51: 0 | HV51: 0 | HW51: 0 | HX51: 0 | HY51: 0 | HZ51: 0 | IA51: 0 | IB51: 0 | IC51: 0 | ID51: 0
A52: Ver.05.00 | B52: 013633 | C52: 北海道 | D52: 厚沢部町 | E52: 5 | F52: - | G52: - | H52: 7.1 | I52: - | J52: 3083497 | K52: 11525 | L52: 一般会計 | M52: 80722 | AR52: 80722 | AS52: -2.61 | AT52: ① | AU52: 国民健康保険事業特別会計 | AV52: 19104 | AW52: ③ | AX52: 後期高齢者医療特別会計 | AY52: 0 | AZ52: ② | BA52: 介護保険事業特別会計（保険事業勘定） | BB52: 23219 | BC52: ⑥ | BD52: 介護保険事業特別会計（サービス事業勘定） | BE52: 0 | BF52: 0 | BI52: 0 | BL52: 0 | BO52: 0 | BR52: 0 | BU52: 0 | BX52: 0 | CA52: 0 | CD52: 0 | CG52: 国民健康保険病院事業特別会計 | CH52: 189633 | CI52: 0 | CJ52: 0 | CK52: 0 | CL52: 0 | CM52: 0 | CN52: 0 | CO52: 0 | CP52: 0 | CQ52: 0 | CR52: 0 | CS52: 0 | CT52: 0 | CU52: 0 | CV52: 0 | CW52: 0 | CX52: 0 | CY52: 0 | CZ52: 0 | DA52: 0 | DB52: 0 | DC52: 0 | DD52: 0 | DE52: 0 | DF52: 0 | DG52: 0 | DH52: 0 | DI52: 0 | DJ52: 0 | DK52: 0 | DL52: 0 | DM52: 0 | DN52: 0 | DO52: 0 | DP52: 0 | DQ52: 0 | DR52: 0 | DS52: 簡易水道事業特別会計 | DT52: 123811 | DU52: 農業集落排水事業特別会計 | DV52: 98972 | DW52: 0 | DX52: 0 | DY52: 0 | DZ52: 0 | EA52: 0 | EB52: 0 | EC52: 0 | ED52: 0 | EE52: 0 | EF52: 0 | EG52: 0 | EH52: 0 | EI52: 0 | EJ52: 0 | EK52: 0 | EL52: 0 | EM52: 0 | EN52: 0 | EO52: 0 | EP52: 0 | EQ52: 0 | ER52: 0 | ES52: 0 | ET52: 0 | EU52: 0 | EV52: 0 | EW52: 0 | EX52: 0 | EY52: 0 | EZ52: 0 | FA52: 0 | FB52: 0 | FC52: 0 | FD52: 0 | FE52: 535461 | FF52: -17.36 | FG52: 6.352884119 | FH52: 7.603156691 | FI52: 7.403701199 | FJ52: 7.1 | FK52: 500960 | FL52: 0 | FM52: 0 | FN52: 60750 | FO52: 1716 | FP52: 412 | FQ52: 0 | FR52: 0 | FS52: 28086 | FT52: 356191 | FU52: 5343 | FV52: 547200 | FW52: 2484307 | FX52: 100458 | FY52: 0 | FZ52: 0 | GA52: 0 | GB52: 0 | GC52: 0 | GD52: 0 | GE52: 0 | GF52: 0 | GG52: 0 | GH52: 412 | GI52: 517031 | GJ52: 0 | GK52: 0 | GL52: 69774 | GM52: 677 | GN52: 339 | GO52: 0 | GP52: 69 | GQ52: 24179 | GR52: 353350 | GS52: 5397 | GT52: 578036 | GU52: 2473573 | GV52: 25277 | GW52: 0 | GX52: 0 | GY52: 0 | GZ52: 0 | HA52: 0 | HB52: 0 | HC52: 0 | HD52: 0 | HE52: 0 | HF52: 339 | HG52: 513613 | HH52: 0 | HI52: 0 | HJ52: 73258 | HK52: 716 | HL52: 7747 | HM52: 0 | HN52: 69 | HO52: 22970 | HP52: 367937 | HQ52: 5407 | HR52: 598763 | HS52: 2473209 | HT52: 11525 | HU52: 0 | HV52: 0 | HW52: 0 | HX52: 0 | HY52: 0 | HZ52: 7476 | IA52: 0 | IB52: 0 | IC52: 0 | ID52: 271
A53: Ver.05.00 | B53: 013641 | C53: 北海道 | D53: 乙部町 | E53: 5 | F53: - | G53: - | H53: 6.7 | I53: - | J53: 2549365 | K53: 9197 | L53: 一般会計 | M53: 97350 | AR53: 97350 | AS53: -3.81 | AT53: ① | AU53: 国民健康保険事業特別会計 | AV53: 8426 | AW53: ③ | AX53: 後期高齢者医療特別会計 | AY53: 109 | AZ53: ② | BA53: 介護保険特別会計(保険事業勘定) | BB53: 5776 | BC53: ⑥ | BD53: 介護保険特別会計(サービス事業勘定) | BE53: 7463 | BF53: 0 | BI53: 0 | BL53: 0 | BO53: 0 | BR53: 0 | BU53: 0 | BX53: 0 | CA53: 0 | CD53: 0 | CG53: 国民健康保険病院事業会計 | CH53: 411802 | CI53: 0 | CJ53: 0 | CK53: 0 | CL53: 0 | CM53: 0 | CN53: 0 | CO53: 0 | CP53: 0 | CQ53: 0 | CR53: 0 | CS53: 0 | CT53: 0 | CU53: 0 | CV53: 0 | CW53: 0 | CX53: 0 | CY53: 0 | CZ53: 0 | DA53: 0 | DB53: 0 | DC53: 0 | DD53: 0 | DE53: 0 | DF53: 0 | DG53: 0 | DH53: 0 | DI53: 0 | DJ53: 0 | DK53: 0 | DL53: 0 | DM53: 0 | DN53: 0 | DO53: 0 | DP53: 0 | DQ53: 0 | DR53: 0 | DS53: 簡易水道事業特別会計 | DT53: 196655 | DU53: 公共下水道事業特別会計 | DV53: 34944 | DW53: 漁業集落排水事業特別会計 | DX53: 5328 | DY53: 0 | DZ53: 0 | EA53: 0 | EB53: 0 | EC53: 0 | ED53: 0 | EE53: 0 | EF53: 0 | EG53: 0 | EH53: 0 | EI53: 0 | EJ53: 0 | EK53: 0 | EL53: 0 | EM53: 0 | EN53: 0 | EO53: 0 | EP53: 0 | EQ53: 0 | ER53: 0 | ES53: 0 | ET53: 0 | EU53: 0 | EV53: 0 | EW53: 0 | EX53: 0 | EY53: 0 | EZ53: 0 | FA53: 0 | FB53: 0 | FC53: 0 | FD53: 0 | FE53: 767853 | FF53: -30.11 | FG53: 5.825718766 | FH53: 6.28925395 | FI53: 8.059913463 | FJ53: 6.7 | FK53: 486975 | FL53: 0 | FM53: 0 | FN53: 115562 | FO53: 1634 | FP53: 0 | FQ53: 0 | FR53: 37078 | FS53: 48588 | FT53: 386496 | FU53: 6543 | FV53: 398326 | FW53: 2118884 | FX53: 78074 | FY53: 0 | FZ53: 0 | GA53: 0 | GB53: 0 | GC53: 0 | GD53: 0 | GE53: 0 | GF53: 0 | GG53: 0 | GH53: 0 | GI53: 486730 | GJ53: 0 | GK53: 0 | GL53: 115525 | GM53: 1066 | GN53: 0 | GO53: 0 | GP53: 32061 | GQ53: 44639 | GR53: 388366 | GS53: 6224 | GT53: 402395 | GU53: 2115980 | GV53: 20165 | GW53: 0 | GX53: 0 | GY53: 0 | GZ53: 0 | HA53: 0 | HB53: 0 | HC53: 0 | HD53: 0 | HE53: 0 | HF53: 0 | HG53: 517969 | HH53: 0 | HI53: 0 | HJ53: 114781 | HK53: 574 | HL53: 0 | HM53: 0 | HN53: 26083 | HO53: 44699 | HP53: 386563 | HQ53: 5723 | HR53: 424969 | HS53: 2115199 | HT53: 9197 | HU53: 0 | HV53: 0 | HW53: 0 | HX53: 0 | HY53: 0 | HZ53: 0 | IA53: 0 | IB53: 0 | IC53: 0 | ID53: 0
A54: Ver.05.00 | B54: 013676 | C54: 北海道 | D54: 奥尻町 | E54: 5 | F54: - | G54: - | H54: 8.2 | I54: 54.6 | J54: 2437719 | K54: 8651 | L54: 一般会計 | M54: 156521 | N54: バス交通事業特別会計 | O54: 122 | P54: 自動車整備工場事業特別会計 | Q54: 1962 | R54: あわび種苗育成センター事業特別会計 | S54: 0 | AR54: 158605 | AS54: -6.5 | AT54: ① | AU54: 国民健康保険事業勘定特別会計 | AV54: 15410 | AW54: ② | AX54: 介護保険事業勘定特別会計 | AY54: 12535 | AZ54: ③ | BA54: 後期高齢者医療事業特別会計 | BB54: 155 | BC54: ③ | BD54: 介護保険介護サービス事業勘定特別会計 | BE54: 0 | BF54: 0 | BI54: 0 | BL54: 0 | BO54: 0 | BR54: 0 | BU54: 0 | BX54: 0 | CA54: 0 | CD54: 0 | CG54: 国民健康保険病院事業会計 | CH54: 0 | CI54: 0 | CJ54: 0 | CK54: 0 | CL54: 0 | CM54: 0 | CN54: 0 | CO54: 0 | CP54: 0 | CQ54: 0 | CR54: 0 | CS54: 0 | CT54: 0 | CU54: 0 | CV54: 0 | CW54: 0 | CX54: 0 | CY54: 0 | CZ54: 0 | DA54: 0 | DB54: 0 | DC54: 0 | DD54: 0 | DE54: 0 | DF54: 0 | DG54: 0 | DH54: 0 | DI54: 0 | DJ54: 0 | DK54: 0 | DL54: 0 | DM54: 0 | DN54: 0 | DO54: 0 | DP54: 0 | DQ54: 0 | DR54: 0 | DS54: 簡易水道事業特別会計 | DT54: 0 | DU54: 港湾施設用地造成事業特別会計 | DV54: 0 | DW54: 公共下水道事業特別会計 | DX54: 0 | DY54: 漁業集落排水事業特別会計 | DZ54: 0 | EA54: 0 | EB54: 0 | EC54: 0 | ED54: 0 | EE54: 0 | EF54: 0 | EG54: 0 | EH54: 0 | EI54: 0 | EJ54: 0 | EK54: 0 | EL54: 0 | EM54: 0 | EN54: 0 | EO54: 0 | EP54: 0 | EQ54: 0 | ER54: 0 | ES54: 0 | ET54: 0 | EU54: 0 | EV54: 0 | EW54: 0 | EX54: 0 | EY54: 0 | EZ54: 0 | FA54: 0 | FB54: 0 | FC54: 0 | FD54: 0 | FE54: 186705 | FF54: -7.65 | FG54: 8.643748729 | FH54: 8.031170901 | FI54: 7.960759031 | FJ54: 8.2 | FK54: 614354 | FL54: 0 | FM54: 0 | FN54: 75364 | FO54: 125 | FP54: 3230 | FQ54: 734 | FR54: 103494 | FS54: 44077 | FT54: 361250 | FU54: 2239 | FV54: 366218 | FW54: 2080853 | FX54: 74705 | FY54: 0 | FZ54: 0 | GA54: 0 | GB54: 0 | GC54: 0 | GD54: 0 | GE54: 0 | GF54: 0 | GG54: 3230 | GH54: 0 | GI54: 607580 | GJ54: 0 | GK54: 0 | GL54: 77103 | GM54: 125 | GN54: 1258 | GO54: 808 | GP54: 108015 | GQ54: 33165 | GR54: 380092 | GS54: 294 | GT54: 377730 | GU54: 2074997 | GV54: 19154 | GW54: 0 | GX54: 0 | GY54: 0 | GZ54: 0 | HA54: 0 | HB54: 0 | HC54: 0 | HD54: 0 | HE54: 1258 | HF54: 0 | HG54: 574386 | HH54: 0 | HI54: 0 | HJ54: 78509 | HK54: 125 | HL54: 6600 | HM54: 4740 | HN54: 103970 | HO54: 27688 | HP54: 370326 | HQ54: 0 | HR54: 374066 | HS54: 2055002 | HT54: 8651 | HU54: 0 | HV54: 0 | HW54: 0 | HX54: 0 | HY54: 0 | HZ54: 0 | IA54: 0 | IB54: 0 | IC54: 6600 | ID54: 0
A55: Ver.05.00 | B55: 013706 | C55: 北海道 | D55: 今金町 | E55: 5 | F55: - | G55: - | H55: 8.3 | I55: - | J55: 3712638 | K55: 14557 | L55: 一般会計 | M55: 112184 | AR55: 112184 | AS55: -3.02 | AT55: ① | AU55: 国民健康保険特別会計事業勘定 | AV55: 1659 | AW55: ② | AX55: 介護保険特別会計 | AY55: 530 | AZ55: ③ | BA55: 後期高齢者医療特別会計 | BB55: 92 | BC55: 0 | BF55: 0 | BI55: 0 | BL55: 0 | BO55: 0 | BR55: 0 | BU55: 0 | BX55: 0 | CA55: 0 | CD55: 0 | CG55: 国民健康保険特別会計施設勘定 | CH55: 412311 | CI55: 介護老人保健施設特別会計 | CJ55: 0 | CK55: 0 | CL55: 0 | CM55: 0 | CN55: 0 | CO55: 0 | CP55: 0 | CQ55: 0 | CR55: 0 | CS55: 0 | CT55: 0 | CU55: 0 | CV55: 0 | CW55: 0 | CX55: 0 | CY55: 0 | CZ55: 0 | DA55: 0 | DB55: 0 | DC55: 0 | DD55: 0 | DE55: 0 | DF55: 0 | DG55: 0 | DH55: 0 | DI55: 0 | DJ55: 0 | DK55: 0 | DL55: 0 | DM55: 0 | DN55: 0 | DO55: 0 | DP55: 0 | DQ55: 0 | DR55: 0 | DS55: 簡易水道事業特別会計 | DT55: 9411 | DU55: 公共下水道事業特別会計 | DV55: 8716 | DW55: 0 | DX55: 0 | DY55: 0 | DZ55: 0 | EA55: 0 | EB55: 0 | EC55: 0 | ED55: 0 | EE55: 0 | EF55: 0 | EG55: 0 | EH55: 0 | EI55: 0 | EJ55: 0 | EK55: 0 | EL55: 0 | EM55: 0 | EN55: 0 | EO55: 0 | EP55: 0 | EQ55: 0 | ER55: 0 | ES55: 0 | ET55: 0 | EU55: 0 | EV55: 0 | EW55: 0 | EX55: 0 | EY55: 0 | EZ55: 0 | FA55: 0 | FB55: 0 | FC55: 0 | FD55: 0 | FE55: 544903 | FF55: -14.67 | FG55: 7.781359888 | FH55: 9.179688182 | FI55: 8.06758425 | FJ55: 8.3 | FK55: 606803 | FL55: 0 | FM55: 0 | FN55: 130618 | FO55: 9092 | FP55: 244 | FQ55: 0 | FR55: 39825 | FS55: 41703 | FT55: 407988 | FU55: 6125 | FV55: 796632 | FW55: 2771346 | FX55: 114986 | FY55: 0 | FZ55: 0 | GA55: 0 | GB55: 0 | GC55: 0 | GD55: 0 | GE55: 0 | GF55: 0 | GG55: 0 | GH55: 244 | GI55: 724603 | GJ55: 0 | GK55: 0 | GL55: 123500 | GM55: 12359 | GN55: 271 | GO55: 0 | GP55: 38502 | GQ55: 40012 | GR55: 487102 | GS55: 5900 | GT55: 816510 | GU55: 2836367 | GV55: 30756 | GW55: 0 | GX55: 0 | GY55: 0 | GZ55: 0 | HA55: 0 | HB55: 0 | HC55: 0 | HD55: 0 | HE55: 0 | HF55: 271 | HG55: 711260 | HH55: 0 | HI55: 0 | HJ55: 105676 | HK55: 14221 | HL55: 228 | HM55: 0 | HN55: 31997 | HO55: 38825 | HP55: 498278 | HQ55: 6631 | HR55: 833706 | HS55: 2864375 | HT55: 14557 | HU55: 0 | HV55: 0 | HW55: 0 | HX55: 0 | HY55: 0 | HZ55: 0 | IA55: 0 | IB55: 0 | IC55: 0 | ID55: 228
A56: Ver.05.00 | B56: 013714 | C56: 北海道 | D56: せたな町 | E56: 5 | F56: - | G56: - | H56: 8.4 | I56: - | J56: 5787966 | K56: 20763 | L56: 一般会計 | M56: 232472 | N56: 営農用水道等事業特別会計 | O56: 1735 | AR56: 234207 | AS56: -4.04 | AT56: ① | AU56: 国民健康保険事業特別会計 | AV56: 330 | AW56: ② | AX56: 介護保険事業特別会計 | AY56: 41671 | AZ56: ③ | BA56: 後期高齢者医療特別会計 | BB56: 726 | BC56: ⑥ | BD56: 介護サービス事業特別会計 | BE56: 105 | BF56: 0 | BI56: 0 | BL56: 0 | BO56: 0 | BR56: 0 | BU56: 0 | BX56: 0 | CA56: 0 | CD56: 0 | CG56: 病院事業会計 | CH56: 1254222 | CI56: 0 | CJ56: 0 | CK56: 0 | CL56: 0 | CM56: 0 | CN56: 0 | CO56: 0 | CP56: 0 | CQ56: 0 | CR56: 0 | CS56: 0 | CT56: 0 | CU56: 0 | CV56: 0 | CW56: 0 | CX56: 0 | CY56: 0 | CZ56: 0 | DA56: 0 | DB56: 0 | DC56: 0 | DD56: 0 | DE56: 0 | DF56: 0 | DG56: 0 | DH56: 0 | DI56: 0 | DJ56: 0 | DK56: 0 | DL56: 0 | DM56: 0 | DN56: 0 | DO56: 0 | DP56: 0 | DQ56: 0 | DR56: 0 | DS56: 簡易水道事業特別会計 | DT56: 10652 | DU56: 公共下水道事業特別会計 | DV56: 30345 | DW56: 漁業集落排水事業特別会計 | DX56: 1742 | DY56: 風力発電事業特別会計 | DZ56: 0 | EA56: 0 | EB56: 0 | EC56: 0 | ED56: 0 | EE56: 0 | EF56: 0 | EG56: 0 | EH56: 0 | EI56: 0 | EJ56: 0 | EK56: 0 | EL56: 0 | EM56: 0 | EN56: 0 | EO56: 0 | EP56: 0 | EQ56: 0 | ER56: 0 | ES56: 0 | ET56: 0 | EU56: 0 | EV56: 0 | EW56: 0 | EX56: 0 | EY56: 0 | EZ56: 0 | FA56: 0 | FB56: 0 | FC56: 0 | FD56: 0 | FE56: 1574000 | FF56: -27.19 | FG56: 8.755310696 | FH56: 8.804691496 | FI56: 7.933276057 | FJ56: 8.4 | FK56: 1146810 | FL56: 0 | FM56: 0 | FN56: 292032 | FO56: 7796 | FP56: 4257 | FQ56: 0 | FR56: 84188 | FS56: 94028 | FT56: 824428 | FU56: 16313 | FV56: 1101998 | FW56: 4595543 | FX56: 170668 | FY56: 0 | FZ56: 0 | GA56: 0 | GB56: 0 | GC56: 0 | GD56: 0 | GE56: 0 | GF56: 0 | GG56: 3057 | GH56: 1200 | GI56: 1148877 | GJ56: 0 | GK56: 0 | GL56: 277882 | GM56: 12650 | GN56: 4338 | GO56: 0 | GP56: 79149 | GQ56: 91193 | GR56: 832050 | GS56: 16042 | GT56: 1120507 | GU56: 4603610 | GV56: 45695 | GW56: 0 | GX56: 0 | GY56: 0 | GZ56: 0 | HA56: 0 | HB56: 0 | HC56: 0 | HD56: 0 | HE56: 3053 | HF56: 1285 | HG56: 1090483 | HH56: 0 | HI56: 0 | HJ56: 289296 | HK56: 18659 | HL56: 4321 | HM56: 0 | HN56: 61938 | HO56: 88368 | HP56: 853889 | HQ56: 15359 | HR56: 1152527 | HS56: 4614676 | HT56: 20763 | HU56: 0 | HV56: 0 | HW56: 0 | HX56: 0 | HY56: 0 | HZ56: 0 | IA56: 0 | IB56: 0 | IC56: 2024 | ID56: 2297
A57: Ver.05.00 | B57: 013919 | C57: 北海道 | D57: 島牧村 | E57: 5 | F57: - | G57: - | H57: 6.6 | I57: 17 | J57: 1758999 | K57: 5651 | L57: 一般会計 | M57: 79618 | AR57: 79618 | AS57: -4.52 | AT57: ① | AU57: 国民健康保険事業特別会計 | AV57: 2519 | AW57: ③ | AX57: 後期高齢者医療特別会計 | AY57: 0 | AZ57: 0 | BC57: 0 | BF57: 0 | BI57: 0 | BL57: 0 | BO57: 0 | BR57: 0 | BU57: 0 | BX57: 0 | CA57: 0 | CD57: 0 | CG57: 0 | CH57: 0 | CI57: 0 | CJ57: 0 | CK57: 0 | CL57: 0 | CM57: 0 | CN57: 0 | CO57: 0 | CP57: 0 | CQ57: 0 | CR57: 0 | CS57: 0 | CT57: 0 | CU57: 0 | CV57: 0 | CW57: 0 | CX57: 0 | CY57: 0 | CZ57: 0 | DA57: 0 | DB57: 0 | DC57: 0 | DD57: 0 | DE57: 0 | DF57: 0 | DG57: 0 | DH57: 0 | DI57: 0 | DJ57: 0 | DK57: 0 | DL57: 0 | DM57: 0 | DN57: 0 | DO57: 0 | DP57: 0 | DQ57: 0 | DR57: 0 | DS57: 簡易水道事業特別会計 | DT57: 1004 | DU57: 合併処理浄化槽事業特別会計 | DV57: 1305 | DW57: 0 | DX57: 0 | DY57: 0 | DZ57: 0 | EA57: 0 | EB57: 0 | EC57: 0 | ED57: 0 | EE57: 0 | EF57: 0 | EG57: 0 | EH57: 0 | EI57: 0 | EJ57: 0 | EK57: 0 | EL57: 0 | EM57: 0 | EN57: 0 | EO57: 0 | EP57: 0 | EQ57: 0 | ER57: 0 | ES57: 0 | ET57: 0 | EU57: 0 | EV57: 0 | EW57: 0 | EX57: 0 | EY57: 0 | EZ57: 0 | FA57: 0 | FB57: 0 | FC57: 0 | FD57: 0 | FE57: 84446 | FF57: -4.8 | FG57: 6.724303872 | FH57: 6.470127873 | FI57: 6.671680451 | FJ57: 6.6 | FK57: 334880 | FL57: 0 | FM57: 0 | FN57: 45629 | FO57: 0 | FP57: 25347 | FQ57: 83 | FR57: 2426 | FS57: 4537 | FT57: 293445 | FU57: 3946 | FV57: 171070 | FW57: 1591772 | FX57: 49800 | FY57: 0 | FZ57: 0 | GA57: 0 | GB57: 0 | GC57: 0 | GD57: 0 | GE57: 0 | GF57: 0 | GG57: 25347 | GH57: 0 | GI57: 333237 | GJ57: 0 | GK57: 0 | GL57: 46234 | GM57: 0 | GN57: 23121 | GO57: 92 | GP57: 7464 | GQ57: 4467 | GR57: 292677 | GS57: 3498 | GT57: 168134 | GU57: 1581805 | GV57: 12467 | GW57: 0 | GX57: 0 | GY57: 0 | GZ57: 0 | HA57: 0 | HB57: 0 | HC57: 0 | HD57: 0 | HE57: 23121 | HF57: 0 | HG57: 325756 | HH57: 0 | HI57: 0 | HJ57: 50388 | HK57: 0 | HL57: 23970 | HM57: 82 | HN57: 7490 | HO57: 3986 | HP57: 288584 | HQ57: 2465 | HR57: 172150 | HS57: 1581198 | HT57: 5651 | HU57: 0 | HV57: 0 | HW57: 0 | HX57: 0 | HY57: 0 | HZ57: 0 | IA57: 0 | IB57: 0 | IC57: 23970 | ID57: 0
A58: Ver.05.00 | B58: 013927 | C58: 北海道 | D58: 寿都町 | E58: 5 | F58: - | G58: - | H58: 13.4 | I58: - | J58: 2275144 | K58: 8101 | L58: 一般会計 | M58: 55804 | AR58: 55804 | AS58: -2.45 | AT58: ① | AU58: 寿都町国民健康保険事業特別会計 | AV58: 4874 | AW58: ② | AX58: 寿都町介護保険事業特別会計 | AY58: 16090 | AZ58: ③ | BA58: 寿都町後期高齢者医療特別会計 | BB58: 332 | BC58: 0 | BF58: 0 | BI58: 0 | BL58: 0 | BO58: 0 | BR58: 0 | BU58: 0 | BX58: 0 | CA58: 0 | CD58: 0 | CG58: 寿都町風力発電事業会計 | CH58: 882043 | CI58: 寿都町簡易水道事業会計 | CJ58: 18751 | CK58: 寿都町公共下水道事業会計 | CL58: 22935 | CM58: 0 | CN58: 0 | CO58: 0 | CP58: 0 | CQ58: 0 | CR58: 0 | CS58: 0 | CT58: 0 | CU58: 0 | CV58: 0 | CW58: 0 | CX58: 0 | CY58: 0 | CZ58: 0 | DA58: 0 | DB58: 0 | DC58: 0 | DD58: 0 | DE58: 0 | DF58: 0 | DG58: 0 | DH58: 0 | DI58: 0 | DJ58: 0 | DK58: 0 | DL58: 0 | DM58: 0 | DN58: 0 | DO58: 0 | DP58: 0 | DQ58: 0 | DR58: 0 | DS58: 0 | DT58: 0 | DU58: 0 | DV58: 0 | DW58: 0 | DX58: 0 | DY58: 0 | DZ58: 0 | EA58: 0 | EB58: 0 | EC58: 0 | ED58: 0 | EE58: 0 | EF58: 0 | EG58: 0 | EH58: 0 | EI58: 0 | EJ58: 0 | EK58: 0 | EL58: 0 | EM58: 0 | EN58: 0 | EO58: 0 | EP58: 0 | EQ58: 0 | ER58: 0 | ES58: 0 | ET58: 0 | EU58: 0 | EV58: 0 | EW58: 0 | EX58: 0 | EY58: 0 | EZ58: 0 | FA58: 0 | FB58: 0 | FC58: 0 | FD58: 0 | FE58: 1000829 | FF58: -43.98 | FG58: 12.27619212 | FH58: 12.51597127 | FI58: 15.67223322 | FJ58: 13.4 | FK58: 646536 | FL58: 0 | FM58: 0 | FN58: 123613 | FO58: 0 | FP58: 3613 | FQ58: 0 | FR58: 85633 | FS58: 64232 | FT58: 395168 | FU58: 8898 | FV58: 346005 | FW58: 1846877 | FX58: 66126 | FY58: 0 | FZ58: 0 | GA58: 0 | GB58: 0 | GC58: 0 | GD58: 0 | GE58: 0 | GF58: 0 | GG58: 3613 | GH58: 0 | GI58: 651161 | GJ58: 0 | GK58: 0 | GL58: 107265 | GM58: 0 | GN58: 3614 | GO58: 0 | GP58: 80824 | GQ58: 63681 | GR58: 388801 | GS58: 8135 | GT58: 401800 | GU58: 1804741 | GV58: 16616 | GW58: 0 | GX58: 0 | GY58: 0 | GZ58: 0 | HA58: 0 | HB58: 0 | HC58: 0 | HD58: 0 | HE58: 3614 | HF58: 0 | HG58: 723112 | HH58: 0 | HI58: 0 | HJ58: 112420 | HK58: 0 | HL58: 8041 | HM58: 0 | HN58: 78332 | HO58: 63129 | HP58: 414307 | HQ58: 7191 | HR58: 406545 | HS58: 1860498 | HT58: 8101 | HU58: 0 | HV58: 0 | HW58: 0 | HX58: 0 | HY58: 0 | HZ58: 0 | IA58: 0 | IB58: 0 | IC58: 8041 | ID58: 0
A59: Ver.05.00 | B59: 013935 | C59: 北海道 | D59: 黒松内町 | E59: 5 | F59: - | G59: - | H59: 12.6 | I59: 7.4 | J59: 2649669 | K59: 9632 | L59: 一般会計 | M59: 255602 | AR59: 255602 | AS59: -9.64 | AT59: ① | AU59: 国民健康保険事業特別会計 | AV59: 1367 | AW59: ⑥ | AX59: 老人保健施設事業特別会計 | AY59: 0 | AZ59: ③ | BA59: 後期高齢者医療特別会計 | BB59: 389 | BC59: ① | BD59: 国民健康保険診療所事業特別会計 | BE59: 478 | BF59: 0 | BI59: 0 | BL59: 0 | BO59: 0 | BR59: 0 | BU59: 0 | BX59: 0 | CA59: 0 | CD59: 0 | CG59: 0 | CH59: 0 | CI59: 0 | CJ59: 0 | CK59: 0 | CL59: 0 | CM59: 0 | CN59: 0 | CO59: 0 | CP59: 0 | CQ59: 0 | CR59: 0 | CS59: 0 | CT59: 0 | CU59: 0 | CV59: 0 | CW59: 0 | CX59: 0 | CY59: 0 | CZ59: 0 | DA59: 0 | DB59: 0 | DC59: 0 | DD59: 0 | DE59: 0 | DF59: 0 | DG59: 0 | DH59: 0 | DI59: 0 | DJ59: 0 | DK59: 0 | DL59: 0 | DM59: 0 | DN59: 0 | DO59: 0 | DP59: 0 | DQ59: 0 | DR59: 0 | DS59: 簡易水道特別会計 | DT59: 11560 | DU59: 公共下水道事業特別会計 | DV59: 137235 | DW59: 0 | DX59: 0 | DY59: 0 | DZ59: 0 | EA59: 0 | EB59: 0 | EC59: 0 | ED59: 0 | EE59: 0 | EF59: 0 | EG59: 0 | EH59: 0 | EI59: 0 | EJ59: 0 | EK59: 0 | EL59: 0 | EM59: 0 | EN59: 0 | EO59: 0 | EP59: 0 | EQ59: 0 | ER59: 0 | ES59: 0 | ET59: 0 | EU59: 0 | EV59: 0 | EW59: 0 | EX59: 0 | EY59: 0 | EZ59: 0 | FA59: 0 | FB59: 0 | FC59: 0 | FD59: 0 | FE59: 406631 | FF59: -15.34 | FG59: 11.78687364 | FH59: 14.57580926 | FI59: 11.69160645 | FJ59: 12.6 | FK59: 691641 | FL59: 0 | FM59: 0 | FN59: 116181 | FO59: 0 | FP59: 24055 | FQ59: 0 | FR59: 77189 | FS59: 39885 | FT59: 445958 | FU59: 6398 | FV59: 397339 | FW59: 2238537 | FX59: 82969 | FY59: 0 | FZ59: 0 | GA59: 0 | GB59: 0 | GC59: 0 | GD59: 24028 | GE59: 0 | GF59: 0 | GG59: 0 | GH59: 27 | GI59: 721083 | GJ59: 0 | GK59: 0 | GL59: 112668 | GM59: 0 | GN59: 20628 | GO59: 195 | GP59: 79349 | GQ59: 35348 | GR59: 414368 | GS59: 6432 | GT59: 415569 | GU59: 2208506 | GV59: 21159 | GW59: 0 | GX59: 0 | GY59: 0 | GZ59: 0 | HA59: 0 | HB59: 20628 | HC59: 0 | HD59: 0 | HE59: 0 | HF59: 0 | HG59: 633166 | HH59: 0 | HI59: 0 | HJ59: 122846 | HK59: 0 | HL59: 14268 | HM59: 0 | HN59: 65372 | HO59: 35450 | HP59: 405508 | HQ59: 6473 | HR59: 426817 | HS59: 2213220 | HT59: 9632 | HU59: 0 | HV59: 0 | HW59: 0 | HX59: 0 | HY59: 0 | HZ59: 14268 | IA59: 0 | IB59: 0 | IC59: 0 | ID59: 0
A60: Ver.05.00 | B60: 013943 | C60: 北海道 | D60: 蘭越町 | E60: 5 | F60: - | G60: - | H60: 10.6 | I60: - | J60: 3812025 | K60: 14686 | L60: 一般会計 | M60: 378106 | N60: 後志公平委員会特別会計 | O60: 633 | P60: 地域振興事業特別会計 | Q60: 2406 | R60: 特産品開発事業特別会計 | S60: 364 | AR60: 381509 | AS60: -10 | AT60: ① | AU60: 国民健康保険特別会計 | AV60: 11042 | AW60: ③ | AX60: 後期高齢者医療特別会計 | AY60: 664 | AZ60: ⑥ | BA60: 介護サービス事業特別会計 | BB60: 3671 | BC60: 0 | BF60: 0 | BI60: 0 | BL60: 0 | BO60: 0 | BR60: 0 | BU60: 0 | BX60: 0 | CA60: 0 | CD60: 0 | CG60: 簡易水道事業会計 | CH60: 17790 | CI60: 農業集落排水事業会計 | CJ60: 6555 | CK60: 0 | CL60: 0 | CM60: 0 | CN60: 0 | CO60: 0 | CP60: 0 | CQ60: 0 | CR60: 0 | CS60: 0 | CT60: 0 | CU60: 0 | CV60: 0 | CW60: 0 | CX60: 0 | CY60: 0 | CZ60: 0 | DA60: 0 | DB60: 0 | DC60: 0 | DD60: 0 | DE60: 0 | DF60: 0 | DG60: 0 | DH60: 0 | DI60: 0 | DJ60: 0 | DK60: 0 | DL60: 0 | DM60: 0 | DN60: 0 | DO60: 0 | DP60: 0 | DQ60: 0 | DR60: 0 | DS60: 幽泉閣事業特別会計 | DT60: 1163 | DU60: 0 | DV60: 0 | DW60: 0 | DX60: 0 | DY60: 0 | DZ60: 0 | EA60: 0 | EB60: 0 | EC60: 0 | ED60: 0 | EE60: 0 | EF60: 0 | EG60: 0 | EH60: 0 | EI60: 0 | EJ60: 0 | EK60: 0 | EL60: 0 | EM60: 0 | EN60: 0 | EO60: 0 | EP60: 0 | EQ60: 0 | ER60: 0 | ES60: 0 | ET60: 0 | EU60: 0 | EV60: 0 | EW60: 0 | EX60: 0 | EY60: 0 | EZ60: 0 | FA60: 0 | FB60: 0 | FC60: 0 | FD60: 0 | FE60: 422394 | FF60: -11.08 | FG60: 10.23647531 | FH60: 10.65098565 | FI60: 10.9403579 | FJ60: 10.6 | FK60: 862465 | FL60: 0 | FM60: 0 | FN60: 89680 | FO60: 8529 | FP60: 40107 | FQ60: 273 | FR60: 92372 | FS60: 36853 | FT60: 538232 | FU60: 4026 | FV60: 724179 | FW60: 2951376 | FX60: 123131 | FY60: 0 | FZ60: 0 | GA60: 0 | GB60: 0 | GC60: 0 | GD60: 0 | GE60: 0 | GF60: 0 | GG60: 40081 | GH60: 26 | GI60: 904170 | GJ60: 0 | GK60: 0 | GL60: 96686 | GM60: 8533 | GN60: 23660 | GO60: 217 | GP60: 112772 | GQ60: 29792 | GR60: 549015 | GS60: 3024 | GT60: 829470 | GU60: 2900369 | GV60: 31632 | GW60: 0 | GX60: 0 | GY60: 0 | GZ60: 0 | HA60: 0 | HB60: 0 | HC60: 0 | HD60: 0 | HE60: 23644 | HF60: 16 | HG60: 951721 | HH60: 0 | HI60: 0 | HJ60: 86661 | HK60: 2988 | HL60: 34351 | HM60: 217 | HN60: 94354 | HO60: 29905 | HP60: 601909 | HQ60: 2070 | HR60: 822029 | HS60: 2975310 | HT60: 14686 | HU60: 0 | HV60: 0 | HW60: 0 | HX60: 0 | HY60: 0 | HZ60: 0 | IA60: 0 | IB60: 0 | IC60: 34338 | ID60: 13
A61: Ver.05.00 | B61: 013951 | C61: 北海道 | D61: ニセコ町 | E61: 5 | F61: - | G61: - | H61: 4.2 | I61: 37.9 | J61: 3206096 | K61: 15682 | L61: 一般会計 | M61: 198372 | AR61: 198372 | AS61: -6.18 | AT61: ① | AU61: 国民健康保険事業特別会計 | AV61: 1258 | AW61: ③ | AX61: 後期高齢者医療特別会計 | AY61: 41 | AZ61: 0 | BC61: 0 | BF61: 0 | BI61: 0 | BL61: 0 | BO61: 0 | BR61: 0 | BU61: 0 | BX61: 0 | CA61: 0 | CD61: 0 | CG61: 0 | CH61: 0 | CI61: 0 | CJ61: 0 | CK61: 0 | CL61: 0 | CM61: 0 | CN61: 0 | CO61: 0 | CP61: 0 | CQ61: 0 | CR61: 0 | CS61: 0 | CT61: 0 | CU61: 0 | CV61: 0 | CW61: 0 | CX61: 0 | CY61: 0 | CZ61: 0 | DA61: 0 | DB61: 0 | DC61: 0 | DD61: 0 | DE61: 0 | DF61: 0 | DG61: 0 | DH61: 0 | DI61: 0 | DJ61: 0 | DK61: 0 | DL61: 0 | DM61: 0 | DN61: 0 | DO61: 0 | DP61: 0 | DQ61: 0 | DR61: 0 | DS61: 簡易水道事業特別会計 | DT61: 17838 | DU61: 公共下水道事業特別会計 | DV61: 13809 | DW61: 0 | DX61: 0 | DY61: 0 | DZ61: 0 | EA61: 0 | EB61: 0 | EC61: 0 | ED61: 0 | EE61: 0 | EF61: 0 | EG61: 0 | EH61: 0 | EI61: 0 | EJ61: 0 | EK61: 0 | EL61: 0 | EM61: 0 | EN61: 0 | EO61: 0 | EP61: 0 | EQ61: 0 | ER61: 0 | ES61: 0 | ET61: 0 | EU61: 0 | EV61: 0 | EW61: 0 | EX61: 0 | EY61: 0 | EZ61: 0 | FA61: 0 | FB61: 0 | FC61: 0 | FD61: 0 | FE61: 231318 | FF61: -7.21 | FG61: 5.093184404 | FH61: 4.180561566 | FI61: 3.433562643 | FJ61: 4.2 | FK61: 711161 | FL61: 0 | FM61: 0 | FN61: 145080 | FO61: 8512 | FP61: 89 | FQ61: 770 | FR61: 107478 | FS61: 54147 | FT61: 417921 | FU61: 156138 | FV61: 1027847 | FW61: 2029085 | FX61: 122291 | FY61: 0 | FZ61: 0 | GA61: 0 | GB61: 0 | GC61: 0 | GD61: 0 | GE61: 0 | GF61: 0 | GG61: 74 | GH61: 15 | GI61: 695870 | GJ61: 0 | GK61: 0 | GL61: 147449 | GM61: 9708 | GN61: 77 | GO61: 707 | GP61: 87251 | GQ61: 54353 | GR61: 450932 | GS61: 156171 | GT61: 1073001 | GU61: 2068367 | GV61: 34200 | GW61: 0 | GX61: 0 | GY61: 0 | GZ61: 0 | HA61: 0 | HB61: 0 | HC61: 0 | HD61: 0 | HE61: 64 | HF61: 13 | HG61: 681797 | HH61: 0 | HI61: 0 | HJ61: 134505 | HK61: 4139 | HL61: 53 | HM61: 801 | HN61: 75510 | HO61: 56609 | HP61: 451892 | HQ61: 149804 | HR61: 1122601 | HS61: 2067813 | HT61: 15682 | HU61: 0 | HV61: 0 | HW61: 0 | HX61: 0 | HY61: 0 | HZ61: 0 | IA61: 0 | IB61: 0 | IC61: 43 | ID61: 10
A62: Ver.05.00 | B62: 013960 | C62: 北海道 | D62: 真狩村 | E62: 5 | F62: - | G62: - | H62: 9.4 | I62: 42.1 | J62: 1855069 | K62: 6965 | L62: 一般会計 | M62: 85173 | AR62: 85173 | AS62: -4.59 | AT62: ① | AU62: 国民健康保険事業特別会計 | AV62: 1477 | AW62: ① | AX62: 国民健康保険診療所事業特別会計 | AY62: 0 | AZ62: ③ | BA62: 後期高齢者医療特別会計 | BB62: 92 | BC62: 0 | BF62: 0 | BI62: 0 | BL62: 0 | BO62: 0 | BR62: 0 | BU62: 0 | BX62: 0 | CA62: 0 | CD62: 0 | CG62: 0 | CH62: 0 | CI62: 0 | CJ62: 0 | CK62: 0 | CL62: 0 | CM62: 0 | CN62: 0 | CO62: 0 | CP62: 0 | CQ62: 0 | CR62: 0 | CS62: 0 | CT62: 0 | CU62: 0 | CV62: 0 | CW62: 0 | CX62: 0 | CY62: 0 | CZ62: 0 | DA62: 0 | DB62: 0 | DC62: 0 | DD62: 0 | DE62: 0 | DF62: 0 | DG62: 0 | DH62: 0 | DI62: 0 | DJ62: 0 | DK62: 0 | DL62: 0 | DM62: 0 | DN62: 0 | DO62: 0 | DP62: 0 | DQ62: 0 | DR62: 0 | DS62: 簡易水道事業特別会計 | DT62: 8737 | DU62: 公共下水道事業特別会計 | DV62: 23665 | DW62: 0 | DX62: 0 | DY62: 0 | DZ62: 0 | EA62: 0 | EB62: 0 | EC62: 0 | ED62: 0 | EE62: 0 | EF62: 0 | EG62: 0 | EH62: 0 | EI62: 0 | EJ62: 0 | EK62: 0 | EL62: 0 | EM62: 0 | EN62: 0 | EO62: 0 | EP62: 0 | EQ62: 0 | ER62: 0 | ES62: 0 | ET62: 0 | EU62: 0 | EV62: 0 | EW62: 0 | EX62: 0 | EY62: 0 | EZ62: 0 | FA62: 0 | FB62: 0 | FC62: 0 | FD62: 0 | FE62: 119144 | FF62: -6.42 | FG62: 9.785149769 | FH62: 10.67060718 | FI62: 8.036919503 | FJ62: 9.4 | FK62: 319377 | FL62: 0 | FM62: 0 | FN62: 127228 | FO62: 5983 | FP62: 14094 | FQ62: 98 | FR62: 65589 | FS62: 31903 | FT62: 200158 | FU62: 10787 | FV62: 307407 | FW62: 1494693 | FX62: 58945 | FY62: 0 | FZ62: 0 | GA62: 0 | GB62: 0 | GC62: 0 | GD62: 3742 | GE62: 0 | GF62: 0 | GG62: 10352 | GH62: 0 | GI62: 314193 | GJ62: 0 | GK62: 0 | GL62: 138481 | GM62: 6040 | GN62: 14496 | GO62: 21 | GP62: 65956 | GQ62: 29518 | GR62: 196989 | GS62: 10963 | GT62: 326436 | GU62: 1487117 | GV62: 15251 | GW62: 0 | GX62: 0 | GY62: 0 | GZ62: 0 | HA62: 0 | HB62: 3707 | HC62: 0 | HD62: 0 | HE62: 10789 | HF62: 0 | HG62: 285967 | HH62: 0 | HI62: 0 | HJ62: 122815 | HK62: 2105 | HL62: 13592 | HM62: 15 | HN62: 64169 | HO62: 28824 | HP62: 189947 | HQ62: 10924 | HR62: 348866 | HS62: 1499238 | HT62: 6965 | HU62: 0 | HV62: 0 | HW62: 0 | HX62: 0 | HY62: 0 | HZ62: 3671 | IA62: 0 | IB62: 0 | IC62: 9921 | ID62: 0
A63: Ver.05.00 | B63: 013978 | C63: 北海道 | D63: 留寿都村 | E63: 5 | F63: - | G63: - | H63: 12.7 | I63: 47.3 | J63: 1840592 | K63: 7960 | L63: 一般会計 | M63: 156244 | N63: 診療事業特別会計 | O63: 10 | AR63: 156254 | AS63: -8.48 | AT63: ① | AU63: 国民健康保険事業特別会計 | AV63: 5974 | AW63: ⑥ | AX63: 介護サービス事業特別会計 | AY63: 10 | AZ63: ③ | BA63: 後期高齢者医療事業特別会計 | BB63: 10 | BC63: 0 | BF63: 0 | BI63: 0 | BL63: 0 | BO63: 0 | BR63: 0 | BU63: 0 | BX63: 0 | CA63: 0 | CD63: 0 | CG63: 0 | CH63: 0 | CI63: 0 | CJ63: 0 | CK63: 0 | CL63: 0 | CM63: 0 | CN63: 0 | CO63: 0 | CP63: 0 | CQ63: 0 | CR63: 0 | CS63: 0 | CT63: 0 | CU63: 0 | CV63: 0 | CW63: 0 | CX63: 0 | CY63: 0 | CZ63: 0 | DA63: 0 | DB63: 0 | DC63: 0 | DD63: 0 | DE63: 0 | DF63: 0 | DG63: 0 | DH63: 0 | DI63: 0 | DJ63: 0 | DK63: 0 | DL63: 0 | DM63: 0 | DN63: 0 | DO63: 0 | DP63: 0 | DQ63: 0 | DR63: 0 | DS63: 簡易水道事業特別会計 | DT63: 2525 | DU63: 公共下水道事業特別会計 | DV63: 3124 | DW63: 0 | DX63: 0 | DY63: 0 | DZ63: 0 | EA63: 0 | EB63: 0 | EC63: 0 | ED63: 0 | EE63: 0 | EF63: 0 | EG63: 0 | EH63: 0 | EI63: 0 | EJ63: 0 | EK63: 0 | EL63: 0 | EM63: 0 | EN63: 0 | EO63: 0 | EP63: 0 | EQ63: 0 | ER63: 0 | ES63: 0 | ET63: 0 | EU63: 0 | EV63: 0 | EW63: 0 | EX63: 0 | EY63: 0 | EZ63: 0 | FA63: 0 | FB63: 0 | FC63: 0 | FD63: 0 | FE63: 167897 | FF63: -9.12 | FG63: 16.41544048 | FH63: 10.84882278 | FI63: 10.9787346 | FJ63: 12.7 | FK63: 482923 | FL63: 0 | FM63: 0 | FN63: 98145 | FO63: 12227 | FP63: 278 | FQ63: 0 | FR63: 30262 | FS63: 34418 | FT63: 275778 | FU63: 70 | FV63: 445686 | FW63: 1336345 | FX63: 69741 | FY63: 0 | FZ63: 0 | GA63: 0 | GB63: 0 | GC63: 0 | GD63: 0 | GE63: 0 | GF63: 0 | GG63: 0 | GH63: 278 | GI63: 406904 | GJ63: 0 | GK63: 0 | GL63: 102856 | GM63: 12331 | GN63: 237 | GO63: 0 | GP63: 28969 | GQ63: 34103 | GR63: 293710 | GS63: 88 | GT63: 515631 | GU63: 1319457 | GV63: 17937 | GW63: 0 | GX63: 0 | GY63: 0 | GZ63: 0 | HA63: 0 | HB63: 0 | HC63: 0 | HD63: 0 | HE63: 0 | HF63: 237 | HG63: 406603 | HH63: 0 | HI63: 0 | HJ63: 103188 | HK63: 8471 | HL63: 188 | HM63: 0 | HN63: 31048 | HO63: 29465 | HP63: 290960 | HQ63: 92 | HR63: 535609 | HS63: 1297023 | HT63: 7960 | HU63: 0 | HV63: 0 | HW63: 0 | HX63: 0 | HY63: 0 | HZ63: 0 | IA63: 0 | IB63: 0 | IC63: 0 | ID63: 188
A64: Ver.05.00 | B64: 013986 | C64: 北海道 | D64: 喜茂別町 | E64: 5 | F64: - | G64: - | H64: 8.7 | I64: 61 | J64: 1939358 | K64: 7529 | L64: 一般会計 | M64: 39938 | AR64: 39938 | AS64: -2.05 | AT64: ① | AU64: 国民健康保険特別会計 | AV64: 955 | AW64: ③ | AX64: 後期高齢者医療特別会計 | AY64: 172 | AZ64: ⑥ | BA64: 介護サービス事業特別会計 | BB64: 0 | BC64: 0 | BF64: 0 | BI64: 0 | BL64: 0 | BO64: 0 | BR64: 0 | BU64: 0 | BX64: 0 | CA64: 0 | CD64: 0 | CG64: 0 | CH64: 0 | CI64: 0 | CJ64: 0 | CK64: 0 | CL64: 0 | CM64: 0 | CN64: 0 | CO64: 0 | CP64: 0 | CQ64: 0 | CR64: 0 | CS64: 0 | CT64: 0 | CU64: 0 | CV64: 0 | CW64: 0 | CX64: 0 | CY64: 0 | CZ64: 0 | DA64: 0 | DB64: 0 | DC64: 0 | DD64: 0 | DE64: 0 | DF64: 0 | DG64: 0 | DH64: 0 | DI64: 0 | DJ64: 0 | DK64: 0 | DL64: 0 | DM64: 0 | DN64: 0 | DO64: 0 | DP64: 0 | DQ64: 0 | DR64: 0 | DS64: 簡易水道事業特別会計 | DT64: 7150 | DU64: 公共下水道事業特別会計 | DV64: 7773 | DW64: 0 | DX64: 0 | DY64: 0 | DZ64: 0 | EA64: 0 | EB64: 0 | EC64: 0 | ED64: 0 | EE64: 0 | EF64: 0 | EG64: 0 | EH64: 0 | EI64: 0 | EJ64: 0 | EK64: 0 | EL64: 0 | EM64: 0 | EN64: 0 | EO64: 0 | EP64: 0 | EQ64: 0 | ER64: 0 | ES64: 0 | ET64: 0 | EU64: 0 | EV64: 0 | EW64: 0 | EX64: 0 | EY64: 0 | EZ64: 0 | FA64: 0 | FB64: 0 | FC64: 0 | FD64: 0 | FE64: 55988 | FF64: -2.88 | FG64: 8.425349137 | FH64: 9.122502605 | FI64: 8.836880167 | FJ64: 8.7 | FK64: 439626 | FL64: 0 | FM64: 0 | FN64: 80317 | FO64: 6243 | FP64: 9 | FQ64: 1 | FR64: 42599 | FS64: 26949 | FT64: 313237 | FU64: 4966 | FV64: 389142 | FW64: 1535360 | FX64: 63846 | FY64: 0 | FZ64: 0 | GA64: 0 | GB64: 0 | GC64: 0 | GD64: 0 | GE64: 0 | GF64: 0 | GG64: 0 | GH64: 9 | GI64: 437744 | GJ64: 0 | GK64: 0 | GL64: 82521 | GM64: 6249 | GN64: 49 | GO64: 49 | GP64: 38264 | GQ64: 23557 | GR64: 315032 | GS64: 3181 | GT64: 400956 | GU64: 1530956 | GV64: 16632 | GW64: 0 | GX64: 0 | GY64: 0 | GZ64: 0 | HA64: 0 | HB64: 0 | HC64: 0 | HD64: 0 | HE64: 0 | HF64: 49 | HG64: 410253 | HH64: 0 | HI64: 0 | HJ64: 81790 | HK64: 2181 | HL64: 10 | HM64: 108 | HN64: 33916 | HO64: 23269 | HP64: 292127 | HQ64: 1670 | HR64: 405739 | HS64: 1526090 | HT64: 7529 | HU64: 0 | HV64: 0 | HW64: 0 | HX64: 0 | HY64: 0 | HZ64: 0 | IA64: 0 | IB64: 0 | IC64: 0 | ID64: 10
A65: Ver.05.00 | B65: 013994 | C65: 北海道 | D65: 京極町 | E65: 5 | F65: - | G65: - | H65: 8 | I65: - | J65: 2706764 | K65: 37896 | L65: 一般会計 | M65: 50629 | N65: 国民健康保険診療所特別会計 | O65: 0 | AR65: 50629 | AS65: -1.87 | AT65: ① | AU65: 国民健康保険事業特別会計 | AV65: 46 | AW65: ③ | AX65: 後期高齢者医療特別会計 | AY65: 0 | AZ65: 0 | BC65: 0 | BF65: 0 | BI65: 0 | BL65: 0 | BO65: 0 | BR65: 0 | BU65: 0 | BX65: 0 | CA65: 0 | CD65: 0 | CG65: 0 | CH65: 0 | CI65: 0 | CJ65: 0 | CK65: 0 | CL65: 0 | CM65: 0 | CN65: 0 | CO65: 0 | CP65: 0 | CQ65: 0 | CR65: 0 | CS65: 0 | CT65: 0 | CU65: 0 | CV65: 0 | CW65: 0 | CX65: 0 | CY65: 0 | CZ65: 0 | DA65: 0 | DB65: 0 | DC65: 0 | DD65: 0 | DE65: 0 | DF65: 0 | DG65: 0 | DH65: 0 | DI65: 0 | DJ65: 0 | DK65: 0 | DL65: 0 | DM65: 0 | DN65: 0 | DO65: 0 | DP65: 0 | DQ65: 0 | DR65: 0 | DS65: 簡易水道事業特別会計 | DT65: 9839 | DU65: 下水道事業特別会計 | DV65: 11835 | DW65: 0 | DX65: 0 | DY65: 0 | DZ65: 0 | EA65: 0 | EB65: 0 | EC65: 0 | ED65: 0 | EE65: 0 | EF65: 0 | EG65: 0 | EH65: 0 | EI65: 0 | EJ65: 0 | EK65: 0 | EL65: 0 | EM65: 0 | EN65: 0 | EO65: 0 | EP65: 0 | EQ65: 0 | ER65: 0 | ES65: 0 | ET65: 0 | EU65: 0 | EV65: 0 | EW65: 0 | EX65: 0 | EY65: 0 | EZ65: 0 | FA65: 0 | FB65: 0 | FC65: 0 | FD65: 0 | FE65: 72349 | FF65: -2.67 | FG65: 7.748721624 | FH65: 8.441928316 | FI65: 7.834917206 | FJ65: 8 | FK65: 532467 | FL65: 0 | FM65: 0 | FN65: 55633 | FO65: 7039 | FP65: 5565 | FQ65: 385 | FR65: 0 | FS65: 10678 | FT65: 395625 | FU65: 7656 | FV65: 1847408 | FW65: 665276 | FX65: 316254 | FY65: 0 | FZ65: 0 | GA65: 0 | GB65: 0 | GC65: 0 | GD65: 5520 | GE65: 0 | GF65: 0 | GG65: 0 | GH65: 45 | GI65: 566736 | GJ65: 0 | GK65: 0 | GL65: 51392 | GM65: 6988 | GN65: 28 | GO65: 486 | GP65: 0 | GQ65: 10015 | GR65: 413771 | GS65: 7694 | GT65: 1799921 | GU65: 833894 | GV65: 97495 | GW65: 0 | GX65: 0 | GY65: 0 | GZ65: 0 | HA65: 0 | HB65: 0 | HC65: 0 | HD65: 0 | HE65: 0 | HF65: 28 | HG65: 504076 | HH65: 0 | HI65: 0 | HJ65: 59449 | HK65: 2438 | HL65: 20 | HM65: 564 | HN65: 0 | HO65: 9339 | HP65: 367599 | HQ65: 7670 | HR65: 1741229 | HS65: 927639 | HT65: 37896 | HU65: 0 | HV65: 0 | HW65: 0 | HX65: 0 | HY65: 0 | HZ65: 0 | IA65: 0 | IB65: 0 | IC65: 0 | ID65: 20
A66: Ver.05.00 | B66: 014001 | C66: 北海道 | D66: 倶知安町 | E66: 5 | F66: - | G66: - | H66: 8.1 | I66: 21.3 | J66: 5635462 | K66: 39102 | L66: 一般会計 | M66: 399766 | AR66: 399766 | AS66: -7.09 | AT66: ① | AU66: 国民健康保険事業特別会計 | AV66: 46696 | AW66: ③ | AX66: 後期高齢者医療事業特別会計 | AY66: 2036 | AZ66: ⑥ | BA66: 介護保険サービス事業特別会計 | BB66: 0 | BC66: 0 | BF66: 0 | BI66: 0 | BL66: 0 | BO66: 0 | BR66: 0 | BU66: 0 | BX66: 0 | CA66: 0 | CD66: 0 | CG66: 水道事業会計 | CH66: 456816 | CI66: 0 | CJ66: 0 | CK66: 0 | CL66: 0 | CM66: 0 | CN66: 0 | CO66: 0 | CP66: 0 | CQ66: 0 | CR66: 0 | CS66: 0 | CT66: 0 | CU66: 0 | CV66: 0 | CW66: 0 | CX66: 0 | CY66: 0 | CZ66: 0 | DA66: 0 | DB66: 0 | DC66: 0 | DD66: 0 | DE66: 0 | DF66: 0 | DG66: 0 | DH66: 0 | DI66: 0 | DJ66: 0 | DK66: 0 | DL66: 0 | DM66: 0 | DN66: 0 | DO66: 0 | DP66: 0 | DQ66: 0 | DR66: 0 | DS66: 公共下水道事業特別会計 | DT66: 4339 | DU66: 地方卸売市場事業特別会計 | DV66: 9568 | DW66: 0 | DX66: 0 | DY66: 0 | DZ66: 0 | EA66: 0 | EB66: 0 | EC66: 0 | ED66: 0 | EE66: 0 | EF66: 0 | EG66: 0 | EH66: 0 | EI66: 0 | EJ66: 0 | EK66: 0 | EL66: 0 | EM66: 0 | EN66: 0 | EO66: 0 | EP66: 0 | EQ66: 0 | ER66: 0 | ES66: 0 | ET66: 0 | EU66: 0 | EV66: 0 | EW66: 0 | EX66: 0 | EY66: 0 | EZ66: 0 | FA66: 0 | FB66: 0 | FC66: 0 | FD66: 0 | FE66: 919221 | FF66: -16.31 | FG66: 8.024331284 | FH66: 8.607135876 | FI66: 7.94216608 | FJ66: 8.1 | FK66: 797589 | FL66: 0 | FM66: 0 | FN66: 268312 | FO66: 25761 | FP66: 10499 | FQ66: 678 | FR66: 153604 | FS66: 180576 | FT66: 359809 | FU66: 10880 | FV66: 3489475 | FW66: 1731748 | FX66: 289583 | FY66: 0 | FZ66: 0 | GA66: 0 | GB66: 0 | GC66: 0 | GD66: 0 | GE66: 0 | GF66: 0 | GG66: 10173 | GH66: 326 | GI66: 829882 | GJ66: 0 | GK66: 0 | GL66: 243077 | GM66: 25468 | GN66: 589 | GO66: 477 | GP66: 148688 | GQ66: 169457 | GR66: 357816 | GS66: 1266 | GT66: 3813449 | GU66: 1539107 | GV66: 81982 | GW66: 0 | GX66: 0 | GY66: 0 | GZ66: 0 | HA66: 0 | HB66: 0 | HC66: 0 | HD66: 0 | HE66: 0 | HF66: 589 | HG66: 798148 | HH66: 0 | HI66: 0 | HJ66: 259419 | HK66: 16355 | HL66: 498 | HM66: 581 | HN66: 149308 | HO66: 172065 | HP66: 346551 | HQ66: 748 | HR66: 4143199 | HS66: 1453161 | HT66: 39102 | HU66: 0 | HV66: 0 | HW66: 0 | HX66: 0 | HY66: 0 | HZ66: 0 | IA66: 0 | IB66: 0 | IC66: 7 | ID66: 491
A67: Ver.05.00 | B67: 014010 | C67: 北海道 | D67: 共和町 | E67: 5 | F67: - | G67: - | H67: 8.8 | I67: - | J67: 3738855 | K67: 16565 | L67: 一般会計 | M67: 112315 | AR67: 112315 | AS67: -3 | AT67: ① | AU67: 国民健康保険事業特別会計 | AV67: 8601 | AW67: ③ | AX67: 後期高齢者医療特別会計 | AY67: 593 | AZ67: ⑥ | BA67: 介護サービス事業特別会計 | BB67: 1555 | BC67: 0 | BF67: 0 | BI67: 0 | BL67: 0 | BO67: 0 | BR67: 0 | BU67: 0 | BX67: 0 | CA67: 0 | CD67: 0 | CG67: 簡易水道事業会計 | CH67: 47760 | CI67: 公共下水道事業会計 | CJ67: 13776 | CK67: 0 | CL67: 0 | CM67: 0 | CN67: 0 | CO67: 0 | CP67: 0 | CQ67: 0 | CR67: 0 | CS67: 0 | CT67: 0 | CU67: 0 | CV67: 0 | CW67: 0 | CX67: 0 | CY67: 0 | CZ67: 0 | DA67: 0 | DB67: 0 | DC67: 0 | DD67: 0 | DE67: 0 | DF67: 0 | DG67: 0 | DH67: 0 | DI67: 0 | DJ67: 0 | DK67: 0 | DL67: 0 | DM67: 0 | DN67: 0 | DO67: 0 | DP67: 0 | DQ67: 0 | DR67: 0 | DS67: 0 | DT67: 0 | DU67: 0 | DV67: 0 | DW67: 0 | DX67: 0 | DY67: 0 | DZ67: 0 | EA67: 0 | EB67: 0 | EC67: 0 | ED67: 0 | EE67: 0 | EF67: 0 | EG67: 0 | EH67: 0 | EI67: 0 | EJ67: 0 | EK67: 0 | EL67: 0 | EM67: 0 | EN67: 0 | EO67: 0 | EP67: 0 | EQ67: 0 | ER67: 0 | ES67: 0 | ET67: 0 | EU67: 0 | EV67: 0 | EW67: 0 | EX67: 0 | EY67: 0 | EZ67: 0 | FA67: 0 | FB67: 0 | FC67: 0 | FD67: 0 | FE67: 184600 | FF67: -4.93 | FG67: 8.62469094 | FH67: 8.578793397 | FI67: 9.213057753 | FJ67: 8.8 | FK67: 842486 | FL67: 0 | FM67: 0 | FN67: 135443 | FO67: 3710 | FP67: 190 | FQ67: 608 | FR67: 62715 | FS67: 52465 | FT67: 588009 | FU67: 5279 | FV67: 943902 | FW67: 2735165 | FX67: 143252 | FY67: 0 | FZ67: 0 | GA67: 0 | GB67: 0 | GC67: 0 | GD67: 0 | GE67: 0 | GF67: 0 | GG67: 0 | GH67: 190 | GI67: 785115 | GJ67: 0 | GK67: 0 | GL67: 139769 | GM67: 3952 | GN67: 99 | GO67: 530 | GP67: 59673 | GQ67: 46748 | GR67: 548357 | GS67: 5311 | GT67: 1023154 | GU67: 2680759 | GV67: 36525 | GW67: 0 | GX67: 0 | GY67: 0 | GZ67: 0 | HA67: 0 | HB67: 0 | HC67: 0 | HD67: 0 | HE67: 0 | HF67: 99 | HG67: 787387 | HH67: 0 | HI67: 0 | HJ67: 157336 | HK67: 5375 | HL67: 71 | HM67: 696 | HN67: 62710 | HO67: 44576 | HP67: 548954 | HQ67: 5336 | HR67: 1023722 | HS67: 2698568 | HT67: 16565 | HU67: 0 | HV67: 0 | HW67: 0 | HX67: 0 | HY67: 0 | HZ67: 0 | IA67: 0 | IB67: 0 | IC67: 0 | ID67: 71
A68: Ver.05.00 | B68: 014028 | C68: 北海道 | D68: 岩内町 | E68: 5 | F68: - | G68: - | H68: 12.5 | I68: 83.4 | J68: 4466927 | K68: 21771 | L68: 一般会計 | M68: 704144 | N68: 公共用地先行取得事業特別会計 | O68: 0 | P68: 深層水事業特別会計 | Q68: 0 | AR68: 704144 | AS68: -15.76 | AT68: ① | AU68: 国民健康保険特別会計 | AV68: 88499 | AW68: ② | AX68: 介護保険特別会計 | AY68: 82358 | AZ68: ③ | BA68: 後期高齢者医療特別会計 | BB68: 625 | BC68: 0 | BF68: 0 | BI68: 0 | BL68: 0 | BO68: 0 | BR68: 0 | BU68: 0 | BX68: 0 | CA68: 0 | CD68: 0 | CG68: 水道事業会計 | CH68: 227838 | CI68: 下水道事業会計 | CJ68: 127 | CK68: 0 | CL68: 0 | CM68: 0 | CN68: 0 | CO68: 0 | CP68: 0 | CQ68: 0 | CR68: 0 | CS68: 0 | CT68: 0 | CU68: 0 | CV68: 0 | CW68: 0 | CX68: 0 | CY68: 0 | CZ68: 0 | DA68: 0 | DB68: 0 | DC68: 0 | DD68: 0 | DE68: 0 | DF68: 0 | DG68: 0 | DH68: 0 | DI68: 0 | DJ68: 0 | DK68: 0 | DL68: 0 | DM68: 0 | DN68: 0 | DO68: 0 | DP68: 0 | DQ68: 0 | DR68: 0 | DS68: 0 | DT68: 0 | DU68: 0 | DV68: 0 | DW68: 0 | DX68: 0 | DY68: 0 | DZ68: 0 | EA68: 0 | EB68: 0 | EC68: 0 | ED68: 0 | EE68: 0 | EF68: 0 | EG68: 0 | EH68: 0 | EI68: 0 | EJ68: 0 | EK68: 0 | EL68: 0 | EM68: 0 | EN68: 0 | EO68: 0 | EP68: 0 | EQ68: 0 | ER68: 0 | ES68: 0 | ET68: 0 | EU68: 0 | EV68: 0 | EW68: 臨海部土地造成事業特別会計 | EX68: 101480 | EY68: 0 | EZ68: 0 | FA68: 0 | FB68: 0 | FC68: 0 | FD68: 0 | FE68: 1205071 | FF68: -26.97 | FG68: 12.38341728 | FH68: 12.28521654 | FI68: 12.86139658 | FJ68: 12.5 | FK68: 1125368 | FL68: 0 | FM68: 0 | FN68: 253154 | FO68: 8171 | FP68: 0 | FQ68: 37 | FR68: 158364 | FS68: 110576 | FT68: 640902 | FU68: 0 | FV68: 1442585 | FW68: 2972616 | FX68: 187298 | FY68: 0 | FZ68: 0 | GA68: 0 | GB68: 0 | GC68: 0 | GD68: 0 | GE68: 0 | GF68: 0 | GG68: 0 | GH68: 0 | GI68: 1084320 | GJ68: 0 | GK68: 0 | GL68: 268479 | GM68: 8693 | GN68: 0 | GO68: 47 | GP68: 159551 | GQ68: 115535 | GR68: 639428 | GS68: 0 | GT68: 1502776 | GU68: 2844029 | GV68: 46881 | GW68: 0 | GX68: 0 | GY68: 0 | GZ68: 0 | HA68: 0 | HB68: 0 | HC68: 0 | HD68: 0 | HE68: 0 | HF68: 0 | HG68: 1081948 | HH68: 0 | HI68: 0 | HJ68: 288427 | HK68: 11970 | HL68: 0 | HM68: 43 | HN68: 150669 | HO68: 112331 | HP68: 641881 | HQ68: 0 | HR68: 1551965 | HS68: 2893191 | HT68: 21771 | HU68: 0 | HV68: 0 | HW68: 0 | HX68: 0 | HY68: 0 | HZ68: 0 | IA68: 0 | IB68: 0 | IC68: 0 | ID68: 0
A69: Ver.05.00 | B69: 014036 | C69: 北海道 | D69: 泊村 | E69: 5 | F69: - | G69: - | H69: 1.8 | I69: - | J69: 2277241 | K69: 0 | L69: 一般会計 | M69: 51379 | AR69: 51379 | AS69: -2.25 | AT69: ① | AU69: 国民健康保険特別会計 | AV69: 1017 | AW69: ③ | AX69: 後期高齢者医療特別会計 | AY69: 495 | AZ69: 0 | BC69: 0 | BF69: 0 | BI69: 0 | BL69: 0 | BO69: 0 | BR69: 0 | BU69: 0 | BX69: 0 | CA69: 0 | CD69: 0 | CG69: 0 | CH69: 0 | CI69: 0 | CJ69: 0 | CK69: 0 | CL69: 0 | CM69: 0 | CN69: 0 | CO69: 0 | CP69: 0 | CQ69: 0 | CR69: 0 | CS69: 0 | CT69: 0 | CU69: 0 | CV69: 0 | CW69: 0 | CX69: 0 | CY69: 0 | CZ69: 0 | DA69: 0 | DB69: 0 | DC69: 0 | DD69: 0 | DE69: 0 | DF69: 0 | DG69: 0 | DH69: 0 | DI69: 0 | DJ69: 0 | DK69: 0 | DL69: 0 | DM69: 0 | DN69: 0 | DO69: 0 | DP69: 0 | DQ69: 0 | DR69: 0 | DS69: 簡易水道事業特別会計 | DT69: 46140 | DU69: 公共下水道事業特別会計 | DV69: 95911 | DW69: 集落排水事業特別会計 | DX69: 39093 | DY69: 0 | DZ69: 0 | EA69: 0 | EB69: 0 | EC69: 0 | ED69: 0 | EE69: 0 | EF69: 0 | EG69: 0 | EH69: 0 | EI69: 0 | EJ69: 0 | EK69: 0 | EL69: 0 | EM69: 0 | EN69: 0 | EO69: 0 | EP69: 0 | EQ69: 0 | ER69: 0 | ES69: 0 | ET69: 0 | EU69: 0 | EV69: 0 | EW69: 0 | EX69: 0 | EY69: 0 | EZ69: 0 | FA69: 0 | FB69: 0 | FC69: 0 | FD69: 0 | FE69: 234035 | FF69: -10.27 | FG69: 1.349703588 | FH69: 1.624399462 | FI69: 2.450419615 | FJ69: 1.8 | FK69: 40798 | FL69: 0 | FM69: 0 | FN69: 153810 | FO69: 805 | FP69: 0 | FQ69: 0 | FR69: 39398 | FS69: 75835 | FT69: 49419 | FU69: 0 | FV69: 2404347 | FW69: 0 | FX69: 0 | FY69: 0 | FZ69: 0 | GA69: 0 | GB69: 0 | GC69: 0 | GD69: 0 | GE69: 0 | GF69: 0 | GG69: 0 | GH69: 0 | GI69: 40792 | GJ69: 0 | GK69: 0 | GL69: 154157 | GM69: 928 | GN69: 0 | GO69: 0 | GP69: 39398 | GQ69: 76251 | GR69: 43634 | GS69: 0 | GT69: 2372656 | GU69: 0 | GV69: 0 | GW69: 0 | GX69: 0 | GY69: 0 | GZ69: 0 | HA69: 0 | HB69: 0 | HC69: 0 | HD69: 0 | HE69: 0 | HF69: 0 | HG69: 40786 | HH69: 0 | HI69: 0 | HJ69: 164272 | HK69: 1641 | HL69: 0 | HM69: 0 | HN69: 40786 | HO69: 75850 | HP69: 37027 | HQ69: 0 | HR69: 2277241 | HS69: 0 | HT69: 0 | HU69: 0 | HV69: 0 | HW69: 0 | HX69: 0 | HY69: 0 | HZ69: 0 | IA69: 0 | IB69: 0 | IC69: 0 | ID69: 0
A70: Ver.05.00 | B70: 014044 | C70: 北海道 | D70: 神恵内村 | E70: 5 | F70: - | G70: - | H70: 5.1 | I70: 7.7 | J70: 1008221 | K70: 3329 | L70: 一般会計 | M70: 347198 | AR70: 347198 | AS70: -34.43 | AT70: ① | AU70: 国民健康保険特別会計 | AV70: 14280 | AW70: ② | AX70: 介護保険特別会計 | AY70: 537 | AZ70: ③ | BA70: 後期高齢者医療特別会計 | BB70: 0 | BC70: 0 | BF70: 0 | BI70: 0 | BL70: 0 | BO70: 0 | BR70: 0 | BU70: 0 | BX70: 0 | CA70: 0 | CD70: 0 | CG70: 0 | CH70: 0 | CI70: 0 | CJ70: 0 | CK70: 0 | CL70: 0 | CM70: 0 | CN70: 0 | CO70: 0 | CP70: 0 | CQ70: 0 | CR70: 0 | CS70: 0 | CT70: 0 | CU70: 0 | CV70: 0 | CW70: 0 | CX70: 0 | CY70: 0 | CZ70: 0 | DA70: 0 | DB70: 0 | DC70: 0 | DD70: 0 | DE70: 0 | DF70: 0 | DG70: 0 | DH70: 0 | DI70: 0 | DJ70: 0 | DK70: 0 | DL70: 0 | DM70: 0 | DN70: 0 | DO70: 0 | DP70: 0 | DQ70: 0 | DR70: 0 | DS70: 簡易水道特別会計 | DT70: 0 | DU70: 0 | DV70: 0 | DW70: 0 | DX70: 0 | DY70: 0 | DZ70: 0 | EA70: 0 | EB70: 0 | EC70: 0 | ED70: 0 | EE70: 0 | EF70: 0 | EG70: 0 | EH70: 0 | EI70: 0 | EJ70: 0 | EK70: 0 | EL70: 0 | EM70: 0 | EN70: 0 | EO70: 0 | EP70: 0 | EQ70: 0 | ER70: 0 | ES70: 0 | ET70: 0 | EU70: 0 | EV70: 0 | EW70: 0 | EX70: 0 | EY70: 0 | EZ70: 0 | FA70: 0 | FB70: 0 | FC70: 0 | FD70: 0 | FE70: 362015 | FF70: -35.9 | FG70: 5.684995661 | FH70: 5.122521284 | FI70: 4.757854971 | FJ70: 5.1 | FK70: 174233 | FL70: 0 | FM70: 0 | FN70: 23215 | FO70: 593 | FP70: 0 | FQ70: 189 | FR70: 11633 | FS70: 5956 | FT70: 124875 | FU70: 6239 | FV70: 109393 | FW70: 870781 | FX70: 28084 | FY70: 0 | FZ70: 0 | GA70: 0 | GB70: 0 | GC70: 0 | GD70: 0 | GE70: 0 | GF70: 0 | GG70: 0 | GH70: 0 | GI70: 165446 | GJ70: 0 | GK70: 0 | GL70: 26959 | GM70: 667 | GN70: 0 | GO70: 302 | GP70: 10551 | GQ70: 3916 | GR70: 129665 | GS70: 6329 | GT70: 113136 | GU70: 857461 | GV70: 7045 | GW70: 0 | GX70: 0 | GY70: 0 | GZ70: 0 | HA70: 0 | HB70: 0 | HC70: 0 | HD70: 0 | HE70: 0 | HF70: 0 | HG70: 173515 | HH70: 0 | HI70: 0 | HJ70: 31626 | HK70: 1217 | HL70: 0 | HM70: 324 | HN70: 9265 | HO70: 1972 | HP70: 148578 | HQ70: 6363 | HR70: 119241 | HS70: 885651 | HT70: 3329 | HU70: 0 | HV70: 0 | HW70: 0 | HX70: 0 | HY70: 0 | HZ70: 0 | IA70: 0 | IB70: 0 | IC70: 0 | ID70: 0
A71: Ver.05.00 | B71: 014052 | C71: 北海道 | D71: 積丹町 | E71: 5 | F71: - | G71: - | H71: 9.6 | I71: 13.5 | J71: 1843446 | K71: 6261 | L71: 一般会計 | M71: 97891 | AR71: 97891 | AS71: -5.31 | AT71: ① | AU71: 国民健康保険事業特別会計 | AV71: 1105 | AW71: ③ | AX71: 後期高齢者医療特別会計 | AY71: 0 | AZ71: ⑥ | BA71: 介護福祉サービス事業特別会計 | BB71: 0 | BC71: 0 | BF71: 0 | BI71: 0 | BL71: 0 | BO71: 0 | BR71: 0 | BU71: 0 | BX71: 0 | CA71: 0 | CD71: 0 | CG71: 0 | CH71: 0 | CI71: 0 | CJ71: 0 | CK71: 0 | CL71: 0 | CM71: 0 | CN71: 0 | CO71: 0 | CP71: 0 | CQ71: 0 | CR71: 0 | CS71: 0 | CT71: 0 | CU71: 0 | CV71: 0 | CW71: 0 | CX71: 0 | CY71: 0 | CZ71: 0 | DA71: 0 | DB71: 0 | DC71: 0 | DD71: 0 | DE71: 0 | DF71: 0 | DG71: 0 | DH71: 0 | DI71: 0 | DJ71: 0 | DK71: 0 | DL71: 0 | DM71: 0 | DN71: 0 | DO71: 0 | DP71: 0 | DQ71: 0 | DR71: 0 | DS71: 簡易水道事業特別会計 | DT71: 4292 | DU71: 下水道事業特別会計 | DV71: 10470 | DW71: 0 | DX71: 0 | DY71: 0 | DZ71: 0 | EA71: 0 | EB71: 0 | EC71: 0 | ED71: 0 | EE71: 0 | EF71: 0 | EG71: 0 | EH71: 0 | EI71: 0 | EJ71: 0 | EK71: 0 | EL71: 0 | EM71: 0 | EN71: 0 | EO71: 0 | EP71: 0 | EQ71: 0 | ER71: 0 | ES71: 0 | ET71: 0 | EU71: 0 | EV71: 0 | EW71: 0 | EX71: 0 | EY71: 0 | EZ71: 0 | FA71: 0 | FB71: 0 | FC71: 0 | FD71: 0 | FE71: 113758 | FF71: -6.17 | FG71: 8.95361094 | FH71: 10.13743982 | FI71: 9.825100597 | FJ71: 9.6 | FK71: 386236 | FL71: 0 | FM71: 0 | FN71: 55059 | FO71: 14213 | FP71: 13583 | FQ71: 91 | FR71: 12824 | FS71: 22111 | FT71: 284554 | FU71: 4867 | FV71: 229549 | FW71: 1644593 | FX71: 54905 | FY71: 0 | FZ71: 0 | GA71: 0 | GB71: 0 | GC71: 0 | GD71: 0 | GE71: 0 | GF71: 0 | GG71: 12453 | GH71: 1130 | GI71: 410310 | GJ71: 0 | GK71: 0 | GL71: 49110 | GM71: 8135 | GN71: 14104 | GO71: 370 | GP71: 13854 | GQ71: 20904 | GR71: 287846 | GS71: 2650 | GT71: 233387 | GU71: 1610723 | GV71: 13785 | GW71: 0 | GX71: 0 | GY71: 0 | GZ71: 0 | HA71: 0 | HB71: 0 | HC71: 0 | HD71: 0 | HE71: 13041 | HF71: 1063 | HG71: 403092 | HH71: 0 | HI71: 0 | HJ71: 47969 | HK71: 3323 | HL71: 9477 | HM71: 395 | HN71: 2156 | HO71: 20662 | HP71: 288283 | HQ71: 2649 | HR71: 235553 | HS71: 1601632 | HT71: 6261 | HU71: 0 | HV71: 0 | HW71: 0 | HX71: 0 | HY71: 0 | HZ71: 0 | IA71: 0 | IB71: 0 | IC71: 5683 | ID71: 3794
A72: Ver.05.00 | B72: 014061 | C72: 北海道 | D72: 古平町 | E72: 5 | F72: - | G72: - | H72: 8.9 | I72: - | J72: 2269755 | K72: 7473 | L72: 一般会計 | M72: 120451 | AR72: 120451 | AS72: -5.3 | AT72: ① | AU72: 国民健康保険事業特別会計 | AV72: 2437 | AW72: ③ | AX72: 後期高齢者医療特別会計 | AY72: 11 | AZ72: ⑥ | BA72: 介護保険サービス事業特別会計 | BB72: 0 | BC72: 0 | BF72: 0 | BI72: 0 | BL72: 0 | BO72: 0 | BR72: 0 | BU72: 0 | BX72: 0 | CA72: 0 | CD72: 0 | CG72: 0 | CH72: 0 | CI72: 0 | CJ72: 0 | CK72: 0 | CL72: 0 | CM72: 0 | CN72: 0 | CO72: 0 | CP72: 0 | CQ72: 0 | CR72: 0 | CS72: 0 | CT72: 0 | CU72: 0 | CV72: 0 | CW72: 0 | CX72: 0 | CY72: 0 | CZ72: 0 | DA72: 0 | DB72: 0 | DC72: 0 | DD72: 0 | DE72: 0 | DF72: 0 | DG72: 0 | DH72: 0 | DI72: 0 | DJ72: 0 | DK72: 0 | DL72: 0 | DM72: 0 | DN72: 0 | DO72: 0 | DP72: 0 | DQ72: 0 | DR72: 0 | DS72: 簡易水道事業特別会計 | DT72: 12935 | DU72: 公共下水道事業特別会計 | DV72: 0 | DW72: 0 | DX72: 0 | DY72: 0 | DZ72: 0 | EA72: 0 | EB72: 0 | EC72: 0 | ED72: 0 | EE72: 0 | EF72: 0 | EG72: 0 | EH72: 0 | EI72: 0 | EJ72: 0 | EK72: 0 | EL72: 0 | EM72: 0 | EN72: 0 | EO72: 0 | EP72: 0 | EQ72: 0 | ER72: 0 | ES72: 0 | ET72: 0 | EU72: 0 | EV72: 0 | EW72: 0 | EX72: 0 | EY72: 0 | EZ72: 0 | FA72: 0 | FB72: 0 | FC72: 0 | FD72: 0 | FE72: 135834 | FF72: -5.98 | FG72: 9.081864458 | FH72: 8.370798657 | FI72: 9.435907941 | FJ72: 8.9 | FK72: 463069 | FL72: 0 | FM72: 0 | FN72: 139498 | FO72: 15946 | FP72: 0 | FQ72: 57 | FR72: 35561 | FS72: 50223 | FT72: 354054 | FU72: 4746 | FV72: 284178 | FW72: 1974445 | FX72: 66152 | FY72: 0 | FZ72: 0 | GA72: 0 | GB72: 0 | GC72: 0 | GD72: 0 | GE72: 0 | GF72: 0 | GG72: 0 | GH72: 0 | GI72: 470028 | GJ72: 0 | GK72: 0 | GL72: 129511 | GM72: 7064 | GN72: 0 | GO72: 0 | GP72: 36149 | GQ72: 49561 | GR72: 348187 | GS72: 13886 | GT72: 299466 | GU72: 1992450 | GV72: 17028 | GW72: 0 | GX72: 0 | GY72: 0 | GZ72: 0 | HA72: 0 | HB72: 0 | HC72: 0 | HD72: 0 | HE72: 0 | HF72: 0 | HG72: 492299 | HH72: 0 | HI72: 0 | HJ72: 129082 | HK72: 4197 | HL72: 0 | HM72: 0 | HN72: 35882 | HO72: 48533 | HP72: 362465 | HQ72: 3652 | HR72: 347965 | HS72: 1914317 | HT72: 7473 | HU72: 0 | HV72: 0 | HW72: 0 | HX72: 0 | HY72: 0 | HZ72: 0 | IA72: 0 | IB72: 0 | IC72: 0 | ID72: 0
A73: Ver.05.00 | B73: 014079 | C73: 北海道 | D73: 仁木町 | E73: 5 | F73: - | G73: - | H73: 9.2 | I73: - | J73: 2399949 | K73: 9150 | L73: 一般会計 | M73: 36635 | AR73: 36635 | AS73: -1.52 | AT73: ① | AU73: 国民健康保険事業特別会計 | AV73: 516 | AW73: ③ | AX73: 後期高齢者医療特別会計 | AY73: 187 | AZ73: 0 | BC73: 0 | BF73: 0 | BI73: 0 | BL73: 0 | BO73: 0 | BR73: 0 | BU73: 0 | BX73: 0 | CA73: 0 | CD73: 0 | CG73: 0 | CH73: 0 | CI73: 0 | CJ73: 0 | CK73: 0 | CL73: 0 | CM73: 0 | CN73: 0 | CO73: 0 | CP73: 0 | CQ73: 0 | CR73: 0 | CS73: 0 | CT73: 0 | CU73: 0 | CV73: 0 | CW73: 0 | CX73: 0 | CY73: 0 | CZ73: 0 | DA73: 0 | DB73: 0 | DC73: 0 | DD73: 0 | DE73: 0 | DF73: 0 | DG73: 0 | DH73: 0 | DI73: 0 | DJ73: 0 | DK73: 0 | DL73: 0 | DM73: 0 | DN73: 0 | DO73: 0 | DP73: 0 | DQ73: 0 | DR73: 0 | DS73: 簡易水道事業特別会計 | DT73: 10900 | DU73: 0 | DV73: 0 | DW73: 0 | DX73: 0 | DY73: 0 | DZ73: 0 | EA73: 0 | EB73: 0 | EC73: 0 | ED73: 0 | EE73: 0 | EF73: 0 | EG73: 0 | EH73: 0 | EI73: 0 | EJ73: 0 | EK73: 0 | EL73: 0 | EM73: 0 | EN73: 0 | EO73: 0 | EP73: 0 | EQ73: 0 | ER73: 0 | ES73: 0 | ET73: 0 | EU73: 0 | EV73: 0 | EW73: 0 | EX73: 0 | EY73: 0 | EZ73: 0 | FA73: 0 | FB73: 0 | FC73: 0 | FD73: 0 | FE73: 48238 | FF73: -2 | FG73: 8.999909224 | FH73: 10.19006614 | FI73: 8.506330548 | FJ73: 9.2 | FK73: 475063 | FL73: 0 | FM73: 0 | FN73: 94408 | FO73: 23439 | FP73: 2610 | FQ73: 0 | FR73: 35597 | FS73: 7195 | FT73: 352728 | FU73: 9644 | FV73: 458418 | FW73: 1947301 | FX73: 78936 | FY73: 0 | FZ73: 0 | GA73: 0 | GB73: 0 | GC73: 0 | GD73: 0 | GE73: 0 | GF73: 0 | GG73: 2529 | GH73: 81 | GI73: 466888 | GJ73: 0 | GK73: 0 | GL73: 103992 | GM73: 19451 | GN73: 2078 | GO73: 0 | GP73: 26478 | GQ73: 8430 | GR73: 338724 | GS73: 9058 | GT73: 492912 | GU73: 1901251 | GV73: 20122 | GW73: 0 | GX73: 0 | GY73: 0 | GZ73: 0 | HA73: 0 | HB73: 0 | HC73: 0 | HD73: 0 | HE73: 2008 | HF73: 70 | HG73: 464518 | HH73: 0 | HI73: 0 | HJ73: 67530 | HK73: 16104 | HL73: 1505 | HM73: 38 | HN73: 23325 | HO73: 8653 | HP73: 334804 | HQ73: 8723 | HR73: 481516 | HS73: 1909283 | HT73: 9150 | HU73: 0 | HV73: 0 | HW73: 0 | HX73: 0 | HY73: 0 | HZ73: 0 | IA73: 0 | IB73: 0 | IC73: 1444 | ID73: 61
A74: Ver.05.00 | B74: 014087 | C74: 北海道 | D74: 余市町 | E74: 5 | F74: - | G74: - | H74: 5.4 | I74: 13.9 | J74: 5963418 | K74: 31223 | L74: 一般会計 | M74: 379266 | AR74: 379266 | AS74: -6.35 | AT74: ① | AU74: 余市町国民健康保険特別会計 | AV74: 54130 | AW74: ② | AX74: 余市町介護保険特別会計 | AY74: 115595 | AZ74: ③ | BA74: 余市町後期高齢者医療特別会計 | BB74: 222 | BC74: 0 | BF74: 0 | BI74: 0 | BL74: 0 | BO74: 0 | BR74: 0 | BU74: 0 | BX74: 0 | CA74: 0 | CD74: 0 | CG74: 余市町水道事業会計 | CH74: 279924 | CI74: 0 | CJ74: 0 | CK74: 0 | CL74: 0 | CM74: 0 | CN74: 0 | CO74: 0 | CP74: 0 | CQ74: 0 | CR74: 0 | CS74: 0 | CT74: 0 | CU74: 0 | CV74: 0 | CW74: 0 | CX74: 0 | CY74: 0 | CZ74: 0 | DA74: 0 | DB74: 0 | DC74: 0 | DD74: 0 | DE74: 0 | DF74: 0 | DG74: 0 | DH74: 0 | DI74: 0 | DJ74: 0 | DK74: 0 | DL74: 0 | DM74: 0 | DN74: 0 | DO74: 0 | DP74: 0 | DQ74: 0 | DR74: 0 | DS74: 余市町公共下水道特別会計 | DT74: 599134 | DU74: 0 | DV74: 0 | DW74: 0 | DX74: 0 | DY74: 0 | DZ74: 0 | EA74: 0 | EB74: 0 | EC74: 0 | ED74: 0 | EE74: 0 | EF74: 0 | EG74: 0 | EH74: 0 | EI74: 0 | EJ74: 0 | EK74: 0 | EL74: 0 | EM74: 0 | EN74: 0 | EO74: 0 | EP74: 0 | EQ74: 0 | ER74: 0 | ES74: 0 | ET74: 0 | EU74: 0 | EV74: 0 | EW74: 0 | EX74: 0 | EY74: 0 | EZ74: 0 | FA74: 0 | FB74: 0 | FC74: 0 | FD74: 0 | FE74: 1428271 | FF74: -23.95 | FG74: 6.164655533 | FH74: 5.960002103 | FI74: 4.103329731 | FJ74: 5.4 | FK74: 684898 | FL74: 0 | FM74: 0 | FN74: 459260 | FO74: 44475 | FP74: 23226 | FQ74: 0 | FR74: 147748 | FS74: 261688 | FT74: 435936 | FU74: 33630 | FV74: 2187404 | FW74: 3691159 | FX74: 252133 | FY74: 0 | FZ74: 0 | GA74: 0 | GB74: 0 | GC74: 0 | GD74: 22417 | GE74: 0 | GF74: 0 | GG74: 0 | GH74: 809 | GI74: 684837 | GJ74: 0 | GK74: 0 | GL74: 454279 | GM74: 23144 | GN74: 12172 | GO74: 0 | GP74: 143387 | GQ74: 245114 | GR74: 439561 | GS74: 34571 | GT74: 2279114 | GU74: 3603041 | GV74: 68616 | GW74: 0 | GX74: 0 | GY74: 0 | GZ74: 0 | HA74: 0 | HB74: 11942 | HC74: 0 | HD74: 0 | HE74: 0 | HF74: 230 | HG74: 665426 | HH74: 0 | HI74: 0 | HJ74: 355369 | HK74: 19156 | HL74: 2476 | HM74: 0 | HN74: 109008 | HO74: 247722 | HP74: 443787 | HQ74: 26681 | HR74: 2316299 | HS74: 3615896 | HT74: 31223 | HU74: 0 | HV74: 0 | HW74: 0 | HX74: 0 | HY74: 0 | HZ74: 2317 | IA74: 0 | IB74: 0 | IC74: 0 | ID74: 159
A75: Ver.05.00 | B75: 014095 | C75: 北海道 | D75: 赤井川村 | E75: 5 | F75: - | G75: - | H75: 5.3 | I75: - | J75: 1499827 | K75: 6510 | L75: 一般会計 | M75: 70881 | AR75: 70881 | AS75: -4.72 | AT75: ① | AU75: 国民健康保険特別会計 | AV75: 2394 | AW75: ③ | AX75: 後期高齢者医療特別会計 | AY75: 0 | AZ75: 0 | BC75: 0 | BF75: 0 | BI75: 0 | BL75: 0 | BO75: 0 | BR75: 0 | BU75: 0 | BX75: 0 | CA75: 0 | CD75: 0 | CG75: 0 | CH75: 0 | CI75: 0 | CJ75: 0 | CK75: 0 | CL75: 0 | CM75: 0 | CN75: 0 | CO75: 0 | CP75: 0 | CQ75: 0 | CR75: 0 | CS75: 0 | CT75: 0 | CU75: 0 | CV75: 0 | CW75: 0 | CX75: 0 | CY75: 0 | CZ75: 0 | DA75: 0 | DB75: 0 | DC75: 0 | DD75: 0 | DE75: 0 | DF75: 0 | DG75: 0 | DH75: 0 | DI75: 0 | DJ75: 0 | DK75: 0 | DL75: 0 | DM75: 0 | DN75: 0 | DO75: 0 | DP75: 0 | DQ75: 0 | DR75: 0 | DS75: 簡易水道事業特別会計 | DT75: 13494 | DU75: 下水道事業特別会計 | DV75: 1797 | DW75: 0 | DX75: 0 | DY75: 0 | DZ75: 0 | EA75: 0 | EB75: 0 | EC75: 0 | ED75: 0 | EE75: 0 | EF75: 0 | EG75: 0 | EH75: 0 | EI75: 0 | EJ75: 0 | EK75: 0 | EL75: 0 | EM75: 0 | EN75: 0 | EO75: 0 | EP75: 0 | EQ75: 0 | ER75: 0 | ES75: 0 | ET75: 0 | EU75: 0 | EV75: 0 | EW75: 0 | EX75: 0 | EY75: 0 | EZ75: 0 | FA75: 0 | FB75: 0 | FC75: 0 | FD75: 0 | FE75: 88566 | FF75: -5.9 | FG75: 5.85872531 | FH75: 5.236194443 | FI75: 5.040505561 | FJ75: 5.3 | FK75: 245736 | FL75: 0 | FM75: 0 | FN75: 30926 | FO75: 20456 | FP75: 0 | FQ75: 0 | FR75: 22131 | FS75: 10903 | FT75: 185926 | FU75: 838 | FV75: 388611 | FW75: 1076270 | FX75: 52527 | FY75: 0 | FZ75: 0 | GA75: 0 | GB75: 0 | GC75: 0 | GD75: 0 | GE75: 0 | GF75: 0 | GG75: 0 | GH75: 0 | GI75: 244969 | GJ75: 0 | GK75: 0 | GL75: 31403 | GM75: 5531 | GN75: 0 | GO75: 0 | GP75: 22343 | GQ75: 11466 | GR75: 179803 | GS75: 813 | GT75: 424973 | GU75: 1042238 | GV75: 13555 | GW75: 0 | GX75: 0 | GY75: 0 | GZ75: 0 | HA75: 0 | HB75: 0 | HC75: 0 | HD75: 0 | HE75: 0 | HF75: 0 | HG75: 242376 | HH75: 0 | HI75: 0 | HJ75: 32830 | HK75: 1859 | HL75: 0 | HM75: 0 | HN75: 22326 | HO75: 12590 | HP75: 175243 | HQ75: 816 | HR75: 424975 | HS75: 1068342 | HT75: 6510 | HU75: 0 | HV75: 0 | HW75: 0 | HX75: 0 | HY75: 0 | HZ75: 0 | IA75: 0 | IB75: 0 | IC75: 0 | ID75: 0
A76: Ver.05.00 | B76: 014231 | C76: 北海道 | D76: 南幌町 | E76: 5 | F76: - | G76: - | H76: 11.7 | I76: 111.2 | J76: 3487617 | K76: 16613 | L76: 一般会計 | M76: 127518 | AR76: 127518 | AS76: -3.65 | AT76: ① | AU76: 国民健康保険特別会計 | AV76: 15344 | AW76: ② | AX76: 介護保険特別会計 | AY76: 35075 | AZ76: ③ | BA76: 後期高齢者医療特別会計 | BB76: 365 | BC76: 0 | BF76: 0 | BI76: 0 | BL76: 0 | BO76: 0 | BR76: 0 | BU76: 0 | BX76: 0 | CA76: 0 | CD76: 0 | CG76: 病院事業会計 | CH76: 503052 | CI76: 0 | CJ76: 0 | CK76: 0 | CL76: 0 | CM76: 0 | CN76: 0 | CO76: 0 | CP76: 0 | CQ76: 0 | CR76: 0 | CS76: 0 | CT76: 0 | CU76: 0 | CV76: 0 | CW76: 0 | CX76: 0 | CY76: 0 | CZ76: 0 | DA76: 0 | DB76: 0 | DC76: 0 | DD76: 0 | DE76: 0 | DF76: 0 | DG76: 0 | DH76: 0 | DI76: 0 | DJ76: 0 | DK76: 0 | DL76: 0 | DM76: 0 | DN76: 0 | DO76: 0 | DP76: 0 | DQ76: 0 | DR76: 0 | DS76: 下水道事業特別会計 | DT76: 59176 | DU76: 農業集落排水事業特別会計 | DV76: 5195 | DW76: 0 | DX76: 0 | DY76: 0 | DZ76: 0 | EA76: 0 | EB76: 0 | EC76: 0 | ED76: 0 | EE76: 0 | EF76: 0 | EG76: 0 | EH76: 0 | EI76: 0 | EJ76: 0 | EK76: 0 | EL76: 0 | EM76: 0 | EN76: 0 | EO76: 0 | EP76: 0 | EQ76: 0 | ER76: 0 | ES76: 0 | ET76: 0 | EU76: 0 | EV76: 0 | EW76: 0 | EX76: 0 | EY76: 0 | EZ76: 0 | FA76: 0 | FB76: 0 | FC76: 0 | FD76: 0 | FE76: 745725 | FF76: -21.38 | FG76: 10.11922439 | FH76: 12.19697363 | FI76: 12.842949 | FJ76: 11.7 | FK76: 576395 | FL76: 0 | FM76: 0 | FN76: 71706 | FO76: 38882 | FP76: 25633 | FQ76: 77 | FR76: 46280 | FS76: 48333 | FT76: 300336 | FU76: 2890 | FV76: 1049516 | FW76: 2283385 | FX76: 130102 | FY76: 0 | FZ76: 0 | GA76: 0 | GB76: 25633 | GC76: 0 | GD76: 0 | GE76: 0 | GF76: 0 | GG76: 0 | GH76: 0 | GI76: 612511 | GJ76: 0 | GK76: 0 | GL76: 88748 | GM76: 43357 | GN76: 0 | GO76: 80 | GP76: 22461 | GQ76: 45291 | GR76: 295105 | GS76: 6382 | GT76: 1098724 | GU76: 2291651 | GV76: 34683 | GW76: 0 | GX76: 0 | GY76: 0 | GZ76: 0 | HA76: 0 | HB76: 0 | HC76: 0 | HD76: 0 | HE76: 0 | HF76: 0 | HG76: 639063 | HH76: 0 | HI76: 0 | HJ76: 87205 | HK76: 44834 | HL76: 0 | HM76: 114 | HN76: 27866 | HO76: 41565 | HP76: 287780 | HQ76: 9626 | HR76: 1115533 | HS76: 2355471 | HT76: 16613 | HU76: 0 | HV76: 0 | HW76: 0 | HX76: 0 | HY76: 0 | HZ76: 0 | IA76: 0 | IB76: 0 | IC76: 0 | ID76: 0
A77: Ver.05.00 | B77: 014249 | C77: 北海道 | D77: 奈井江町 | E77: 5 | F77: - | G77: - | H77: 9.1 | I77: 81 | J77: 3196431 | K77: 13953 | L77: 一般会計 | M77: 144406 | AR77: 144406 | AS77: -4.51 | AT77: ① | AU77: 国民健康保険事業会計 | AV77: 6999 | AW77: ③ | AX77: 後期高齢者医療特別会計 | AY77: 92 | AZ77: 0 | BC77: 0 | BF77: 0 | BI77: 0 | BL77: 0 | BO77: 0 | BR77: 0 | BU77: 0 | BX77: 0 | CA77: 0 | CD77: 0 | CG77: 奈井江町立国民健康保険病院事業会計 | CH77: -67926 | CI77: 奈井江町下水道事業会計 | CJ77: 6898 | CK77: 0 | CL77: 0 | CM77: 0 | CN77: 0 | CO77: 0 | CP77: 0 | CQ77: 0 | CR77: 0 | CS77: 0 | CT77: 0 | CU77: 0 | CV77: 0 | CW77: 0 | CX77: 0 | CY77: 0 | CZ77: 0 | DA77: 0 | DB77: 0 | DC77: 0 | DD77: 0 | DE77: 0 | DF77: 0 | DG77: 0 | DH77: 0 | DI77: 0 | DJ77: 0 | DK77: 0 | DL77: 0 | DM77: 0 | DN77: 0 | DO77: 0 | DP77: 0 | DQ77: 0 | DR77: 0 | DS77: 0 | DT77: 0 | DU77: 0 | DV77: 0 | DW77: 0 | DX77: 0 | DY77: 0 | DZ77: 0 | EA77: 0 | EB77: 0 | EC77: 0 | ED77: 0 | EE77: 0 | EF77: 0 | EG77: 0 | EH77: 0 | EI77: 0 | EJ77: 0 | EK77: 0 | EL77: 0 | EM77: 0 | EN77: 0 | EO77: 0 | EP77: 0 | EQ77: 0 | ER77: 0 | ES77: 0 | ET77: 0 | EU77: 0 | EV77: 0 | EW77: 0 | EX77: 0 | EY77: 0 | EZ77: 0 | FA77: 0 | FB77: 0 | FC77: 0 | FD77: 0 | FE77: 90469 | FF77: -2.83 | FG77: 9.287573966 | FH77: 8.944001597 | FI77: 9.141407856 | FJ77: 9.1 | FK77: 605649 | FL77: 0 | FM77: 0 | FN77: 322960 | FO77: 28420 | FP77: 481 | FQ77: 0 | FR77: 66078 | FS77: 154963 | FT77: 439176 | FU77: 52614 | FV77: 873774 | FW77: 2287637 | FX77: 119819 | FY77: 0 | FZ77: 0 | GA77: 0 | GB77: 0 | GC77: 0 | GD77: 0 | GE77: 0 | GF77: 0 | GG77: 0 | GH77: 481 | GI77: 597301 | GJ77: 0 | GK77: 0 | GL77: 307636 | GM77: 27921 | GN77: 430 | GO77: 0 | GP77: 60996 | GQ77: 146152 | GR77: 442969 | GS77: 50237 | GT77: 876239 | GU77: 2334501 | GV77: 32978 | GW77: 0 | GX77: 0 | GY77: 0 | GZ77: 0 | HA77: 0 | HB77: 0 | HC77: 0 | HD77: 0 | HE77: 0 | HF77: 430 | HG77: 565910 | HH77: 0 | HI77: 0 | HJ77: 302854 | HK77: 25000 | HL77: 382 | HM77: 0 | HN77: 56007 | HO77: 138550 | HP77: 414288 | HQ77: 48030 | HR77: 908172 | HS77: 2274306 | HT77: 13953 | HU77: 0 | HV77: 0 | HW77: 0 | HX77: 0 | HY77: 0 | HZ77: 0 | IA77: 0 | IB77: 0 | IC77: 0 | ID77: 382
A78: Ver.05.00 | B78: 014257 | C78: 北海道 | D78: 上砂川町 | E78: 5 | F78: - | G78: - | H78: 5.5 | I78: 22.9 | J78: 2102647 | K78: 7131 | L78: 一般会計 | M78: 86076 | AR78: 86076 | AS78: -4.09 | AT78: ① | AU78: 国民健康保険事業特別会計 | AV78: 316 | AW78: ③ | AX78: 後期高齢者医療特別会計 | AY78: 155 | AZ78: ⑥ | BA78: 老人保健施設事業特別会計 | BB78: 0 | BC78: 0 | BF78: 0 | BI78: 0 | BL78: 0 | BO78: 0 | BR78: 0 | BU78: 0 | BX78: 0 | CA78: 0 | CD78: 0 | CG78: 水道事業会計 | CH78: 47097 | CI78: 0 | CJ78: 0 | CK78: 0 | CL78: 0 | CM78: 0 | CN78: 0 | CO78: 0 | CP78: 0 | CQ78: 0 | CR78: 0 | CS78: 0 | CT78: 0 | CU78: 0 | CV78: 0 | CW78: 0 | CX78: 0 | CY78: 0 | CZ78: 0 | DA78: 0 | DB78: 0 | DC78: 0 | DD78: 0 | DE78: 0 | DF78: 0 | DG78: 0 | DH78: 0 | DI78: 0 | DJ78: 0 | DK78: 0 | DL78: 0 | DM78: 0 | DN78: 0 | DO78: 0 | DP78: 0 | DQ78: 0 | DR78: 0 | DS78: 下水道事業特別会計 | DT78: 0 | DU78: 0 | DV78: 0 | DW78: 0 | DX78: 0 | DY78: 0 | DZ78: 0 | EA78: 0 | EB78: 0 | EC78: 0 | ED78: 0 | EE78: 0 | EF78: 0 | EG78: 0 | EH78: 0 | EI78: 0 | EJ78: 0 | EK78: 0 | EL78: 0 | EM78: 0 | EN78: 0 | EO78: 0 | EP78: 0 | EQ78: 0 | ER78: 0 | ES78: 0 | ET78: 0 | EU78: 0 | EV78: 0 | EW78: 0 | EX78: 0 | EY78: 0 | EZ78: 0 | FA78: 0 | FB78: 0 | FC78: 0 | FD78: 0 | FE78: 133644 | FF78: -6.35 | FG78: 5.675257279 | FH78: 6.112128998 | FI78: 4.835895475 | FJ78: 5.5 | FK78: 368636 | FL78: 0 | FM78: 0 | FN78: 129536 | FO78: 7788 | FP78: 1 | FQ78: 0 | FR78: 116265 | FS78: 39176 | FT78: 238168 | FU78: 9740 | FV78: 250573 | FW78: 1783093 | FX78: 61477 | FY78: 0 | FZ78: 0 | GA78: 0 | GB78: 0 | GC78: 0 | GD78: 0 | GE78: 0 | GF78: 0 | GG78: 1 | GH78: 0 | GI78: 420146 | GJ78: 0 | GK78: 0 | GL78: 121515 | GM78: 7660 | GN78: 2294 | GO78: 0 | GP78: 110348 | GQ78: 38061 | GR78: 288374 | GS78: 8515 | GT78: 269069 | GU78: 1789462 | GV78: 15862 | GW78: 0 | GX78: 0 | GY78: 0 | GZ78: 0 | HA78: 0 | HB78: 0 | HC78: 0 | HD78: 0 | HE78: 2294 | HF78: 0 | HG78: 402239 | HH78: 0 | HI78: 0 | HJ78: 121994 | HK78: 5560 | HL78: 2292 | HM78: 0 | HN78: 111494 | HO78: 41898 | HP78: 288036 | HQ78: 5181 | HR78: 269607 | HS78: 1825909 | HT78: 7131 | HU78: 0 | HV78: 0 | HW78: 0 | HX78: 0 | HY78: 0 | HZ78: 0 | IA78: 0 | IB78: 0 | IC78: 2292 | ID78: 0
A79: Ver.05.00 | B79: 014273 | C79: 北海道 | D79: 由仁町 | E79: 5 | F79: - | G79: - | H79: 13.9 | I79: 38.7 | J79: 3287616 | K79: 13852 | L79: 一般会計 | M79: 121135 | AR79: 121135 | AS79: -3.68 | AT79: ① | AU79: 国民健康保険事業特別会計 | AV79: 9656 | AW79: ① | AX79: 国民健康保険由仁町立診療所特別会計 | AY79: 77714 | AZ79: ② | BA79: 介護保険事業特別会計 | BB79: 61980 | BC79: ③ | BD79: 後期高齢者医療特別会計 | BE79: 182 | BF79: ⑥ | BG79: 介護老人保健施設事業特別会計 | BH79: 209 | BI79: 0 | BL79: 0 | BO79: 0 | BR79: 0 | BU79: 0 | BX79: 0 | CA79: 0 | CD79: 0 | CG79: 水道事業会計 | CH79: 346497 | CI79: 0 | CJ79: 0 | CK79: 0 | CL79: 0 | CM79: 0 | CN79: 0 | CO79: 0 | CP79: 0 | CQ79: 0 | CR79: 0 | CS79: 0 | CT79: 0 | CU79: 0 | CV79: 0 | CW79: 0 | CX79: 0 | CY79: 0 | CZ79: 0 | DA79: 0 | DB79: 0 | DC79: 0 | DD79: 0 | DE79: 0 | DF79: 0 | DG79: 0 | DH79: 0 | DI79: 0 | DJ79: 0 | DK79: 0 | DL79: 0 | DM79: 0 | DN79: 0 | DO79: 0 | DP79: 0 | DQ79: 0 | DR79: 0 | DS79: 農業集落排水事業特別会計 | DT79: 6243 | DU79: 0 | DV79: 0 | DW79: 0 | DX79: 0 | DY79: 0 | DZ79: 0 | EA79: 0 | EB79: 0 | EC79: 0 | ED79: 0 | EE79: 0 | EF79: 0 | EG79: 0 | EH79: 0 | EI79: 0 | EJ79: 0 | EK79: 0 | EL79: 0 | EM79: 0 | EN79: 0 | EO79: 0 | EP79: 0 | EQ79: 0 | ER79: 0 | ES79: 0 | ET79: 0 | EU79: 0 | EV79: 0 | EW79: 0 | EX79: 0 | EY79: 0 | EZ79: 0 | FA79: 0 | FB79: 0 | FC79: 0 | FD79: 0 | FE79: 623616 | FF79: -18.96 | FG79: 14.40068886 | FH79: 13.00569185 | FI79: 14.45943313 | FJ79: 13.9 | FK79: 702910 | FL79: 0 | FM79: 0 | FN79: 350199 | FO79: 0 | FP79: 2260 | FQ79: 0 | FR79: 50045 | FS79: 40191 | FT79: 536095 | FU79: 33012 | FV79: 824341 | FW79: 2424448 | FX79: 110558 | FY79: 0 | FZ79: 0 | GA79: 0 | GB79: 0 | GC79: 0 | GD79: 0 | GE79: 0 | GF79: 0 | GG79: 2260 | GH79: 0 | GI79: 687120 | GJ79: 0 | GK79: 0 | GL79: 348691 | GM79: 0 | GN79: 2260 | GO79: 0 | GP79: 46425 | GQ79: 31339 | GR79: 578649 | GS79: 32949 | GT79: 896849 | GU79: 2398237 | GV79: 29054 | GW79: 0 | GX79: 0 | GY79: 0 | GZ79: 0 | HA79: 0 | HB79: 0 | HC79: 0 | HD79: 0 | HE79: 2260 | HF79: 0 | HG79: 694521 | HH79: 0 | HI79: 0 | HJ79: 344333 | HK79: 0 | HL79: 2155 | HM79: 0 | HN79: 49703 | HO79: 25195 | HP79: 546673 | HQ79: 31279 | HR79: 835565 | HS79: 2438199 | HT79: 13852 | HU79: 0 | HV79: 0 | HW79: 0 | HX79: 0 | HY79: 0 | HZ79: 0 | IA79: 0 | IB79: 0 | IC79: 2155 | ID79: 0
A80: Ver.05.00 | B80: 014281 | C80: 北海道 | D80: 長沼町 | E80: 5 | F80: - | G80: - | H80: 10.4 | I80: 21.3 | J80: 5059700 | K80: 24312 | L80: 一般会計 | M80: 45360 | AR80: 45360 | AS80: -0.89 | AT80: ① | AU80: 国民健康保険特別会計 | AV80: 3793 | AW80: ② | AX80: 介護保険特別会計 | AY80: 1037 | AZ80: ③ | BA80: 後期高齢者医療保険特別会計 | BB80: 1242 | BC80: ⑥ | BD80: 介護療養型老人保健施設特別会計 | BE80: 241 | BF80: 0 | BI80: 0 | BL80: 0 | BO80: 0 | BR80: 0 | BU80: 0 | BX80: 0 | CA80: 0 | CD80: 0 | CG80: 町立長沼病院事業会計 | CH80: 1148 | CI80: 0 | CJ80: 0 | CK80: 0 | CL80: 0 | CM80: 0 | CN80: 0 | CO80: 0 | CP80: 0 | CQ80: 0 | CR80: 0 | CS80: 0 | CT80: 0 | CU80: 0 | CV80: 0 | CW80: 0 | CX80: 0 | CY80: 0 | CZ80: 0 | DA80: 0 | DB80: 0 | DC80: 0 | DD80: 0 | DE80: 0 | DF80: 0 | DG80: 0 | DH80: 0 | DI80: 0 | DJ80: 0 | DK80: 0 | DL80: 0 | DM80: 0 | DN80: 0 | DO80: 0 | DP80: 0 | DQ80: 0 | DR80: 0 | DS80: 下水道事業特別会計 | DT80: 14754 | DU80: 集落排水事業特別会計 | DV80: 4752 | DW80: 0 | DX80: 0 | DY80: 0 | DZ80: 0 | EA80: 0 | EB80: 0 | EC80: 0 | ED80: 0 | EE80: 0 | EF80: 0 | EG80: 0 | EH80: 0 | EI80: 0 | EJ80: 0 | EK80: 0 | EL80: 0 | EM80: 0 | EN80: 0 | EO80: 0 | EP80: 0 | EQ80: 0 | ER80: 0 | ES80: 0 | ET80: 0 | EU80: 0 | EV80: 0 | EW80: 0 | EX80: 0 | EY80: 0 | EZ80: 0 | FA80: 0 | FB80: 0 | FC80: 0 | FD80: 0 | FE80: 72327 | FF80: -1.42 | FG80: 10.67105186 | FH80: 10.49956434 | FI80: 10.09498001 | FJ80: 10.4 | FK80: 896485 | FL80: 0 | FM80: 0 | FN80: 222222 | FO80: 100236 | FP80: 41355 | FQ80: 0 | FR80: 102279 | FS80: 157522 | FT80: 532727 | FU80: 11291 | FV80: 1609102 | FW80: 3182845 | FX80: 187325 | FY80: 0 | FZ80: 0 | GA80: 0 | GB80: 36787 | GC80: 0 | GD80: 0 | GE80: 0 | GF80: 0 | GG80: 0 | GH80: 4568 | GI80: 944616 | GJ80: 0 | GK80: 0 | GL80: 220950 | GM80: 100236 | GN80: 3990 | GO80: 0 | GP80: 100132 | GQ80: 145328 | GR80: 569660 | GS80: 11948 | GT80: 1691610 | GU80: 3200234 | GV80: 51686 | GW80: 0 | GX80: 0 | GY80: 0 | GZ80: 0 | HA80: 0 | HB80: 0 | HC80: 0 | HD80: 0 | HE80: 0 | HF80: 3990 | HG80: 949946 | HH80: 0 | HI80: 0 | HJ80: 223220 | HK80: 100237 | HL80: 3491 | HM80: 0 | HN80: 104180 | HO80: 133180 | HP80: 591018 | HQ80: 12066 | HR80: 1738182 | HS80: 3297206 | HT80: 24312 | HU80: 0 | HV80: 0 | HW80: 0 | HX80: 0 | HY80: 0 | HZ80: 0 | IA80: 0 | IB80: 0 | IC80: 0 | ID80: 3491
A81: Ver.05.00 | B81: 014290 | C81: 北海道 | D81: 栗山町 | E81: 5 | F81: - | G81: - | H81: 6.4 | I81: 32.5 | J81: 5068988 | K81: 24384 | L81: 一般会計 | M81: 260299 | N81: 北海道介護福祉学校特別会計 | O81: 201 | AR81: 260500 | AS81: -5.13 | AT81: ① | AU81: 国民健康保険特別会計 | AV81: 10750 | AW81: ② | AX81: 介護保険特別会計 | AY81: 72375 | AZ81: ③ | BA81: 後期高齢者医療特別会計 | BB81: 45 | BC81: 0 | BF81: 0 | BI81: 0 | BL81: 0 | BO81: 0 | BR81: 0 | BU81: 0 | BX81: 0 | CA81: 0 | CD81: 0 | CG81: 水道事業会計 | CH81: 406980 | CI81: 下水道事業会計 | CJ81: 152450 | CK81: 0 | CL81: 0 | CM81: 0 | CN81: 0 | CO81: 0 | CP81: 0 | CQ81: 0 | CR81: 0 | CS81: 0 | CT81: 0 | CU81: 0 | CV81: 0 | CW81: 0 | CX81: 0 | CY81: 0 | CZ81: 0 | DA81: 0 | DB81: 0 | DC81: 0 | DD81: 0 | DE81: 0 | DF81: 0 | DG81: 0 | DH81: 0 | DI81: 0 | DJ81: 0 | DK81: 0 | DL81: 0 | DM81: 0 | DN81: 0 | DO81: 0 | DP81: 0 | DQ81: 0 | DR81: 0 | DS81: 0 | DT81: 0 | DU81: 0 | DV81: 0 | DW81: 0 | DX81: 0 | DY81: 0 | DZ81: 0 | EA81: 0 | EB81: 0 | EC81: 0 | ED81: 0 | EE81: 0 | EF81: 0 | EG81: 0 | EH81: 0 | EI81: 0 | EJ81: 0 | EK81: 0 | EL81: 0 | EM81: 0 | EN81: 0 | EO81: 0 | EP81: 0 | EQ81: 0 | ER81: 0 | ES81: 0 | ET81: 0 | EU81: 0 | EV81: 0 | EW81: 住宅団地造成事業特別会計 | EX81: 0 | EY81: 工業団地造成事業特別会計 | EZ81: 0 | FA81: 0 | FB81: 0 | FC81: 0 | FD81: 0 | FE81: 903100 | FF81: -17.81 | FG81: 6.856335452 | FH81: 6.649954269 | FI81: 5.724902852 | FJ81: 6.4 | FK81: 1111661 | FL81: 0 | FM81: 0 | FN81: 256009 | FO81: 0 | FP81: 7974 | FQ81: 36 | FR81: 230617 | FS81: 220243 | FT81: 619389 | FU81: 10595 | FV81: 1595547 | FW81: 3356824 | FX81: 198054 | FY81: 0 | FZ81: 0 | GA81: 0 | GB81: 0 | GC81: 0 | GD81: 0 | GE81: 0 | GF81: 0 | GG81: 0 | GH81: 7974 | GI81: 1109209 | GJ81: 0 | GK81: 0 | GL81: 245148 | GM81: 0 | GN81: 6523 | GO81: 104 | GP81: 230977 | GQ81: 212031 | GR81: 627744 | GS81: 12998 | GT81: 1662160 | GU81: 3305871 | GV81: 53703 | GW81: 0 | GX81: 0 | GY81: 0 | GZ81: 0 | HA81: 0 | HB81: 0 | HC81: 0 | HD81: 0 | HE81: 0 | HF81: 6523 | HG81: 1106242 | HH81: 0 | HI81: 0 | HJ81: 191756 | HK81: 0 | HL81: 6059 | HM81: 237 | HN81: 229822 | HO81: 188113 | HP81: 639878 | HQ81: 3912 | HR81: 1699562 | HS81: 3345042 | HT81: 24384 | HU81: 0 | HV81: 0 | HW81: 0 | HX81: 0 | HY81: 0 | HZ81: 0 | IA81: 0 | IB81: 0 | IC81: 0 | ID81: 6059
A82: Ver.05.00 | B82: 014303 | C82: 北海道 | D82: 月形町 | E82: 5 | F82: - | G82: - | H82: 4.5 | I82: - | J82: 2574409 | K82: 9557 | L82: 一般会計 | M82: 118484 | AR82: 118484 | AS82: -4.6 | AT82: ① | AU82: 国民健康保険事業特別会計 | AV82: 1804 | AW82: ② | AX82: 介護保険事業特別会計 | AY82: 15750 | AZ82: ③ | BA82: 後期高齢者医療特別会計 | BB82: 182 | BC82: 0 | BF82: 0 | BI82: 0 | BL82: 0 | BO82: 0 | BR82: 0 | BU82: 0 | BX82: 0 | CA82: 0 | CD82: 0 | CG82: 国民健康保険月形町立病院事業会計 | CH82: 176853 | CI82: 0 | CJ82: 0 | CK82: 0 | CL82: 0 | CM82: 0 | CN82: 0 | CO82: 0 | CP82: 0 | CQ82: 0 | CR82: 0 | CS82: 0 | CT82: 0 | CU82: 0 | CV82: 0 | CW82: 0 | CX82: 0 | CY82: 0 | CZ82: 0 | DA82: 0 | DB82: 0 | DC82: 0 | DD82: 0 | DE82: 0 | DF82: 0 | DG82: 0 | DH82: 0 | DI82: 0 | DJ82: 0 | DK82: 0 | DL82: 0 | DM82: 0 | DN82: 0 | DO82: 0 | DP82: 0 | DQ82: 0 | DR82: 0 | DS82: 農業集落排水事業特別会計 | DT82: 384 | DU82: 0 | DV82: 0 | DW82: 0 | DX82: 0 | DY82: 0 | DZ82: 0 | EA82: 0 | EB82: 0 | EC82: 0 | ED82: 0 | EE82: 0 | EF82: 0 | EG82: 0 | EH82: 0 | EI82: 0 | EJ82: 0 | EK82: 0 | EL82: 0 | EM82: 0 | EN82: 0 | EO82: 0 | EP82: 0 | EQ82: 0 | ER82: 0 | ES82: 0 | ET82: 0 | EU82: 0 | EV82: 0 | EW82: 0 | EX82: 0 | EY82: 0 | EZ82: 0 | FA82: 0 | FB82: 0 | FC82: 0 | FD82: 0 | FE82: 313457 | FF82: -12.17 | FG82: 4.50447024 | FH82: 4.306308309 | FI82: 4.765042283 | FJ82: 4.5 | FK82: 415047 | FL82: 0 | FM82: 0 | FN82: 76681 | FO82: 0 | FP82: 1874 | FQ82: 0 | FR82: 38402 | FS82: 27411 | FT82: 311172 | FU82: 13579 | FV82: 433414 | FW82: 2123129 | FX82: 83080 | FY82: 0 | FZ82: 0 | GA82: 0 | GB82: 0 | GC82: 0 | GD82: 0 | GE82: 0 | GF82: 0 | GG82: 0 | GH82: 1874 | GI82: 390115 | GJ82: 0 | GK82: 0 | GL82: 73035 | GM82: 0 | GN82: 2155 | GO82: 0 | GP82: 38286 | GQ82: 24876 | GR82: 293309 | GS82: 13536 | GT82: 436217 | GU82: 2087295 | GV82: 21195 | GW82: 0 | GX82: 0 | GY82: 0 | GZ82: 0 | HA82: 0 | HB82: 0 | HC82: 0 | HD82: 0 | HE82: 0 | HF82: 2155 | HG82: 411175 | HH82: 0 | HI82: 0 | HJ82: 72147 | HK82: 0 | HL82: 1138 | HM82: 0 | HN82: 34801 | HO82: 22664 | HP82: 307200 | HQ82: 13484 | HR82: 438170 | HS82: 2126682 | HT82: 9557 | HU82: 0 | HV82: 0 | HW82: 0 | HX82: 0 | HY82: 0 | HZ82: 0 | IA82: 0 | IB82: 0 | IC82: 0 | ID82: 1138
A83: Ver.05.00 | B83: 014311 | C83: 北海道 | D83: 浦臼町 | E83: 5 | F83: - | G83: - | H83: 14.2 | I83: - | J83: 1801627 | K83: 6767 | L83: 一般会計 | M83: 245865 | AR83: 245865 | AS83: -13.64 | AT83: ① | AU83: 国民健康保険特別会計 | AV83: 17514 | AW83: ③ | AX83: 後期高齢者医療特別会計 | AY83: 340 | AZ83: 0 | BC83: 0 | BF83: 0 | BI83: 0 | BL83: 0 | BO83: 0 | BR83: 0 | BU83: 0 | BX83: 0 | CA83: 0 | CD83: 0 | CG83: 下水道事業会計 | CH83: 10338 | CI83: 0 | CJ83: 0 | CK83: 0 | CL83: 0 | CM83: 0 | CN83: 0 | CO83: 0 | CP83: 0 | CQ83: 0 | CR83: 0 | CS83: 0 | CT83: 0 | CU83: 0 | CV83: 0 | CW83: 0 | CX83: 0 | CY83: 0 | CZ83: 0 | DA83: 0 | DB83: 0 | DC83: 0 | DD83: 0 | DE83: 0 | DF83: 0 | DG83: 0 | DH83: 0 | DI83: 0 | DJ83: 0 | DK83: 0 | DL83: 0 | DM83: 0 | DN83: 0 | DO83: 0 | DP83: 0 | DQ83: 0 | DR83: 0 | DS83: 0 | DT83: 0 | DU83: 0 | DV83: 0 | DW83: 0 | DX83: 0 | DY83: 0 | DZ83: 0 | EA83: 0 | EB83: 0 | EC83: 0 | ED83: 0 | EE83: 0 | EF83: 0 | EG83: 0 | EH83: 0 | EI83: 0 | EJ83: 0 | EK83: 0 | EL83: 0 | EM83: 0 | EN83: 0 | EO83: 0 | EP83: 0 | EQ83: 0 | ER83: 0 | ES83: 0 | ET83: 0 | EU83: 0 | EV83: 0 | EW83: 0 | EX83: 0 | EY83: 0 | EZ83: 0 | FA83: 0 | FB83: 0 | FC83: 0 | FD83: 0 | FE83: 274057 | FF83: -15.21 | FG83: 9.762849567 | FH83: 15.96449659 | FI83: 16.99776951 | FJ83: 14.2 | FK83: 461961 | FL83: 0 | FM83: 0 | FN83: 54800 | FO83: 70348 | FP83: 0 | FQ83: 9 | FR83: 34079 | FS83: 48272 | FT83: 331109 | FU83: 32487 | FV83: 302129 | FW83: 1498595 | FX83: 57146 | FY83: 0 | FZ83: 0 | GA83: 0 | GB83: 0 | GC83: 0 | GD83: 0 | GE83: 0 | GF83: 0 | GG83: 0 | GH83: 0 | GI83: 528784 | GJ83: 0 | GK83: 0 | GL83: 51173 | GM83: 68695 | GN83: 0 | GO83: 15 | GP83: 30429 | GQ83: 32378 | GR83: 329208 | GS83: 32487 | GT83: 314421 | GU83: 1469279 | GV83: 14520 | GW83: 0 | GX83: 0 | GY83: 0 | GZ83: 0 | HA83: 0 | HB83: 0 | HC83: 0 | HD83: 0 | HE83: 0 | HF83: 0 | HG83: 549508 | HH83: 0 | HI83: 0 | HJ83: 48945 | HK83: 66799 | HL83: 0 | HM83: 12 | HN83: 27271 | HO83: 28998 | HP83: 337528 | HQ83: 33170 | HR83: 298113 | HS83: 1496747 | HT83: 6767 | HU83: 0 | HV83: 0 | HW83: 0 | HX83: 0 | HY83: 0 | HZ83: 0 | IA83: 0 | IB83: 0 | IC83: 0 | ID83: 0
A84: Ver.05.00 | B84: 014320 | C84: 北海道 | D84: 新十津川町 | E84: 5 | F84: - | G84: - | H84: 6.3 | I84: - | J84: 4246836 | K84: 16535 | L84: 一般会計 | M84: 259961 | AR84: 259961 | AS84: -6.12 | AT84: ① | AU84: 国民健康保険特別会計 | AV84: 727 | AW84: ③ | AX84: 後期高齢者医療特別会計 | AY84: 14 | AZ84: 0 | BC84: 0 | BF84: 0 | BI84: 0 | BL84: 0 | BO84: 0 | BR84: 0 | BU84: 0 | BX84: 0 | CA84: 0 | CD84: 0 | CG84: 下水道事業会計 | CH84: 14738 | CI84: 0 | CJ84: 0 | CK84: 0 | CL84: 0 | CM84: 0 | CN84: 0 | CO84: 0 | CP84: 0 | CQ84: 0 | CR84: 0 | CS84: 0 | CT84: 0 | CU84: 0 | CV84: 0 | CW84: 0 | CX84: 0 | CY84: 0 | CZ84: 0 | DA84: 0 | DB84: 0 | DC84: 0 | DD84: 0 | DE84: 0 | DF84: 0 | DG84: 0 | DH84: 0 | DI84: 0 | DJ84: 0 | DK84: 0 | DL84: 0 | DM84: 0 | DN84: 0 | DO84: 0 | DP84: 0 | DQ84: 0 | DR84: 0 | DS84: 0 | DT84: 0 | DU84: 0 | DV84: 0 | DW84: 0 | DX84: 0 | DY84: 0 | DZ84: 0 | EA84: 0 | EB84: 0 | EC84: 0 | ED84: 0 | EE84: 0 | EF84: 0 | EG84: 0 | EH84: 0 | EI84: 0 | EJ84: 0 | EK84: 0 | EL84: 0 | EM84: 0 | EN84: 0 | EO84: 0 | EP84: 0 | EQ84: 0 | ER84: 0 | ES84: 0 | ET84: 0 | EU84: 0 | EV84: 0 | EW84: 0 | EX84: 0 | EY84: 0 | EZ84: 0 | FA84: 0 | FB84: 0 | FC84: 0 | FD84: 0 | FE84: 275440 | FF84: -6.48 | FG84: 4.8645795 | FH84: 7.128923096 | FI84: 6.959042593 | FJ84: 6.3 | FK84: 770643 | FL84: 0 | FM84: 0 | FN84: 123384 | FO84: 23002 | FP84: 913 | FQ84: 0 | FR84: 66457 | FS84: 81857 | FT84: 568725 | FU84: 26656 | FV84: 859271 | FW84: 3263920 | FX84: 136001 | FY84: 0 | FZ84: 0 | GA84: 0 | GB84: 0 | GC84: 0 | GD84: 0 | GE84: 0 | GF84: 0 | GG84: 0 | GH84: 913 | GI84: 832937 | GJ84: 0 | GK84: 0 | GL84: 113213 | GM84: 22113 | GN84: 254 | GO84: 0 | GP84: 58886 | GQ84: 74500 | GR84: 557854 | GS84: 25597 | GT84: 917957 | GU84: 3235133 | GV84: 35268 | GW84: 0 | GX84: 0 | GY84: 0 | GZ84: 0 | HA84: 0 | HB84: 0 | HC84: 0 | HD84: 0 | HE84: 0 | HF84: 254 | HG84: 854812 | HH84: 0 | HI84: 0 | HJ84: 117800 | HK84: 13389 | HL84: 152 | HM84: 0 | HN84: 58836 | HO84: 71973 | HP84: 583528 | HQ84: 23531 | HR84: 883201 | HS84: 3347100 | HT84: 16535 | HU84: 0 | HV84: 0 | HW84: 0 | HX84: 0 | HY84: 0 | HZ84: 0 | IA84: 0 | IB84: 0 | IC84: 0 | ID84: 152
A85: Ver.05.00 | B85: 014338 | C85: 北海道 | D85: 妹背牛町 | E85: 5 | F85: - | G85: - | H85: 6 | I85: - | J85: 2148796 | K85: 8294 | L85: 一般会計 | M85: 73946 | AR85: 73946 | AS85: -3.44 | AT85: ① | AU85: 国民健康保険特別会計 | AV85: 1258 | AW85: ② | AX85: 介護保険特別会計（保険事業勘定） | AY85: 17429 | AZ85: ③ | BA85: 後期高齢者医療特別会計 | BB85: 0 | BC85: ⑥ | BD85: 介護保険特別会計（サービス事業勘定） | BE85: 0 | BF85: 0 | BI85: 0 | BL85: 0 | BO85: 0 | BR85: 0 | BU85: 0 | BX85: 0 | CA85: 0 | CD85: 0 | CG85: 0 | CH85: 0 | CI85: 0 | CJ85: 0 | CK85: 0 | CL85: 0 | CM85: 0 | CN85: 0 | CO85: 0 | CP85: 0 | CQ85: 0 | CR85: 0 | CS85: 0 | CT85: 0 | CU85: 0 | CV85: 0 | CW85: 0 | CX85: 0 | CY85: 0 | CZ85: 0 | DA85: 0 | DB85: 0 | DC85: 0 | DD85: 0 | DE85: 0 | DF85: 0 | DG85: 0 | DH85: 0 | DI85: 0 | DJ85: 0 | DK85: 0 | DL85: 0 | DM85: 0 | DN85: 0 | DO85: 0 | DP85: 0 | DQ85: 0 | DR85: 0 | DS85: 簡易水道事業特別会計 | DT85: 23554 | DU85: 農業集落排水事業特別会計 | DV85: 16632 | DW85: 0 | DX85: 0 | DY85: 0 | DZ85: 0 | EA85: 0 | EB85: 0 | EC85: 0 | ED85: 0 | EE85: 0 | EF85: 0 | EG85: 0 | EH85: 0 | EI85: 0 | EJ85: 0 | EK85: 0 | EL85: 0 | EM85: 0 | EN85: 0 | EO85: 0 | EP85: 0 | EQ85: 0 | ER85: 0 | ES85: 0 | ET85: 0 | EU85: 0 | EV85: 0 | EW85: 0 | EX85: 0 | EY85: 0 | EZ85: 0 | FA85: 0 | FB85: 0 | FC85: 0 | FD85: 0 | FE85: 132819 | FF85: -6.18 | FG85: 5.601441528 | FH85: 6.276178665 | FI85: 6.162280459 | FJ85: 6 | FK85: 345242 | FL85: 0 | FM85: 0 | FN85: 98224 | FO85: 2336 | FP85: 0 | FQ85: 171 | FR85: 39659 | FS85: 54807 | FT85: 245991 | FU85: 1564 | FV85: 405429 | FW85: 1684502 | FX85: 68239 | FY85: 0 | FZ85: 0 | GA85: 0 | GB85: 0 | GC85: 0 | GD85: 0 | GE85: 0 | GF85: 0 | GG85: 0 | GH85: 0 | GI85: 430119 | GJ85: 0 | GK85: 0 | GL85: 104277 | GM85: 2333 | GN85: 0 | GO85: 124 | GP85: 53546 | GQ85: 52109 | GR85: 317316 | GS85: 1487 | GT85: 416667 | GU85: 1726789 | GV85: 18275 | GW85: 0 | GX85: 0 | GY85: 0 | GZ85: 0 | HA85: 0 | HB85: 0 | HC85: 0 | HD85: 0 | HE85: 0 | HF85: 0 | HG85: 402688 | HH85: 0 | HI85: 0 | HJ85: 104313 | HK85: 2344 | HL85: 0 | HM85: 575 | HN85: 54801 | HO85: 47045 | HP85: 295343 | HQ85: 1508 | HR85: 410420 | HS85: 1730082 | HT85: 8294 | HU85: 0 | HV85: 0 | HW85: 0 | HX85: 0 | HY85: 0 | HZ85: 0 | IA85: 0 | IB85: 0 | IC85: 0 | ID85: 0
A86: Ver.05.00 | B86: 014346 | C86: 北海道 | D86: 秩父別町 | E86: 5 | F86: - | G86: - | H86: 5.9 | I86: - | J86: 2009567 | K86: 7468 | L86: 一般会計 | M86: 74729 | AR86: 74729 | AS86: -3.71 | AT86: ① | AU86: 国民健康保険事業特別会計 | AV86: 2141 | AW86: ② | AX86: 介護保険特別会計 | AY86: 33714 | AZ86: ③ | BA86: 後期高齢者医療特別会計 | BB86: 0 | BC86: 0 | BF86: 0 | BI86: 0 | BL86: 0 | BO86: 0 | BR86: 0 | BU86: 0 | BX86: 0 | CA86: 0 | CD86: 0 | CG86: 簡易水道事業会計 | CH86: 122225 | CI86: 0 | CJ86: 0 | CK86: 0 | CL86: 0 | CM86: 0 | CN86: 0 | CO86: 0 | CP86: 0 | CQ86: 0 | CR86: 0 | CS86: 0 | CT86: 0 | CU86: 0 | CV86: 0 | CW86: 0 | CX86: 0 | CY86: 0 | CZ86: 0 | DA86: 0 | DB86: 0 | DC86: 0 | DD86: 0 | DE86: 0 | DF86: 0 | DG86: 0 | DH86: 0 | DI86: 0 | DJ86: 0 | DK86: 0 | DL86: 0 | DM86: 0 | DN86: 0 | DO86: 0 | DP86: 0 | DQ86: 0 | DR86: 0 | DS86: 農業集落排水事業特別会計 | DT86: 34524 | DU86: 0 | DV86: 0 | DW86: 0 | DX86: 0 | DY86: 0 | DZ86: 0 | EA86: 0 | EB86: 0 | EC86: 0 | ED86: 0 | EE86: 0 | EF86: 0 | EG86: 0 | EH86: 0 | EI86: 0 | EJ86: 0 | EK86: 0 | EL86: 0 | EM86: 0 | EN86: 0 | EO86: 0 | EP86: 0 | EQ86: 0 | ER86: 0 | ES86: 0 | ET86: 0 | EU86: 0 | EV86: 0 | EW86: 0 | EX86: 0 | EY86: 0 | EZ86: 0 | FA86: 0 | FB86: 0 | FC86: 0 | FD86: 0 | FE86: 267333 | FF86: -13.3 | FG86: 5.095710111 | FH86: 6.38538317 | FI86: 6.401118652 | FJ86: 5.9 | FK86: 468197 | FL86: 0 | FM86: 0 | FN86: 14505 | FO86: 2272 | FP86: 253 | FQ86: 122 | FR86: 30230 | FS86: 29832 | FT86: 339726 | FU86: 913 | FV86: 334388 | FW86: 1634728 | FX86: 62517 | FY86: 0 | FZ86: 0 | GA86: 0 | GB86: 0 | GC86: 0 | GD86: 0 | GE86: 0 | GF86: 0 | GG86: 0 | GH86: 253 | GI86: 487939 | GJ86: 0 | GK86: 0 | GL86: 24623 | GM86: 2362 | GN86: 197 | GO86: 0 | GP86: 25264 | GQ86: 28375 | GR86: 358335 | GS86: 763 | GT86: 349151 | GU86: 1625618 | GV86: 16116 | GW86: 0 | GX86: 0 | GY86: 0 | GZ86: 0 | HA86: 0 | HB86: 0 | HC86: 0 | HD86: 0 | HE86: 0 | HF86: 197 | HG86: 491580 | HH86: 0 | HI86: 0 | HJ86: 25564 | HK86: 2020 | HL86: 187 | HM86: 28 | HN86: 25264 | HO86: 28738 | HP86: 358938 | HQ86: 2799 | HR86: 341871 | HS86: 1660228 | HT86: 7468 | HU86: 0 | HV86: 0 | HW86: 0 | HX86: 0 | HY86: 0 | HZ86: 0 | IA86: 0 | IB86: 0 | IC86: 0 | ID86: 187
A87: Ver.05.00 | B87: 014362 | C87: 北海道 | D87: 雨竜町 | E87: 5 | F87: - | G87: - | H87: 7.6 | I87: - | J87: 2034555 | K87: 7325 | L87: 一般会計 | M87: 148484 | AR87: 148484 | AS87: -7.29 | AT87: ① | AU87: 国民健康保険特別会計 | AV87: 603 | AW87: ③ | AX87: 後期高齢者医療特別会計 | AY87: 229 | AZ87: 0 | BC87: 0 | BF87: 0 | BI87: 0 | BL87: 0 | BO87: 0 | BR87: 0 | BU87: 0 | BX87: 0 | CA87: 0 | CD87: 0 | CG87: 0 | CH87: 0 | CI87: 0 | CJ87: 0 | CK87: 0 | CL87: 0 | CM87: 0 | CN87: 0 | CO87: 0 | CP87: 0 | CQ87: 0 | CR87: 0 | CS87: 0 | CT87: 0 | CU87: 0 | CV87: 0 | CW87: 0 | CX87: 0 | CY87: 0 | CZ87: 0 | DA87: 0 | DB87: 0 | DC87: 0 | DD87: 0 | DE87: 0 | DF87: 0 | DG87: 0 | DH87: 0 | DI87: 0 | DJ87: 0 | DK87: 0 | DL87: 0 | DM87: 0 | DN87: 0 | DO87: 0 | DP87: 0 | DQ87: 0 | DR87: 0 | DS87: 0 | DT87: 0 | DU87: 0 | DV87: 0 | DW87: 0 | DX87: 0 | DY87: 0 | DZ87: 0 | EA87: 0 | EB87: 0 | EC87: 0 | ED87: 0 | EE87: 0 | EF87: 0 | EG87: 0 | EH87: 0 | EI87: 0 | EJ87: 0 | EK87: 0 | EL87: 0 | EM87: 0 | EN87: 0 | EO87: 0 | EP87: 0 | EQ87: 0 | ER87: 0 | ES87: 0 | ET87: 0 | EU87: 0 | EV87: 0 | EW87: 0 | EX87: 0 | EY87: 0 | EZ87: 0 | FA87: 0 | FB87: 0 | FC87: 0 | FD87: 0 | FE87: 149316 | FF87: -7.33 | FG87: 6.076219651 | FH87: 9.488649467 | FI87: 7.488616695 | FJ87: 7.6 | FK87: 535328 | FL87: 0 | FM87: 0 | FN87: 4280 | FO87: 17487 | FP87: 1450 | FQ87: 0 | FR87: 57572 | FS87: 10226 | FT87: 371236 | FU87: 10180 | FV87: 360990 | FW87: 1764901 | FX87: 65077 | FY87: 0 | FZ87: 0 | GA87: 0 | GB87: 0 | GC87: 0 | GD87: 0 | GE87: 0 | GF87: 0 | GG87: 0 | GH87: 1450 | GI87: 553922 | GJ87: 0 | GK87: 0 | GL87: 12446 | GM87: 17011 | GN87: 1674 | GO87: 0 | GP87: 56105 | GQ87: 8127 | GR87: 346581 | GS87: 10069 | GT87: 361777 | GU87: 1716786 | GV87: 16397 | GW87: 0 | GX87: 0 | GY87: 0 | GZ87: 0 | HA87: 0 | HB87: 0 | HC87: 0 | HD87: 0 | HE87: 0 | HF87: 1674 | HG87: 476634 | HH87: 0 | HI87: 0 | HJ87: 8529 | HK87: 11718 | HL87: 4551 | HM87: 0 | HN87: 55896 | HO87: 5967 | HP87: 300901 | HQ87: 10040 | HR87: 347255 | HS87: 1679975 | HT87: 7325 | HU87: 0 | HV87: 0 | HW87: 0 | HX87: 0 | HY87: 0 | HZ87: 0 | IA87: 0 | IB87: 0 | IC87: 0 | ID87: 4551
A88: Ver.05.00 | B88: 014371 | C88: 北海道 | D88: 北竜町 | E88: 5 | F88: - | G88: - | H88: 10.7 | I88: - | J88: 1898888 | K88: 6872 | L88: 一般会計 | M88: 49818 | N88: 町立診療所事業特別会計 | O88: 795 | AR88: 50613 | AS88: -2.66 | AT88: ① | AU88: 国民健康保険特別会計 | AV88: 1624 | AW88: ② | AX88: 介護保険特別会計 | AY88: 16343 | AZ88: ③ | BA88: 後期高齢者医療特別会計 | BB88: 30 | BC88: ⑥ | BD88: 特別養護老人ホーム事業特別会計 | BE88: 546 | BF88: 0 | BI88: 0 | BL88: 0 | BO88: 0 | BR88: 0 | BU88: 0 | BX88: 0 | CA88: 0 | CD88: 0 | CG88: 簡易水道事業会計 | CH88: 73754 | CI88: 農業集落排水事業及び個別排水処理事業会計 | CJ88: 4574 | CK88: 0 | CL88: 0 | CM88: 0 | CN88: 0 | CO88: 0 | CP88: 0 | CQ88: 0 | CR88: 0 | CS88: 0 | CT88: 0 | CU88: 0 | CV88: 0 | CW88: 0 | CX88: 0 | CY88: 0 | CZ88: 0 | DA88: 0 | DB88: 0 | DC88: 0 | DD88: 0 | DE88: 0 | DF88: 0 | DG88: 0 | DH88: 0 | DI88: 0 | DJ88: 0 | DK88: 0 | DL88: 0 | DM88: 0 | DN88: 0 | DO88: 0 | DP88: 0 | DQ88: 0 | DR88: 0 | DS88: 0 | DT88: 0 | DU88: 0 | DV88: 0 | DW88: 0 | DX88: 0 | DY88: 0 | DZ88: 0 | EA88: 0 | EB88: 0 | EC88: 0 | ED88: 0 | EE88: 0 | EF88: 0 | EG88: 0 | EH88: 0 | EI88: 0 | EJ88: 0 | EK88: 0 | EL88: 0 | EM88: 0 | EN88: 0 | EO88: 0 | EP88: 0 | EQ88: 0 | ER88: 0 | ES88: 0 | ET88: 0 | EU88: 0 | EV88: 0 | EW88: 0 | EX88: 0 | EY88: 0 | EZ88: 0 | FA88: 0 | FB88: 0 | FC88: 0 | FD88: 0 | FE88: 147484 | FF88: -7.76 | FG88: 9.760675026 | FH88: 11.42825825 | FI88: 11.08026292 | FJ88: 10.7 | FK88: 445830 | FL88: 0 | FM88: 0 | FN88: 54559 | FO88: 1933 | FP88: 10775 | FQ88: 25 | FR88: 48194 | FS88: 26977 | FT88: 282477 | FU88: 1322 | FV88: 261566 | FW88: 1572120 | FX88: 56407 | FY88: 0 | FZ88: 0 | GA88: 0 | GB88: 0 | GC88: 0 | GD88: 0 | GE88: 0 | GF88: 0 | GG88: 10775 | GH88: 0 | GI88: 488719 | GJ88: 0 | GK88: 0 | GL88: 57929 | GM88: 2022 | GN88: 19162 | GO88: 110 | GP88: 53890 | GQ88: 26599 | GR88: 310935 | GS88: 1358 | GT88: 266274 | GU88: 1590617 | GV88: 14693 | GW88: 0 | GX88: 0 | GY88: 0 | GZ88: 0 | HA88: 0 | HB88: 0 | HC88: 0 | HD88: 0 | HE88: 19162 | HF88: 0 | HG88: 546839 | HH88: 0 | HI88: 0 | HJ88: 43853 | HK88: 1686 | HL88: 20122 | HM88: 152 | HN88: 67896 | HO88: 23757 | HP88: 350903 | HQ88: 1358 | HR88: 259383 | HS88: 1632633 | HT88: 6872 | HU88: 0 | HV88: 0 | HW88: 0 | HX88: 0 | HY88: 0 | HZ88: 0 | IA88: 0 | IB88: 0 | IC88: 20122 | ID88: 0
A89: Ver.05.00 | B89: 014389 | C89: 北海道 | D89: 沼田町 | E89: 5 | F89: - | G89: - | H89: 0.2 | I89: - | J89: 2697049 | K89: 10011 | L89: 一般会計 | M89: 118198 | N89: 養護老人ホーム特別会計 | O89: 20022 | AR89: 138220 | AS89: -5.12 | AT89: ⑥ | AU89: 特別養護老人ホーム特別会計 | AV89: 0 | AW89: ⑥ | AX89: 高齢者グループホーム特別会計 | AY89: 0 | AZ89: ② | BA89: 介護保険特別会計 | BB89: 22097 | BC89: ① | BD89: 国民健康保険特別会計 | BE89: 17471 | BF89: ③ | BG89: 後期高齢者医療特別会計 | BH89: 178 | BI89: 0 | BL89: 0 | BO89: 0 | BR89: 0 | BU89: 0 | BX89: 0 | CA89: 0 | CD89: 0 | CG89: 上水道事業会計 | CH89: 263947 | CI89: 0 | CJ89: 0 | CK89: 0 | CL89: 0 | CM89: 0 | CN89: 0 | CO89: 0 | CP89: 0 | CQ89: 0 | CR89: 0 | CS89: 0 | CT89: 0 | CU89: 0 | CV89: 0 | CW89: 0 | CX89: 0 | CY89: 0 | CZ89: 0 | DA89: 0 | DB89: 0 | DC89: 0 | DD89: 0 | DE89: 0 | DF89: 0 | DG89: 0 | DH89: 0 | DI89: 0 | DJ89: 0 | DK89: 0 | DL89: 0 | DM89: 0 | DN89: 0 | DO89: 0 | DP89: 0 | DQ89: 0 | DR89: 0 | DS89: 公共下水道特別会計 | DT89: 40656 | DU89: 0 | DV89: 0 | DW89: 0 | DX89: 0 | DY89: 0 | DZ89: 0 | EA89: 0 | EB89: 0 | EC89: 0 | ED89: 0 | EE89: 0 | EF89: 0 | EG89: 0 | EH89: 0 | EI89: 0 | EJ89: 0 | EK89: 0 | EL89: 0 | EM89: 0 | EN89: 0 | EO89: 0 | EP89: 0 | EQ89: 0 | ER89: 0 | ES89: 0 | ET89: 0 | EU89: 0 | EV89: 0 | EW89: 0 | EX89: 0 | EY89: 0 | EZ89: 0 | FA89: 0 | FB89: 0 | FC89: 0 | FD89: 0 | FE89: 482569 | FF89: -17.89 | FG89: 0.01096315999 | FH89: 0.3033379221 | FI89: 0.2871858691 | FJ89: 0.2 | FK89: 333707 | FL89: 0 | FM89: 0 | FN89: 73410 | FO89: 2694 | FP89: 8583 | FQ89: 0 | FR89: 34170 | FS89: 35711 | FT89: 348105 | FU89: 148 | FV89: 452596 | FW89: 2217936 | FX89: 85011 | FY89: 0 | FZ89: 0 | GA89: 0 | GB89: 0 | GC89: 0 | GD89: 0 | GE89: 0 | GF89: 0 | GG89: 8003 | GH89: 580 | GI89: 343312 | GJ89: 0 | GK89: 0 | GL89: 66355 | GM89: 3679 | GN89: 7704 | GO89: 0 | GP89: 34935 | GQ89: 31368 | GR89: 347698 | GS89: 0 | GT89: 478509 | GU89: 2202497 | GV89: 21871 | GW89: 0 | GX89: 0 | GY89: 0 | GZ89: 0 | HA89: 0 | HB89: 0 | HC89: 0 | HD89: 0 | HE89: 7219 | HF89: 485 | HG89: 326236 | HH89: 0 | HI89: 0 | HJ89: 58443 | HK89: 2693 | HL89: 6852 | HM89: 0 | HN89: 30403 | HO89: 28834 | HP89: 328267 | HQ89: 0 | HR89: 463309 | HS89: 2223729 | HT89: 10011 | HU89: 0 | HV89: 0 | HW89: 0 | HX89: 0 | HY89: 0 | HZ89: 0 | IA89: 0 | IB89: 0 | IC89: 6430 | ID89: 422
A90: Ver.05.00 | B90: 014524 | C90: 北海道 | D90: 鷹栖町 | E90: 5 | F90: - | G90: - | H90: 6.2 | I90: 5.1 | J90: 3488260 | K90: 16356 | L90: 一般会計 | M90: 218399 | N90: 上川町村等公平委員会特別会計 | O90: 1813 | AR90: 220212 | AS90: -6.31 | AT90: ① | AU90: 国民健康保険（事業勘定）特別会計 | AV90: 8594 | AW90: ② | AX90: 介護保険特別会計 | AY90: 52358 | AZ90: ③ | BA90: 後期高齢者医療特別会計 | BB90: 205 | BC90: 0 | BF90: 0 | BI90: 0 | BL90: 0 | BO90: 0 | BR90: 0 | BU90: 0 | BX90: 0 | CA90: 0 | CD90: 0 | CG90: 水道事業会計 | CH90: 227137 | CI90: 公共下水道事業会計 | CJ90: 112264 | CK90: 0 | CL90: 0 | CM90: 0 | CN90: 0 | CO90: 0 | CP90: 0 | CQ90: 0 | CR90: 0 | CS90: 0 | CT90: 0 | CU90: 0 | CV90: 0 | CW90: 0 | CX90: 0 | CY90: 0 | CZ90: 0 | DA90: 0 | DB90: 0 | DC90: 0 | DD90: 0 | DE90: 0 | DF90: 0 | DG90: 0 | DH90: 0 | DI90: 0 | DJ90: 0 | DK90: 0 | DL90: 0 | DM90: 0 | DN90: 0 | DO90: 0 | DP90: 0 | DQ90: 0 | DR90: 0 | DS90: 0 | DT90: 0 | DU90: 0 | DV90: 0 | DW90: 0 | DX90: 0 | DY90: 0 | DZ90: 0 | EA90: 0 | EB90: 0 | EC90: 0 | ED90: 0 | EE90: 0 | EF90: 0 | EG90: 0 | EH90: 0 | EI90: 0 | EJ90: 0 | EK90: 0 | EL90: 0 | EM90: 0 | EN90: 0 | EO90: 0 | EP90: 0 | EQ90: 0 | ER90: 0 | ES90: 0 | ET90: 0 | EU90: 0 | EV90: 0 | EW90: 0 | EX90: 0 | EY90: 0 | EZ90: 0 | FA90: 0 | FB90: 0 | FC90: 0 | FD90: 0 | FE90: 620770 | FF90: -17.79 | FG90: 4.960238639 | FH90: 5.9509477 | FI90: 7.767814077 | FJ90: 6.2 | FK90: 642169 | FL90: 0 | FM90: 0 | FN90: 79904 | FO90: 0 | FP90: 256 | FQ90: 1 | FR90: 76509 | FS90: 58077 | FT90: 441281 | FU90: 0 | FV90: 1021227 | FW90: 2299218 | FX90: 131654 | FY90: 0 | FZ90: 0 | GA90: 0 | GB90: 0 | GC90: 0 | GD90: 0 | GE90: 0 | GF90: 0 | GG90: 15 | GH90: 241 | GI90: 683640 | GJ90: 0 | GK90: 0 | GL90: 83229 | GM90: 0 | GN90: 314 | GO90: 0 | GP90: 68414 | GQ90: 55126 | GR90: 469306 | GS90: 0 | GT90: 1059199 | GU90: 2357842 | GV90: 36958 | GW90: 0 | GX90: 0 | GY90: 0 | GZ90: 0 | HA90: 0 | HB90: 0 | HC90: 0 | HD90: 0 | HE90: 111 | HF90: 203 | HG90: 737774 | HH90: 0 | HI90: 0 | HJ90: 82947 | HK90: 0 | HL90: 286 | HM90: 0 | HN90: 55692 | HO90: 46512 | HP90: 489476 | HQ90: 0 | HR90: 1076428 | HS90: 2395476 | HT90: 16356 | HU90: 0 | HV90: 0 | HW90: 0 | HX90: 0 | HY90: 0 | HZ90: 0 | IA90: 0 | IB90: 0 | IC90: 113 | ID90: 173
A91: Ver.05.00 | B91: 014532 | C91: 北海道 | D91: 東神楽町 | E91: 5 | F91: - | G91: - | H91: 8.3 | I91: 47.7 | J91: 3731901 | K91: 22045 | L91: 一般会計 | M91: 281541 | AR91: 281541 | AS91: -7.54 | AT91: ① | AU91: 国民健康保険特別会計診療施設勘定 | AV91: 8248 | AW91: 0 | AZ91: 0 | BC91: 0 | BF91: 0 | BI91: 0 | BL91: 0 | BO91: 0 | BR91: 0 | BU91: 0 | BX91: 0 | CA91: 0 | CD91: 0 | CG91: 水道事業会計 | CH91: 28168 | CI91: 下水道事業会計 | CJ91: 32310 | CK91: 0 | CL91: 0 | CM91: 0 | CN91: 0 | CO91: 0 | CP91: 0 | CQ91: 0 | CR91: 0 | CS91: 0 | CT91: 0 | CU91: 0 | CV91: 0 | CW91: 0 | CX91: 0 | CY91: 0 | CZ91: 0 | DA91: 0 | DB91: 0 | DC91: 0 | DD91: 0 | DE91: 0 | DF91: 0 | DG91: 0 | DH91: 0 | DI91: 0 | DJ91: 0 | DK91: 0 | DL91: 0 | DM91: 0 | DN91: 0 | DO91: 0 | DP91: 0 | DQ91: 0 | DR91: 0 | DS91: 0 | DT91: 0 | DU91: 0 | DV91: 0 | DW91: 0 | DX91: 0 | DY91: 0 | DZ91: 0 | EA91: 0 | EB91: 0 | EC91: 0 | ED91: 0 | EE91: 0 | EF91: 0 | EG91: 0 | EH91: 0 | EI91: 0 | EJ91: 0 | EK91: 0 | EL91: 0 | EM91: 0 | EN91: 0 | EO91: 0 | EP91: 0 | EQ91: 0 | ER91: 0 | ES91: 0 | ET91: 0 | EU91: 0 | EV91: 0 | EW91: 0 | EX91: 0 | EY91: 0 | EZ91: 0 | FA91: 0 | FB91: 0 | FC91: 0 | FD91: 0 | FE91: 350267 | FF91: -9.38 | FG91: 9.182797631 | FH91: 8.074583362 | FI91: 7.878912466 | FJ91: 8.3 | FK91: 591907 | FL91: 0 | FM91: 0 | FN91: 180841 | FO91: 31151 | FP91: 45060 | FQ91: 76 | FR91: 97391 | FS91: 94505 | FT91: 348454 | FU91: 7093 | FV91: 1447647 | FW91: 2113807 | FX91: 172913 | FY91: 0 | FZ91: 0 | GA91: 0 | GB91: 0 | GC91: 0 | GD91: 18402 | GE91: 0 | GF91: 0 | GG91: 22617 | GH91: 4041 | GI91: 595487 | GJ91: 0 | GK91: 0 | GL91: 164873 | GM91: 23492 | GN91: 32289 | GO91: 64 | GP91: 103561 | GQ91: 83653 | GR91: 361235 | GS91: 7822 | GT91: 1505903 | GU91: 2117859 | GV91: 48111 | GW91: 0 | GX91: 0 | GY91: 0 | GZ91: 0 | HA91: 0 | HB91: 18169 | HC91: 0 | HD91: 0 | HE91: 9853 | HF91: 4267 | HG91: 609916 | HH91: 0 | HI91: 0 | HJ91: 152951 | HK91: 27478 | HL91: 26515 | HM91: 155 | HN91: 109979 | HO91: 78705 | HP91: 361799 | HQ91: 7822 | HR91: 1524207 | HS91: 2185649 | HT91: 22045 | HU91: 0 | HV91: 0 | HW91: 0 | HX91: 0 | HY91: 0 | HZ91: 17936 | IA91: 0 | IB91: 0 | IC91: 4016 | ID91: 4563
A92: Ver.05.00 | B92: 014541 | C92: 北海道 | D92: 当麻町 | E92: 5 | F92: - | G92: - | H92: 7.2 | I92: 29.7 | J92: 3693825 | K92: 14792 | L92: 一般会計 | M92: 195487 | AR92: 195487 | AS92: -5.29 | AT92: ① | AU92: 国民健康保険特別会計（事業勘定） | AV92: 1258 | AW92: ① | AX92: 国民健康保険特別会計（医科診療施設勘定） | AY92: 1784 | AZ92: ③ | BA92: 後期高齢者医療特別会計 | BB92: 61 | BC92: ② | BD92: 介護保険特別会計 | BE92: 21475 | BF92: 0 | BI92: 0 | BL92: 0 | BO92: 0 | BR92: 0 | BU92: 0 | BX92: 0 | CA92: 0 | CD92: 0 | CG92: 水道事業会計 | CH92: 302078 | CI92: 0 | CJ92: 0 | CK92: 0 | CL92: 0 | CM92: 0 | CN92: 0 | CO92: 0 | CP92: 0 | CQ92: 0 | CR92: 0 | CS92: 0 | CT92: 0 | CU92: 0 | CV92: 0 | CW92: 0 | CX92: 0 | CY92: 0 | CZ92: 0 | DA92: 0 | DB92: 0 | DC92: 0 | DD92: 0 | DE92: 0 | DF92: 0 | DG92: 0 | DH92: 0 | DI92: 0 | DJ92: 0 | DK92: 0 | DL92: 0 | DM92: 0 | DN92: 0 | DO92: 0 | DP92: 0 | DQ92: 0 | DR92: 0 | DS92: 公共下水道事業特別会計 | DT92: 12436 | DU92: 0 | DV92: 0 | DW92: 0 | DX92: 0 | DY92: 0 | DZ92: 0 | EA92: 0 | EB92: 0 | EC92: 0 | ED92: 0 | EE92: 0 | EF92: 0 | EG92: 0 | EH92: 0 | EI92: 0 | EJ92: 0 | EK92: 0 | EL92: 0 | EM92: 0 | EN92: 0 | EO92: 0 | EP92: 0 | EQ92: 0 | ER92: 0 | ES92: 0 | ET92: 0 | EU92: 0 | EV92: 0 | EW92: 0 | EX92: 0 | EY92: 0 | EZ92: 0 | FA92: 0 | FB92: 0 | FC92: 0 | FD92: 0 | FE92: 534579 | FF92: -14.47 | FG92: 6.21810347 | FH92: 8.120946875 | FI92: 7.290745579 | FJ92: 7.2 | FK92: 1008511 | FL92: 0 | FM92: 0 | FN92: 64089 | FO92: 467 | FP92: 0 | FQ92: 53 | FR92: 242128 | FS92: 35652 | FT92: 604171 | FU92: 0 | FV92: 820373 | FW92: 2767693 | FX92: 126151 | FY92: 0 | FZ92: 0 | GA92: 0 | GB92: 0 | GC92: 0 | GD92: 0 | GE92: 0 | GF92: 0 | GG92: 0 | GH92: 0 | GI92: 1050064 | GJ92: 0 | GK92: 0 | GL92: 59582 | GM92: 475 | GN92: 0 | GO92: 10 | GP92: 239791 | GQ92: 33089 | GR92: 591093 | GS92: 0 | GT92: 854187 | GU92: 2767683 | GV92: 33461 | GW92: 0 | GX92: 0 | GY92: 0 | GZ92: 0 | HA92: 0 | HB92: 0 | HC92: 0 | HD92: 0 | HE92: 0 | HF92: 0 | HG92: 1028489 | HH92: 0 | HI92: 0 | HJ92: 63197 | HK92: 2767 | HL92: 0 | HM92: 36 | HN92: 236743 | HO92: 32203 | HP92: 602511 | HQ92: 0 | HR92: 844396 | HS92: 2834637 | HT92: 14792 | HU92: 0 | HV92: 0 | HW92: 0 | HX92: 0 | HY92: 0 | HZ92: 0 | IA92: 0 | IB92: 0 | IC92: 0 | ID92: 0
A93: Ver.05.00 | B93: 014559 | C93: 北海道 | D93: 比布町 | E93: 5 | F93: - | G93: - | H93: 6.8 | I93: 6.7 | J93: 2414308 | K93: 9158 | L93: 一般会計 | M93: 253940 | AR93: 253940 | AS93: -10.51 | AT93: ① | AU93: 国民健康保険特別会計 | AV93: 3717 | AW93: ② | AX93: 介護保険特別会計 | AY93: 33619 | AZ93: ③ | BA93: 後期高齢者医療特別会計 | BB93: 21 | BC93: 0 | BF93: 0 | BI93: 0 | BL93: 0 | BO93: 0 | BR93: 0 | BU93: 0 | BX93: 0 | CA93: 0 | CD93: 0 | CG93: 0 | CH93: 0 | CI93: 0 | CJ93: 0 | CK93: 0 | CL93: 0 | CM93: 0 | CN93: 0 | CO93: 0 | CP93: 0 | CQ93: 0 | CR93: 0 | CS93: 0 | CT93: 0 | CU93: 0 | CV93: 0 | CW93: 0 | CX93: 0 | CY93: 0 | CZ93: 0 | DA93: 0 | DB93: 0 | DC93: 0 | DD93: 0 | DE93: 0 | DF93: 0 | DG93: 0 | DH93: 0 | DI93: 0 | DJ93: 0 | DK93: 0 | DL93: 0 | DM93: 0 | DN93: 0 | DO93: 0 | DP93: 0 | DQ93: 0 | DR93: 0 | DS93: 簡易水道事業特別会計 | DT93: 0 | DU93: 公共下水道事業特別会計 | DV93: 7608 | DW93: 観光事業特別会計 | DX93: 1022 | DY93: 0 | DZ93: 0 | EA93: 0 | EB93: 0 | EC93: 0 | ED93: 0 | EE93: 0 | EF93: 0 | EG93: 0 | EH93: 0 | EI93: 0 | EJ93: 0 | EK93: 0 | EL93: 0 | EM93: 0 | EN93: 0 | EO93: 0 | EP93: 0 | EQ93: 0 | ER93: 0 | ES93: 0 | ET93: 0 | EU93: 0 | EV93: 0 | EW93: 0 | EX93: 0 | EY93: 0 | EZ93: 0 | FA93: 0 | FB93: 0 | FC93: 0 | FD93: 0 | FE93: 299927 | FF93: -12.42 | FG93: 6.465863152 | FH93: 6.683514498 | FI93: 7.516128417 | FJ93: 6.8 | FK93: 441570 | FL93: 0 | FM93: 0 | FN93: 140009 | FO93: 321 | FP93: 0 | FQ93: 0 | FR93: 70760 | FS93: 8907 | FT93: 345055 | FU93: 19564 | FV93: 463805 | FW93: 1959127 | FX93: 78910 | FY93: 0 | FZ93: 0 | GA93: 0 | GB93: 0 | GC93: 0 | GD93: 0 | GE93: 0 | GF93: 0 | GG93: 0 | GH93: 0 | GI93: 467104 | GJ93: 0 | GK93: 0 | GL93: 99873 | GM93: 327 | GN93: 0 | GO93: 0 | GP93: 75477 | GQ93: 7080 | GR93: 337570 | GS93: 15473 | GT93: 480697 | GU93: 1830030 | GV93: 19976 | GW93: 0 | GX93: 0 | GY93: 0 | GZ93: 0 | HA93: 0 | HB93: 0 | HC93: 0 | HD93: 0 | HE93: 0 | HF93: 0 | HG93: 504517 | HH93: 0 | HI93: 0 | HJ93: 88467 | HK93: 1905 | HL93: 0 | HM93: 0 | HN93: 71583 | HO93: 4810 | HP93: 351637 | HQ93: 13178 | HR93: 491466 | HS93: 1913684 | HT93: 9158 | HU93: 0 | HV93: 0 | HW93: 0 | HX93: 0 | HY93: 0 | HZ93: 0 | IA93: 0 | IB93: 0 | IC93: 0 | ID93: 0
A94: Ver.05.00 | B94: 014567 | C94: 北海道 | D94: 愛別町 | E94: 5 | F94: - | G94: - | H94: 7.8 | I94: - | J94: 2314157 | K94: 8572 | L94: 一般会計 | M94: 164090 | AR94: 164090 | AS94: -7.09 | AT94: ① | AU94: 国民健康保険特別会計 | AV94: 1357 | AW94: ① | AX94: 国民健康保険診療所事業特別会計 | AY94: 7588 | AZ94: ② | BA94: 介護保険事業特別会計 | BB94: 18737 | BC94: ③ | BD94: 後期高齢者医療特別会計 | BE94: 7 | BF94: 0 | BI94: 0 | BL94: 0 | BO94: 0 | BR94: 0 | BU94: 0 | BX94: 0 | CA94: 0 | CD94: 0 | CG94: 簡易水道事業特別会計 | CH94: 211890 | CI94: 0 | CJ94: 0 | CK94: 0 | CL94: 0 | CM94: 0 | CN94: 0 | CO94: 0 | CP94: 0 | CQ94: 0 | CR94: 0 | CS94: 0 | CT94: 0 | CU94: 0 | CV94: 0 | CW94: 0 | CX94: 0 | CY94: 0 | CZ94: 0 | DA94: 0 | DB94: 0 | DC94: 0 | DD94: 0 | DE94: 0 | DF94: 0 | DG94: 0 | DH94: 0 | DI94: 0 | DJ94: 0 | DK94: 0 | DL94: 0 | DM94: 0 | DN94: 0 | DO94: 0 | DP94: 0 | DQ94: 0 | DR94: 0 | DS94: 公共下水道事業特別会計 | DT94: 13424 | DU94: 0 | DV94: 0 | DW94: 0 | DX94: 0 | DY94: 0 | DZ94: 0 | EA94: 0 | EB94: 0 | EC94: 0 | ED94: 0 | EE94: 0 | EF94: 0 | EG94: 0 | EH94: 0 | EI94: 0 | EJ94: 0 | EK94: 0 | EL94: 0 | EM94: 0 | EN94: 0 | EO94: 0 | EP94: 0 | EQ94: 0 | ER94: 0 | ES94: 0 | ET94: 0 | EU94: 0 | EV94: 0 | EW94: 0 | EX94: 0 | EY94: 0 | EZ94: 0 | FA94: 0 | FB94: 0 | FC94: 0 | FD94: 0 | FE94: 417093 | FF94: -18.02 | FG94: 7.773668023 | FH94: 8.182603666 | FI94: 7.658403788 | FJ94: 7.8 | FK94: 363005 | FL94: 0 | FM94: 0 | FN94: 126119 | FO94: 573 | FP94: 62 | FQ94: 0 | FR94: 57961 | FS94: 31021 | FT94: 241112 | FU94: 0 | FV94: 386429 | FW94: 1866378 | FX94: 73247 | FY94: 0 | FZ94: 0 | GA94: 0 | GB94: 0 | GC94: 0 | GD94: 0 | GE94: 0 | GF94: 0 | GG94: 0 | GH94: 62 | GI94: 354305 | GJ94: 0 | GK94: 0 | GL94: 131814 | GM94: 1736 | GN94: 339 | GO94: 0 | GP94: 51824 | GQ94: 28912 | GR94: 244191 | GS94: 0 | GT94: 408161 | GU94: 1841425 | GV94: 18811 | GW94: 0 | GX94: 0 | GY94: 0 | GZ94: 0 | HA94: 0 | HB94: 0 | HC94: 0 | HD94: 0 | HE94: 0 | HF94: 339 | HG94: 358939 | HH94: 0 | HI94: 0 | HJ94: 137956 | HK94: 6479 | HL94: 59 | HM94: 0 | HN94: 51818 | HO94: 34916 | HP94: 262228 | HQ94: 0 | HR94: 398884 | HS94: 1906701 | HT94: 8572 | HU94: 0 | HV94: 0 | HW94: 0 | HX94: 0 | HY94: 0 | HZ94: 0 | IA94: 0 | IB94: 0 | IC94: 0 | ID94: 59
A95: Ver.05.00 | B95: 014575 | C95: 北海道 | D95: 上川町 | E95: 5 | F95: - | G95: - | H95: 10.2 | I95: 63.3 | J95: 3669273 | K95: 13760 | L95: 一般会計 | M95: 259239 | AR95: 259239 | AS95: -7.06 | AT95: ① | AU95: 国民健康保険事業特別会計 | AV95: 5270 | AW95: ② | AX95: 介護保険事業特別会計 | AY95: 69185 | AZ95: ③ | BA95: 後期高齢者医療事業特別会計 | BB95: 180 | BC95: ① | BD95: 国民健康保険上川町立診療所事業特別会計 | BE95: 29704 | BF95: ⑥ | BG95: 介護医療院事業特別会計 | BH95: 18998 | BI95: 0 | BL95: 0 | BO95: 0 | BR95: 0 | BU95: 0 | BX95: 0 | CA95: 0 | CD95: 0 | CG95: 簡易水道事業会計 | CH95: 300234 | CI95: 下水道事業会計 | CJ95: 34149 | CK95: 0 | CL95: 0 | CM95: 0 | CN95: 0 | CO95: 0 | CP95: 0 | CQ95: 0 | CR95: 0 | CS95: 0 | CT95: 0 | CU95: 0 | CV95: 0 | CW95: 0 | CX95: 0 | CY95: 0 | CZ95: 0 | DA95: 0 | DB95: 0 | DC95: 0 | DD95: 0 | DE95: 0 | DF95: 0 | DG95: 0 | DH95: 0 | DI95: 0 | DJ95: 0 | DK95: 0 | DL95: 0 | DM95: 0 | DN95: 0 | DO95: 0 | DP95: 0 | DQ95: 0 | DR95: 0 | DS95: 0 | DT95: 0 | DU95: 0 | DV95: 0 | DW95: 0 | DX95: 0 | DY95: 0 | DZ95: 0 | EA95: 0 | EB95: 0 | EC95: 0 | ED95: 0 | EE95: 0 | EF95: 0 | EG95: 0 | EH95: 0 | EI95: 0 | EJ95: 0 | EK95: 0 | EL95: 0 | EM95: 0 | EN95: 0 | EO95: 0 | EP95: 0 | EQ95: 0 | ER95: 0 | ES95: 0 | ET95: 0 | EU95: 0 | EV95: 0 | EW95: 0 | EX95: 0 | EY95: 0 | EZ95: 0 | FA95: 0 | FB95: 0 | FC95: 0 | FD95: 0 | FE95: 716959 | FF95: -19.53 | FG95: 10.18719624 | FH95: 10.26758139 | FI95: 10.42113027 | FJ95: 10.2 | FK95: 848297 | FL95: 0 | FM95: 0 | FN95: 161594 | FO95: 0 | FP95: 30550 | FQ95: 115 | FR95: 70425 | FS95: 59171 | FT95: 603319 | FU95: 0 | FV95: 642027 | FW95: 2925061 | FX95: 115281 | FY95: 0 | FZ95: 0 | GA95: 0 | GB95: 0 | GC95: 0 | GD95: 0 | GE95: 0 | GF95: 0 | GG95: 27320 | GH95: 3230 | GI95: 853075 | GJ95: 0 | GK95: 0 | GL95: 140957 | GM95: 0 | GN95: 31691 | GO95: 107 | GP95: 50801 | GQ95: 55002 | GR95: 617496 | GS95: 0 | GT95: 667296 | GU95: 2921593 | GV95: 30077 | GW95: 0 | GX95: 0 | GY95: 0 | GZ95: 0 | HA95: 0 | HB95: 0 | HC95: 0 | HD95: 0 | HE95: 28451 | HF95: 3240 | HG95: 894929 | HH95: 0 | HI95: 0 | HJ95: 101526 | HK95: 0 | HL95: 32104 | HM95: 200 | HN95: 16922 | HO95: 58935 | HP95: 643750 | HQ95: 0 | HR95: 693525 | HS95: 2961988 | HT95: 13760 | HU95: 0 | HV95: 0 | HW95: 0 | HX95: 0 | HY95: 0 | HZ95: 0 | IA95: 0 | IB95: 0 | IC95: 28844 | ID95: 3260
A96: Ver.05.00 | B96: 014583 | C96: 北海道 | D96: 東川町 | E96: 5 | F96: - | G96: - | H96: 7.3 | I96: 3.4 | J96: 4762007 | K96: 20054 | L96: 一般会計 | M96: 448903 | AR96: 448903 | AS96: -9.42 | AT96: ① | AU96: 国民健康保険東川町立診療所特別会計 | AV96: 62269 | AW96: 0 | AZ96: 0 | BC96: 0 | BF96: 0 | BI96: 0 | BL96: 0 | BO96: 0 | BR96: 0 | BU96: 0 | BX96: 0 | CA96: 0 | CD96: 0 | CG96: 下水道事業会計 | CH96: 15244 | CI96: 0 | CJ96: 0 | CK96: 0 | CL96: 0 | CM96: 0 | CN96: 0 | CO96: 0 | CP96: 0 | CQ96: 0 | CR96: 0 | CS96: 0 | CT96: 0 | CU96: 0 | CV96: 0 | CW96: 0 | CX96: 0 | CY96: 0 | CZ96: 0 | DA96: 0 | DB96: 0 | DC96: 0 | DD96: 0 | DE96: 0 | DF96: 0 | DG96: 0 | DH96: 0 | DI96: 0 | DJ96: 0 | DK96: 0 | DL96: 0 | DM96: 0 | DN96: 0 | DO96: 0 | DP96: 0 | DQ96: 0 | DR96: 0 | DS96: 0 | DT96: 0 | DU96: 0 | DV96: 0 | DW96: 0 | DX96: 0 | DY96: 0 | DZ96: 0 | EA96: 0 | EB96: 0 | EC96: 0 | ED96: 0 | EE96: 0 | EF96: 0 | EG96: 0 | EH96: 0 | EI96: 0 | EJ96: 0 | EK96: 0 | EL96: 0 | EM96: 0 | EN96: 0 | EO96: 0 | EP96: 0 | EQ96: 0 | ER96: 0 | ES96: 0 | ET96: 0 | EU96: 0 | EV96: 0 | EW96: 0 | EX96: 0 | EY96: 0 | EZ96: 0 | FA96: 0 | FB96: 0 | FC96: 0 | FD96: 0 | FE96: 526416 | FF96: -11.05 | FG96: 7.924567707 | FH96: 7.714264718 | FI96: 6.553176766 | FJ96: 7.3 | FK96: 1677486 | FL96: 0 | FM96: 0 | FN96: 81453 | FO96: 31112 | FP96: 20033 | FQ96: 1453 | FR96: 411941 | FS96: 87607 | FT96: 1024682 | FU96: 3481 | FV96: 1175774 | FW96: 3351078 | FX96: 170514 | FY96: 0 | FZ96: 0 | GA96: 0 | GB96: 0 | GC96: 0 | GD96: 0 | GE96: 0 | GF96: 0 | GG96: 0 | GH96: 20033 | GI96: 1738589 | GJ96: 0 | GK96: 0 | GL96: 64513 | GM96: 20513 | GN96: 19010 | GO96: 4607 | GP96: 534371 | GQ96: 86901 | GR96: 950833 | GS96: 3248 | GT96: 1264870 | GU96: 3257496 | GV96: 42983 | GW96: 0 | GX96: 0 | GY96: 0 | GZ96: 0 | HA96: 0 | HB96: 0 | HC96: 0 | HD96: 0 | HE96: 0 | HF96: 19010 | HG96: 1918982 | HH96: 0 | HI96: 0 | HJ96: 44546.7596 | HK96: 25316 | HL96: 24747 | HM96: 4181 | HN96: 650430 | HO96: 85061 | HP96: 1041241 | HQ96: 2982 | HR96: 1353338 | HS96: 3388615 | HT96: 20054 | HU96: 0 | HV96: 0 | HW96: 0 | HX96: 0 | HY96: 0 | HZ96: 0 | IA96: 0 | IB96: 0 | IC96: 0 | ID96: 24747
A97: Ver.05.00 | B97: 014591 | C97: 北海道 | D97: 美瑛町 | E97: 5 | F97: - | G97: - | H97: 13.4 | I97: 24.7 | J97: 6376385 | K97: 25924 | L97: 一般会計 | M97: 279241 | N97: 農業研修施設事業特別会計 | O97: 0 | P97: 白金泉源事業特別会計 | Q97: 8236 | AR97: 287477 | AS97: -4.5 | AT97: ⑤ | AU97: 老人保健施設事業特別会計 | AV97: 2 | AW97: 0 | AZ97: 0 | BC97: 0 | BF97: 0 | BI97: 0 | BL97: 0 | BO97: 0 | BR97: 0 | BU97: 0 | BX97: 0 | CA97: 0 | CD97: 0 | CG97: 水道事業会計 | CH97: 965198 | CI97: 下水道事業会計 | CJ97: 42537 | CK97: 水力発電事業会計 | CL97: 11600 | CM97: 病院事業会計 | CN97: 113735 | CO97: 0 | CP97: 0 | CQ97: 0 | CR97: 0 | CS97: 0 | CT97: 0 | CU97: 0 | CV97: 0 | CW97: 0 | CX97: 0 | CY97: 0 | CZ97: 0 | DA97: 0 | DB97: 0 | DC97: 0 | DD97: 0 | DE97: 0 | DF97: 0 | DG97: 0 | DH97: 0 | DI97: 0 | DJ97: 0 | DK97: 0 | DL97: 0 | DM97: 0 | DN97: 0 | DO97: 0 | DP97: 0 | DQ97: 0 | DR97: 0 | DS97: 0 | DT97: 0 | DU97: 0 | DV97: 0 | DW97: 0 | DX97: 0 | DY97: 0 | DZ97: 0 | EA97: 0 | EB97: 0 | EC97: 0 | ED97: 0 | EE97: 0 | EF97: 0 | EG97: 0 | EH97: 0 | EI97: 0 | EJ97: 0 | EK97: 0 | EL97: 0 | EM97: 0 | EN97: 0 | EO97: 0 | EP97: 0 | EQ97: 0 | ER97: 0 | ES97: 0 | ET97: 0 | EU97: 0 | EV97: 0 | EW97: 0 | EX97: 0 | EY97: 0 | EZ97: 0 | FA97: 0 | FB97: 0 | FC97: 0 | FD97: 0 | FE97: 1420549 | FF97: -22.27 | FG97: 12.38747282 | FH97: 13.86657452 | FI97: 14.00088699 | FJ97: 13.4 | FK97: 1736235 | FL97: 0 | FM97: 0 | FN97: 262051 | FO97: 36036 | FP97: 7467 | FQ97: 0 | FR97: 68232 | FS97: 107418 | FT97: 1171723 | FU97: 48469 | FV97: 1573391 | FW97: 4750151 | FX97: 218586 | FY97: 0 | FZ97: 0 | GA97: 0 | GB97: 0 | GC97: 0 | GD97: 0 | GE97: 0 | GF97: 0 | GG97: 0 | GH97: 7467 | GI97: 1815656 | GJ97: 0 | GK97: 0 | GL97: 261338 | GM97: 31927 | GN97: 5945 | GO97: 0 | GP97: 63681 | GQ97: 88811 | GR97: 1205794 | GS97: 48283 | GT97: 1575989 | GU97: 4816369 | GV97: 58475 | GW97: 0 | GX97: 0 | GY97: 0 | GZ97: 0 | HA97: 0 | HB97: 0 | HC97: 0 | HD97: 0 | HE97: 0 | HF97: 5945 | HG97: 1700793 | HH97: 0 | HI97: 0 | HJ97: 278088 | HK97: 27891 | HL97: 2371 | HM97: 0 | HN97: 55879 | HO97: 73920 | HP97: 1110660 | HQ97: 48588 | HR97: 1605074 | HS97: 4745387 | HT97: 25924 | HU97: 0 | HV97: 0 | HW97: 0 | HX97: 0 | HY97: 0 | HZ97: 0 | IA97: 0 | IB97: 0 | IC97: 0 | ID97: 2371
A98: Ver.05.00 | B98: 014605 | C98: 北海道 | D98: 上富良野町 | E98: 5 | F98: - | G98: - | H98: 9.2 | I98: 37.6 | J98: 4453996 | K98: 21142 | L98: 一般会計 | M98: 359801 | AR98: 359801 | AS98: -8.07 | AT98: ① | AU98: 国民健康保険特別会計 | AV98: 72049 | AW98: ② | AX98: 介護保険特別会計 | AY98: 62587 | AZ98: ③ | BA98: 後期高齢者医療特別会計 | BB98: 638 | BC98: ⑤ | BD98: ラベンダーハイツ事業特別会計 | BE98: 2687 | BF98: 0 | BI98: 0 | BL98: 0 | BO98: 0 | BR98: 0 | BU98: 0 | BX98: 0 | CA98: 0 | CD98: 0 | CG98: 病院事業会計 | CH98: 56509 | CI98: 水道事業会計 | CJ98: 508169 | CK98: 0 | CL98: 0 | CM98: 0 | CN98: 0 | CO98: 0 | CP98: 0 | CQ98: 0 | CR98: 0 | CS98: 0 | CT98: 0 | CU98: 0 | CV98: 0 | CW98: 0 | CX98: 0 | CY98: 0 | CZ98: 0 | DA98: 0 | DB98: 0 | DC98: 0 | DD98: 0 | DE98: 0 | DF98: 0 | DG98: 0 | DH98: 0 | DI98: 0 | DJ98: 0 | DK98: 0 | DL98: 0 | DM98: 0 | DN98: 0 | DO98: 0 | DP98: 0 | DQ98: 0 | DR98: 0 | DS98: 簡易水道事業特別会計 | DT98: 4011 | DU98: 公共下水道事業特別会計 | DV98: 10670 | DW98: 0 | DX98: 0 | DY98: 0 | DZ98: 0 | EA98: 0 | EB98: 0 | EC98: 0 | ED98: 0 | EE98: 0 | EF98: 0 | EG98: 0 | EH98: 0 | EI98: 0 | EJ98: 0 | EK98: 0 | EL98: 0 | EM98: 0 | EN98: 0 | EO98: 0 | EP98: 0 | EQ98: 0 | ER98: 0 | ES98: 0 | ET98: 0 | EU98: 0 | EV98: 0 | EW98: 0 | EX98: 0 | EY98: 0 | EZ98: 0 | FA98: 0 | FB98: 0 | FC98: 0 | FD98: 0 | FE98: 1077121 | FF98: -24.18 | FG98: 8.595630056 | FH98: 9.742838552 | FI98: 9.301801202 | FJ98: 9.2 | FK98: 801416 | FL98: 0 | FM98: 0 | FN98: 164628 | FO98: 16635 | FP98: 0 | FQ98: 0 | FR98: 70521 | FS98: 116557 | FT98: 442472 | FU98: 11050 | FV98: 1415026 | FW98: 2958410 | FX98: 176328 | FY98: 0 | FZ98: 0 | GA98: 0 | GB98: 0 | GC98: 0 | GD98: 0 | GE98: 0 | GF98: 0 | GG98: 0 | GH98: 0 | GI98: 776857 | GJ98: 0 | GK98: 0 | GL98: 190310 | GM98: 15988 | GN98: 0 | GO98: 0 | GP98: 69608 | GQ98: 104908 | GR98: 413945 | GS98: 11518 | GT98: 1465154 | GU98: 2950618 | GV98: 47498 | GW98: 0 | GX98: 0 | GY98: 0 | GZ98: 0 | HA98: 0 | HB98: 0 | HC98: 0 | HD98: 0 | HE98: 0 | HF98: 0 | HG98: 747798 | HH98: 0 | HI98: 0 | HJ98: 179190 | HK98: 17768 | HL98: 0 | HM98: 0 | HN98: 66668 | HO98: 103313 | HP98: 395802 | HQ98: 12236 | HR98: 1526759 | HS98: 2906095 | HT98: 21142 | HU98: 0 | HV98: 0 | HW98: 0 | HX98: 0 | HY98: 0 | HZ98: 0 | IA98: 0 | IB98: 0 | IC98: 0 | ID98: 0
A99: Ver.05.00 | B99: 014613 | C99: 北海道 | D99: 中富良野町 | E99: 5 | F99: - | G99: - | H99: 5.4 | I99: 2.4 | J99: 3000899 | K99: 12484 | L99: 一般会計 | M99: 185328 | AR99: 185328 | AS99: -6.17 | AT99: ① | AU99: 国民健康保険事業特別会計 | AV99: 7379 | AW99: ② | AX99: 介護保険事業特別会計 | AY99: 0 | AZ99: ③ | BA99: 後期高齢者医療特別会計 | BB99: 211 | BC99: ⑥ | BD99: こぶし苑事業特別会計 | BE99: 12400 | BF99: 0 | BI99: 0 | BL99: 0 | BO99: 0 | BR99: 0 | BU99: 0 | BX99: 0 | CA99: 0 | CD99: 0 | CG99: 国民健康保険中富良野町立病院事業会計 | CH99: 553944 | CI99: 簡易水道事業会計 | CJ99: 62908 | CK99: 公共下水道事業会計 | CL99: 7253 | CM99: 0 | CN99: 0 | CO99: 0 | CP99: 0 | CQ99: 0 | CR99: 0 | CS99: 0 | CT99: 0 | CU99: 0 | CV99: 0 | CW99: 0 | CX99: 0 | CY99: 0 | CZ99: 0 | DA99: 0 | DB99: 0 | DC99: 0 | DD99: 0 | DE99: 0 | DF99: 0 | DG99: 0 | DH99: 0 | DI99: 0 | DJ99: 0 | DK99: 0 | DL99: 0 | DM99: 0 | DN99: 0 | DO99: 0 | DP99: 0 | DQ99: 0 | DR99: 0 | DS99: 0 | DT99: 0 | DU99: 0 | DV99: 0 | DW99: 0 | DX99: 0 | DY99: 0 | DZ99: 0 | EA99: 0 | EB99: 0 | EC99: 0 | ED99: 0 | EE99: 0 | EF99: 0 | EG99: 0 | EH99: 0 | EI99: 0 | EJ99: 0 | EK99: 0 | EL99: 0 | EM99: 0 | EN99: 0 | EO99: 0 | EP99: 0 | EQ99: 0 | ER99: 0 | ES99: 0 | ET99: 0 | EU99: 0 | EV99: 0 | EW99: 0 | EX99: 0 | EY99: 0 | EZ99: 0 | FA99: 0 | FB99: 0 | FC99: 0 | FD99: 0 | FE99: 829423 | FF99: -27.63 | FG99: 5.462063634 | FH99: 6.269483549 | FI99: 4.548885426 | FJ99: 5.4 | FK99: 549555 | FL99: 0 | FM99: 0 | FN99: 81470 | FO99: 7819 | FP99: 1234 | FQ99: 0 | FR99: 74498 | FS99: 37743 | FT99: 387950 | FU99: 0 | FV99: 713552 | FW99: 2170573 | FX99: 102633 | FY99: 0 | FZ99: 0 | GA99: 0 | GB99: 0 | GC99: 0 | GD99: 0 | GE99: 0 | GF99: 0 | GG99: 0 | GH99: 1234 | GI99: 573108 | GJ99: 0 | GK99: 0 | GL99: 84889 | GM99: 7497 | GN99: 1011 | GO99: 0 | GP99: 68672 | GQ99: 34667 | GR99: 405472 | GS99: 0 | GT99: 741330 | GU99: 2186582 | GV99: 27490 | GW99: 0 | GX99: 0 | GY99: 0 | GZ99: 0 | HA99: 0 | HB99: 0 | HC99: 0 | HD99: 0 | HE99: 0 | HF99: 1011 | HG99: 568125 | HH99: 0 | HI99: 0 | HJ99: 45829.52559 | HK99: 7211 | HL99: 1462 | HM99: 414 | HN99: 68588 | HO99: 32098 | HP99: 405766 | HQ99: 0 | HR99: 788788 | HS99: 2199627 | HT99: 12484 | HU99: 0 | HV99: 0 | HW99: 0 | HX99: 0 | HY99: 0 | HZ99: 0 | IA99: 0 | IB99: 0 | IC99: 0 | ID99: 1462
A100: Ver.05.00 | B100: 014621 | C100: 北海道 | D100: 南富良野町 | E100: 5 | F100: - | G100: - | H100: 10.8 | I100: - | J100: 2905703 | K100: 9921 | L100: 一般会計 | M100: 93115 | N100: 町立診療所事業特別会計 | O100: 2659 | AR100: 95774 | AS100: -3.29 | AT100: ① | AU100: 国民健康保険事業特別会計 | AV100: 811 | AW100: ③ | AX100: 後期高齢者医療事業特別会計 | AY100: 883 | AZ100: ② | BA100: 介護保険特別会計 | BB100: 6825 | BC100: 0 | BF100: 0 | BI100: 0 | BL100: 0 | BO100: 0 | BR100: 0 | BU100: 0 | BX100: 0 | CA100: 0 | CD100: 0 | CG100: 0 | CH100: 0 | CI100: 0 | CJ100: 0 | CK100: 0 | CL100: 0 | CM100: 0 | CN100: 0 | CO100: 0 | CP100: 0 | CQ100: 0 | CR100: 0 | CS100: 0 | CT100: 0 | CU100: 0 | CV100: 0 | CW100: 0 | CX100: 0 | CY100: 0 | CZ100: 0 | DA100: 0 | DB100: 0 | DC100: 0 | DD100: 0 | DE100: 0 | DF100: 0 | DG100: 0 | DH100: 0 | DI100: 0 | DJ100: 0 | DK100: 0 | DL100: 0 | DM100: 0 | DN100: 0 | DO100: 0 | DP100: 0 | DQ100: 0 | DR100: 0 | DS100: 簡易水道事業特別会計 | DT100: 5288 | DU100: 公共下水道事業特別会計 | DV100: 5489 | DW100: 0 | DX100: 0 | DY100: 0 | DZ100: 0 | EA100: 0 | EB100: 0 | EC100: 0 | ED100: 0 | EE100: 0 | EF100: 0 | EG100: 0 | EH100: 0 | EI100: 0 | EJ100: 0 | EK100: 0 | EL100: 0 | EM100: 0 | EN100: 0 | EO100: 0 | EP100: 0 | EQ100: 0 | ER100: 0 | ES100: 0 | ET100: 0 | EU100: 0 | EV100: 0 | EW100: 0 | EX100: 0 | EY100: 0 | EZ100: 0 | FA100: 0 | FB100: 0 | FC100: 0 | FD100: 0 | FE100: 115070 | FF100: -3.96 | FG100: 11.29034407 | FH100: 10.84630152 | FI100: 10.41734676 | FJ100: 10.8 | FK100: 782678 | FL100: 0 | FM100: 0 | FN100: 97643 | FO100: 14136 | FP100: 35759 | FQ100: 6 | FR100: 64507 | FS100: 35259 | FT100: 546982 | FU100: 12270 | FV100: 407074 | FW100: 2502194 | FX100: 87331 | FY100: 0 | FZ100: 0 | GA100: 0 | GB100: 0 | GC100: 0 | GD100: 8676 | GE100: 0 | GF100: 0 | GG100: 19915 | GH100: 7168 | GI100: 721424 | GJ100: 0 | GK100: 0 | GL100: 102576 | GM100: 13358 | GN100: 31525 | GO100: 31 | GP100: 57880 | GQ100: 34781 | GR100: 508306 | GS100: 11904 | GT100: 435021 | GU100: 2458648 | GV100: 21970 | GW100: 0 | GX100: 0 | GY100: 0 | GZ100: 0 | HA100: 0 | HB100: 8676 | HC100: 0 | HD100: 0 | HE100: 16034 | HF100: 6815 | HG100: 655478 | HH100: 0 | HI100: 0 | HJ100: 119462 | HK100: 13172 | HL100: 26726 | HM100: 57 | HN100: 57883 | HO100: 33824 | HP100: 463327 | HQ100: 9995 | HR100: 454458 | HS100: 2441324 | HT100: 9921 | HU100: 0 | HV100: 0 | HW100: 0 | HX100: 0 | HY100: 0 | HZ100: 8676 | IA100: 0 | IB100: 0 | IC100: 12019 | ID100: 6031
A101: Ver.05.00 | B101: 014630 | C101: 北海道 | D101: 占冠村 | E101: 5 | F101: - | G101: - | H101: 7.2 | I101: 36.4 | J101: 1809309 | K101: 7425 | L101: 一般会計 | M101: 79474 | N101: 村立診療所特別会計 | O101: 4126 | P101: 占冠村歯科診療所事業特別会計 | Q101: 749 | AR101: 84349 | AS101: -4.66 | AT101: ① | AU101: 国民健康保険事業特別会計 | AV101: 2765 | AW101: ② | AX101: 介護保険事業特別会計 | AY101: 21673 | AZ101: ③ | BA101: 後期高齢者医療事業特別会計 | BB101: 554 | BC101: 0 | BF101: 0 | BI101: 0 | BL101: 0 | BO101: 0 | BR101: 0 | BU101: 0 | BX101: 0 | CA101: 0 | CD101: 0 | CG101: 0 | CH101: 0 | CI101: 0 | CJ101: 0 | CK101: 0 | CL101: 0 | CM101: 0 | CN101: 0 | CO101: 0 | CP101: 0 | CQ101: 0 | CR101: 0 | CS101: 0 | CT101: 0 | CU101: 0 | CV101: 0 | CW101: 0 | CX101: 0 | CY101: 0 | CZ101: 0 | DA101: 0 | DB101: 0 | DC101: 0 | DD101: 0 | DE101: 0 | DF101: 0 | DG101: 0 | DH101: 0 | DI101: 0 | DJ101: 0 | DK101: 0 | DL101: 0 | DM101: 0 | DN101: 0 | DO101: 0 | DP101: 0 | DQ101: 0 | DR101: 0 | DS101: 簡易水道事業特別会計 | DT101: 16809 | DU101: 公共下水道事業特別会計 | DV101: 27147 | DW101: 0 | DX101: 0 | DY101: 0 | DZ101: 0 | EA101: 0 | EB101: 0 | EC101: 0 | ED101: 0 | EE101: 0 | EF101: 0 | EG101: 0 | EH101: 0 | EI101: 0 | EJ101: 0 | EK101: 0 | EL101: 0 | EM101: 0 | EN101: 0 | EO101: 0 | EP101: 0 | EQ101: 0 | ER101: 0 | ES101: 0 | ET101: 0 | EU101: 0 | EV101: 0 | EW101: 0 | EX101: 0 | EY101: 0 | EZ101: 0 | FA101: 0 | FB101: 0 | FC101: 0 | FD101: 0 | FE101: 153297 | FF101: -8.47 | FG101: 6.170868595 | FH101: 6.734532293 | FI101: 8.737065055 | FJ101: 7.2 | FK101: 310352 | FL101: 0 | FM101: 0 | FN101: 59352 | FO101: 14891 | FP101: 0 | FQ101: 260 | FR101: 0 | FS101: 24910 | FT101: 263285 | FU101: 2267 | FV101: 429871 | FW101: 1323309 | FX101: 66937 | FY101: 0 | FZ101: 0 | GA101: 0 | GB101: 0 | GC101: 0 | GD101: 0 | GE101: 0 | GF101: 0 | GG101: 0 | GH101: 0 | GI101: 310696 | GJ101: 0 | GK101: 0 | GL101: 61493 | GM101: 14305 | GN101: 0 | GO101: 520 | GP101: 0 | GQ101: 24182 | GR101: 259517 | GS101: 2097 | GT101: 458970 | GU101: 1312012 | GV101: 17784 | GW101: 0 | GX101: 0 | GY101: 0 | GZ101: 0 | HA101: 0 | HB101: 0 | HC101: 0 | HD101: 0 | HE101: 0 | HF101: 0 | HG101: 316762 | HH101: 0 | HI101: 0 | HJ101: 69105 | HK101: 13590 | HL101: 0 | HM101: 421 | HN101: 0 | HO101: 24222 | HP101: 239038 | HQ101: 1686 | HR101: 590598 | HS101: 1211286 | HT101: 7425 | HU101: 0 | HV101: 0 | HW101: 0 | HX101: 0 | HY101: 0 | HZ101: 0 | IA101: 0 | IB101: 0 | IC101: 0 | ID101: 0
A102: Ver.05.00 | B102: 014648 | C102: 北海道 | D102: 和寒町 | E102: 5 | F102: - | G102: - | H102: 6.3 | I102: - | J102: 2824178 | K102: 10332 | L102: 一般会計 | M102: 132303 | AR102: 132303 | AS102: -4.68 | AT102: ① | AU102: 国民健康保険特別会計（保険事業勘定） | AV102: 7736 | AW102: ① | AX102: 国民健康保険特別会計（診療施設勘定） | AY102: 13546 | AZ102: ② | BA102: 介護保険特別会計（保険事業勘定） | BB102: 318 | BC102: ③ | BD102: 後期高齢者医療特別会計 | BE102: 19137 | BF102: ⑥ | BG102: 介護保険特別会計（介護サービス事業勘定） | BH102: 505 | BI102: 0 | BL102: 0 | BO102: 0 | BR102: 0 | BU102: 0 | BX102: 0 | CA102: 0 | CD102: 0 | CG102: 0 | CH102: 0 | CI102: 0 | CJ102: 0 | CK102: 0 | CL102: 0 | CM102: 0 | CN102: 0 | CO102: 0 | CP102: 0 | CQ102: 0 | CR102: 0 | CS102: 0 | CT102: 0 | CU102: 0 | CV102: 0 | CW102: 0 | CX102: 0 | CY102: 0 | CZ102: 0 | DA102: 0 | DB102: 0 | DC102: 0 | DD102: 0 | DE102: 0 | DF102: 0 | DG102: 0 | DH102: 0 | DI102: 0 | DJ102: 0 | DK102: 0 | DL102: 0 | DM102: 0 | DN102: 0 | DO102: 0 | DP102: 0 | DQ102: 0 | DR102: 0 | DS102: 簡易水道事業特別会計 | DT102: 5858 | DU102: 公共下水道事業特別会計 | DV102: 22667 | DW102: 0 | DX102: 0 | DY102: 0 | DZ102: 0 | EA102: 0 | EB102: 0 | EC102: 0 | ED102: 0 | EE102: 0 | EF102: 0 | EG102: 0 | EH102: 0 | EI102: 0 | EJ102: 0 | EK102: 0 | EL102: 0 | EM102: 0 | EN102: 0 | EO102: 0 | EP102: 0 | EQ102: 0 | ER102: 0 | ES102: 0 | ET102: 0 | EU102: 0 | EV102: 0 | EW102: 0 | EX102: 0 | EY102: 0 | EZ102: 0 | FA102: 0 | FB102: 0 | FC102: 0 | FD102: 0 | FE102: 202070 | FF102: -7.15 | FG102: 5.404602376 | FH102: 6.943463108 | FI102: 6.79171074 | FJ102: 6.3 | FK102: 485066 | FL102: 0 | FM102: 0 | FN102: 105586 | FO102: 0 | FP102: 147 | FQ102: 102 | FR102: 7786 | FS102: 28561 | FT102: 412827 | FU102: 6576 | FV102: 484819 | FW102: 2373231 | FX102: 90579 | FY102: 0 | FZ102: 0 | GA102: 0 | GB102: 0 | GC102: 0 | GD102: 0 | GE102: 0 | GF102: 0 | GG102: 0 | GH102: 147 | GI102: 528673 | GJ102: 0 | GK102: 0 | GL102: 108515 | GM102: 0 | GN102: 125 | GO102: 0 | GP102: 9616 | GQ102: 22915 | GR102: 435076 | GS102: 6576 | GT102: 508913 | GU102: 2282392 | GV102: 22666 | GW102: 0 | GX102: 0 | GY102: 0 | GZ102: 0 | HA102: 0 | HB102: 0 | HC102: 0 | HD102: 0 | HE102: 0 | HF102: 125 | HG102: 519865 | HH102: 0 | HI102: 0 | HJ102: 105579 | HK102: 0 | HL102: 87 | HM102: 10 | HN102: 9596 | HO102: 19626 | HP102: 430308 | HQ102: 5106 | HR102: 516456 | HS102: 2297390 | HT102: 10332 | HU102: 0 | HV102: 0 | HW102: 0 | HX102: 0 | HY102: 0 | HZ102: 0 | IA102: 0 | IB102: 0 | IC102: 0 | ID102: 87
A103: Ver.05.00 | B103: 014656 | C103: 北海道 | D103: 剣淵町 | E103: 5 | F103: - | G103: - | H103: 6.8 | I103: - | J103: 2605979 | K103: 9712 | L103: 一般会計 | M103: 114789 | AR103: 114789 | AS103: -4.4 | AT103: ① | AU103: 国民健康保険事業特別会計 | AV103: 4680 | AW103: ① | AX103: 国民健康保険剣淵町立診療所特別会計 | AY103: 7793 | AZ103: ③ | BA103: 後期高齢者医療特別会計 | BB103: 2907 | BC103: ② | BD103: 介護保険事業特別会計 | BE103: 9850 | BF103: 0 | BI103: 0 | BL103: 0 | BO103: 0 | BR103: 0 | BU103: 0 | BX103: 0 | CA103: 0 | CD103: 0 | CG103: 簡易水道事業会計 | CH103: 17397 | CI103: 下水道事業会計 | CJ103: 18032 | CK103: 0 | CL103: 0 | CM103: 0 | CN103: 0 | CO103: 0 | CP103: 0 | CQ103: 0 | CR103: 0 | CS103: 0 | CT103: 0 | CU103: 0 | CV103: 0 | CW103: 0 | CX103: 0 | CY103: 0 | CZ103: 0 | DA103: 0 | DB103: 0 | DC103: 0 | DD103: 0 | DE103: 0 | DF103: 0 | DG103: 0 | DH103: 0 | DI103: 0 | DJ103: 0 | DK103: 0 | DL103: 0 | DM103: 0 | DN103: 0 | DO103: 0 | DP103: 0 | DQ103: 0 | DR103: 0 | DS103: 0 | DT103: 0 | DU103: 0 | DV103: 0 | DW103: 0 | DX103: 0 | DY103: 0 | DZ103: 0 | EA103: 0 | EB103: 0 | EC103: 0 | ED103: 0 | EE103: 0 | EF103: 0 | EG103: 0 | EH103: 0 | EI103: 0 | EJ103: 0 | EK103: 0 | EL103: 0 | EM103: 0 | EN103: 0 | EO103: 0 | EP103: 0 | EQ103: 0 | ER103: 0 | ES103: 0 | ET103: 0 | EU103: 0 | EV103: 0 | EW103: 0 | EX103: 0 | EY103: 0 | EZ103: 0 | FA103: 0 | FB103: 0 | FC103: 0 | FD103: 0 | FE103: 175448 | FF103: -6.73 | FG103: 6.063321571 | FH103: 7.171500016 | FI103: 7.385242342 | FJ103: 6.8 | FK103: 332855 | FL103: 0 | FM103: 0 | FN103: 111238 | FO103: 0 | FP103: 38093 | FQ103: 0 | FR103: 44400 | FS103: 41482 | FT103: 240956 | FU103: 8792 | FV103: 434163 | FW103: 2187917 | FX103: 86241 | FY103: 0 | FZ103: 0 | GA103: 0 | GB103: 0 | GC103: 0 | GD103: 0 | GE103: 0 | GF103: 0 | GG103: 37649 | GH103: 444 | GI103: 340695 | GJ103: 0 | GK103: 0 | GL103: 123485 | GM103: 0 | GN103: 38755 | GO103: 0 | GP103: 39200 | GQ103: 37772 | GR103: 250617 | GS103: 8488 | GT103: 451138 | GU103: 2151074 | GV103: 21347 | GW103: 0 | GX103: 0 | GY103: 0 | GZ103: 0 | HA103: 0 | HB103: 0 | HC103: 0 | HD103: 0 | HE103: 38423 | HF103: 332 | HG103: 344517 | HH103: 0 | HI103: 0 | HJ103: 115592 | HK103: 0 | HL103: 39574 | HM103: 21 | HN103: 30905 | HO103: 35501 | HP103: 254095 | HQ103: 8781 | HR103: 451985 | HS103: 2144282 | HT103: 9712 | HU103: 0 | HV103: 0 | HW103: 0 | HX103: 0 | HY103: 0 | HZ103: 0 | IA103: 0 | IB103: 0 | IC103: 39272 | ID103: 302
A104: Ver.05.00 | B104: 014681 | C104: 北海道 | D104: 下川町 | E104: 5 | F104: - | G104: - | H104: 7 | I104: 11.3 | J104: 3264351 | K104: 11651 | L104: 一般会計 | M104: 147818 | AR104: 147818 | AS104: -4.52 | AT104: ② | AU104: 介護保険特別会計（介護保険事業勘定） | AV104: 34937 | AW104: ⑥ | AX104: 介護保険特別会計（介護サービス事業勘定） | AY104: 4708 | AZ104: ① | BA104: 国民健康保険事業特別会計 | BB104: 1800 | BC104: ③ | BD104: 後期高齢者医療特別会計 | BE104: 99 | BF104: 0 | BI104: 0 | BL104: 0 | BO104: 0 | BR104: 0 | BU104: 0 | BX104: 0 | CA104: 0 | CD104: 0 | CG104: 病院事業会計 | CH104: 92770 | CI104: 0 | CJ104: 0 | CK104: 0 | CL104: 0 | CM104: 0 | CN104: 0 | CO104: 0 | CP104: 0 | CQ104: 0 | CR104: 0 | CS104: 0 | CT104: 0 | CU104: 0 | CV104: 0 | CW104: 0 | CX104: 0 | CY104: 0 | CZ104: 0 | DA104: 0 | DB104: 0 | DC104: 0 | DD104: 0 | DE104: 0 | DF104: 0 | DG104: 0 | DH104: 0 | DI104: 0 | DJ104: 0 | DK104: 0 | DL104: 0 | DM104: 0 | DN104: 0 | DO104: 0 | DP104: 0 | DQ104: 0 | DR104: 0 | DS104: 下水道事業特別会計 | DT104: 7563 | DU104: 簡易水道事業特別会計 | DV104: 2956 | DW104: 0 | DX104: 0 | DY104: 0 | DZ104: 0 | EA104: 0 | EB104: 0 | EC104: 0 | ED104: 0 | EE104: 0 | EF104: 0 | EG104: 0 | EH104: 0 | EI104: 0 | EJ104: 0 | EK104: 0 | EL104: 0 | EM104: 0 | EN104: 0 | EO104: 0 | EP104: 0 | EQ104: 0 | ER104: 0 | ES104: 0 | ET104: 0 | EU104: 0 | EV104: 0 | EW104: 0 | EX104: 0 | EY104: 0 | EZ104: 0 | FA104: 0 | FB104: 0 | FC104: 0 | FD104: 0 | FE104: 292651 | FF104: -8.96 | FG104: 6.141533741 | FH104: 7.238883746 | FI104: 7.623424142 | FJ104: 7 | FK104: 700053 | FL104: 0 | FM104: 0 | FN104: 93594 | FO104: 0 | FP104: 1015 | FQ104: 82 | FR104: 69396 | FS104: 45539 | FT104: 505037 | FU104: 1839 | FV104: 519973 | FW104: 2742998 | FX104: 105239 | FY104: 0 | FZ104: 0 | GA104: 0 | GB104: 0 | GC104: 0 | GD104: 0 | GE104: 0 | GF104: 0 | GG104: 0 | GH104: 1015 | GI104: 712602 | GJ104: 0 | GK104: 0 | GL104: 111841 | GM104: 0 | GN104: 1195 | GO104: 296 | GP104: 71633 | GQ104: 42610 | GR104: 510980 | GS104: 1853 | GT104: 537616 | GU104: 2738628 | GV104: 26280 | GW104: 0 | GX104: 0 | GY104: 0 | GZ104: 0 | HA104: 0 | HB104: 0 | HC104: 0 | HD104: 0 | HE104: 0 | HF104: 1195 | HG104: 693550 | HH104: 0 | HI104: 0 | HJ104: 102869 | HK104: 0 | HL104: 1042 | HM104: 175 | HN104: 67568 | HO104: 40583 | HP104: 479401 | HQ104: 941 | HR104: 567563 | HS104: 2685137 | HT104: 11651 | HU104: 0 | HV104: 0 | HW104: 0 | HX104: 0 | HY104: 0 | HZ104: 0 | IA104: 0 | IB104: 0 | IC104: 0 | ID104: 1042
A105: Ver.05.00 | B105: 014699 | C105: 北海道 | D105: 美深町 | E105: 5 | F105: - | G105: - | H105: 6.1 | I105: - | J105: 3849246 | K105: 14195 | L105: 一般会計 | M105: 531235 | AR105: 531235 | AS105: -13.8 | AT105: ① | AU105: 国民健康保険特別会計 | AV105: 0 | AW105: ② | AX105: 介護保険特別会計 | AY105: 0 | AZ105: ③ | BA105: 後期高齢者医療保険特別会計 | BB105: 0 | BC105: 0 | BF105: 0 | BI105: 0 | BL105: 0 | BO105: 0 | BR105: 0 | BU105: 0 | BX105: 0 | CA105: 0 | CD105: 0 | CG105: 中央簡易水道事業会計 | CH105: 377177 | CI105: 0 | CJ105: 0 | CK105: 0 | CL105: 0 | CM105: 0 | CN105: 0 | CO105: 0 | CP105: 0 | CQ105: 0 | CR105: 0 | CS105: 0 | CT105: 0 | CU105: 0 | CV105: 0 | CW105: 0 | CX105: 0 | CY105: 0 | CZ105: 0 | DA105: 0 | DB105: 0 | DC105: 0 | DD105: 0 | DE105: 0 | DF105: 0 | DG105: 0 | DH105: 0 | DI105: 0 | DJ105: 0 | DK105: 0 | DL105: 0 | DM105: 0 | DN105: 0 | DO105: 0 | DP105: 0 | DQ105: 0 | DR105: 0 | DS105: 北部簡易水道事業特別会計 | DT105: 2242 | DU105: 下水道事業特別会計 | DV105: 0 | DW105: 0 | DX105: 0 | DY105: 0 | DZ105: 0 | EA105: 0 | EB105: 0 | EC105: 0 | ED105: 0 | EE105: 0 | EF105: 0 | EG105: 0 | EH105: 0 | EI105: 0 | EJ105: 0 | EK105: 0 | EL105: 0 | EM105: 0 | EN105: 0 | EO105: 0 | EP105: 0 | EQ105: 0 | ER105: 0 | ES105: 0 | ET105: 0 | EU105: 0 | EV105: 0 | EW105: 0 | EX105: 0 | EY105: 0 | EZ105: 0 | FA105: 0 | FB105: 0 | FC105: 0 | FD105: 0 | FE105: 910654 | FF105: -23.65 | FG105: 6.079064035 | FH105: 6.418971704 | FI105: 6.009192585 | FJ105: 6.1 | FK105: 629282 | FL105: 0 | FM105: 0 | FN105: 137695 | FO105: 0 | FP105: 370 | FQ105: 0 | FR105: 41821 | FS105: 81306 | FT105: 436672 | FU105: 0 | FV105: 642971 | FW105: 3168042 | FX105: 121109 | FY105: 0 | FZ105: 0 | GA105: 0 | GB105: 0 | GC105: 0 | GD105: 0 | GE105: 0 | GF105: 0 | GG105: 0 | GH105: 370 | GI105: 623239 | GJ105: 0 | GK105: 0 | GL105: 131027 | GM105: 0 | GN105: 268 | GO105: 0 | GP105: 16336 | GQ105: 74773 | GR105: 450203 | GS105: 0 | GT105: 652831 | GU105: 3162574 | GV105: 31318 | GW105: 0 | GX105: 0 | GY105: 0 | GZ105: 0 | HA105: 0 | HB105: 0 | HC105: 0 | HD105: 0 | HE105: 0 | HF105: 268 | HG105: 600678 | HH105: 0 | HI105: 0 | HJ105: 112891 | HK105: 0 | HL105: 166 | HM105: 0 | HN105: 12040 | HO105: 63548 | HP105: 436912 | HQ105: 0 | HR105: 650066 | HS105: 3184985 | HT105: 14195 | HU105: 0 | HV105: 0 | HW105: 0 | HX105: 0 | HY105: 0 | HZ105: 0 | IA105: 0 | IB105: 0 | IC105: 0 | ID105: 166
A106: Ver.05.00 | B106: 014702 | C106: 北海道 | D106: 音威子府村 | E106: 5 | F106: - | G106: - | H106: 7.1 | I106: 2.3 | J106: 1484107 | K106: 4942 | L106: 一般会計 | M106: 79877 | AR106: 79877 | AS106: -5.38 | AT106: ① | AU106: 国民健康保険特別会計 | AV106: 710 | AW106: ② | AX106: 介護保険特別会計（保険事業勘定） | AY106: 20436 | AZ106: ⑥ | BA106: 介護保険特別会計（サービス事業勘定） | BB106: 3520 | BC106: ③ | BD106: 後期高齢者医療特別会計 | BE106: 526 | BF106: 0 | BI106: 0 | BL106: 0 | BO106: 0 | BR106: 0 | BU106: 0 | BX106: 0 | CA106: 0 | CD106: 0 | CG106: 0 | CH106: 0 | CI106: 0 | CJ106: 0 | CK106: 0 | CL106: 0 | CM106: 0 | CN106: 0 | CO106: 0 | CP106: 0 | CQ106: 0 | CR106: 0 | CS106: 0 | CT106: 0 | CU106: 0 | CV106: 0 | CW106: 0 | CX106: 0 | CY106: 0 | CZ106: 0 | DA106: 0 | DB106: 0 | DC106: 0 | DD106: 0 | DE106: 0 | DF106: 0 | DG106: 0 | DH106: 0 | DI106: 0 | DJ106: 0 | DK106: 0 | DL106: 0 | DM106: 0 | DN106: 0 | DO106: 0 | DP106: 0 | DQ106: 0 | DR106: 0 | DS106: 簡易水道事業特別会計 | DT106: 1755 | DU106: 農業集落排水事業特別会計 | DV106: 1496 | DW106: 0 | DX106: 0 | DY106: 0 | DZ106: 0 | EA106: 0 | EB106: 0 | EC106: 0 | ED106: 0 | EE106: 0 | EF106: 0 | EG106: 0 | EH106: 0 | EI106: 0 | EJ106: 0 | EK106: 0 | EL106: 0 | EM106: 0 | EN106: 0 | EO106: 0 | EP106: 0 | EQ106: 0 | ER106: 0 | ES106: 0 | ET106: 0 | EU106: 0 | EV106: 0 | EW106: 0 | EX106: 0 | EY106: 0 | EZ106: 0 | FA106: 0 | FB106: 0 | FC106: 0 | FD106: 0 | FE106: 108320 | FF106: -7.29 | FG106: 6.754657951 | FH106: 7.231569865 | FI106: 7.477262768 | FJ106: 7.1 | FK106: 323019 | FL106: 0 | FM106: 0 | FN106: 27520 | FO106: 0 | FP106: 0 | FQ106: 0 | FR106: 18733 | FS106: 10574 | FT106: 208076 | FU106: 28653 | FV106: 166193 | FW106: 1290085 | FX106: 42058 | FY106: 0 | FZ106: 0 | GA106: 0 | GB106: 0 | GC106: 0 | GD106: 0 | GE106: 0 | GF106: 0 | GG106: 0 | GH106: 0 | GI106: 334229 | GJ106: 0 | GK106: 0 | GL106: 26298 | GM106: 0 | GN106: 0 | GO106: 51 | GP106: 18307 | GQ106: 8808 | GR106: 217392 | GS106: 28819 | GT106: 178501 | GU106: 1272551 | GV106: 10510 | GW106: 0 | GX106: 0 | GY106: 0 | GZ106: 0 | HA106: 0 | HB106: 0 | HC106: 0 | HD106: 0 | HE106: 0 | HF106: 0 | HG106: 338926 | HH106: 0 | HI106: 0 | HJ106: 26961 | HK106: 0 | HL106: 0 | HM106: 0 | HN106: 17702 | HO106: 8482 | HP106: 218856 | HQ106: 29047 | HR106: 166110 | HS106: 1313055 | HT106: 4942 | HU106: 0 | HV106: 0 | HW106: 0 | HX106: 0 | HY106: 0 | HZ106: 0 | IA106: 0 | IB106: 0 | IC106: 0 | ID106: 0
A107: Ver.05.00 | B107: 014711 | C107: 北海道 | D107: 中川町 | E107: 5 | F107: - | G107: - | H107: 13.8 | I107: - | J107: 2401444 | K107: 7931 | L107: 一般会計 | M107: 92858 | AR107: 92858 | AS107: -3.86 | AT107: ① | AU107: 国民健康保険特別会計 | AV107: 0 | AW107: ② | AX107: 介護保険特別会計 | AY107: 0 | AZ107: ③ | BA107: 後期高齢者医療特別会計 | BB107: 0 | BC107: 0 | BF107: 0 | BI107: 0 | BL107: 0 | BO107: 0 | BR107: 0 | BU107: 0 | BX107: 0 | CA107: 0 | CD107: 0 | CG107: 0 | CH107: 0 | CI107: 0 | CJ107: 0 | CK107: 0 | CL107: 0 | CM107: 0 | CN107: 0 | CO107: 0 | CP107: 0 | CQ107: 0 | CR107: 0 | CS107: 0 | CT107: 0 | CU107: 0 | CV107: 0 | CW107: 0 | CX107: 0 | CY107: 0 | CZ107: 0 | DA107: 0 | DB107: 0 | DC107: 0 | DD107: 0 | DE107: 0 | DF107: 0 | DG107: 0 | DH107: 0 | DI107: 0 | DJ107: 0 | DK107: 0 | DL107: 0 | DM107: 0 | DN107: 0 | DO107: 0 | DP107: 0 | DQ107: 0 | DR107: 0 | DS107: 簡易水道事業特別会計 | DT107: 1083 | DU107: 農業集落排水事業特別会計 | DV107: 2353 | DW107: 0 | DX107: 0 | DY107: 0 | DZ107: 0 | EA107: 0 | EB107: 0 | EC107: 0 | ED107: 0 | EE107: 0 | EF107: 0 | EG107: 0 | EH107: 0 | EI107: 0 | EJ107: 0 | EK107: 0 | EL107: 0 | EM107: 0 | EN107: 0 | EO107: 0 | EP107: 0 | EQ107: 0 | ER107: 0 | ES107: 0 | ET107: 0 | EU107: 0 | EV107: 0 | EW107: 0 | EX107: 0 | EY107: 0 | EZ107: 0 | FA107: 0 | FB107: 0 | FC107: 0 | FD107: 0 | FE107: 96294 | FF107: -4 | FG107: 13.41870511 | FH107: 14.47020685 | FI107: 13.60024798 | FJ107: 13.8 | FK107: 734863 | FL107: 0 | FM107: 0 | FN107: 65182 | FO107: 0 | FP107: 0 | FQ107: 229 | FR107: 37407 | FS107: 22731 | FT107: 469548 | FU107: 7857 | FV107: 288963 | FW107: 2098192 | FX107: 70927 | FY107: 0 | FZ107: 0 | GA107: 0 | GB107: 0 | GC107: 0 | GD107: 0 | GE107: 0 | GF107: 0 | GG107: 0 | GH107: 0 | GI107: 745371 | GJ107: 0 | GK107: 0 | GL107: 68776 | GM107: 0 | GN107: 0 | GO107: 136 | GP107: 23705 | GQ107: 19005 | GR107: 486477 | GS107: 7770 | GT107: 294605 | GU107: 2116948 | GV107: 18230 | GW107: 0 | GX107: 0 | GY107: 0 | GZ107: 0 | HA107: 0 | HB107: 0 | HC107: 0 | HD107: 0 | HE107: 0 | HF107: 0 | HG107: 709690 | HH107: 0 | HI107: 0 | HJ107: 72364 | HK107: 0 | HL107: 0 | HM107: 1210 | HN107: 29141 | HO107: 18331 | HP107: 468706 | HQ107: 7780 | HR107: 369386 | HS107: 2024127 | HT107: 7931 | HU107: 0 | HV107: 0 | HW107: 0 | HX107: 0 | HY107: 0 | HZ107: 0 | IA107: 0 | IB107: 0 | IC107: 0 | ID107: 0
A108: Ver.05.00 | B108: 014729 | C108: 北海道 | D108: 幌加内町 | E108: 5 | F108: - | G108: - | H108: 5.3 | I108: - | J108: 2544362 | K108: 8403 | L108: 一般会計 | M108: 50874 | N108: 奨学資金特別会計 | O108: 0 | AR108: 50874 | AS108: -1.99 | AT108: ① | AU108: 国民健康保険特別会計 | AV108: 413 | AW108: ② | AX108: 介護保険特別会計 | AY108: 307 | AZ108: ③ | BA108: 後期高齢者医療特別会計 | BB108: 279 | BC108: 0 | BF108: 0 | BI108: 0 | BL108: 0 | BO108: 0 | BR108: 0 | BU108: 0 | BX108: 0 | CA108: 0 | CD108: 0 | CG108: 0 | CH108: 0 | CI108: 0 | CJ108: 0 | CK108: 0 | CL108: 0 | CM108: 0 | CN108: 0 | CO108: 0 | CP108: 0 | CQ108: 0 | CR108: 0 | CS108: 0 | CT108: 0 | CU108: 0 | CV108: 0 | CW108: 0 | CX108: 0 | CY108: 0 | CZ108: 0 | DA108: 0 | DB108: 0 | DC108: 0 | DD108: 0 | DE108: 0 | DF108: 0 | DG108: 0 | DH108: 0 | DI108: 0 | DJ108: 0 | DK108: 0 | DL108: 0 | DM108: 0 | DN108: 0 | DO108: 0 | DP108: 0 | DQ108: 0 | DR108: 0 | DS108: 簡易水道事業特別会計 | DT108: 6053 | DU108: 下水道事業特別会計 | DV108: 6431 | DW108: 0 | DX108: 0 | DY108: 0 | DZ108: 0 | EA108: 0 | EB108: 0 | EC108: 0 | ED108: 0 | EE108: 0 | EF108: 0 | EG108: 0 | EH108: 0 | EI108: 0 | EJ108: 0 | EK108: 0 | EL108: 0 | EM108: 0 | EN108: 0 | EO108: 0 | EP108: 0 | EQ108: 0 | ER108: 0 | ES108: 0 | ET108: 0 | EU108: 0 | EV108: 0 | EW108: 0 | EX108: 0 | EY108: 0 | EZ108: 0 | FA108: 0 | FB108: 0 | FC108: 0 | FD108: 0 | FE108: 64357 | FF108: -2.52 | FG108: 4.764625593 | FH108: 4.229538394 | FI108: 7.038912076 | FJ108: 5.3 | FK108: 579588 | FL108: 0 | FM108: 0 | FN108: 58344 | FO108: 0 | FP108: 1252 | FQ108: 606 | FR108: 50716 | FS108: 24012 | FT108: 461839 | FU108: 4574 | FV108: 297944 | FW108: 2191329 | FX108: 71598 | FY108: 0 | FZ108: 0 | GA108: 0 | GB108: 0 | GC108: 0 | GD108: 0 | GE108: 0 | GF108: 0 | GG108: 0 | GH108: 1252 | GI108: 571284 | GJ108: 0 | GK108: 0 | GL108: 60891 | GM108: 0 | GN108: 694 | GO108: 453 | GP108: 54800 | GQ108: 22602 | GR108: 465207 | GS108: 4607 | GT108: 301606 | GU108: 2208349 | GV108: 18286 | GW108: 0 | GX108: 0 | GY108: 0 | GZ108: 0 | HA108: 0 | HB108: 0 | HC108: 0 | HD108: 0 | HE108: 0 | HF108: 694 | HG108: 602185 | HH108: 0 | HI108: 0 | HJ108: 60889 | HK108: 0 | HL108: 206 | HM108: 188 | HN108: 26582 | HO108: 24089 | HP108: 463818 | HQ108: 4547 | HR108: 300456 | HS108: 2235503 | HT108: 8403 | HU108: 0 | HV108: 0 | HW108: 0 | HX108: 0 | HY108: 0 | HZ108: 0 | IA108: 0 | IB108: 0 | IC108: 0 | ID108: 206
A109: Ver.05.00 | B109: 014818 | C109: 北海道 | D109: 増毛町 | E109: 5 | F109: - | G109: - | H109: 6 | I109: - | J109: 3046211 | K109: 11240 | L109: 一般会計 | M109: 269384 | N109: 診療所事業特別会計 | O109: 0 | P109: 福祉施設整備特別会計 | Q109: 0 | AR109: 269384 | AS109: -8.84 | AT109: ① | AU109: 国民健康保険特別会計 | AV109: 48196 | AW109: ② | AX109: 介護保険特別会計 | AY109: 39633 | AZ109: ③ | BA109: 後期高齢者医療特別会計 | BB109: 493 | BC109: 0 | BF109: 0 | BI109: 0 | BL109: 0 | BO109: 0 | BR109: 0 | BU109: 0 | BX109: 0 | CA109: 0 | CD109: 0 | CG109: 水道事業会計 | CH109: 129683 | CI109: 砕石事業会計 | CJ109: 59396 | CK109: 公共下水道事業会計 | CL109: 6342 | CM109: 0 | CN109: 0 | CO109: 0 | CP109: 0 | CQ109: 0 | CR109: 0 | CS109: 0 | CT109: 0 | CU109: 0 | CV109: 0 | CW109: 0 | CX109: 0 | CY109: 0 | CZ109: 0 | DA109: 0 | DB109: 0 | DC109: 0 | DD109: 0 | DE109: 0 | DF109: 0 | DG109: 0 | DH109: 0 | DI109: 0 | DJ109: 0 | DK109: 0 | DL109: 0 | DM109: 0 | DN109: 0 | DO109: 0 | DP109: 0 | DQ109: 0 | DR109: 0 | DS109: 港湾整備事業特別会計 | DT109: 0 | DU109: 観光施設事業特別会計 | DV109: 0 | DW109: 0 | DX109: 0 | DY109: 0 | DZ109: 0 | EA109: 0 | EB109: 0 | EC109: 0 | ED109: 0 | EE109: 0 | EF109: 0 | EG109: 0 | EH109: 0 | EI109: 0 | EJ109: 0 | EK109: 0 | EL109: 0 | EM109: 0 | EN109: 0 | EO109: 0 | EP109: 0 | EQ109: 0 | ER109: 0 | ES109: 0 | ET109: 0 | EU109: 0 | EV109: 0 | EW109: 0 | EX109: 0 | EY109: 0 | EZ109: 0 | FA109: 0 | FB109: 0 | FC109: 0 | FD109: 0 | FE109: 553127 | FF109: -18.15 | FG109: 7.843038854 | FH109: 6.393931406 | FI109: 4.029400553 | FJ109: 6 | FK109: 600827 | FL109: 0 | FM109: 0 | FN109: 73704 | FO109: 28965 | FP109: 4 | FQ109: 66 | FR109: 57004 | FS109: 57053 | FT109: 382285 | FU109: 928 | FV109: 499193 | FW109: 2476754 | FX109: 94626 | FY109: 0 | FZ109: 0 | GA109: 0 | GB109: 0 | GC109: 0 | GD109: 0 | GE109: 0 | GF109: 0 | GG109: 0 | GH109: 4 | GI109: 540675 | GJ109: 0 | GK109: 0 | GL109: 76671 | GM109: 28963 | GN109: 3 | GO109: 65 | GP109: 43239 | GQ109: 63678 | GR109: 374790 | GS109: 939 | GT109: 520756 | GU109: 2455061 | GV109: 24315 | GW109: 0 | GX109: 0 | GY109: 0 | GZ109: 0 | HA109: 0 | HB109: 0 | HC109: 0 | HD109: 0 | HE109: 0 | HF109: 3 | HG109: 484438 | HH109: 0 | HI109: 0 | HJ109: 72218 | HK109: 28968 | HL109: 3 | HM109: 48 | HN109: 26949 | HO109: 56748 | HP109: 396598 | HQ109: 941 | HR109: 534336 | HS109: 2500635 | HT109: 11240 | HU109: 0 | HV109: 0 | HW109: 0 | HX109: 0 | HY109: 0 | HZ109: 0 | IA109: 0 | IB109: 0 | IC109: 0 | ID109: 3
A110: Ver.05.00 | B110: 014826 | C110: 北海道 | D110: 小平町 | E110: 5 | F110: - | G110: - | H110: 9.5 | I110: - | J110: 2820306 | K110: 10232 | L110: 一般会計 | M110: 226751 | AR110: 226751 | AS110: -8.03 | AT110: ① | AU110: 国民健康保険特別会計 | AV110: 0 | AW110: ② | AX110: 介護保険特別会計 | AY110: 17967 | AZ110: ③ | BA110: 後期高齢者医療特別会計 | BB110: 172 | BC110: ⑥ | BD110: 介護サービス事業特別会計 | BE110: 0 | BF110: 0 | BI110: 0 | BL110: 0 | BO110: 0 | BR110: 0 | BU110: 0 | BX110: 0 | CA110: 0 | CD110: 0 | CG110: 水道事業会計 | CH110: 400604 | CI110: 0 | CJ110: 0 | CK110: 0 | CL110: 0 | CM110: 0 | CN110: 0 | CO110: 0 | CP110: 0 | CQ110: 0 | CR110: 0 | CS110: 0 | CT110: 0 | CU110: 0 | CV110: 0 | CW110: 0 | CX110: 0 | CY110: 0 | CZ110: 0 | DA110: 0 | DB110: 0 | DC110: 0 | DD110: 0 | DE110: 0 | DF110: 0 | DG110: 0 | DH110: 0 | DI110: 0 | DJ110: 0 | DK110: 0 | DL110: 0 | DM110: 0 | DN110: 0 | DO110: 0 | DP110: 0 | DQ110: 0 | DR110: 0 | DS110: 下水道事業特別会計 | DT110: 5240 | DU110: 0 | DV110: 0 | DW110: 0 | DX110: 0 | DY110: 0 | DZ110: 0 | EA110: 0 | EB110: 0 | EC110: 0 | ED110: 0 | EE110: 0 | EF110: 0 | EG110: 0 | EH110: 0 | EI110: 0 | EJ110: 0 | EK110: 0 | EL110: 0 | EM110: 0 | EN110: 0 | EO110: 0 | EP110: 0 | EQ110: 0 | ER110: 0 | ES110: 0 | ET110: 0 | EU110: 0 | EV110: 0 | EW110: 0 | EX110: 0 | EY110: 0 | EZ110: 0 | FA110: 0 | FB110: 0 | FC110: 0 | FD110: 0 | FE110: 650734 | FF110: -23.07 | FG110: 9.618522725 | FH110: 9.562590322 | FI110: 9.398147563 | FJ110: 9.5 | FK110: 544122 | FL110: 0 | FM110: 0 | FN110: 89882 | FO110: 24620 | FP110: 20133 | FQ110: 53 | FR110: 33011 | FS110: 62346 | FT110: 346087 | FU110: 0 | FV110: 429947 | FW110: 2361462 | FX110: 84825 | FY110: 0 | FZ110: 0 | GA110: 0 | GB110: 0 | GC110: 0 | GD110: 0 | GE110: 0 | GF110: 0 | GG110: 17897 | GH110: 2236 | GI110: 519972 | GJ110: 0 | GK110: 0 | GL110: 91772 | GM110: 24618 | GN110: 23634 | GO110: 53 | GP110: 29886 | GQ110: 59169 | GR110: 339267 | GS110: 0 | GT110: 451764 | GU110: 2347481 | GV110: 22457 | GW110: 0 | GX110: 0 | GY110: 0 | GZ110: 0 | HA110: 0 | HB110: 0 | HC110: 0 | HD110: 0 | HE110: 20687 | HF110: 2947 | HG110: 459159 | HH110: 0 | HI110: 0 | HJ110: 116764 | HK110: 24624 | HL110: 22749 | HM110: 37 | HN110: 23422 | HO110: 55315 | HP110: 314274 | HQ110: 0 | HR110: 458736 | HS110: 2351338 | HT110: 10232 | HU110: 0 | HV110: 0 | HW110: 0 | HX110: 0 | HY110: 0 | HZ110: 0 | IA110: 0 | IB110: 0 | IC110: 20687 | ID110: 2062
A111: Ver.05.00 | B111: 014834 | C111: 北海道 | D111: 苫前町 | E111: 5 | F111: - | G111: - | H111: 9.5 | I111: - | J111: 2929325 | K111: 10371 | L111: 一般会計 | M111: 16447 | AR111: 16447 | AS111: -0.56 | AT111: ① | AU111: 国民健康保険特別会計 | AV111: 344 | AW111: ② | AX111: 介護保険特別会計 | AY111: 8732 | AZ111: ③ | BA111: 後期高齢者医療特別会計 | BB111: 8 | BC111: 0 | BF111: 0 | BI111: 0 | BL111: 0 | BO111: 0 | BR111: 0 | BU111: 0 | BX111: 0 | CA111: 0 | CD111: 0 | CG111: 0 | CH111: 0 | CI111: 0 | CJ111: 0 | CK111: 0 | CL111: 0 | CM111: 0 | CN111: 0 | CO111: 0 | CP111: 0 | CQ111: 0 | CR111: 0 | CS111: 0 | CT111: 0 | CU111: 0 | CV111: 0 | CW111: 0 | CX111: 0 | CY111: 0 | CZ111: 0 | DA111: 0 | DB111: 0 | DC111: 0 | DD111: 0 | DE111: 0 | DF111: 0 | DG111: 0 | DH111: 0 | DI111: 0 | DJ111: 0 | DK111: 0 | DL111: 0 | DM111: 0 | DN111: 0 | DO111: 0 | DP111: 0 | DQ111: 0 | DR111: 0 | DS111: 簡易水道事業特別会計 | DT111: 18372 | DU111: 下水道事業特別会計 | DV111: 13150 | DW111: 風力発電事業特別会計 | DX111: 323748 | DY111: 0 | DZ111: 0 | EA111: 0 | EB111: 0 | EC111: 0 | ED111: 0 | EE111: 0 | EF111: 0 | EG111: 0 | EH111: 0 | EI111: 0 | EJ111: 0 | EK111: 0 | EL111: 0 | EM111: 0 | EN111: 0 | EO111: 0 | EP111: 0 | EQ111: 0 | ER111: 0 | ES111: 0 | ET111: 0 | EU111: 0 | EV111: 0 | EW111: 0 | EX111: 0 | EY111: 0 | EZ111: 0 | FA111: 0 | FB111: 0 | FC111: 0 | FD111: 0 | FE111: 380801 | FF111: -12.99 | FG111: 7.862078443 | FH111: 10.36940291 | FI111: 10.39044524 | FJ111: 9.5 | FK111: 597278 | FL111: 0 | FM111: 0 | FN111: 124946 | FO111: 18283 | FP111: 87 | FQ111: 123 | FR111: 15191 | FS111: 39949 | FT111: 487908 | FU111: 7734 | FV111: 465064 | FW111: 2394772 | FX111: 91592 | FY111: 0 | FZ111: 0 | GA111: 0 | GB111: 0 | GC111: 0 | GD111: 0 | GE111: 0 | GF111: 0 | GG111: 0 | GH111: 87 | GI111: 654428 | GJ111: 0 | GK111: 0 | GL111: 124298 | GM111: 8822 | GN111: 61 | GO111: 151 | GP111: 8654 | GQ111: 40174 | GR111: 485318 | GS111: 7097 | GT111: 467367 | GU111: 2418683 | GV111: 23889 | GW111: 0 | GX111: 0 | GY111: 0 | GZ111: 0 | HA111: 0 | HB111: 0 | HC111: 0 | HD111: 0 | HE111: 0 | HF111: 61 | HG111: 650691 | HH111: 0 | HI111: 0 | HJ111: 123960 | HK111: 7039 | HL111: 10 | HM111: 164 | HN111: 6224 | HO111: 41033 | HP111: 477935 | HQ111: 6947 | HR111: 536568 | HS111: 2382386 | HT111: 10371 | HU111: 0 | HV111: 0 | HW111: 0 | HX111: 0 | HY111: 0 | HZ111: 0 | IA111: 0 | IB111: 0 | IC111: 0 | ID111: 10
A112: Ver.05.00 | B112: 014842 | C112: 北海道 | D112: 羽幌町 | E112: 5 | F112: - | G112: - | H112: 9 | I112: - | J112: 4061398 | K112: 16117 | L112: 一般会計 | M112: 177848 | AR112: 177848 | AS112: -4.37 | AT112: ① | AU112: 羽幌町国民健康保険事業特別会計 | AV112: 0 | AW112: ② | AX112: 羽幌町介護保険事業特別会計 | AY112: 32689 | AZ112: ③ | BA112: 羽幌町後期高齢者医療特別会計 | BB112: 363 | BC112: 0 | BF112: 0 | BI112: 0 | BL112: 0 | BO112: 0 | BR112: 0 | BU112: 0 | BX112: 0 | CA112: 0 | CD112: 0 | CG112: 羽幌町水道事業会計 | CH112: 249705 | CI112: 0 | CJ112: 0 | CK112: 0 | CL112: 0 | CM112: 0 | CN112: 0 | CO112: 0 | CP112: 0 | CQ112: 0 | CR112: 0 | CS112: 0 | CT112: 0 | CU112: 0 | CV112: 0 | CW112: 0 | CX112: 0 | CY112: 0 | CZ112: 0 | DA112: 0 | DB112: 0 | DC112: 0 | DD112: 0 | DE112: 0 | DF112: 0 | DG112: 0 | DH112: 0 | DI112: 0 | DJ112: 0 | DK112: 0 | DL112: 0 | DM112: 0 | DN112: 0 | DO112: 0 | DP112: 0 | DQ112: 0 | DR112: 0 | DS112: 羽幌町簡易水道事業特別会計 | DT112: 149 | DU112: 羽幌町下水道事業特別会計 | DV112: 13882 | DW112: 羽幌町港湾上屋事業特別会計 | DX112: 0 | DY112: 0 | DZ112: 0 | EA112: 0 | EB112: 0 | EC112: 0 | ED112: 0 | EE112: 0 | EF112: 0 | EG112: 0 | EH112: 0 | EI112: 0 | EJ112: 0 | EK112: 0 | EL112: 0 | EM112: 0 | EN112: 0 | EO112: 0 | EP112: 0 | EQ112: 0 | ER112: 0 | ES112: 0 | ET112: 0 | EU112: 0 | EV112: 0 | EW112: 0 | EX112: 0 | EY112: 0 | EZ112: 0 | FA112: 0 | FB112: 0 | FC112: 0 | FD112: 0 | FE112: 474636 | FF112: -11.68 | FG112: 9.221454745 | FH112: 8.977199113 | FI112: 9.060125539 | FJ112: 9 | FK112: 836564 | FL112: 0 | FM112: 0 | FN112: 273303 | FO112: 11360 | FP112: 2879 | FQ112: 46 | FR112: 87740 | FS112: 94812 | FT112: 622616 | FU112: 1647 | FV112: 908808 | FW112: 3115036 | FX112: 136521 | FY112: 0 | FZ112: 0 | GA112: 0 | GB112: 0 | GC112: 0 | GD112: 0 | GE112: 0 | GF112: 0 | GG112: 0 | GH112: 2879 | GI112: 819340 | GJ112: 0 | GK112: 0 | GL112: 243718 | GM112: 4650 | GN112: 1913 | GO112: 55 | GP112: 86933 | GQ112: 93132 | GR112: 586823 | GS112: 1658 | GT112: 937625 | GU112: 3064092 | GV112: 34283 | GW112: 0 | GX112: 0 | GY112: 0 | GZ112: 0 | HA112: 0 | HB112: 0 | HC112: 0 | HD112: 0 | HE112: 0 | HF112: 1913 | HG112: 846975 | HH112: 0 | HI112: 0 | HJ112: 226051 | HK112: 781 | HL112: 2519 | HM112: 48 | HN112: 85971 | HO112: 93825 | HP112: 588963 | HQ112: 1659 | HR112: 951119 | HS112: 3094162 | HT112: 16117 | HU112: 0 | HV112: 0 | HW112: 0 | HX112: 0 | HY112: 0 | HZ112: 0 | IA112: 0 | IB112: 0 | IC112: 0 | ID112: 2519
A113: Ver.05.00 | B113: 014851 | C113: 北海道 | D113: 初山別村 | E113: 5 | F113: - | G113: - | H113: 7.2 | I113: - | J113: 1596778 | K113: 5399 | L113: 一般会計 | M113: 12187 | AR113: 12187 | AS113: -0.76 | AT113: ① | AU113: 国民健康保険特別会計 | AV113: 8889 | AW113: ② | AX113: 介護保険特別会計 | AY113: 18861 | AZ113: ③ | BA113: 後期高齢者医療保険特別会計 | BB113: 292 | BC113: 0 | BF113: 0 | BI113: 0 | BL113: 0 | BO113: 0 | BR113: 0 | BU113: 0 | BX113: 0 | CA113: 0 | CD113: 0 | CG113: 0 | CH113: 0 | CI113: 0 | CJ113: 0 | CK113: 0 | CL113: 0 | CM113: 0 | CN113: 0 | CO113: 0 | CP113: 0 | CQ113: 0 | CR113: 0 | CS113: 0 | CT113: 0 | CU113: 0 | CV113: 0 | CW113: 0 | CX113: 0 | CY113: 0 | CZ113: 0 | DA113: 0 | DB113: 0 | DC113: 0 | DD113: 0 | DE113: 0 | DF113: 0 | DG113: 0 | DH113: 0 | DI113: 0 | DJ113: 0 | DK113: 0 | DL113: 0 | DM113: 0 | DN113: 0 | DO113: 0 | DP113: 0 | DQ113: 0 | DR113: 0 | DS113: 簡易水道事業特別会計 | DT113: 6537 | DU113: 農業集落排水事業特別会計 | DV113: 5640 | DW113: 0 | DX113: 0 | DY113: 0 | DZ113: 0 | EA113: 0 | EB113: 0 | EC113: 0 | ED113: 0 | EE113: 0 | EF113: 0 | EG113: 0 | EH113: 0 | EI113: 0 | EJ113: 0 | EK113: 0 | EL113: 0 | EM113: 0 | EN113: 0 | EO113: 0 | EP113: 0 | EQ113: 0 | ER113: 0 | ES113: 0 | ET113: 0 | EU113: 0 | EV113: 0 | EW113: 0 | EX113: 0 | EY113: 0 | EZ113: 0 | FA113: 0 | FB113: 0 | FC113: 0 | FD113: 0 | FE113: 52406 | FF113: -3.28 | FG113: 6.276818414 | FH113: 7.599305577 | FI113: 7.806245878 | FJ113: 7.2 | FK113: 234036 | FL113: 0 | FM113: 0 | FN113: 98055 | FO113: 2755 | FP113: 190 | FQ113: 0 | FR113: 6654 | FS113: 23969 | FT113: 208933 | FU113: 8604 | FV113: 195905 | FW113: 1384558 | FX113: 45120 | FY113: 0 | FZ113: 0 | GA113: 0 | GB113: 0 | GC113: 0 | GD113: 0 | GE113: 0 | GF113: 0 | GG113: 0 | GH113: 190 | GI113: 250617 | GJ113: 0 | GK113: 0 | GL113: 106155 | GM113: 952 | GN113: 171 | GO113: 0 | GP113: 6654 | GQ113: 22725 | GR113: 217703 | GS113: 8077 | GT113: 205526 | GU113: 1383002 | GV113: 11890 | GW113: 0 | GX113: 0 | GY113: 0 | GZ113: 0 | HA113: 0 | HB113: 0 | HC113: 0 | HD113: 0 | HE113: 0 | HF113: 171 | HG113: 238182 | HH113: 0 | HI113: 0 | HJ113: 106746 | HK113: 32 | HL113: 132 | HM113: 0 | HN113: 3626 | HO113: 18126 | HP113: 209553 | HQ113: 7497 | HR113: 212092 | HS113: 1379287 | HT113: 5399 | HU113: 0 | HV113: 0 | HW113: 0 | HX113: 0 | HY113: 0 | HZ113: 0 | IA113: 0 | IB113: 0 | IC113: 0 | ID113: 132
A114: Ver.05.00 | B114: 014869 | C114: 北海道 | D114: 遠別町 | E114: 5 | F114: - | G114: - | H114: 9.2 | I114: - | J114: 2903771 | K114: 10210 | L114: 一般会計 | M114: 145594 | AR114: 145594 | AS114: -5.01 | AT114: ① | AU114: 遠別町国民健康保険特別会計 | AV114: 4102 | AW114: ② | AX114: 遠別町介護保険特別会計 | AY114: 26290 | AZ114: ③ | BA114: 遠別町後期高齢者医療特別会計 | BB114: 0 | BC114: 0 | BF114: 0 | BI114: 0 | BL114: 0 | BO114: 0 | BR114: 0 | BU114: 0 | BX114: 0 | CA114: 0 | CD114: 0 | CG114: 遠別町立国保病院事業会計 | CH114: 164127 | CI114: 0 | CJ114: 0 | CK114: 0 | CL114: 0 | CM114: 0 | CN114: 0 | CO114: 0 | CP114: 0 | CQ114: 0 | CR114: 0 | CS114: 0 | CT114: 0 | CU114: 0 | CV114: 0 | CW114: 0 | CX114: 0 | CY114: 0 | CZ114: 0 | DA114: 0 | DB114: 0 | DC114: 0 | DD114: 0 | DE114: 0 | DF114: 0 | DG114: 0 | DH114: 0 | DI114: 0 | DJ114: 0 | DK114: 0 | DL114: 0 | DM114: 0 | DN114: 0 | DO114: 0 | DP114: 0 | DQ114: 0 | DR114: 0 | DS114: 遠別町簡易水道特別会計 | DT114: 6861 | DU114: 遠別町下水道特別会計 | DV114: 10531 | DW114: 0 | DX114: 0 | DY114: 0 | DZ114: 0 | EA114: 0 | EB114: 0 | EC114: 0 | ED114: 0 | EE114: 0 | EF114: 0 | EG114: 0 | EH114: 0 | EI114: 0 | EJ114: 0 | EK114: 0 | EL114: 0 | EM114: 0 | EN114: 0 | EO114: 0 | EP114: 0 | EQ114: 0 | ER114: 0 | ES114: 0 | ET114: 0 | EU114: 0 | EV114: 0 | EW114: 0 | EX114: 0 | EY114: 0 | EZ114: 0 | FA114: 0 | FB114: 0 | FC114: 0 | FD114: 0 | FE114: 357505 | FF114: -12.31 | FG114: 8.725467775 | FH114: 8.933716231 | FI114: 10.23689714 | FJ114: 9.2 | FK114: 580342 | FL114: 0 | FM114: 0 | FN114: 162695 | FO114: 0 | FP114: 3921 | FQ114: 1 | FR114: 52068 | FS114: 55482 | FT114: 411387 | FU114: 19326 | FV114: 408552 | FW114: 2383503 | FX114: 85943 | FY114: 0 | FZ114: 0 | GA114: 0 | GB114: 0 | GC114: 0 | GD114: 0 | GE114: 0 | GF114: 0 | GG114: 0 | GH114: 3921 | GI114: 623352 | GJ114: 0 | GK114: 0 | GL114: 155840 | GM114: 0 | GN114: 3303 | GO114: 212 | GP114: 52068 | GQ114: 60222 | GR114: 440851 | GS114: 19579 | GT114: 430807 | GU114: 2417940 | GV114: 22405 | GW114: 0 | GX114: 0 | GY114: 0 | GZ114: 0 | HA114: 0 | HB114: 0 | HC114: 0 | HD114: 0 | HE114: 0 | HF114: 3303 | HG114: 668830 | HH114: 0 | HI114: 0 | HJ114: 163232 | HK114: 0 | HL114: 2714 | HM114: 744 | HN114: 50055 | HO114: 63667 | HP114: 470533 | HQ114: 9686 | HR114: 449742 | HS114: 2443819 | HT114: 10210 | HU114: 0 | HV114: 0 | HW114: 0 | HX114: 0 | HY114: 0 | HZ114: 0 | IA114: 0 | IB114: 0 | IC114: 0 | ID114: 2714
A115: Ver.05.00 | B115: 014877 | C115: 北海道 | D115: 天塩町 | E115: 5 | F115: - | G115: - | H115: 7.3 | I115: 3.4 | J115: 3109303 | K115: 11322 | L115: 一般会計 | M115: 73397 | AR115: 73397 | AS115: -2.36 | AT115: ① | AU115: 国民健康保険特別会計 | AV115: 677 | AW115: ② | AX115: 介護保険特別会計 | AY115: 38263 | AZ115: ③ | BA115: 後期高齢者医療特別会計 | BB115: 1566 | BC115: 0 | BF115: 0 | BI115: 0 | BL115: 0 | BO115: 0 | BR115: 0 | BU115: 0 | BX115: 0 | CA115: 0 | CD115: 0 | CG115: 国民健康保険病院事業特別会計 | CH115: 95438 | CI115: 0 | CJ115: 0 | CK115: 0 | CL115: 0 | CM115: 0 | CN115: 0 | CO115: 0 | CP115: 0 | CQ115: 0 | CR115: 0 | CS115: 0 | CT115: 0 | CU115: 0 | CV115: 0 | CW115: 0 | CX115: 0 | CY115: 0 | CZ115: 0 | DA115: 0 | DB115: 0 | DC115: 0 | DD115: 0 | DE115: 0 | DF115: 0 | DG115: 0 | DH115: 0 | DI115: 0 | DJ115: 0 | DK115: 0 | DL115: 0 | DM115: 0 | DN115: 0 | DO115: 0 | DP115: 0 | DQ115: 0 | DR115: 0 | DS115: 水道事業特別会計 | DT115: 18360 | DU115: 下水道事業特別会計 | DV115: 10847 | DW115: 町民保養センター事業特別会計 | DX115: 1000 | DY115: 0 | DZ115: 0 | EA115: 0 | EB115: 0 | EC115: 0 | ED115: 0 | EE115: 0 | EF115: 0 | EG115: 0 | EH115: 0 | EI115: 0 | EJ115: 0 | EK115: 0 | EL115: 0 | EM115: 0 | EN115: 0 | EO115: 0 | EP115: 0 | EQ115: 0 | ER115: 0 | ES115: 0 | ET115: 0 | EU115: 0 | EV115: 0 | EW115: 0 | EX115: 0 | EY115: 0 | EZ115: 0 | FA115: 0 | FB115: 0 | FC115: 0 | FD115: 0 | FE115: 239548 | FF115: -7.7 | FG115: 8.317445078 | FH115: 8.168397201 | FI115: 5.702240761 | FJ115: 7.3 | FK115: 542193 | FL115: 0 | FM115: 0 | FN115: 225774 | FO115: 0 | FP115: 24660 | FQ115: 193 | FR115: 31888 | FS115: 65975 | FT115: 436156 | FU115: 37711 | FV115: 550154 | FW115: 2550079 | FX115: 97757 | FY115: 0 | FZ115: 0 | GA115: 0 | GB115: 0 | GC115: 0 | GD115: 0 | GE115: 0 | GF115: 0 | GG115: 5944 | GH115: 18716 | GI115: 523052 | GJ115: 0 | GK115: 0 | GL115: 257399 | GM115: 0 | GN115: 24861 | GO115: 407 | GP115: 51180 | GQ115: 47591 | GR115: 451636 | GS115: 42480 | GT115: 579449 | GU115: 2542565 | GV115: 25247 | GW115: 0 | GX115: 0 | GY115: 0 | GZ115: 0 | HA115: 0 | HB115: 0 | HC115: 0 | HD115: 0 | HE115: 0 | HF115: 24861 | HG115: 512754 | HH115: 0 | HI115: 0 | HJ115: 268831 | HK115: 0 | HL115: 3558 | HM115: 963 | HN115: 8449 | HO115: 45527 | HP115: 548598 | HQ115: 42536 | HR115: 579144 | HS115: 2518837 | HT115: 11322 | HU115: 0 | HV115: 0 | HW115: 0 | HX115: 0 | HY115: 0 | HZ115: 0 | IA115: 0 | IB115: 0 | IC115: 0 | ID115: 3558
A116: Ver.05.00 | B116: 015113 | C116: 北海道 | D116: 猿払村 | E116: 5 | F116: - | G116: - | H116: 10.1 | I116: 27.6 | J116: 3041157 | K116: 12513 | L116: 一般会計 | M116: 103168 | AR116: 103168 | AS116: -3.39 | AT116: ① | AU116: 国民健康保険特別会計（事業勘定） | AV116: 355 | AW116: ② | AX116: 介護保険特別会計（保険事業勘定） | AY116: 18352 | AZ116: ③ | BA116: 後期高齢者医療特別会計 | BB116: 1131 | BC116: ⑥ | BD116: 介護保険特別会計（介護サービス事業勘定） | BE116: 4608 | BF116: 0 | BI116: 0 | BL116: 0 | BO116: 0 | BR116: 0 | BU116: 0 | BX116: 0 | CA116: 0 | CD116: 0 | CG116: 国民健康保険病院事業会計 | CH116: 323839 | CI116: 簡易水道事業会計 | CJ116: 16604 | CK116: 下水道事業会計 | CL116: 11970 | CM116: 0 | CN116: 0 | CO116: 0 | CP116: 0 | CQ116: 0 | CR116: 0 | CS116: 0 | CT116: 0 | CU116: 0 | CV116: 0 | CW116: 0 | CX116: 0 | CY116: 0 | CZ116: 0 | DA116: 0 | DB116: 0 | DC116: 0 | DD116: 0 | DE116: 0 | DF116: 0 | DG116: 0 | DH116: 0 | DI116: 0 | DJ116: 0 | DK116: 0 | DL116: 0 | DM116: 0 | DN116: 0 | DO116: 0 | DP116: 0 | DQ116: 0 | DR116: 0 | DS116: 0 | DT116: 0 | DU116: 0 | DV116: 0 | DW116: 0 | DX116: 0 | DY116: 0 | DZ116: 0 | EA116: 0 | EB116: 0 | EC116: 0 | ED116: 0 | EE116: 0 | EF116: 0 | EG116: 0 | EH116: 0 | EI116: 0 | EJ116: 0 | EK116: 0 | EL116: 0 | EM116: 0 | EN116: 0 | EO116: 0 | EP116: 0 | EQ116: 0 | ER116: 0 | ES116: 0 | ET116: 0 | EU116: 0 | EV116: 0 | EW116: 0 | EX116: 0 | EY116: 0 | EZ116: 0 | FA116: 0 | FB116: 0 | FC116: 0 | FD116: 0 | FE116: 480027 | FF116: -15.78 | FG116: 9.35069428 | FH116: 10.41199051 | FI116: 10.58779643 | FJ116: 10.1 | FK116: 528619 | FL116: 0 | FM116: 0 | FN116: 143800 | FO116: 12568 | FP116: 50094 | FQ116: 9 | FR116: 48641 | FS116: 37589 | FT116: 398212 | FU116: 11177 | FV116: 701116 | FW116: 2196626 | FX116: 110233 | FY116: 0 | FZ116: 0 | GA116: 0 | GB116: 0 | GC116: 0 | GD116: 0 | GE116: 0 | GF116: 0 | GG116: 50094 | GH116: 0 | GI116: 530257 | GJ116: 0 | GK116: 0 | GL116: 157267 | GM116: 12569 | GN116: 49504 | GO116: 52 | GP116: 49682 | GQ116: 32698 | GR116: 403673 | GS116: 10829 | GT116: 630844 | GU116: 2213645 | GV116: 30364 | GW116: 0 | GX116: 0 | GY116: 0 | GZ116: 0 | HA116: 0 | HB116: 0 | HC116: 0 | HD116: 0 | HE116: 49504 | HF116: 0 | HG116: 582795 | HH116: 0 | HI116: 0 | HJ116: 161283 | HK116: 0 | HL116: 56864 | HM116: 214 | HN116: 46641 | HO116: 31518 | HP116: 441367 | HQ116: 10856 | HR116: 916355 | HS116: 2112289 | HT116: 12513 | HU116: 0 | HV116: 0 | HW116: 0 | HX116: 0 | HY116: 0 | HZ116: 0 | IA116: 0 | IB116: 0 | IC116: 56864 | ID116: 0
A117: Ver.05.00 | B117: 015121 | C117: 北海道 | D117: 浜頓別町 | E117: 5 | F117: - | G117: - | H117: 9.8 | I117: 4.9 | J117: 3157022 | K117: 12209 | L117: 一般会計 | M117: 143522 | AR117: 143522 | AS117: -4.54 | AT117: ① | AU117: 浜頓別町国民健康保険特別会計事業勘定 | AV117: 8369 | AW117: ② | AX117: 浜頓別町介護保険特別会計 | AY117: 5155 | AZ117: ③ | BA117: 浜頓別町後期高齢者医療特別会計 | BB117: 0 | BC117: 0 | BF117: 0 | BI117: 0 | BL117: 0 | BO117: 0 | BR117: 0 | BU117: 0 | BX117: 0 | CA117: 0 | CD117: 0 | CG117: 浜頓別町国民健康保険病院事業会計 | CH117: 701449 | CI117: 0 | CJ117: 0 | CK117: 0 | CL117: 0 | CM117: 0 | CN117: 0 | CO117: 0 | CP117: 0 | CQ117: 0 | CR117: 0 | CS117: 0 | CT117: 0 | CU117: 0 | CV117: 0 | CW117: 0 | CX117: 0 | CY117: 0 | CZ117: 0 | DA117: 0 | DB117: 0 | DC117: 0 | DD117: 0 | DE117: 0 | DF117: 0 | DG117: 0 | DH117: 0 | DI117: 0 | DJ117: 0 | DK117: 0 | DL117: 0 | DM117: 0 | DN117: 0 | DO117: 0 | DP117: 0 | DQ117: 0 | DR117: 0 | DS117: 浜頓別町簡易水道事業特別会計 | DT117: 7281 | DU117: 浜頓別町下水道事業特別会計 | DV117: 59421 | DW117: 浜頓別町農業集落排水事業特別会計 | DX117: 4221 | DY117: 0 | DZ117: 0 | EA117: 0 | EB117: 0 | EC117: 0 | ED117: 0 | EE117: 0 | EF117: 0 | EG117: 0 | EH117: 0 | EI117: 0 | EJ117: 0 | EK117: 0 | EL117: 0 | EM117: 0 | EN117: 0 | EO117: 0 | EP117: 0 | EQ117: 0 | ER117: 0 | ES117: 0 | ET117: 0 | EU117: 0 | EV117: 0 | EW117: 0 | EX117: 0 | EY117: 0 | EZ117: 0 | FA117: 0 | FB117: 0 | FC117: 0 | FD117: 0 | FE117: 929418 | FF117: -29.43 | FG117: 7.976207978 | FH117: 10.14768555 | FI117: 11.38097641 | FJ117: 9.8 | FK117: 537328 | FL117: 0 | FM117: 0 | FN117: 215945 | FO117: 0 | FP117: 0 | FQ117: 0 | FR117: 55317 | FS117: 81476 | FT117: 370743 | FU117: 31970 | FV117: 699138 | FW117: 2363609 | FX117: 101500 | FY117: 0 | FZ117: 0 | GA117: 0 | GB117: 0 | GC117: 0 | GD117: 0 | GE117: 0 | GF117: 0 | GG117: 0 | GH117: 0 | GI117: 563553 | GJ117: 0 | GK117: 0 | GL117: 223667 | GM117: 0 | GN117: 0 | GO117: 0 | GP117: 56092 | GQ117: 75099 | GR117: 363465 | GS117: 29997 | GT117: 683985 | GU117: 2345606 | GV117: 26427 | GW117: 0 | GX117: 0 | GY117: 0 | GZ117: 0 | HA117: 0 | HB117: 0 | HC117: 0 | HD117: 0 | HE117: 0 | HF117: 0 | HG117: 692126 | HH117: 0 | HI117: 0 | HJ117: 201038 | HK117: 0 | HL117: 0 | HM117: 0 | HN117: 55799 | HO117: 62244 | HP117: 448613 | HQ117: 28604 | HR117: 746098 | HS117: 2398715 | HT117: 12209 | HU117: 0 | HV117: 0 | HW117: 0 | HX117: 0 | HY117: 0 | HZ117: 0 | IA117: 0 | IB117: 0 | IC117: 0 | ID117: 0
A118: Ver.05.00 | B118: 015130 | C118: 北海道 | D118: 中頓別町 | E118: 5 | F118: - | G118: - | H118: -0.3 | I118: - | J118: 2331504 | K118: 7981 | L118: 一般会計 | M118: 142072 | N118: 自動車学校事業特別会計 | O118: 170 | AR118: 142242 | AS118: -6.1 | AT118: ① | AU118: 中頓別町国民健康保険事業特別会計 | AV118: 19820 | AW118: ② | AX118: 中頓別町介護保険事業特別会計（保険事業勘定） | AY118: 3171 | AZ118: ③ | BA118: 中頓別町後期高齢者医療事業特別会計 | BB118: 110 | BC118: ⑥ | BD118: 中頓別町介護保険事業特別会計（介護サービス事業勘定） | BE118: 113 | BF118: 0 | BI118: 0 | BL118: 0 | BO118: 0 | BR118: 0 | BU118: 0 | BX118: 0 | CA118: 0 | CD118: 0 | CG118: 中頓別町国民健康保険病院事業会計 | CH118: 449704 | CI118: 0 | CJ118: 0 | CK118: 0 | CL118: 0 | CM118: 0 | CN118: 0 | CO118: 0 | CP118: 0 | CQ118: 0 | CR118: 0 | CS118: 0 | CT118: 0 | CU118: 0 | CV118: 0 | CW118: 0 | CX118: 0 | CY118: 0 | CZ118: 0 | DA118: 0 | DB118: 0 | DC118: 0 | DD118: 0 | DE118: 0 | DF118: 0 | DG118: 0 | DH118: 0 | DI118: 0 | DJ118: 0 | DK118: 0 | DL118: 0 | DM118: 0 | DN118: 0 | DO118: 0 | DP118: 0 | DQ118: 0 | DR118: 0 | DS118: 中頓別町水道事業特別会計 | DT118: 33318 | DU118: 中頓別町下水道事業特別会計 | DV118: 49866 | DW118: 0 | DX118: 0 | DY118: 0 | DZ118: 0 | EA118: 0 | EB118: 0 | EC118: 0 | ED118: 0 | EE118: 0 | EF118: 0 | EG118: 0 | EH118: 0 | EI118: 0 | EJ118: 0 | EK118: 0 | EL118: 0 | EM118: 0 | EN118: 0 | EO118: 0 | EP118: 0 | EQ118: 0 | ER118: 0 | ES118: 0 | ET118: 0 | EU118: 0 | EV118: 0 | EW118: 0 | EX118: 0 | EY118: 0 | EZ118: 0 | FA118: 0 | FB118: 0 | FC118: 0 | FD118: 0 | FE118: 698344 | FF118: -29.95 | FG118: -0.6752544873 | FH118: -0.726001149 | FI118: 0.3901127389 | FJ118: -0.3 | FK118: 431339 | FL118: 0 | FM118: 0 | FN118: 95857 | FO118: 0 | FP118: 0 | FQ118: 0 | FR118: 132136 | FS118: 41682 | FT118: 312988 | FU118: 53649 | FV118: 269786 | FW118: 2029074 | FX118: 73015 | FY118: 0 | FZ118: 0 | GA118: 0 | GB118: 0 | GC118: 0 | GD118: 0 | GE118: 0 | GF118: 0 | GG118: 0 | GH118: 0 | GI118: 492279 | GJ118: 0 | GK118: 0 | GL118: 96193 | GM118: 0 | GN118: 0 | GO118: 0 | GP118: 157643 | GQ118: 37190 | GR118: 353852 | GS118: 53662 | GT118: 288454 | GU118: 2048385 | GV118: 19019 | GW118: 0 | GX118: 0 | GY118: 0 | GZ118: 0 | HA118: 0 | HB118: 0 | HC118: 0 | HD118: 0 | HE118: 0 | HF118: 0 | HG118: 509337 | HH118: 0 | HI118: 0 | HJ118: 111828 | HK118: 0 | HL118: 0 | HM118: 0 | HN118: 158977 | HO118: 33882 | HP118: 374042 | HQ118: 46943 | HR118: 287266 | HS118: 2036257 | HT118: 7981 | HU118: 0 | HV118: 0 | HW118: 0 | HX118: 0 | HY118: 0 | HZ118: 0 | IA118: 0 | IB118: 0 | IC118: 0 | ID118: 0
A119: Ver.05.00 | B119: 015148 | C119: 北海道 | D119: 枝幸町 | E119: 5 | F119: - | G119: - | H119: 9.5 | I119: - | J119: 6773181 | K119: 25089 | L119: 一般会計 | M119: 116201 | AR119: 116201 | AS119: -1.71 | AT119: ① | AU119: 国民健康保険事業特別会計 | AV119: 3940 | AW119: ② | AX119: 介護保険事業特別会計 | AY119: 17552 | AZ119: ③ | BA119: 後期高齢者医療事業特別会計 | BB119: 40 | BC119: 0 | BF119: 0 | BI119: 0 | BL119: 0 | BO119: 0 | BR119: 0 | BU119: 0 | BX119: 0 | CA119: 0 | CD119: 0 | CG119: 枝幸町水道事業会計 | CH119: 634252 | CI119: 枝幸町国民健康保険病院事業会計 | CJ119: 628693 | CK119: 枝幸町下水道事業会計 | CL119: 193145 | CM119: 0 | CN119: 0 | CO119: 0 | CP119: 0 | CQ119: 0 | CR119: 0 | CS119: 0 | CT119: 0 | CU119: 0 | CV119: 0 | CW119: 0 | CX119: 0 | CY119: 0 | CZ119: 0 | DA119: 0 | DB119: 0 | DC119: 0 | DD119: 0 | DE119: 0 | DF119: 0 | DG119: 0 | DH119: 0 | DI119: 0 | DJ119: 0 | DK119: 0 | DL119: 0 | DM119: 0 | DN119: 0 | DO119: 0 | DP119: 0 | DQ119: 0 | DR119: 0 | DS119: 枝幸町簡易水道事業特別会計 | DT119: 38149 | DU119: 港湾整備事業特別会計 | DV119: 859 | DW119: 0 | DX119: 0 | DY119: 0 | DZ119: 0 | EA119: 0 | EB119: 0 | EC119: 0 | ED119: 0 | EE119: 0 | EF119: 0 | EG119: 0 | EH119: 0 | EI119: 0 | EJ119: 0 | EK119: 0 | EL119: 0 | EM119: 0 | EN119: 0 | EO119: 0 | EP119: 0 | EQ119: 0 | ER119: 0 | ES119: 0 | ET119: 0 | EU119: 0 | EV119: 0 | EW119: 臨港用地造成事業特別会計 | EX119: 7182 | EY119: 0 | EZ119: 0 | FA119: 0 | FB119: 0 | FC119: 0 | FD119: 0 | FE119: 1640013 | FF119: -24.21 | FG119: 9.219627496 | FH119: 10.46816232 | FI119: 9.078112461 | FJ119: 9.5 | FK119: 1598370 | FL119: 0 | FM119: 0 | FN119: 516724 | FO119: 0 | FP119: 3324 | FQ119: 0 | FR119: 99980 | FS119: 125028 | FT119: 1293133 | FU119: 91997 | FV119: 1563349 | FW119: 5233812 | FX119: 226018 | FY119: 0 | FZ119: 0 | GA119: 0 | GB119: 0 | GC119: 0 | GD119: 0 | GE119: 0 | GF119: 0 | GG119: 0 | GH119: 3324 | GI119: 1585013 | GJ119: 0 | GK119: 0 | GL119: 547739 | GM119: 0 | GN119: 4492 | GO119: 0 | GP119: 95483 | GQ119: 98704 | GR119: 1289529 | GS119: 93235 | GT119: 1576596 | GU119: 5198441 | GV119: 58784 | GW119: 0 | GX119: 0 | GY119: 0 | GZ119: 0 | HA119: 0 | HB119: 0 | HC119: 0 | HD119: 0 | HE119: 0 | HF119: 4492 | HG119: 1354556 | HH119: 0 | HI119: 0 | HJ119: 481978 | HK119: 0 | HL119: 4269 | HM119: 0 | HN119: 84499 | HO119: 78965 | HP119: 1082788 | HQ119: 93640 | HR119: 1822071 | HS119: 4926021 | HT119: 25089 | HU119: 0 | HV119: 0 | HW119: 0 | HX119: 0 | HY119: 0 | HZ119: 0 | IA119: 0 | IB119: 0 | IC119: 0 | ID119: 4269
A120: Ver.05.00 | B120: 015164 | C120: 北海道 | D120: 豊富町 | E120: 5 | F120: - | G120: - | H120: 10.8 | I120: - | J120: 3496815 | K120: 13750 | L120: 一般会計 | M120: 399781 | AR120: 399781 | AS120: -11.43 | AT120: ① | AU120: 国民健康保険事業特別会計 | AV120: 42429 | AW120: ① | AX120: 豊富町国民健康保険診療所直診勘定特別会計 | AY120: 29178 | AZ120: ② | BA120: 介護保険事業特別会計 | BB120: 10222 | BC120: ③ | BD120: 後期高齢者医療事業特別会計 | BE120: 2553 | BF120: ⑥ | BG120: 豊富町介護サービス事業特別会計 | BH120: 698 | BI120: 0 | BL120: 0 | BO120: 0 | BR120: 0 | BU120: 0 | BX120: 0 | CA120: 0 | CD120: 0 | CG120: 豊富町簡易水道事業特別会計 | CH120: 85447 | CI120: 豊富町公共下水道事業会計 | CJ120: 89811 | CK120: 豊富町ガス事業会計 | CL120: 44917 | CM120: 0 | CN120: 0 | CO120: 0 | CP120: 0 | CQ120: 0 | CR120: 0 | CS120: 0 | CT120: 0 | CU120: 0 | CV120: 0 | CW120: 0 | CX120: 0 | CY120: 0 | CZ120: 0 | DA120: 0 | DB120: 0 | DC120: 0 | DD120: 0 | DE120: 0 | DF120: 0 | DG120: 0 | DH120: 0 | DI120: 0 | DJ120: 0 | DK120: 0 | DL120: 0 | DM120: 0 | DN120: 0 | DO120: 0 | DP120: 0 | DQ120: 0 | DR120: 0 | DS120: 0 | DT120: 0 | DU120: 0 | DV120: 0 | DW120: 0 | DX120: 0 | DY120: 0 | DZ120: 0 | EA120: 0 | EB120: 0 | EC120: 0 | ED120: 0 | EE120: 0 | EF120: 0 | EG120: 0 | EH120: 0 | EI120: 0 | EJ120: 0 | EK120: 0 | EL120: 0 | EM120: 0 | EN120: 0 | EO120: 0 | EP120: 0 | EQ120: 0 | ER120: 0 | ES120: 0 | ET120: 0 | EU120: 0 | EV120: 0 | EW120: 0 | EX120: 0 | EY120: 0 | EZ120: 0 | FA120: 0 | FB120: 0 | FC120: 0 | FD120: 0 | FE120: 705036 | FF120: -20.16 | FG120: 10.594744 | FH120: 11.24353111 | FI120: 10.7302617 | FJ120: 10.8 | FK120: 749623 | FL120: 0 | FM120: 0 | FN120: 131621 | FO120: 0 | FP120: 21866 | FQ120: 0 | FR120: 53090 | FS120: 73481 | FT120: 429874 | FU120: 29516 | FV120: 742007 | FW120: 2672339 | FX120: 111981 | FY120: 0 | FZ120: 0 | GA120: 0 | GB120: 0 | GC120: 0 | GD120: 0 | GE120: 0 | GF120: 0 | GG120: 21726 | GH120: 140 | GI120: 716745 | GJ120: 0 | GK120: 0 | GL120: 153024 | GM120: 0 | GN120: 22880 | GO120: 0 | GP120: 49214 | GQ120: 63951 | GR120: 418180 | GS120: 29285 | GT120: 784280 | GU120: 2651068 | GV120: 29046 | GW120: 0 | GX120: 0 | GY120: 0 | GZ120: 0 | HA120: 0 | HB120: 0 | HC120: 0 | HD120: 0 | HE120: 22766 | HF120: 114 | HG120: 692774 | HH120: 0 | HI120: 0 | HJ120: 145180 | HK120: 0 | HL120: 24341 | HM120: 0 | HN120: 43407 | HO120: 59767 | HP120: 412419 | HQ120: 24814 | HR120: 782109 | HS120: 2700956 | HT120: 13750 | HU120: 0 | HV120: 0 | HW120: 0 | HX120: 0 | HY120: 0 | HZ120: 0 | IA120: 0 | IB120: 0 | IC120: 24253 | ID120: 88
A121: Ver.05.00 | B121: 015172 | C121: 北海道 | D121: 礼文町 | E121: 5 | F121: - | G121: - | H121: 12.3 | I121: - | J121: 2622144 | K121: 9420 | L121: 一般会計 | M121: 58024 | AR121: 58024 | AS121: -2.21 | AT121: ① | AU121: 国民健康保険事業 | AV121: 2339 | AW121: ① | AX121: 国民健康保険施設(直診) | AY121: 26034 | AZ121: ② | BA121: 介護保険事業 | BB121: 14912 | BC121: ③ | BD121: 後期高齢者医療 | BE121: 6711 | BF121: 0 | BI121: 0 | BL121: 0 | BO121: 0 | BR121: 0 | BU121: 0 | BX121: 0 | CA121: 0 | CD121: 0 | CG121: 0 | CH121: 0 | CI121: 0 | CJ121: 0 | CK121: 0 | CL121: 0 | CM121: 0 | CN121: 0 | CO121: 0 | CP121: 0 | CQ121: 0 | CR121: 0 | CS121: 0 | CT121: 0 | CU121: 0 | CV121: 0 | CW121: 0 | CX121: 0 | CY121: 0 | CZ121: 0 | DA121: 0 | DB121: 0 | DC121: 0 | DD121: 0 | DE121: 0 | DF121: 0 | DG121: 0 | DH121: 0 | DI121: 0 | DJ121: 0 | DK121: 0 | DL121: 0 | DM121: 0 | DN121: 0 | DO121: 0 | DP121: 0 | DQ121: 0 | DR121: 0 | DS121: 簡易水道事業特別会計 | DT121: 3690 | DU121: 下水道事業特別会計 | DV121: 3501 | DW121: 港湾整備事業特別会計 | DX121: 1229 | DY121: 温泉事業特別会計 | DZ121: 4004 | EA121: 0 | EB121: 0 | EC121: 0 | ED121: 0 | EE121: 0 | EF121: 0 | EG121: 0 | EH121: 0 | EI121: 0 | EJ121: 0 | EK121: 0 | EL121: 0 | EM121: 0 | EN121: 0 | EO121: 0 | EP121: 0 | EQ121: 0 | ER121: 0 | ES121: 0 | ET121: 0 | EU121: 0 | EV121: 0 | EW121: 0 | EX121: 0 | EY121: 0 | EZ121: 0 | FA121: 0 | FB121: 0 | FC121: 0 | FD121: 0 | FE121: 120444 | FF121: -4.59 | FG121: 14.25213765 | FH121: 10.23535682 | FI121: 12.41257281 | FJ121: 12.3 | FK121: 760687 | FL121: 0 | FM121: 0 | FN121: 123558 | FO121: 0 | FP121: 34773 | FQ121: 216 | FR121: 16238 | FS121: 56715 | FT121: 546787 | FU121: 4187 | FV121: 374166 | FW121: 2225545 | FX121: 79997 | FY121: 0 | FZ121: 0 | GA121: 0 | GB121: 0 | GC121: 0 | GD121: 0 | GE121: 0 | GF121: 0 | GG121: 34773 | GH121: 0 | GI121: 610808 | GJ121: 0 | GK121: 0 | GL121: 130527 | GM121: 0 | GN121: 32097 | GO121: 614 | GP121: 8062 | GQ121: 57589 | GR121: 498656 | GS121: 4255 | GT121: 368845 | GU121: 2179103 | GV121: 20142 | GW121: 0 | GX121: 0 | GY121: 0 | GZ121: 0 | HA121: 0 | HB121: 0 | HC121: 0 | HD121: 0 | HE121: 32097 | HF121: 0 | HG121: 736555 | HH121: 0 | HI121: 0 | HJ121: 115903 | HK121: 0 | HL121: 29259 | HM121: 728 | HN121: 735 | HO121: 54516 | HP121: 576323 | HQ121: 4223 | HR121: 377111 | HS121: 2235613 | HT121: 9420 | HU121: 0 | HV121: 0 | HW121: 0 | HX121: 0 | HY121: 0 | HZ121: 0 | IA121: 0 | IB121: 0 | IC121: 29259 | ID121: 0
A122: Ver.05.00 | B122: 015181 | C122: 北海道 | D122: 利尻町 | E122: 5 | F122: - | G122: - | H122: 13.7 | I122: 62.8 | J122: 2255263 | K122: 7661 | L122: 一般会計 | M122: 108170 | N122: 利尻町し尿前処理事業特別会計 | O122: 0 | AR122: 108170 | AS122: -4.79 | AT122: ① | AU122: 利尻町国民健康保険事業特別会計 | AV122: 9709 | AW122: ② | AX122: 利尻町介護保険特別会計（介護保険事業勘定） | AY122: 9484 | AZ122: ③ | BA122: 利尻町後期高齢者医療特別会計 | BB122: 75 | BC122: ⑥ | BD122: 利尻町特別養護老人ホーム特別会計 | BE122: 4740 | BF122: ⑥ | BG122: 利尻町介護保険特別会計（介護サービス事業勘定） | BH122: 0 | BI122: 0 | BL122: 0 | BO122: 0 | BR122: 0 | BU122: 0 | BX122: 0 | CA122: 0 | CD122: 0 | CG122: 利尻町砕石事業会計 | CH122: 209008 | CI122: 0 | CJ122: 0 | CK122: 0 | CL122: 0 | CM122: 0 | CN122: 0 | CO122: 0 | CP122: 0 | CQ122: 0 | CR122: 0 | CS122: 0 | CT122: 0 | CU122: 0 | CV122: 0 | CW122: 0 | CX122: 0 | CY122: 0 | CZ122: 0 | DA122: 0 | DB122: 0 | DC122: 0 | DD122: 0 | DE122: 0 | DF122: 0 | DG122: 0 | DH122: 0 | DI122: 0 | DJ122: 0 | DK122: 0 | DL122: 0 | DM122: 0 | DN122: 0 | DO122: 0 | DP122: 0 | DQ122: 0 | DR122: 0 | DS122: 利尻町簡易水道特別会計 | DT122: 4868 | DU122: 利尻町下水道事業特別会計 | DV122: -27927 | DW122: 利尻町漁業集落排水施設事業特別会計 | DX122: -48162 | DY122: 利尻町宿泊施設特別会計 | DZ122: 0 | EA122: 利尻町港湾事業特別会計 | EB122: 1019 | EC122: 0 | ED122: 0 | EE122: 0 | EF122: 0 | EG122: 0 | EH122: 0 | EI122: 0 | EJ122: 0 | EK122: 0 | EL122: 0 | EM122: 0 | EN122: 0 | EO122: 0 | EP122: 0 | EQ122: 0 | ER122: 0 | ES122: 0 | ET122: 0 | EU122: 0 | EV122: 0 | EW122: 0 | EX122: 0 | EY122: 0 | EZ122: 0 | FA122: 0 | FB122: 0 | FC122: 0 | FD122: 0 | FE122: 270984 | FF122: -12.01 | FG122: 13.46669851 | FH122: 13.42185647 | FI122: 14.27722608 | FJ122: 13.7 | FK122: 596823 | FL122: 0 | FM122: 0 | FN122: 109147 | FO122: 20603 | FP122: 0 | FQ122: 72 | FR122: 12407 | FS122: 44395 | FT122: 409761 | FU122: 4121 | FV122: 282872 | FW122: 2008382 | FX122: 67719 | FY122: 0 | FZ122: 0 | GA122: 0 | GB122: 0 | GC122: 0 | GD122: 0 | GE122: 0 | GF122: 0 | GG122: 0 | GH122: 0 | GI122: 586459 | GJ122: 0 | GK122: 0 | GL122: 105420 | GM122: 19755 | GN122: 0 | GO122: 91 | GP122: 13120 | GQ122: 46538 | GR122: 401242 | GS122: 4453 | GT122: 290759 | GU122: 1980070 | GV122: 17007 | GW122: 0 | GX122: 0 | GY122: 0 | GZ122: 0 | HA122: 0 | HB122: 0 | HC122: 0 | HD122: 0 | HE122: 0 | HF122: 0 | HG122: 588139 | HH122: 0 | HI122: 0 | HJ122: 96131 | HK122: 17961 | HL122: 0 | HM122: 384 | HN122: 11262 | HO122: 45034 | HP122: 381692 | HQ122: 4156 | HR122: 290961 | HS122: 1956641 | HT122: 7661 | HU122: 0 | HV122: 0 | HW122: 0 | HX122: 0 | HY122: 0 | HZ122: 0 | IA122: 0 | IB122: 0 | IC122: 0 | ID122: 0
A123: Ver.05.00 | B123: 015199 | C123: 北海道 | D123: 利尻富士町 | E123: 5 | F123: - | G123: - | H123: 13.7 | I123: - | J123: 2502888 | K123: 8703 | L123: 一般会計 | M123: 168794 | N123: 利尻富士町歯科施設特別会計 | O123: 660 | AR123: 169454 | AS123: -6.77 | AT123: ① | AU123: 利尻富士町国民健康保険事業特別会計 | AV123: 8761 | AW123: ③ | AX123: 利尻富士町後期高齢者医療特別会計 | AY123: 119 | AZ123: ② | BA123: 利尻富士町介護保険事業特別会計 | BB123: 23763 | BC123: ⑥ | BD123: 利尻富士町介護サービス特別会計 | BE123: 4760 | BF123: ① | BG123: 利尻富士町国民健康保険施設特別会計 | BH123: 2093 | BI123: 0 | BL123: 0 | BO123: 0 | BR123: 0 | BU123: 0 | BX123: 0 | CA123: 0 | CD123: 0 | CG123: 0 | CH123: 0 | CI123: 0 | CJ123: 0 | CK123: 0 | CL123: 0 | CM123: 0 | CN123: 0 | CO123: 0 | CP123: 0 | CQ123: 0 | CR123: 0 | CS123: 0 | CT123: 0 | CU123: 0 | CV123: 0 | CW123: 0 | CX123: 0 | CY123: 0 | CZ123: 0 | DA123: 0 | DB123: 0 | DC123: 0 | DD123: 0 | DE123: 0 | DF123: 0 | DG123: 0 | DH123: 0 | DI123: 0 | DJ123: 0 | DK123: 0 | DL123: 0 | DM123: 0 | DN123: 0 | DO123: 0 | DP123: 0 | DQ123: 0 | DR123: 0 | DS123: 利尻富士町簡易水道事業特別会計 | DT123: 7186 | DU123: 利尻富士町下水道事業特別会計 | DV123: 2870 | DW123: 利尻富士町港湾整備事業特別会計 | DX123: 188 | DY123: 利尻富士町温泉事業特別会計 | DZ123: 1483 | EA123: 0 | EB123: 0 | EC123: 0 | ED123: 0 | EE123: 0 | EF123: 0 | EG123: 0 | EH123: 0 | EI123: 0 | EJ123: 0 | EK123: 0 | EL123: 0 | EM123: 0 | EN123: 0 | EO123: 0 | EP123: 0 | EQ123: 0 | ER123: 0 | ES123: 0 | ET123: 0 | EU123: 0 | EV123: 0 | EW123: 0 | EX123: 0 | EY123: 0 | EZ123: 0 | FA123: 0 | FB123: 0 | FC123: 0 | FD123: 0 | FE123: 220677 | FF123: -8.81 | FG123: 15.16538 | FH123: 13.8735851 | FI123: 12.16692645 | FJ123: 13.7 | FK123: 784462 | FL123: 0 | FM123: 0 | FN123: 123360 | FO123: 37721 | FP123: 11640 | FQ123: 441 | FR123: 106874 | FS123: 83842 | FT123: 455516 | FU123: 1051 | FV123: 347373 | FW123: 2164137 | FX123: 75277 | FY123: 0 | FZ123: 0 | GA123: 0 | GB123: 0 | GC123: 0 | GD123: 0 | GE123: 0 | GF123: 0 | GG123: 11570 | GH123: 70 | GI123: 718471 | GJ123: 0 | GK123: 0 | GL123: 136645 | GM123: 36438 | GN123: 10326 | GO123: 0 | GP123: 77522 | GQ123: 81763 | GR123: 469214 | GS123: 964 | GT123: 357340 | GU123: 2139115 | GV123: 19052 | GW123: 0 | GX123: 0 | GY123: 0 | GZ123: 0 | HA123: 0 | HB123: 0 | HC123: 0 | HD123: 0 | HE123: 10278 | HF123: 48 | HG123: 645881 | HH123: 0 | HI123: 0 | HJ123: 187921 | HK123: 36177 | HL123: 10297 | HM123: 337 | HN123: 86268 | HO123: 74002 | HP123: 482812 | HQ123: 858 | HR123: 351087 | HS123: 2143098 | HT123: 8703 | HU123: 0 | HV123: 0 | HW123: 0 | HX123: 0 | HY123: 0 | HZ123: 0 | IA123: 0 | IB123: 0 | IC123: 10268 | ID123: 29
A124: Ver.05.00 | B124: 015202 | C124: 北海道 | D124: 幌延町 | E124: 5 | F124: - | G124: - | H124: 4.3 | I124: - | J124: 2893663 | K124: 12395 | L124: 一般会計 | M124: 182996 | AR124: 182996 | AS124: -6.32 | AT124: ① | AU124: 国民健康保険特別会計 | AV124: 1010 | AW124: ① | AX124: 国民健康保険診療所特別会計 | AY124: 101 | AZ124: ② | BA124: 介護保険特別会計 | BB124: 14487 | BC124: ③ | BD124: 後期高齢者医療特別会計 | BE124: 237 | BF124: 0 | BI124: 0 | BL124: 0 | BO124: 0 | BR124: 0 | BU124: 0 | BX124: 0 | CA124: 0 | CD124: 0 | CG124: 簡易水道事業会計 | CH124: 58275 | CI124: 下水道事業会計 | CJ124: 19884 | CK124: 0 | CL124: 0 | CM124: 0 | CN124: 0 | CO124: 0 | CP124: 0 | CQ124: 0 | CR124: 0 | CS124: 0 | CT124: 0 | CU124: 0 | CV124: 0 | CW124: 0 | CX124: 0 | CY124: 0 | CZ124: 0 | DA124: 0 | DB124: 0 | DC124: 0 | DD124: 0 | DE124: 0 | DF124: 0 | DG124: 0 | DH124: 0 | DI124: 0 | DJ124: 0 | DK124: 0 | DL124: 0 | DM124: 0 | DN124: 0 | DO124: 0 | DP124: 0 | DQ124: 0 | DR124: 0 | DS124: 0 | DT124: 0 | DU124: 0 | DV124: 0 | DW124: 0 | DX124: 0 | DY124: 0 | DZ124: 0 | EA124: 0 | EB124: 0 | EC124: 0 | ED124: 0 | EE124: 0 | EF124: 0 | EG124: 0 | EH124: 0 | EI124: 0 | EJ124: 0 | EK124: 0 | EL124: 0 | EM124: 0 | EN124: 0 | EO124: 0 | EP124: 0 | EQ124: 0 | ER124: 0 | ES124: 0 | ET124: 0 | EU124: 0 | EV124: 0 | EW124: 0 | EX124: 0 | EY124: 0 | EZ124: 0 | FA124: 0 | FB124: 0 | FC124: 0 | FD124: 0 | FE124: 276990 | FF124: -9.57 | FG124: 4.661797555 | FH124: 3.627377984 | FI124: 4.623573529 | FJ124: 4.3 | FK124: 656219 | FL124: 0 | FM124: 0 | FN124: 56912 | FO124: 0 | FP124: 8379 | FQ124: 1 | FR124: 51396 | FS124: 52599 | FT124: 507489 | FU124: 0 | FV124: 729979 | FW124: 2087770 | FX124: 102523 | FY124: 0 | FZ124: 0 | GA124: 0 | GB124: 0 | GC124: 0 | GD124: 0 | GE124: 0 | GF124: 0 | GG124: 8088 | GH124: 291 | GI124: 562035 | GJ124: 0 | GK124: 0 | GL124: 56910 | GM124: 0 | GN124: 2026 | GO124: 1 | GP124: 45935 | GQ124: 50880 | GR124: 439339 | GS124: 0 | GT124: 731253 | GU124: 2071118 | GV124: 26121 | GW124: 0 | GX124: 0 | GY124: 0 | GZ124: 0 | HA124: 0 | HB124: 0 | HC124: 0 | HD124: 0 | HE124: 1761 | HF124: 265 | HG124: 616600 | HH124: 0 | HI124: 0 | HJ124: 64599 | HK124: 0 | HL124: 1226 | HM124: 2 | HN124: 29471 | HO124: 49452 | HP124: 494881 | HQ124: 0 | HR124: 702642 | HS124: 2178626 | HT124: 12395 | HU124: 0 | HV124: 0 | HW124: 0 | HX124: 0 | HY124: 0 | HZ124: 0 | IA124: 0 | IB124: 0 | IC124: 906 | ID124: 320
A125: Ver.05.00 | B125: 015431 | C125: 北海道 | D125: 美幌町 | E125: 5 | F125: - | G125: - | H125: 7.2 | I125: - | J125: 7089218 | K125: 38736 | L125: 一般会計 | M125: 115207 | AR125: 115207 | AS125: -1.62 | AT125: ① | AU125: 国民健康保険特別会計 | AV125: 20400 | AW125: ② | AX125: 介護保険特別会計 | AY125: 554 | AZ125: ③ | BA125: 後期高齢者医療特別会計 | BB125: 1381 | BC125: 0 | BF125: 0 | BI125: 0 | BL125: 0 | BO125: 0 | BR125: 0 | BU125: 0 | BX125: 0 | CA125: 0 | CD125: 0 | CG125: 水道事業会計 | CH125: 991189 | CI125: 病院事業会計 | CJ125: 436846 | CK125: 公共下水道事業会計 | CL125: 62464 | CM125: 個別排水処理事業会計 | CN125: 16323 | CO125: 0 | CP125: 0 | CQ125: 0 | CR125: 0 | CS125: 0 | CT125: 0 | CU125: 0 | CV125: 0 | CW125: 0 | CX125: 0 | CY125: 0 | CZ125: 0 | DA125: 0 | DB125: 0 | DC125: 0 | DD125: 0 | DE125: 0 | DF125: 0 | DG125: 0 | DH125: 0 | DI125: 0 | DJ125: 0 | DK125: 0 | DL125: 0 | DM125: 0 | DN125: 0 | DO125: 0 | DP125: 0 | DQ125: 0 | DR125: 0 | DS125: 0 | DT125: 0 | DU125: 0 | DV125: 0 | DW125: 0 | DX125: 0 | DY125: 0 | DZ125: 0 | EA125: 0 | EB125: 0 | EC125: 0 | ED125: 0 | EE125: 0 | EF125: 0 | EG125: 0 | EH125: 0 | EI125: 0 | EJ125: 0 | EK125: 0 | EL125: 0 | EM125: 0 | EN125: 0 | EO125: 0 | EP125: 0 | EQ125: 0 | ER125: 0 | ES125: 0 | ET125: 0 | EU125: 0 | EV125: 0 | EW125: 0 | EX125: 0 | EY125: 0 | EZ125: 0 | FA125: 0 | FB125: 0 | FC125: 0 | FD125: 0 | FE125: 1644364 | FF125: -23.19 | FG125: 5.937581241 | FH125: 9.05790592 | FI125: 6.881247497 | FJ125: 7.2 | FK125: 983389 | FL125: 0 | FM125: 0 | FN125: 507436 | FO125: 32664 | FP125: 52167 | FQ125: 0 | FR125: 175007 | FS125: 262776 | FT125: 698919 | FU125: 68956 | FV125: 2736545 | FW125: 4214513 | FX125: 311053 | FY125: 0 | FZ125: 0 | GA125: 0 | GB125: 0 | GC125: 0 | GD125: 0 | GE125: 0 | GF125: 0 | GG125: 51783 | GH125: 384 | GI125: 1106092 | GJ125: 0 | GK125: 0 | GL125: 550634 | GM125: 40930 | GN125: 52112 | GO125: 0 | GP125: 176010 | GQ125: 255399 | GR125: 710042 | GS125: 62300 | GT125: 2871660 | GU125: 4098765 | GV125: 85387 | GW125: 0 | GX125: 0 | GY125: 0 | GZ125: 0 | HA125: 0 | HB125: 0 | HC125: 0 | HD125: 0 | HE125: 51817 | HF125: 295 | HG125: 974170 | HH125: 0 | HI125: 0 | HJ125: 535285 | HK125: 35052 | HL125: 51962 | HM125: 0 | HN125: 171512 | HO125: 243633 | HP125: 692194 | HQ125: 70555 | HR125: 2924502 | HS125: 4125980 | HT125: 38736 | HU125: 0 | HV125: 0 | HW125: 0 | HX125: 0 | HY125: 0 | HZ125: 0 | IA125: 0 | IB125: 0 | IC125: 51663 | ID125: 299
... 151 more rows

Sheet Sheet2
B1: 総括表① | C1: 総括表① | D1: 総括表① | E1: 総括表① | F1: 総括表④ | G1: 総括表④ | H1: 総括表④ | I1: 総括表④ | J1: 総括表④ | K1: 総括表④ | L1: 総括表④ | M1: 総括表④ | N1: 総括表④ | O1: 総括表④ | P1: 総括表④ | Q1: 総括表④ | R1: 総括表④ | S1: 総括表④ | T1: 総括表④ | U1: 総括表④ | V1: 総括表④ | W1: 総括表④ | X1: 総括表④ | Y1: 総括表④ | Z1: 総括表④ | AA1: 総括表④ | AB1: ４①表 | AC1: ４①表 | AD1: ４①表 | AE1: ４①表 | AF1: ４①表 | AG1: ４①表 | AH1: ４①表 | AI1: ４①表 | AJ1: ４①表 | AK1: ４①表 | AL1: ４①表 | AM1: ４①表 | AN1: ４①表 | AO1: ４①表 | AP1: ４①表 | AQ1: ４①表 | AR1: ４①表 | AS1: ４①表 | AT1: ４①表 | AU1: ４①表 | AV1: ４①表 | AW1: ４①表 | AX1: ４①表 | AY1: ４①表 | AZ1: ４①表 | BA1: ４①表 | BB1: ４①表 | BC1: ４①表 | BD1: ４①表 | BE1: ４①表 | BF1: ４①表 | BG1: ４①表 | BH1: ４①表 | BI1: ４①表 | BJ1: ４①表 | BK1: ４①表 | BL1: ４①表 | BM1: ４①表 | BN1: ４①表 | BO1: ４①表 | BP1: ４①表 | BQ1: ４①表 | BR1: ４①表 | BS1: ４①表 | BT1: ４①表 | BU1: ４①表 | BV1: ４①表 | BW1: ４①表 | BX1: ４①表 | BY1: ４①表 | BZ1: ４①表 | CA1: ４①表 | CB1: ４①表 | CC1: ４①表 | CD1: ４①表 | CE1: ４①表 | CF1: ４①表 | CG1: ４①表 | CH1: ４①表 | CI1: ４①表 | CJ1: ４①表 | CK1: ４①表 | CL1: ４①表 | CM1: ４①表 | CN1: ４①表 | CO1: ４①表 | CP1: ４①表 | CQ1: ４①表 | CR1: ４①表 | CS1: ４①表 | CT1: ４①表 | CU1: ４①表 | CV1: ４①表 | CW1: ４①表 | CX1: ４①表 | CY1: ４①表 | CZ1: ４①表 | DA1: ４①表 | DB1: ４①表 | DC1: ４①表 | DD1: ４①表 | DE1: ４①表 | DF1: ４①表 | DG1: ４①表 | DH1: ４①表 | DI1: ４①表 | DJ1: ４①表 | DK1: ４①表 | DL1: ４①表 | DM1: ４①表 | DN1: ４①表 | DO1: ４①表 | DP1: ４①表 | DQ1: ４①表 | DR1: ４①表 | DS1: ４①表 | DT1: ４①表 | DU1: ４①表 | DV1: ４①表 | DW1: ４①表 | DX1: ４①表 | DY1: ４①表 | DZ1: ４①表 | EA1: ４①表 | EB1: ４①表 | EC1: ４①表 | ED1: ４①表 | EE1: ４①表 | EF1: ４①表 | EG1: ４①表 | EH1: ４①表 | EI1: ４①表 | EJ1: ４①表 | EK1: ４①表 | EL1: ４①表 | EM1: ４①表 | EN1: ４①表 | EO1: ４①表 | EP1: ４①表 | EQ1: ４①表 | ER1: ４①表 | ES1: ４①表 | ET1: ４①表 | EU1: ４①表 | EV1: ４①表 | EW1: ４①表 | EX1: ４①表 | EY1: ４①表 | EZ1: ４①表 | FA1: ４①表 | FB1: ４①表 | FC1: ４①表 | FD1: ４①表 | FE1: ４①表 | FF1: ４①表 | FG1: ４①表 | FH1: ４①表 | FI1: ４①表 | FJ1: ４①表 | FK1: ４①表 | FL1: ４①表 | FM1: ４①表 | FN1: ４①表 | FO1: ４①表 | FP1: ４①表 | FQ1: ４①表 | FR1: ４①表 | FS1: ４①表 | FT1: ４①表 | FU1: ４①表 | FV1: ４①表 | FW1: ４①表 | FX1: ４①表 | FY1: ４①表 | FZ1: ４①表 | GA1: ４①表 | GB1: ４①表 | GC1: ４①表 | GD1: ４①表 | GE1: ４①表 | GF1: ４①表 | GG1: ４①表 | GH1: ４①表 | GI1: ４①表 | GJ1: ４①表 | GK1: ４①表 | GL1: ４①表 | GM1: ４①表 | GN1: ４①表 | GO1: ４①表 | GP1: ４①表 | GQ1: ４①表 | GR1: ４①表 | GS1: ４①表 | GT1: ４①表 | GU1: ４①表 | GV1: ４①表 | GW1: ４①表 | GX1: ４①表 | GY1: ４①表 | GZ1: ４①表 | HA1: ４①表 | HB1: ４①表 | HC1: ４①表 | HD1: ４①表 | HE1: ４①表 | HF1: ４①表 | HG1: ４①表 | HH1: ４①表 | HI1: ４①表 | HJ1: ４①表 | HK1: ４①表 | HL1: ４①表 | HM1: ４①表 | HN1: ４①表 | HO1: ４①表 | HP1: ４①表 | HQ1: ４①表 | HR1: ４①表 | HS1: ４①表 | HT1: ４①表 | HU1: ４①表 | HV1: ４①表 | HW1: ４①表 | HX1: ４①表 | HY1: ４①表 | HZ1: ４①表 | IA1: ４①表 | IB1: ４①表 | IC1: ４①表 | ID1: ４①表 | IE1: ４①表 | IF1: ４①表 | IG1: ４①表 | IH1: ４①表 | II1: ４①表 | IJ1: ４①表 | IK1: ４①表 | IL1: ４①表 | IM1: ４①表 | IN1: ４①表 | IO1: ４①表 | IP1: ４①表 | IQ1: ４①表 | IR1: ４①表 | IS1: ４①表 | IT1: ４①表
A2: バージョン | F2: 将来負担額 | G2: 将来負担額 | H2: 将来負担額 | I2: 将来負担額 | J2: 将来負担額 | K2: 将来負担額 | L2: 将来負担額 | M2: 将来負担額 | N2: 将来負担額 | O2: 将来負担額 | P2: 将来負担額 | Q2: 将来負担額 | R2: 充当財源 | S2: 充当財源 | T2: 充当財源 | U2: 充当財源 | V2: A | W2: B | Y2: D | AB2: ① | AC2: ② | AD2: ③ | AE2: ④ | AF2: ⑤ | AG2: ⑥ | AH2: ⑦ | AI2: ⑧ | AJ2: ⑨ | AK2: ⑩ | AL2: 将来負担額 | AM2: 1 | AN2: 1 | AO2: 1 | AP2: 1 | AQ2: =AM2+1 -> 2 | AR2: =AN2+1 -> 2 | AS2: =AO2+1 -> 2 | AT2: =AP2+1 -> 2 | AU2: =AQ2+1 -> 3 | AV2: 3 | AW2: 3 | AX2: 3 | AY2: 4 | AZ2: 4 | BA2: 4 | BB2: 4 | BC2: 5 | BD2: 5 | BE2: 5 | BF2: 5 | BG2: 6 | BH2: 6 | BI2: 6 | BJ2: 6 | BK2: 7 | BL2: 7 | BM2: 7 | BN2: 7 | BO2: 8 | BP2: 8 | BQ2: 8 | BR2: 8 | BS2: 9 | BT2: 9 | BU2: 9 | BV2: 9 | BW2: 10 | BX2: 10 | BY2: 10 | BZ2: 10 | CA2: 11 | CB2: 11 | CC2: 11 | CD2: 11 | CE2: 12 | CF2: 12 | CG2: 12 | CH2: 12 | CI2: 13 | CJ2: 13 | CK2: 13 | CL2: 13 | CM2: 14 | CN2: 14 | CO2: 14 | CP2: 14 | CQ2: 15 | CR2: 15 | CS2: 15 | CT2: 15 | CU2: 16 | CV2: 16 | CW2: 16 | CX2: 16 | CY2: 17 | CZ2: 17 | DA2: 17 | DB2: 17 | DC2: 18 | DD2: 18 | DE2: 18 | DF2: 18 | DG2: =DC2+1 -> 19 | DH2: 19 | DI2: 19 | DJ2: 19 | DK2: 20 | DL2: 20 | DM2: 20 | DN2: 20 | DO2: 21 | DP2: 21 | DQ2: 21 | DR2: 21 | DS2: 22 | DT2: 22 | DU2: 22 | DV2: 22 | DW2: 23 | DX2: 23 | DY2: 23 | DZ2: 23 | EA2: 24 | EB2: 24 | EC2: 24 | ED2: 24 | EE2: 25 | EF2: 25 | EG2: 25 | EH2: 25 | EI2: 26 | EJ2: 26 | EK2: 26 | EL2: 26 | EM2: 27 | EN2: 27 | EO2: 27 | EP2: 27 | EQ2: 28 | ER2: 28 | ES2: 28 | ET2: 28 | EU2: 29 | EV2: 29 | EW2: 29 | EX2: 29 | EY2: 30 | EZ2: 30 | FA2: 30 | FB2: 30 | FC2: 31 | FD2: 31 | FE2: 31 | FF2: 31 | FG2: 32 | FH2: 32 | FI2: 32 | FJ2: 32 | FK2: 33 | FL2: 33 | FM2: 33 | FN2: 33 | FO2: 34 | FP2: 34 | FQ2: 34 | FR2: 34 | FS2: =FO2+1 -> 35 | FT2: 35 | FU2: 35 | FV2: 35 | FW2: 36 | FX2: 36 | FY2: 36 | FZ2: 36 | GA2: 37 | GB2: 37 | GC2: 37 | GD2: 37 | GE2: 38 | GF2: 38 | GG2: 38 | GH2: 38 | GI2: 39 | GJ2: 39 | GK2: 39 | GL2: 39 | GM2: 40 | GN2: 40 | GO2: 40 | GP2: 40 | GQ2: 41 | GR2: 41 | GS2: 41 | GT2: 41 | GU2: 42 | GV2: 42 | GW2: 42 | GX2: 42 | GY2: 43 | GZ2: 43 | HA2: 43 | HB2: 43 | HC2: 44 | HD2: 44 | HE2: 44 | HF2: 44 | HG2: 45 | HH2: 45 | HI2: 45 | HJ2: 45 | HK2: 46 | HL2: 46 | HM2: 46 | HN2: 46 | HO2: 47 | HP2: 47 | HQ2: 47 | HR2: 47 | HS2: 48 | HT2: 48 | HU2: 48 | HV2: 48 | HW2: 49 | HX2: 49 | HY2: 49 | HZ2: 49 | IA2: 50 | IB2: 50 | IC2: 50 | ID2: 50 | IE2: =IA2+1 -> 51 | IF2: 51 | IG2: 51 | IH2: 51 | II2: 52 | IJ2: 52 | IK2: 52 | IL2: 52 | IM2: 53 | IN2: 53 | IO2: 53 | IP2: 53 | IQ2: 54 | IR2: 54 | IS2: 54 | IT2: 54
B3: 地方公共団体コード | C3: 都道府県名 | D3: 市区町村名 | E3: 団体区分 | F3: 地方債 | G3: 債務負担 | H3: 公営企業債 | I3: 組合等 | J3: 退職手当 | K3: 設立法人等計 | L3: 道路公社 | M3: 土地公社 | N3: 独立法人 | O3: 三セク等 | P3: 連結赤字 | Q3: 組合連結 | R3: 基金 | S3: 特定歳入 | T3: 都市計画税 | U3: 交付税 | V3: 将来負担 | W3: 充当財源B | X3: A-B | Y3: 算入公債費 | Z3: C-D | AA3: 将来負担比率 | AB3: PFI | AC3: 五省協定 | AD3: 国営土地 | AE3: 森林総合研究所 | AF3: 地共済 | AG3: 依頼土地 | AH3: 施設建設費 | AI3: 損失補償等 | AJ3: 債務引受 | AK3: その他 | AL3: 合計 | AM3: 区分 | AN3: 事項 | AO3: 期間 | AP3: 支出予定額 | AQ3: 区分 | AR3: 事項 | AS3: 期間 | AT3: 支出予定額 | AU3: 区分 | AV3: 事項 | AW3: 期間 | AX3: 支出予定額 | AY3: 区分 | AZ3: 事項 | BA3: 期間 | BB3: 支出予定額 | BC3: 区分 | BD3: 事項 | BE3: 期間 | BF3: 支出予定額 | BG3: 区分 | BH3: 事項 | BI3: 期間 | BJ3: 支出予定額 | BK3: 区分 | BL3: 事項 | BM3: 期間 | BN3: 支出予定額 | BO3: 区分 | BP3: 事項 | BQ3: 期間 | BR3: 支出予定額 | BS3: 区分 | BT3: 事項 | BU3: 期間 | BV3: 支出予定額 | BW3: 区分 | BX3: 事項 | BY3: 期間 | BZ3: 支出予定額 | CA3: 区分 | CB3: 事項 | CC3: 期間 | CD3: 支出予定額 | CE3: 区分 | CF3: 事項 | CG3: 期間 | CH3: 支出予定額 | CI3: 区分 | CJ3: 事項 | CK3: 期間 | CL3: 支出予定額 | CM3: 区分 | CN3: 事項 | CO3: 期間 | CP3: 支出予定額 | CQ3: 区分 | CR3: 事項 | CS3: 期間 | CT3: 支出予定額 | CU3: 区分 | CV3: 事項 | CW3: 期間 | CX3: 支出予定額 | CY3: 区分 | CZ3: 事項 | DA3: 期間 | DB3: 支出予定額 | DC3: 区分 | DD3: 事項 | DE3: 期間 | DF3: 支出予定額 | DG3: 区分 | DH3: 事項 | DI3: 期間 | DJ3: 支出予定額 | DK3: 区分 | DL3: 事項 | DM3: 期間 | DN3: 支出予定額 | DO3: 区分 | DP3: 事項 | DQ3: 期間 | DR3: 支出予定額 | DS3: 区分 | DT3: 事項 | DU3: 期間 | DV3: 支出予定額 | DW3: 区分 | DX3: 事項 | DY3: 期間 | DZ3: 支出予定額 | EA3: 区分 | EB3: 事項 | EC3: 期間 | ED3: 支出予定額 | EE3: 区分 | EF3: 事項 | EG3: 期間 | EH3: 支出予定額 | EI3: 区分 | EJ3: 事項 | EK3: 期間 | EL3: 支出予定額 | EM3: 区分 | EN3: 事項 | EO3: 期間 | EP3: 支出予定額 | EQ3: 区分 | ER3: 事項 | ES3: 期間 | ET3: 支出予定額 | EU3: 区分 | EV3: 事項 | EW3: 期間 | EX3: 支出予定額 | EY3: 区分 | EZ3: 事項 | FA3: 期間 | FB3: 支出予定額 | FC3: 区分 | FD3: 事項 | FE3: 期間 | FF3: 支出予定額 | FG3: 区分 | FH3: 事項 | FI3: 期間 | FJ3: 支出予定額 | FK3: 区分 | FL3: 事項 | FM3: 期間 | FN3: 支出予定額 | FO3: 区分 | FP3: 事項 | FQ3: 期間 | FR3: 支出予定額 | FS3: 区分 | FT3: 事項 | FU3: 期間 | FV3: 支出予定額 | FW3: 区分 | FX3: 事項 | FY3: 期間 | FZ3: 支出予定額 | GA3: 区分 | GB3: 事項 | GC3: 期間 | GD3: 支出予定額 | GE3: 区分 | GF3: 事項 | GG3: 期間 | GH3: 支出予定額 | GI3: 区分 | GJ3: 事項 | GK3: 期間 | GL3: 支出予定額 | GM3: 区分 | GN3: 事項 | GO3: 期間 | GP3: 支出予定額 | GQ3: 区分 | GR3: 事項 | GS3: 期間 | GT3: 支出予定額 | GU3: 区分 | GV3: 事項 | GW3: 期間 | GX3: 支出予定額 | GY3: 区分 | GZ3: 事項 | HA3: 期間 | HB3: 支出予定額 | HC3: 区分 | HD3: 事項 | HE3: 期間 | HF3: 支出予定額 | HG3: 区分 | HH3: 事項 | HI3: 期間 | HJ3: 支出予定額 | HK3: 区分 | HL3: 事項 | HM3: 期間 | HN3: 支出予定額 | HO3: 区分 | HP3: 事項 | HQ3: 期間 | HR3: 支出予定額 | HS3: 区分 | HT3: 事項 | HU3: 期間 | HV3: 支出予定額 | HW3: 区分 | HX3: 事項 | HY3: 期間 | HZ3: 支出予定額 | IA3: 区分 | IB3: 事項 | IC3: 期間 | ID3: 支出予定額 | IE3: 区分 | IF3: 事項 | IG3: 期間 | IH3: 支出予定額 | II3: 区分 | IJ3: 事項 | IK3: 期間 | IL3: 支出予定額 | IM3: 区分 | IN3: 事項 | IO3: 期間 | IP3: 支出予定額 | IQ3: 区分 | IR3: 事項 | IS3: 期間 | IT3: 支出予定額
A4: Ver.05.00 | B4: 11002 | C4: 北海道 | D4: 札幌市 | E4: 2 | F4: 1447889372 | G4: 104000 | H4: 168033454 | I4: 0 | J4: 118825898 | K4: 1578828 | L4: 0 | M4: 0 | N4: 0 | O4: 1578828 | P4: 0 | Q4: 0 | R4: 503704115.4 | S4: 263602921.7 | T4: 217727893 | U4: 878839128 | V4: 1736431552 | W4: 1646146165 | X4: 90285386.43 | Y4: 57694000 | Z4: 495836274 | AA4: 18.2 | AB4: 104000 | AC4: 0 | AD4: 0 | AE4: 0 | AF4: 0 | AG4: 0 | AH4: 0 | AI4: 0 | AJ4: 0 | AK4: 0 | AL4: 104000 | AM4: ① | AN4: 山口斎場整備運営事業 | AO4: 7 | AP4: 104000 | AQ4: 0 | AR4: 0 | AS4: 0 | AT4: 0 | AU4: 0 | AV4: 0 | AW4: 0 | AX4: 0 | AY4: 0 | AZ4: 0 | BA4: 0 | BB4: 0 | BC4: 0 | BD4: 0 | BE4: 0 | BF4: 0 | BG4: 0 | BH4: 0 | BI4: 0 | BJ4: 0 | BK4: 0 | BL4: 0 | BM4: 0 | BN4: 0 | BO4: 0 | BP4: 0 | BQ4: 0 | BR4: 0 | BS4: 0 | BT4: 0 | BU4: 0 | BV4: 0 | BW4: 0 | BX4: 0 | BY4: 0 | BZ4: 0 | CA4: 0 | CB4: 0 | CC4: 0 | CD4: 0 | CE4: 0 | CF4: 0 | CG4: 0 | CH4: 0 | CI4: 0 | CJ4: 0 | CK4: 0 | CL4: 0 | CM4: 0 | CN4: 0 | CO4: 0 | CP4: 0 | CQ4: 0 | CR4: 0 | CS4: 0 | CT4: 0 | CU4: 0 | CV4: 0 | CW4: 0 | CX4: 0 | CY4: 0 | CZ4: 0 | DA4: 0 | DB4: 0 | DC4: 0 | DD4: 0 | DE4: 0 | DF4: 0 | DG4: 0 | DH4: 0 | DI4: 0 | DJ4: 0 | DK4: 0 | DL4: 0 | DM4: 0 | DN4: 0 | DO4: 0 | DP4: 0 | DQ4: 0 | DR4: 0 | DS4: 0 | DT4: 0 | DU4: 0 | DV4: 0 | DW4: 0 | DX4: 0 | DY4: 0 | DZ4: 0 | EA4: 0 | EB4: 0 | EC4: 0 | ED4: 0 | EE4: 0 | EF4: 0 | EG4: 0 | EH4: 0 | EI4: 0 | EJ4: 0 | EK4: 0 | EL4: 0 | EM4: 0 | EN4: 0 | EO4: 0 | EP4: 0 | EQ4: 0 | ER4: 0 | ES4: 0 | ET4: 0 | EU4: 0 | EV4: 0 | EW4: 0 | EX4: 0 | EY4: 0 | EZ4: 0 | FA4: 0 | FB4: 0 | FC4: 0 | FD4: 0 | FE4: 0 | FF4: 0 | FG4: 0 | FH4: 0 | FI4: 0 | FJ4: 0 | FK4: 0 | FL4: 0 | FM4: 0 | FN4: 0 | FO4: 0 | FP4: 0 | FQ4: 0 | FR4: 0 | FS4: 0 | FT4: 0 | FU4: 0 | FV4: 0 | FW4: 0 | FX4: 0 | FY4: 0 | FZ4: 0 | GA4: 0 | GB4: 0 | GC4: 0 | GD4: 0 | GE4: 0 | GF4: 0 | GG4: 0 | GH4: 0 | GI4: 0 | GJ4: 0 | GK4: 0 | GL4: 0 | GM4: 0 | GN4: 0 | GO4: 0 | GP4: 0 | GQ4: 0 | GR4: 1 | GS4: 0 | GT4: 0 | GU4: 0 | GV4: 1 | GW4: 0 | GX4: 0 | GY4: 0 | GZ4: 1 | HA4: 0 | HB4: 0 | HC4: 0 | HD4: 1 | HE4: 0 | HF4: 0 | HG4: 0 | HH4: 1 | HI4: 0 | HJ4: 0 | HK4: 0 | HL4: 1 | HM4: 0 | HN4: 0 | HO4: 0 | HP4: 1 | HQ4: 0 | HR4: 0 | HS4: 0 | HT4: 1 | HU4: 0 | HV4: 0 | HW4: 0 | HX4: 1 | HY4: 0 | HZ4: 0 | IA4: 0 | IB4: 1 | IC4: 0 | ID4: 0 | IE4: 0 | IF4: 1 | IG4: 0 | IH4: 0 | II4: 0 | IJ4: 1 | IK4: 0 | IL4: 0 | IM4: 0 | IN4: 1 | IO4: 0 | IP4: 0 | IQ4: 0 | IR4: 1 | IS4: 0 | IT4: 0
A5: Ver.05.00 | B5: 012025 | C5: 北海道 | D5: 函館市 | E5: 3 | F5: 128274598 | G5: 837718 | H5: 26243862 | I5: 221896 | J5: 15749581 | K5: 957227 | L5: 0 | M5: 957227 | N5: 0 | O5: 0 | P5: 0 | Q5: 0 | R5: 19318923.86 | S5: 27520834 | T5: 20675652 | U5: 101662864 | V5: 172284882 | W5: 148502621.9 | X5: 23782260.14 | Y5: 9933949 | Z5: 60997436 | AA5: 38.9 | AB5: 0 | AC5: 0 | AD5: 0 | AE5: 0 | AF5: 0 | AG5: 253995 | AH5: 583723 | AI5: 0 | AJ5: 0 | AK5: 0 | AL5: 837718 | AM5: ⑥ | AN5: 第２次函館臨空工業団地建設事業（第２期後期） | AO5: 10 | AP5: 253995 | AQ5: ⑦ | AR5: 社会福祉施設等整備費補助金（函館はくあい園，函館共愛会病院愛泉寮） | AS5: 6 | AT5: 6085 | AU5: ⑦ | AV5: 社会福祉施設等整備費補助金（松濤，ゆりかご認定こども園） | AW5: 6 | AX5: 1070 | AY5: ⑦ | AZ5: 社会福祉施設等整備費補助金（なかよし保育園） | BA5: 8 | BB5: 6615 | BC5: ⑦ | BD5: 社会福祉施設等整備費補助金（函館はくあい園） | BE5: 7 | BF5: 1420 | BG5: ⑦ | BH5: 社会福祉施設等整備費補助金（函館美原保育園） | BI5: 8 | BJ5: 5382 | BK5: ⑦ | BL5: 社会福祉施設等整備費補助金（よつば学園，福寿荘さくら館） | BM5: 8 | BN5: 25740 | BO5: ⑦ | BP5: 社会福祉施設等整備費補助金（函館共愛会愛泉寮） | BQ5: 7 | BR5: 4665 | BS5: ⑦ | BT5: 社会福祉施設等整備費補助金（函館石川保育園） | BU5: 9 | BV5: 4180 | BW5: ⑦ | BX5: 社会福祉施設等整備費補助金（明和園） | BY5: 8 | BZ5: 21390 | CA5: ⑦ | CB5: 社会福祉施設等整備費補助金（函館共働宿泊所救護部） | CC5: 9 | CD5: 22560 | CE5: ⑦ | CF5: 社会福祉施設等整備費補助金（福寿荘さくら館） | CG5: 9 | CH5: 2170 | CI5: ⑦ | CJ5: 社会福祉施設等整備費補助金（鍛治さくら認定こども園） | CK5: 11 | CL5: 5950 | CM5: ⑦ | CN5: 社会福祉施設等整備費補助金（まろにえ） | CO5: 11 | CP5: 68640 | CQ5: ⑦ | CR5: 社会福祉施設等整備費補助金（函館深堀保育園） | CS5: 12 | CT5: 14134 | CU5: ⑦ | CV5: 社会福祉施設等整備費補助金（旭岡保育園） | CW5: 12 | CX5: 6100 | CY5: ⑦ | CZ5: 社会福祉施設等整備費補助金（函館上湯川保育園） | DA5: 12 | DB5: 7047 | DC5: ⑦ | DD5: 社会福祉施設等整備費補助金（認定根崎こども園） | DE5: 12 | DF5: 3528 | DG5: ⑦ | DH5: 社会福祉施設等整備費補助金（うみのほし学園） | DI5: 7 | DJ5: 6996 | DK5: ⑦ | DL5: 社会福祉施設等整備費補助金（まろにえ） | DM5: 12 | DN5: 2860 | DO5: ⑦ | DP5: 社会福祉施設等整備費補助金（赤川認定こども園） | DQ5: 13 | DR5: 12777 | DS5: ⑦ | DT5: 社会福祉施設等整備費補助金（函館国の子寮） | DU5: 13 | DV5: 12096 | DW5: ⑦ | DX5: 社会福祉施設等整備費補助金（認定根崎こども園） | DY5: 13 | DZ5: 84 | EA5: ⑦ | EB5: 社会福祉施設等整備費補助金（松陰保育園） | EC5: 14 | ED5: 34344 | EE5: ⑦ | EF5: 社会福祉施設等整備費補助金（函館国の子寮） | EG5: 14 | EH5: 252 | EI5: ⑦ | EJ5: 社会福祉施設等整備費補助金（桔梗みのりの里） | EK5: 25 | EL5: 39401 | EM5: ⑦ | EN5: 社会福祉施設等整備費補助金（あい亀田港） | EO5: 25 | EP5: 16048 | EQ5: ⑦ | ER5: 社会福祉施設等整備費補助金（谷地頭緑蔭園） | ES5: 25 | ET5: 18071 | EU5: ⑦ | EV5: 社会福祉施設等整備費補助金（倶有） | EW5: 15 | EX5: 22960 | EY5: ⑦ | EZ5: 社会福祉施設等整備費補助金（函館高砂保育園） | FA5: 15 | FB5: 34560 | FC5: ⑦ | FD5: 社会福祉施設等整備費補助金（つぐみ保育園） | FE5: 16 | FF5: 12834 | FG5: ⑦ | FH5: 社会福祉施設等整備費補助金（函館市松陰母子ホーム） | FI5: 15 | FJ5: 50941 | FK5: ⑦ | FL5: 社会福祉施設等整備費補助金（松陰保育園） | FM5: 15 | FN5: 1272 | FO5: ⑦ | FP5: 社会福祉施設等整備費補助金（あい亀田港） | FQ5: 25 | FR5: 6608 | FS5: ⑦ | FT5: 社会福祉施設等整備費補助金（松陰プラザ） | FU5: 16 | FV5: 9603 | FW5: ⑦ | FX5: 社会福祉施設等整備費補助金（南かやべ認定こども園） | FY5: 17 | FZ5: 15875 | GA5: ⑦ | GB5: 社会福祉施設等整備費補助金（函館高砂母子ホーム） | GC5: 16 | GD5: 44022 | GE5: ⑦ | GF5: 社会福祉施設等整備費補助金（倶有） | GG5: 26 | GH5: 24491 | GI5: ⑦ | GJ5: 社会福祉施設等整備費補助金（函館高砂保育園） | GK5: 16 | GL5: 2592 | GM5: ⑦ | GN5: 社会福祉施設等整備費補助金（函館市松陰母子ホーム） | GO5: 16 | GP5: 3820 | GQ5: ⑦ | GR5: 社会福祉施設等整備費補助金（松陰プラザ） | GS5: 17 | GT5: 72 | GU5: ⑦ | GV5: 社会福祉施設等整備費補助金（南かやべ認定こども園） | GW5: 17 | GX5: 1800 | GY5: ⑦ | GZ5: 社会福祉施設等整備費補助金（函館高砂母子ホーム） | HA5: 17 | HB5: 2668 | HC5: 0 | HD5: 1 | HE5: 0 | HF5: 0 | HG5: 0 | HH5: 1 | HI5: 0 | HJ5: 0 | HK5: 0 | HL5: 1 | HM5: 0 | HN5: 0 | HO5: 0 | HP5: 1 | HQ5: 0 | HR5: 0 | HS5: 0 | HT5: 1 | HU5: 0 | HV5: 0 | HW5: 0 | HX5: 1 | HY5: 0 | HZ5: 0 | IA5: 0 | IB5: 1 | IC5: 0 | ID5: 0 | IE5: 0 | IF5: 1 | IG5: 0 | IH5: 0 | II5: 0 | IJ5: 1 | IK5: 0 | IL5: 0 | IM5: 0 | IN5: 1 | IO5: 0 | IP5: 0 | IQ5: 0 | IR5: 1 | IS5: 0 | IT5: 0
A6: Ver.05.00 | B6: 012033 | C6: 北海道 | D6: 小樽市 | E6: 3 | F6: 44663925 | G6: 0 | H6: 12171634 | I6: 634383 | J6: 8147630 | K6: 0 | L6: 0 | M6: 0 | N6: 0 | O6: 0 | P6: 0 | Q6: 0 | R6: 9573266 | S6: 6538343 | T6: 3387979 | U6: 42633738 | V6: 65617572 | W6: 58745347 | X6: 6872225 | Y6: 4373886 | Z6: 27484166 | AA6: 25 | AB6: 0 | AC6: 0 | AD6: 0 | AE6: 0 | AF6: 0 | AG6: 0 | AH6: 0 | AI6: 0 | AJ6: 0 | AK6: 0 | AL6: 0 | AM6: 0 | AN6: 0 | AO6: 0 | AP6: 0 | AQ6: 0 | AR6: 0 | AS6: 0 | AT6: 0 | AU6: 0 | AV6: 0 | AW6: 0 | AX6: 0 | AY6: 0 | AZ6: 0 | BA6: 0 | BB6: 0 | BC6: 0 | BD6: 0 | BE6: 0 | BF6: 0 | BG6: 0 | BH6: 0 | BI6: 0 | BJ6: 0 | BK6: 0 | BL6: 0 | BM6: 0 | BN6: 0 | BO6: 0 | BP6: 0 | BQ6: 0 | BR6: 0 | BS6: 0 | BT6: 0 | BU6: 0 | BV6: 0 | BW6: 0 | BX6: 0 | BY6: 0 | BZ6: 0 | CA6: 0 | CB6: 0 | CC6: 0 | CD6: 0 | CE6: 0 | CF6: 0 | CG6: 0 | CH6: 0 | CI6: 0 | CJ6: 0 | CK6: 0 | CL6: 0 | CM6: 0 | CN6: 0 | CO6: 0 | CP6: 0 | CQ6: 0 | CR6: 0 | CS6: 0 | CT6: 0 | CU6: 0 | CV6: 0 | CW6: 0 | CX6: 0 | CY6: 0 | CZ6: 0 | DA6: 0 | DB6: 0 | DC6: 0 | DD6: 0 | DE6: 0 | DF6: 0 | DG6: 0 | DH6: 0 | DI6: 0 | DJ6: 0 | DK6: 0 | DL6: 0 | DM6: 0 | DN6: 0 | DO6: 0 | DP6: 0 | DQ6: 0 | DR6: 0 | DS6: 0 | DT6: 0 | DU6: 0 | DV6: 0 | DW6: 0 | DX6: 0 | DY6: 0 | DZ6: 0 | EA6: 0 | EB6: 0 | EC6: 0 | ED6: 0 | EE6: 0 | EF6: 0 | EG6: 0 | EH6: 0 | EI6: 0 | EJ6: 0 | EK6: 0 | EL6: 0 | EM6: 0 | EN6: 0 | EO6: 0 | EP6: 0 | EQ6: 0 | ER6: 0 | ES6: 0 | ET6: 0 | EU6: 0 | EV6: 0 | EW6: 0 | EX6: 0 | EY6: 0 | EZ6: 0 | FA6: 0 | FB6: 0 | FC6: 0 | FD6: 0 | FE6: 0 | FF6: 0 | FG6: 0 | FH6: 0 | FI6: 0 | FJ6: 0 | FK6: 0 | FL6: 0 | FM6: 0 | FN6: 0 | FO6: 0 | FP6: 0 | FQ6: 0 | FR6: 0 | FS6: 0 | FT6: 0 | FU6: 0 | FV6: 0 | FW6: 0 | FX6: 0 | FY6: 0 | FZ6: 0 | GA6: 0 | GB6: 0 | GC6: 0 | GD6: 0 | GE6: 0 | GF6: 0 | GG6: 0 | GH6: 0 | GI6: 0 | GJ6: 0 | GK6: 0 | GL6: 0 | GM6: 0 | GN6: 0 | GO6: 0 | GP6: 0 | GQ6: 0 | GR6: 1 | GS6: 0 | GT6: 0 | GU6: 0 | GV6: 1 | GW6: 0 | GX6: 0 | GY6: 0 | GZ6: 1 | HA6: 0 | HB6: 0 | HC6: 0 | HD6: 1 | HE6: 0 | HF6: 0 | HG6: 0 | HH6: 1 | HI6: 0 | HJ6: 0 | HK6: 0 | HL6: 1 | HM6: 0 | HN6: 0 | HO6: 0 | HP6: 1 | HQ6: 0 | HR6: 0 | HS6: 0 | HT6: 1 | HU6: 0 | HV6: 0 | HW6: 0 | HX6: 1 | HY6: 0 | HZ6: 0 | IA6: 0 | IB6: 1 | IC6: 0 | ID6: 0 | IE6: 0 | IF6: 1 | IG6: 0 | IH6: 0 | II6: 0 | IJ6: 1 | IK6: 0 | IL6: 0 | IM6: 0 | IN6: 1 | IO6: 0 | IP6: 0 | IQ6: 0 | IR6: 1 | IS6: 0 | IT6: 0
